Workbook

Sheet School Formula Budget 2017-18
C1: Early Years, Schools and High Needs Block Formula Budgets 2017/18
L3: =VLOOKUP(B5,'School & Nursery Setting Lookup'!A:G,5,FALSE) -> 6
B4: Please select your School or Nursery Setting Name in the cell below | F4: DfE No or Ofsted ID | H4: Setting Type
B5: All Schools | F5: =VLOOKUP(B5,'School & Nursery Setting Lookup'!A:E,3,FALSE) -> All | H5: =VLOOKUP(B5,'School & Nursery Setting Lookup'!A:G,4,FALSE) -> 6
C7: Early Years Nursery Funding 2017/18
B10: 1. Base Rate(s) per hour, per provider type. Setting Type | D10: Amount (£) | E10: May 2017 Term Hours | F10: Oct 2017 Term Hours | G10: Jan 2018 Term Hours | H10: Anticipated Total Budget (£) | L10: May 2017 Term Hours | M10: Oct 2017 Term Hours | N10: Jan 2018 Term Hours | P10: Anticipated Total Budget (£)
B11: M = Maintained Nursery at a School / Academy | C11: 4.05 | D11: per hour | E11: =IF($L$3=1,L11,0)+IF(L3=6,T11) -> 378511 | F11: =IF($L$3=1,M11,0)+IF(L3=6,U11) -> 284778 | G11: =IF($L$3=1,N11,0)+IF(L3=6,V11) -> 263024 | H11: =IF($H$5=6,Q11,R11) -> 3751570 | L11: =VLOOKUP($F$5,'2017-18 Nursery Budget'!$C:$M,6,FALSE) -> 998104 | M11: =VLOOKUP($F$5,'2017-18 Nursery Budget'!$C:$M,7,FALSE) -> 820872.3 | N11: =VLOOKUP($F$5,'2017-18 Nursery Budget'!$C:$M,8,FALSE) -> 766559.45 | P11: ='2017-18 Nursery Budget'!P213 -> 3751570 | Q11: =IF(F$5=12345,0,P11) -> 3751570 | R11: =SUM($E11+$F11+$G11)*$C11 -> 3751567.65 | T11: ='2017-18 Nursery Budget'!H213 -> 378511 | U11: ='2017-18 Nursery Budget'!I213 -> 284778 | V11: ='2017-18 Nursery Budget'!J213 -> 263024
B12: S = Stand Alone Maintained Nursery School | C12: 4.05 | E12: =IF($L$3=2,L12,0)+IF(L3=6,T12) -> 100425 | F12: =IF($L$3=2,M12,0)+IF(L3=6,U12) -> 86310 | G12: =IF($L$3=2,N12,0)+IF(L3=6,V12) -> 79860 | H12: =IF($H$5=6,Q12,R12) -> 1079712 | L12: =VLOOKUP($F$5,'2017-18 Nursery Budget'!$C:$M,6,FALSE) -> 998104 | M12: =VLOOKUP($F$5,'2017-18 Nursery Budget'!$C:$M,7,FALSE) -> 820872.3 | N12: =VLOOKUP($F$5,'2017-18 Nursery Budget'!$C:$M,8,FALSE) -> 766559.45 | P12: ='2017-18 Nursery Budget'!P214 -> 1079712 | Q12: =IF(F$5=12345,0,P12) -> 1079712 | R12: =SUM($E12+$F12+$G12)*$C12 -> 1079709.75 | T12: ='2017-18 Nursery Budget'!H214 -> 100425 | U12: ='2017-18 Nursery Budget'!I214 -> 86310 | V12: ='2017-18 Nursery Budget'!J214 -> 79860
B13: P = Pre School | C13: 4.05 | E13: =IF($L$3=3,L13,0)+IF(L3=6,T13) -> 160368 | F13: =IF($L$3=3,M13,0)+IF(L3=6,U13) -> 138144.3 | G13: =IF($L$3=3,N13,0)+IF(L3=6,V13) -> 129480.45 | H13: =IF($H$5=6,Q13,R13) -> 1733382 | L13: =VLOOKUP($F$5,'2017-18 Nursery Budget'!$C:$M,6,FALSE) -> 998104 | M13: =VLOOKUP($F$5,'2017-18 Nursery Budget'!$C:$M,7,FALSE) -> 820872.3 | N13: =VLOOKUP($F$5,'2017-18 Nursery Budget'!$C:$M,8,FALSE) -> 766559.45 | P13: ='2017-18 Nursery Budget'!P215 -> 1733382 | Q13: 1733382 | R13: 1733370.637 | T13: ='2017-18 Nursery Budget'!H215 -> 160368 | U13: ='2017-18 Nursery Budget'!I215 -> 138144.3 | V13: ='2017-18 Nursery Budget'!J215 -> 129480.45
B14: D = Day Nursery | C14: 4.05 | E14: =IF($L$3=4,L14,0)+IF(L3=6,T14) -> 358800 | F14: =IF($L$3=4,M14,0)+IF(L3=6,U14) -> 311640 | G14: =IF($L$3=4,N14,0)+IF(L3=6,V14) -> 294195 | H14: =IF($H$5=6,Q14,R14) -> 3906781 | L14: =VLOOKUP($F$5,'2017-18 Nursery Budget'!$C:$M,6,FALSE) -> 998104 | M14: =VLOOKUP($F$5,'2017-18 Nursery Budget'!$C:$M,7,FALSE) -> 820872.3 | N14: =VLOOKUP($F$5,'2017-18 Nursery Budget'!$C:$M,8,FALSE) -> 766559.45 | P14: ='2017-18 Nursery Budget'!P216 -> 3906781 | Q14: 3906781 | R14: =SUM($E14+$F14+$G14)*$C14 -> 3906771.75 | T14: ='2017-18 Nursery Budget'!H216 -> 358800 | U14: ='2017-18 Nursery Budget'!I216 -> 311640 | V14: ='2017-18 Nursery Budget'!J216 -> 294195
B15: Deprivation (Mandatory) Supplement | C15: Amount (£) | D15: Unit | E15: May 2017 Term Unit Hours | F15: Oct 2017 Term Unit Hours | G15: Jan 2018 Term Unit Hours | H15: Anticipated Total Budget (£) | T15: ='2017-18 Nursery Budget'!G253 -> 0 | U15: ='2017-18 Nursery Budget'!H253 -> 0 | V15: ='2017-18 Nursery Budget'!I253 -> 0
B16: Free School Meals | C16: 0.2 | D16: per hour | E16: =IF($L$3=0,0,L16) -> 185382 | F16: =IF($L$3=0,0,M16) -> 150394 | G16: 141680 | H16: =SUM(E16+F16+G16)*C16 -> 95491.2 | L16: =VLOOKUP($F$5,'2017-18 Nursery Budget'!$C:$AX,16,FALSE) -> 185382 | M16: =VLOOKUP($F$5,'2017-18 Nursery Budget'!$C:$AX,17,FALSE) -> 150394 | N16: =VLOOKUP($F$5,'2017-18 Nursery Budget'!$C:$AX,18,FALSE) -> 141680 | P16: ='2017-18 Nursery Budget'!V217 -> 95491.2
B17: IMD | C17: 0.2 | D17: per hour | E17: =IF($L$3=0,0,L17) -> 1381018.08 | F17: 1108228.245 | G17: 1017772.469 | H17: =SUM(E17+F17+G17)*C17 -> 701403.7587 | L17: =VLOOKUP($F$5,'2017-18 Nursery Budget'!$C:$AX,22,FALSE) -> 1381018.08 | M17: =VLOOKUP($F$5,'2017-18 Nursery Budget'!$C:$AX,23,FALSE) -> 1108228.245 | N17: =VLOOKUP($F$5,'2017-18 Nursery Budget'!$C:$AX,24,FALSE) -> 1017772.469 | P17: ='2017-18 Nursery Budget'!AB217 -> 701403.7587
B18: EAL | C18: 0.2 | D18: per hour | E18: =IF($L$3=0,0,L18) -> 194475.8224 | F18: 149295.3981 | G18: 138575.3961 | H18: =SUM(E18+F18+G18)*C18 -> 96469.32332 | L18: =VLOOKUP($F$5,'2017-18 Nursery Budget'!$C:$AX,36,FALSE) -> 194475.8224 | M18: =VLOOKUP($F$5,'2017-18 Nursery Budget'!$C:$AX,37,FALSE) -> 149295.3981 | N18: =VLOOKUP($F$5,'2017-18 Nursery Budget'!$C:$AX,38,FALSE) -> 138575.3961 | P18: ='2017-18 Nursery Budget'!AP217 -> 96469.32332
B19: Other Supplements | C19: Amount (£) | D19: Unit | E19: Number of units | H19: Anticipated Total Budget (£)
B20: Disability Access Fund (see guidance notes) | C20: =IF(L3=6,67650,0) -> 67650 | D20: lump sum | E20: =+IF(L3=6,1,0) -> 1 | H20: =IF(H5=6,67650,0) -> 67650
B21: SEN Locality Funding (see guidance notes) | C21: =IF(L3=6,250000,0) -> 250000 | D21: lump sum | E21: =+IF(L3=6,1,0) -> 1 | H21: =IF(H5=6,250000,0) -> 250000
B22: 3. Other formula factors and lump sums (if applicable) | C22: Amount (£) | D22: Unit | E22: Number of units | H22: Anticipated Total Budget (£)
B23: Base for Stand Alone Maintained Nurseries | C23: 100000 | D23: lump sum | E23: =IF($L$3=2,1,0) -> 0 | H23: =IF(L3=6,700000,$E23*$C23) -> 700000
B24: Stand Alone Maintained Nursery Supplement Funding | C24: 1.55 | D24: per hour | E24: =IF($L$3=2,VLOOKUP(F5,'2017-18 Nursery Budget'!C9:M55,6,FALSE),"-") -> - | F24: =IF($L$3=2,VLOOKUP(F5,'2017-18 Nursery Budget'!C9:M55,7,FALSE),"-") -> - | G24: =IF($L$3=2,VLOOKUP(F5,'2017-18 Nursery Budget'!C9:M55,8,FALSE),"-") -> - | H24: =IF(L3=6,VLOOKUP(F5,'2017-18 Nursery Budget'!C34:BB198,52,FALSE),(SUM(E24:G24)*C24)) -> 413222.25
B25: TOTAL FUNDING FOR EARLY YEARS SINGLE FUNDING FORMULA excluding Rates* | H25: =SUM(H11:H24) -> 12795681.53
B26: *Please note Early Years budgets are adjusted for actual hour take up in year
C29: High Needs Formula Budget 2017/18
D33: TA Hours funding (£) | G33: Number | H33: Total (£)
B34: TA Hours | C34: Schools to be notified separately. Not part of base budget | E34: =VLOOKUP($F$5,'Summary for Prints'!B:AC,21,FALSE) -> 0 | G34: 1 | H34: =$G34*$E34 -> 0
D35: Element 1 & 2 Place Rate | G35: Number | H35: Total (£)
B36: Element 1 & 2 (Place led funding) - ERS Nursery | C36: See Separate breakdown | E36: 10000 | G36: =(SUMIF('ERS 2017-18'!B$5:B$21,F3,'ERS 2017-18'!AD$22:AD$23)/10000)+IF(H5=6,25.2055,0) -> 25.2055 | H36: =$G36*$E36 -> 252055
D37: Element 1 & 2 Place Rate | G37: Number | H37: Total (£)
B38: Element 1 & 2 (Place led funding) - ERS Pre 16 | C38: See Separate breakdown | E38: 10000 | G38: =(SUMIF('ERS 2017-18'!B$5:B$21,F5,'ERS 2017-18'!AD$5:AD$25)/10000)+IF(H5=6,238,0) -> 238 | H38: =$G38*$E38 -> 2380000
D39: Element 1 & 2 Place Rate | G39: Places | H39: Total (£)
B40: Element 1 & 2 (Place led funding) - ERS Post 16 | C40: See Separate breakdown | E40: 10000 | G40: =(SUMIF('ERS 2017-18'!B$28:B$29,F5,'ERS 2017-18'!AD$28:AD$29)/10000)+IF(H5=6,0,0) -> 0 | H40: =$G40*$E40 -> 0
D41: Indicative Element 3 Pupils (banding) funding | G41: Number | H41: Total (£)
B42: Element 3 - Derby City Pupils (banding) funding Pre & Post 16* | C42: See Separate breakdown | E42: =SUMIF('ERS 2017-18'!B:B,F5,'ERS 2017-18'!AE:AE)+IF(H5=6,'ERS 2017-18'!AE33,0) -> 1409741.122 | G42: 1 | H42: =$G42*$E42 -> 1409741.122
D43: Other Funding | G43: Number | H43: Total (£)
B44: ERS - Other | C44: See Separate breakdown | E44: =SUMIF('ERS 2017-18'!$B:$B,$F$5,'ERS 2017-18'!$AG:$AG)+IF(H5=6,'ERS 2017-18'!AG33,0) -> 25000 | G44: 1 | H44: =$G44*$E44 -> 25000
G45: Number | H45: Total (£)
B46: High Needs Funding from Derby City / EFA* | C46: Including both Pre 16 & Post 16 Funding | H46: =H38+H40+H42+H44+H34+H36 -> 4066796.122
D48: ERS Pupil Top up funding | G48: Number | H48: Total (£)
B49: Other LA Top up funding (Income not Budget)* | C49: See Separate breakdown | E49: =SUMIF('ERS 2017-18'!B:B,F5,'ERS 2017-18'!AI:AI)+IF(H5=6,'ERS 2017-18'!AI33,0) -> 99440.285 | G49: 1 | H49: =$G49*$E49 -> 99440.285
B52: *Please note that High Needs top up funding follows the pupil, therefore funding will be adjusted in year where there are pupil movements
B55: =B5 -> All Schools | F55: =F5 -> All | H55: =H5 -> 6
C57: Schools Block Funding 2017/18
B61: Factor | C61: Description | D61: Primary amount per pupil | E61: Secondary KS3 amount per pupil | F61: Secondary KS4 amount per pupil | G61: Number of Pupils (Net of High Needs Places) | H61: Sub total (£) | I61: Delegated SEN % | J61: Delegated SEN funding within School Budget £
B62: 1) Basic Entitlement - Age Weighted Pupil Funding (AWPU) | C62: Primary (including reception) | D62: 2655.142568 | G62: =VLOOKUP($F$5,AWPU!$B:$M,9,FALSE) -> 23161 | H62: =G62*D62 -> 61495757.02 | I62: 0.1199682571 | J62: =D62*G62*I62 -> 7377538.79
C63: Key Stage 3 | E63: 3719.208896 | G63: =VLOOKUP($F$5,AWPU!$B:$M,10,FALSE) -> 8874 | H63: =G63*E63 -> 33004259.74 | I63: 0.09699012197 | J63: =E63*G63*I63 -> 3201087.178
C64: Key Stage 4 | F64: 4163.981952 | G64: =VLOOKUP($F$5,AWPU!$B:$M,11,FALSE) -> 5455 | H64: =G64*F64 -> 22714521.55 | I64: 0.08633490028 | J64: =F64*G64*I64 -> 1961055.953 | L64: Prim | M64: Sec
F65: Total | G65: =SUM(G62:G64) -> 37490 | H65: =SUM(H62:H64) -> 117214538.3 | L65: =G65 -> 37490 | M65: =G63+G64 -> 14329
B67: De-delegation - see separate breakdown | C67: Primary (including reception) | D67: -62.706 | G67: =VLOOKUP($F$5,'DE-DEL'!$B:$M,9,FALSE) -> 20392 | H67: =G67*D67 -> -1278700.752
C68: Secondary | E68: -63.468 | F68: -63.468 | G68: =VLOOKUP($F$5,'DE-DEL'!$B:$M,10,FALSE)+VLOOKUP($F$5,'DE-DEL'!$B:$M,11,FALSE) -> 5972 | H68: =G68*F68 -> -379030.896
F69: Total | G69: =SUM(G67:G68) -> 26364 | H69: =SUM(H67:H68) -> -1657731.648
D70: Amount per pupil | G70: Number of Pupils | H70: Total (£)
B71: ESG Service Contribution | C71: Per pupil | E71: -23.1376 | G71: =VLOOKUP($F$5,'DE-DEL'!$B:$M,12,FALSE) -> 26364 | H71: =G71*E71 -> -609999.6864
D72: Primary amount per pupil | E72: Secondary amount per pupil | F72: Number of eligible primary pupils | G72: Number of eligible secondary pupils | H72: Sub total (£) | I72: Notional SEN % | J72: Notional SEN within School Budget £
B73: 2) Deprivation | N73: =SUM(E11+F11+G11)*"C11" ->  | Q73: 17742138.39 | R73: Bemrose | T73: Adj
C74: FSM Ever 6 | D74: 933.8617217 | E74: 715.2127051 | F74: =VLOOKUP($F$5,DEP!$B:$AE,17,FALSE) -> 6802.774025 | G74: =VLOOKUP($F$5,DEP!$B:$AE,18,FALSE)+IF($F$5=4177,S74) -> 4797.933741 | H74: =$D74*$F74+($E74*$G74) -> 9784393.433 | I74: 0.3525178588 | J74: =I74*H74 -> 3449173.423 | L74: =DEP!R107 -> 6802.774025 | M74: =DEP!S107 -> 4797.933741 | R74: 92.66225166 | S74: 412.0506706 | T74: 306.6276423 | U74: =S74-T74 -> 105.4230284
C75: IDACI Band F 0.2 - 0.25 | D75: 117.3084155 | E75: 93.12683501 | F75: =VLOOKUP($F$5,DEP!$B:$AE,19,FALSE) -> 2190.307732 | G75: =VLOOKUP($F$5,DEP!$B:$AE,20,FALSE)+IF($F$5=4177,S75) -> 1323.148086 | H75: =$D75*$F75+($E75*$G75) -> 380162.123 | I75: 0.3525178588 | J75: 134013.9376 | L75: =DEP!T107 -> 2190.307732 | M75: =DEP!U107 -> 1323.148086 | R75: 21.16981132 | S75: 54.55524862 | T75: 9.296235679 | U75: =S75-T75 -> 45.25901294
C76: IDACI Band E 0.25 - 0.3 | D76: 234.6255044 | E76: 186.6873425 | F76: =VLOOKUP($F$5,DEP!$B:$AE,21,FALSE) -> 1953.197216 | G76: =VLOOKUP($F$5,DEP!$B:$AE,22,FALSE)+IF($F$5=4177,S76) -> 1192.210415 | H76: 680840.4761 | I76: 0.3525178588 | J76: 240008.4268 | L76: =DEP!V107 -> 1953.197216 | M76: =DEP!W107 -> 1192.210415 | R76: 46.0754717 | S76: 32.92127072 | T76: 109.695581 | U76: -76.7743103
C77: IDACI Band D 0.3 - 0.35 | D77: 352.3849393 | E77: 279.822851 | F77: =VLOOKUP($F$5,DEP!$B:$AE,23,FALSE) -> 2228.017003 | G77: =VLOOKUP($F$5,DEP!$B:$AE,24,FALSE)+IF($F$5=4177,S77) -> 1131.740432 | H77: 1101806.471 | I77: 0.3525178588 | J77: 388406.4578 | L77: =DEP!X107 -> 2228.017003 | M77: =DEP!Y107 -> 1131.740432 | R77: 26.1509434 | S77: 81.83287293 | T77: 158.0360065 | U77: -76.20313362
C78: IDACI Band C 0.35 - 0.4 | D78: 469.6933548 | E78: 372.949686 | F78: =VLOOKUP($F$5,DEP!$B:$AE,25,FALSE) -> 2896.218588 | G78: =VLOOKUP($F$5,DEP!$B:$AE,26,FALSE)+IF($F$5=4177,S78) -> 1629.792892 | H78: 1968165.372 | I78: 0.3525178588 | J78: 693813.4427 | L78: =DEP!Z107 -> 2896.218588 | M78: =DEP!AA107 -> 1629.792892 | R78: 85.9245283 | S78: 211.6367403 | T78: 153.3878887 | U78: 58.24885162
C79: IDACI Band B 0.4 - 0.5 | D79: 739.395383 | E79: 546.3330445 | F79: =VLOOKUP($F$5,DEP!$B:$AE,27,FALSE) -> 3990.84496 | G79: =VLOOKUP($F$5,DEP!$B:$AE,28,FALSE)+IF($F$5=4177,S79) -> 2055.686088 | H79: 4073901.577 | I79: 0.3525178588 | J79: 1436123.061 | L79: =DEP!AB107 -> 3990.84496 | M79: =DEP!AC107 -> 2055.686088 | R79: 31.13207547 | S79: 221.0428177 | T79: 56.70703764 | U79: 164.33578
C80: IDACI Band A 0.5 -1.0 | D80: 739.395383 | E80: 546.3330445 | F80: =VLOOKUP($F$5,DEP!$B:$AE,29,FALSE) -> 1257.235618 | G80: =VLOOKUP($F$5,DEP!$B:$AE,30,FALSE)+IF($F$5=4177,S80) -> 644.6672877 | H80: 1281797.253 | I80: 0.3525178588 | J80: =I80*H80 -> 451856.4231 | L80: =DEP!AD107 -> 1257.235618 | M80: =DEP!AE107 -> 644.6672877 | R80: 4.981132075 | S80: 35.74309392 | T80: 46.4811784 | U80: -10.73808447
E81: Total | F81: =SUM(F73:F80) -> 21318.59514 | G81: =SUM(G73:G80) -> 12775.17894 | H81: =SUM(H73:H80) -> 19271066.7 | J81: =IF(J74+J75+J76+J77+J78+J80+J79=0,H81*I80,"0") -> 0
D82: Amount per pupil | G82: Number of Pupils | H82: Total (£) | J82: Total (£)
B83: 3) Looked After Children (LAC) | C83: Per LAC child | E83: 1353.2167 | G83: =VLOOKUP($F$5,LAC!B:D,2,FALSE) -> 110.2286621 | H83: =$G83*$E83 -> 149163.2664 | I83: 0.9999999754 | J83: =I83*H83 -> 149163.2627
D84: Amount per pupil | G84: Number of Pupils | H84: Total (£) | J84: Total (£)
B85: 4) Low cost, high incidence SEN (Prior Attainment) | C85: Year 7 below expected standard at KS2 & Year 8 - 11 not achieving KS2 level 3 English or Maths | E85: 859.16 | G85: =VLOOKUP($F$5,LCHI!B:C,2,FALSE) -> 3551.652203 | H85: =$G85*$E85 -> 3051437.507 | I85: 0.3525175753 | J85: =I85*H85 -> 1075685.351
D86: Amount per pupil | G86: Number of Pupils | H86: Total (£) | J86: Total (£)
B87: 5) English as an Additional Language | C87: Primary pupils EAL funded for first 3 years in Statutory Education | E87: 855.7338 | G87: =VLOOKUP($F$5,EAL!B:D,2,FALSE) -> 4007.96934 | H87: =$G87*$E87 -> 3429754.833 | I87: 0.400545069 | J87: =I87*H87 -> 1373771.386
C88: Secondary pupils EAL funded for first 3 years in Statutory Education | E88: 2512.7557 | G88: =VLOOKUP($F$5,EAL!B:D,3,FALSE) -> 544.1050005 | H88: =$G88*$E88 -> 1367202.941 | I88: 0.400545069 | J88: =I88*H88 -> 547626.3965
D89: % of NOR | E89: Amount per pupil | G89: Number of Pupils | H89: Total (£) | J89: Total (£)
B90: 6) Mobility | C90: Primary pupils included in the October School Census who did not start in August or September (Last 3 academic years) | D90: =VLOOKUP($F$5,'2016 Factor % to units'!B:BY,62,FALSE) -> 7.155733194 | E90: 1199.68 | G90: =VLOOKUP($F$5,MOB!$B:$D,2,FALSE) -> 353.3914096 | H90: =$G90*$E90 -> 423956.6063 | I90: 1 | J90: =I90*H90 -> 423956.6063
B91: Mobility is calculated after deducting 10% threshold level | C91: Secondary pupils included in the October School Census who did not start in August or September (Last 3 academic years) | D91: =VLOOKUP($F$5,'2016 Factor % to units'!B:BY,63,FALSE) -> 0.9829077615 | E91: 2020.6041 | G91: =VLOOKUP($F$5,MOB!B:D,3,FALSE) -> 92.90413223 | H91: =$G91*$E91 -> 187722.4705 | I91: 1 | J91: =I91*H91 -> 187722.4705
D92: Amount of lump sum | G92: Number | H92: Total (£)
B93: 7) Lump Sum | C93: £100K Primary £150K Secondary | E93: =VLOOKUP($F$5,'Summary for Prints'!B:AB,8,FALSE) -> 9450000 | G93: 1 | H93: =$G93*$E93 -> 9450000
D94: Amount of split site funding | G94: Number | H94: Total (£)
B95: 8) Split Site | E95: 0 | G95: 1 | H95: =$G95*$E95 -> 0
D96: Amount of PFI funding | G96: Number | H96: Total (£)
B97: PFI to be paid back to the LA | E97: =VLOOKUP($F$5,'Summary for Prints'!B:AB,11,FALSE) -> 1076165.723 | G97: 1 | H97: =$G97*$E97 -> 1076165.723
D98: Minimum Funding Guarantee (-1.5%) | G98: Number | H98: Total (£)
B99: Minimum Funding Guarantee | E99: =VLOOKUP($F$5,'Summary for Prints'!B:AB,13,FALSE) -> 712867.3952 | G99: 1 | H99: =$G99*$E99 -> 712867.3952 | J99: Total Delegated SEN funding within the School Budget
D100: CAP | G100: Number | H100: Total (£)
B101: Schools Block Total excluding Rates | H101: =H65+H81+H83+H85+H87+H88+H90+H91+H93+H95+H97+H99+H69+H71 -> 154066144.4 | J101: =J62+J63+J64+J74+J75+J76+J77+J78+J79+J80+J83+J85+J87+J88+J90+J91+J81 -> 23091002.57
B103: Additional Funding | C103: KS1 Class Factor
G105: Number | H105: Total (£)
B106: KS1 Class Factor (Teacher required for 1:30 pupils ratio) | E106: =VLOOKUP($F$5,'Summary for Prints'!B:AB,19,FALSE) -> 1337912 | G106: 1 | H106: =$G106*$E106 -> 1337912
C108: RATES
G110: Number | H110: Total (£)
B111: RATES 2017-18 (Including previous year adjustments) | E111: =VLOOKUP($F$5,'Summary for Prints'!B:AB,10,FALSE) -> 1745637.355 | G111: 1 | H111: =$G111*$E111 -> 1745637.355
B114: School Budget INCLUDING Early Years, Schools Block and High Needs (excl other LA Top up), KS1 Class Factor, Contingency, & INCLUDING RATES | I114: =$H25+$H46+$H101+$H106+$H111 -> 174012171.4 | K114: ='Summary for Prints'!AJ154+'Summary for Prints'!AK506 -> 0 | L114: =K114-I114 -> -174012171.4
B116: School Budget INCLUDING Early Years, Schools Block and High Needs (excl other LA Top up), KS1 Class Factor, Contingency, & EXCLUDING RATES | I116: =I114-H111 -> 172266534.1 | K116: ='Summary for Prints'!AJ154+'Summary for Prints'!AJ506 -> 0 | L116: =K116-I116 -> -172266534.1
C119: Sixth Form
D121: Indicative Sixth Form (not yet known) | G121: Number | H121: Total (£)
B122: Indicative Sixth Form | C122: Figures not yet confirmed | E122: 0 | G122: 1 | H122: =E122*G122 -> 0
C124: De-delegation from Maintained Schools 2017-18
D125: Primary Rate | E125: Secondary Rate | F125: Primary net NOR | G125: Secondary Net NOR | H125: Total (£)
B126: CFR code E23 | C126: Contingencies (SIFD & Contingencies) | D126: -5.689 | E126: -5.689 | F126: =VLOOKUP($F$5,'DE-DEL'!$B:$M,9,FALSE) -> 20392 | G126: =VLOOKUP($F$5,'DE-DEL'!$B:$M,10,FALSE)+VLOOKUP($F$5,'DE-DEL'!$B:$M,11,FALSE) -> 5972 | H126: =D126*F126+E126*G126 -> -149984.796
D127: Rate | E127: Rate | F127: Prim Net NOR | G127: Sec Net NOR | H127: Total (£)
B128: CFR Code E28 | C128: FSM | D128: 0 | E128: 0 | F128: =VLOOKUP($F$5,'DE-DEL'!$B:$M,9,FALSE) -> 20392 | G128: =VLOOKUP($F$5,'DE-DEL'!$B:$M,10,FALSE)+VLOOKUP($F$5,'DE-DEL'!$B:$M,11,FALSE) -> 5972 | H128: =D128*F128+E128*G128 -> 0
D129: Rate | E129: Rate | F129: Prim Net NOR | G129: Sec Net NOR | H129: Total (£)
B130: CFR code E23 | C130: Insurance | D130: -9.482 | E130: -9.482 | F130: =VLOOKUP($F$5,'DE-DEL'!$B:$M,9,FALSE) -> 20392 | G130: =VLOOKUP($F$5,'DE-DEL'!$B:$M,10,FALSE)+VLOOKUP($F$5,'DE-DEL'!$B:$M,11,FALSE) -> 5972 | H130: =D130*F130+E130*G130 -> -249983.448
D131: Rate | E131: Rate | F131: Prim Net NOR | G131: Sec Net NOR | H131: Total (£)
B132: CFR code E19 | C132: Licences/Subscriptions | D132: -2.845 | E132: -2.845 | F132: =VLOOKUP($F$5,'DE-DEL'!$B:$M,9,FALSE) -> 20392 | G132: =VLOOKUP($F$5,'DE-DEL'!$B:$M,10,FALSE)+VLOOKUP($F$5,'DE-DEL'!$B:$M,11,FALSE) -> 5972 | H132: =D132*F132+E132*G132 -> -75005.58
D133: Rate | E133: Rate | F133: Prim Net NOR | G133: Sec Net NOR | H133: Total (£)
B134: CFR code E19 | C134: Staff Costs Supply | D134: -20.03 | E134: -20.03 | F134: =VLOOKUP($F$5,'DE-DEL'!$B:$M,9,FALSE) -> 20392 | G134: =VLOOKUP($F$5,'DE-DEL'!$B:$M,10,FALSE)+VLOOKUP($F$5,'DE-DEL'!$B:$M,11,FALSE) -> 5972 | H134: =D134*F134+E134*G134 -> -528070.92
D135: Rate | E135: Rate | F135: Prim Net NOR | G135: Sec Net NOR | H135: Total (£)
B136: CFR code E27 | C136: Support UAG and Bilingual | D136: -12.517 | E136: -12.517 | F136: =VLOOKUP($F$5,'DE-DEL'!$B:$M,9,FALSE) -> 20392 | G136: =VLOOKUP($F$5,'DE-DEL'!$B:$M,10,FALSE)+VLOOKUP($F$5,'DE-DEL'!$B:$M,11,FALSE) -> 5972 | H136: =D136*F136+E136*G136 -> -329998.188
D137: Rate | E137: Rate | F137: Prim Net NOR | G137: Sec Net NOR | H137: Total (£)
B138: CFR code E27 | C138: Behaviour Support | D138: =-6.37-4.07-0.005 -> -10.445 | E138: -12.905 | F138: =VLOOKUP($F$5,'DE-DEL'!$B:$M,9,FALSE) -> 20392 | G138: =VLOOKUP($F$5,'DE-DEL'!$B:$M,10,FALSE)+VLOOKUP($F$5,'DE-DEL'!$B:$M,11,FALSE) -> 5972 | H138: =D138*F138+E138*G138 -> -290063.1
D139: Rate | E139: Rate | F139: Prim Net NOR | G139: Sec Net NOR | H139: Total (£)
B140: CFR code E27 | C140: Museums | D140: -1.698 | E140: 0 | F140: =VLOOKUP($F$5,'DE-DEL'!$B:$M,9,FALSE) -> 20392 | G140: =VLOOKUP($F$5,'DE-DEL'!$B:$M,10,FALSE)+VLOOKUP($F$5,'DE-DEL'!$B:$M,11,FALSE) -> 5972 | H140: =D140*F140+E140*G140 -> -34625.616
H141: Total (£)
B142: CFR Code I01 | C142: LA Services De-delegated from maintained schools | H142: =H126+H128+H130+H132+H134+H136+H138+H140 -> -1657731.648
C147: Academies & other non maintained Schools - to be confirmed
D148: Primary Rate | E148: Secondary Rate | F148: Primary net NOR | G148: Secondary Net NOR | H148: Total (£)
C149: Staff Costs Supply | D149: -21.14 | E149: -21.14 | F149: =IF($H$142>0,,L$65) -> 37490 | G149: =IF($H$142>0,,M$65) -> 14329 | H149: =D149*F149+E149*G149 -> -1095453.66
D150: Rate | E150: Rate | F150: Prim Net NOR | G150: Sec Net NOR | H150: Total (£)
C151: Support UAG and Bilingual | D151: -9.7 | E151: -11.93 | F151: =IF($H$142>0,,L$65) -> 37490 | G151: =IF($H$142>0,,M$65) -> 14329 | H151: =D151*F151+E151*G151 -> -534597.97
D152: Rate | E152: Rate | F152: Prim Net NOR | G152: Sec Net NOR | H152: Total (£)
C153: Behaviour Support - Secondary Hard to Place & Support to Inclusion | D153: -21.89 | E153: -16.8 | F153: =IF($H$142>0,,L$65) -> 37490 | G153: =IF($H$142>0,,M$65) -> 14329 | H153: =D153*F153+E153*G153 -> -1061383.3
H154: Total (£)
C155: LA Services to be Invoiced to non maintained schools | H155: =H153+H151+H149 -> -2691434.93

Sheet Special Schools & PRU
A2: Please select your school in the cell below
A3: CLICK ON THE ARROW BUTTON TO SELECT YOUR SCHOOL FROM THE LIST
C4: DFE
C5: =VLOOKUP($A$3,'Special Schools List'!A:C,3,FALSE) -> All
A7: High Needs Formula Indicative 2017/18
B8: Places | C8: Rate | D8: Total (£)
A9: Element 1 & 2 (Place led funding) - Special Schools Pre 16 | B9: =SUMIF('Special Schools 2017-18'!A:A,C5,'Special Schools 2017-18'!DG:DG) -> 539 | C9: 10000 | D9: =C9*B9 -> 5390000
B10: Places | C10: Rate | D10: Total (£)
A11: Element 1 & 2 (Place led funding) - Special Schools Post 16 | B11: =SUMIF('Special Schools 2017-18'!A:A,C5,'Special Schools 2017-18'!DH:DH) -> 90 | C11: 10000 | D11: =C11*B11 -> 900000
B12: Places | D12: Total (£)
A13: Element 1 & 2 (Place led funding) - Alternative Provision Pro Rata Sept to March | B13: =SUMIF('Special Schools 2017-18'!A:A,C5,'Special Schools 2017-18'!DL:DL)+SUMIF('Special Schools 2017-18'!A:A,C5,'Special Schools 2017-18'!DO:DO) -> 96 | C13: 10000 | D13: =B13*C13 -> 960000
D14: Total (£)
A15: Element 3 - Derby City Pupils (banding) funding Pre 16* | B15: See separate breakdown sheet | D15: =SUMIF('Special Schools 2017-18'!$A:$A,$C$5,'Special Schools 2017-18'!$DI:$DI) -> 7069415.004
D16: Total (£)
A17: Element 3 - Derby City Pupils (banding) funding Post 16* | B17: See separate breakdown sheet | D17: =SUMIF('Special Schools 2017-18'!$A:$A,$C$5,'Special Schools 2017-18'!$DJ:$DJ) -> 937532
D18: Total (£)
A19: Residential Places | B19: See separate breakdown sheet | D19: =SUMIF('Special Schools 2017-18'!$A:$A,$C$5,'Special Schools 2017-18'!$CL:$CL) -> 376295
D20: Total (£)
A21: Other Adjustments | B21: See separate breakdown sheet | D21: =SUMIF('Special Schools 2017-18'!$A:$A,$C$5,'Special Schools 2017-18'!$CN:$CN) -> 0
D22: Total (£)
A23: PFI | D23: =SUMIF('Special Schools 2017-18'!$A:$A,$C$5,'Special Schools 2017-18'!$CO:$CO) -> 88810.72
D24: Total (£)
A25: High Needs Funding from Derby City LA / EFA* | D25: =D9+D11+D13+D15+D17+D21+D23+D19 -> 15722052.72
B26: No.of Pupils | D26: Total (£)
A27: Element 3 - Other LA (banding) funding (Income not Budget)* | B27: =SUMIF('Special Schools 2017-18'!A:A,C5,'Special Schools 2017-18'!D:D) -> 29 | C27: See separate breakdown sheet | D27: =SUMIF('Special Schools 2017-18'!A:A,C5,'Special Schools 2017-18'!CQ:CQ) -> 274904
A29: *Please note that High Needs top up funding follows the pupil, therefore funding will be adjusted in year where there are pupil movements

Sheet Summary for Prints (hidden)
A1: School | B1: DfE Number | C1: AWPU inc delegated Budget £ | D1: Deprivation £ | E1: LAC £ | F1: LCHI SEN £ | G1: EAL £ | H1: Mobility £ | I1: Lump Sum £ | J1: Split Site £ | K1: 2017-18 Rates & 16-17 adjustments £ | L1: PFI £ | M1: Pre MFG Total | N1: MFG | O1: No Cap | P1: Budget before De-Delegation | Q1: ESG | R1: De-delegation tbc | S1: Net School budget | T1: KS1 Class Factor (link info From KS1 working papers) | U1: ERS | V1: TA & OOC TA Hours | W1: TA Hours OOC | X1: Sixth Form | Y1: Schools with Nurseries excl Rates, TA, ERS | Z1: Contingency | AA1: Total | AG1: Rates 17-18 | AJ1: School Budget INCLUDING Early Years, Schools Block and High Needs (excl other LA Top up), KS1 Class Factor, Contingency, & EXCLUDING RATES & Sixth Form | AK1: School Budget INCLUDING Early Years, Schools Block and High Needs (excl other LA Top up), KS1 Class Factor, Contingency, & INCLUDING RATES, & excluding Sixth form
A2: Akaal Primary School | B2: 2014 | C2: 223031.9757 | D2: 33207.45718 | E2: 0 | F2: 0 | G2: 58403.83185 | H2: 0 | I2: 100000 | J2: 0 | K2: -6967.25 | L2: 0 | M2: 407676.0147 | N2: 0 | O2: 0 | P2: 407676.0147 | Q2: 0 | R2: 0 | S2: 407676.0147 | T2: 7082 | Y2: 0 | Z2: 0 | AA2: 414758.0147 | AG2: =K2 -> -6967.25 | AJ2: =AA2-AG2-AB2-X2 -> 421725.2647 | AK2: =AJ2+AG2 -> 414758.0147
A3: Allenton Community Primary School | B3: 2012 | C3: 1027540.174 | D3: 464301.2423 | E3: 1389.111042 | F3: 0 | G3: 69666.64531 | H3: 0 | I3: 100000 | J3: 0 | K3: 6387.182 | L3: 0 | M3: 1669284.354 | N3: 0 | O3: 0 | P3: 1669284.354 | Q3: 0 | R3: 0 | S3: 1669284.354 | T3: 11041 | Y3: 0 | Z3: 0 | AA3: 1680325.354 | AG3: =K3 -> 6387.182 | AJ3: =AA3-AG3-AB3-X3 -> 1673938.172 | AK3: 1680325.354
A4: Alvaston Infant and Nursery School | B4: 2443 | C4: 711578.2082 | D4: 112205.4332 | E4: 0 | F4: 0 | G4: 18242.68874 | H4: 0 | I4: 100000 | J4: 0 | K4: 14351.535 | L4: 0 | M4: 956377.8651 | N4: 8663.600825 | O4: 0 | P4: 965041.466 | Q4: -6200.8768 | R4: -16805.208 | S4: 942035.3812 | T4: 49148 | Y4: 106634.381 | Z4: 0 | AA4: 1097817.762 | AG4: 14351.535 | AJ4: 1083466.227 | AK4: 1097817.762
A5: Alvaston Junior School | B5: 2442 | C5: 894783.0454 | D5: 247026.1382 | E5: 0 | F5: 0 | G5: 16621.45767 | H5: 0 | I5: 100000 | J5: 0 | K5: 14351.535 | L5: 0 | M5: 1272782.176 | N5: 0 | O5: 0 | P5: 1272782.176 | Q5: -7797.3712 | R5: -21131.922 | S5: 1243852.883 | T5: 0 | Y5: 0 | Z5: 0 | AA5: 1243852.883 | AG5: 14351.535 | AJ5: 1229501.348 | AK5: 1243852.883
A6: Arboretum Primary School | B6: 2629 | C6: 1354122.71 | D6: 475744.3505 | E6: 1477.816953 | F6: 0 | G6: 214566.5705 | H6: 0 | I6: 100000 | J6: 0 | K6: 61718.06 | L6: 0 | M6: 2207629.508 | N6: 0 | O6: 0 | P6: 2207629.508 | Q6: -11800.176 | R6: -31980.06 | S6: 2163849.272 | T6: 30615 | Y6: 196344.8186 | Z6: 0 | AA6: 2390809.09 | AG6: 61718.06 | AJ6: 2329091.03 | AK6: 2390809.09
A7: Ash Croft Primary School | B7: 2509 | C7: 594751.9352 | D7: 126830.7766 | E7: 1409.86298 | F7: 0 | G7: 36558.35946 | H7: 22314.048 | I7: 100000 | J7: 0 | K7: 12613.22 | L7: 0 | M7: 894478.2022 | N7: 0 | O7: 0 | P7: 894478.2022 | Q7: -5182.8224 | R7: -14046.144 | S7: 875249.2358 | T7: 5000 | Y7: 0 | Z7: 0 | AA7: 880249.2358 | AG7: 12613.22 | AJ7: 867636.0158 | AK7: 880249.2358
A8: Ashgate Primary School | B8: 2005 | C8: 841680.1941 | D8: 268709.4678 | E8: 0 | F8: 0 | G8: 39328.76197 | H8: 17155.424 | I8: 100000 | J8: 0 | K8: 15218.385 | L8: 0 | M8: 1282092.233 | N8: 0 | O8: 0 | P8: 1282092.233 | Q8: -7334.6192 | R8: -19877.802 | S8: 1254879.812 | T8: 23533 | Y8: 0 | Z8: 0 | AA8: 1278412.812 | AG8: 15218.385 | AJ8: 1263194.427 | AK8: 1278412.812
A9: Asterdale Primary School | B9: 2464 | C9: 560235.0818 | D9: 89493.46593 | E9: 0 | F9: 0 | G9: 2992.704394 | H9: 0 | I9: 100000 | J9: 0 | K9: 11791.01 | L9: 0 | M9: 764512.2622 | N9: 21462.51752 | O9: 0 | P9: 785974.7797 | Q9: -4882.0336 | R9: -13230.966 | S9: 767861.7801 | T9: 5000 | Y9: 52997.14457 | Z9: 0 | AA9: 825858.9247 | AG9: 11791.01 | AJ9: 814067.9147 | AK9: 825858.9247
A10: Beaufort Community Primary School | B10: 2004 | C10: 743439.919 | D10: 312187.9779 | E10: 1457.310292 | F10: 0 | G10: 21230.8639 | H10: 2399.36 | I10: 100000 | J10: 0 | K10: 13710.5 | L10: 0 | M10: 1194425.931 | N10: 42182.31824 | O10: 0 | P10: 1236608.249 | Q10: -6478.528 | R10: -17557.68 | S10: 1212572.041 | T10: 27697 | Y10: 76407.92477 | Z10: 0 | AA10: 1316676.966 | AG10: 13710.5 | AJ10: 1302966.466 | AK10: 1316676.966
A11: Becket Primary School | B11: 2405 | C11: 501821.9454 | D11: 172708.847 | E11: 0 | F11: 0 | G11: 38227.96267 | H11: 0 | I11: 100000 | J11: 0 | K11: 10968.8 | L11: 0 | M11: 823727.555 | N11: 0 | O11: 0 | P11: 823727.555 | Q11: -4373.0064 | R11: -11851.434 | S11: 807503.1146 | T11: 5000 | Y11: 55222.60672 | Z11: 0 | AA11: 867725.7213 | AG11: 10968.8 | AJ11: 856756.9213 | AK11: 867725.7213
A12: Bishop Lonsdale Church of England Aided Primary School | B12: 2011 | C12: 557579.9393 | D12: 129209.6142 | E12: 1327.92293 | F12: 0 | G12: 22086.53718 | H12: 0 | I12: 100000 | J12: 0 | K12: 5564.479 | L12: 0 | M12: 815768.4926 | N12: 0 | O12: 0 | P12: 815768.4926 | Q12: 0 | R12: 0 | S12: 815768.4926 | T12: 40189 | Y12: 64153.31045 | Z12: 0 | AA12: 920110.8031 | AG12: 5564.479 | AJ12: 914546.3241 | AK12: 920110.8031
A13: Borrow Wood Primary School | B13: 5201 | C13: 1056746.742 | D13: 70593.68484 | E13: 1307.233608 | F13: 0 | G13: 6772.938542 | H13: 0 | I13: 100000 | J13: 0 | K13: 18464.76 | L13: 0 | M13: 1253885.359 | N13: 0 | O13: 0 | P13: 1253885.359 | Q13: -9208.7648 | R13: -24956.988 | S13: 1219719.606 | T13: 24574 | Y13: 90645.14705 | Z13: 0 | AA13: 1334938.753 | AG13: 18464.76 | AJ13: 1316473.993 | AK13: 1334938.753
A14: Wyndham Primary Academy | B14: 2007 | C14: 1006299.033 | D14: 402667.4766 | E14: 4565.600558 | F14: 0 | G14: 63851.11232 | H14: 31311.648 | I14: 100000 | J14: 0 | K14: 2959.714 | L14: 0 | M14: 1611654.585 | N14: 0 | O14: 0 | P14: 1611654.585 | Q14: 0 | R14: 0 | S14: 1611654.585 | T14: 11041 | Y14: 121201.2786 | Z14: 0 | AA14: 1743896.863 | AG14: 2959.714 | AJ14: 1740937.149 | AK14: 1743896.863
A15: Brackensdale Infant School | B15: 2433 | C15: 446063.9514 | D15: 109613.2414 | E15: 0 | F15: 0 | G15: 8647.415242 | H15: 0 | I15: 100000 | J15: 0 | K15: 8064.46 | L15: 0 | M15: 672389.0681 | N15: 40351.55501 | O15: 0 | P15: 712740.6231 | Q15: -3887.1168 | R15: -10534.608 | S15: 698318.8983 | T15: 41025 | Y15: 109099.7533 | Z15: 0 | AA15: 848443.6516 | AG15: 8064.46 | AJ15: 840379.1916 | AK15: 848443.6516
A16: Brackensdale Junior School | B16: 2432 | C16: 584131.365 | D16: 156428.706 | E16: 0 | F16: 0 | G16: 6618.566109 | H16: 0 | I16: 100000 | J16: 0 | K16: 8064.46 | L16: 0 | M16: 855243.0971 | N16: 0 | O16: 0 | P16: 855243.0971 | Q16: -5090.272 | R16: -13795.32 | S16: 836357.5051 | T16: 0 | Y16: 0 | Z16: 0 | AA16: 836357.5051 | AG16: 8064.46 | AJ16: 828293.0451 | AK16: 836357.5051
A17: Breadsall Hill Top Primary School | B17: 2447 | C17: 1160297.302 | D17: 232026.1911 | E17: 0 | F17: 0 | G17: 23846.44856 | H17: 0 | I17: 100000 | J17: 0 | K17: 18910.62 | L17: 0 | M17: 1535080.562 | N17: 55911.49347 | O17: 0 | P17: 1590992.055 | Q17: -10111.1312 | R17: -27402.522 | S17: 1553478.402 | T17: 27492 | Y17: 124184.2768 | Z17: 0 | AA17: 1705154.679 | AG17: 18910.62 | AJ17: 1686244.059 | AK17: 1705154.679
A18: Brookfield Primary School | B18: 2512 | C18: 549614.5116 | D18: 35691.34066 | E18: 0 | F18: 0 | G18: 35226.08739 | H18: 0 | I18: 100000 | J18: 0 | K18: 16727.27 | L18: 0 | M18: 737259.2096 | N18: 0 | O18: 0 | P18: 737259.2096 | Q18: -4789.4832 | R18: -12980.142 | S18: 719489.5844 | T18: 5000 | Y18: 56822.36592 | Z18: 0 | AA18: 781311.9503 | AG18: 16727.27 | AJ18: 764584.6803 | AK18: 781311.9503
A19: Carlyle Infant School | B19: 2456 | C19: 475270.5197 | D19: 29866.40819 | E19: 0 | F19: 0 | G19: 34464.67879 | H19: 0 | I19: 100000 | J19: 0 | K19: 9566.3 | L19: 0 | M19: 649167.9067 | N19: 0 | O19: 0 | P19: 649167.9067 | Q19: -4141.6304 | R19: -11224.374 | S19: 633801.9023 | T19: 11041 | Y19: 67044.05924 | Z19: 0 | AA19: 711886.9615 | AG19: 9566.3 | AJ19: 702320.6615 | AK19: 711886.9615
A20: Cavendish Close Infant School | B20: 2449 | C20: 690337.0677 | D20: 77140.2679 | E20: 0 | F20: 0 | G20: 11249.53422 | H20: 0 | I20: 100000 | J20: 0 | K20: 10419.66 | L20: 0 | M20: 889146.5298 | N20: 0 | O20: 0 | P20: 889146.5298 | Q20: -6015.776 | R20: -16303.56 | S20: 866827.1938 | T20: 22287 | Y20: 172866.1632 | Z20: 0 | AA20: 1061980.357 | AG20: 10419.66 | AJ20: 1051560.697 | AK20: 1061980.357
A21: Cavendish Close Junior School | B21: 2448 | C21: 897438.188 | D21: 149773.0821 | E21: 0 | F21: 0 | G21: 5990.1366 | H21: 0 | I21: 100000 | J21: 0 | K21: 17001.34 | L21: 0 | M21: 1170202.747 | N21: 0 | O21: 0 | P21: 1170202.747 | Q21: -7820.5088 | R21: -21194.628 | S21: 1141187.61 | T21: 0 | Y21: 0 | Z21: 0 | AA21: 1141187.61 | AG21: 17001.34 | AJ21: 1124186.27 | AK21: 1141187.61
A22: Chaddesden Park Junior School | B22: 2467 | C22: 937265.3265 | D22: 153841.0378 | E22: 0 | F22: 0 | G22: 11731.03035 | H22: 0 | I22: 100000 | J22: 0 | K22: 12339.15 | L22: 0 | M22: 1215176.545 | N22: 3464.579931 | O22: 0 | P22: 1218641.125 | Q22: -8167.5728 | R22: -22135.218 | S22: 1188338.334 | T22: 26656 | Y22: 93465.09211 | Z22: 0 | AA22: 1308459.426 | AG22: 12339.15 | AJ22: 1296120.276 | AK22: 1308459.426
A23: Chellaston Infant School | B23: 2455 | C23: 934610.1839 | D23: 89154.45442 | E23: 0 | F23: 0 | G23: 14281.90204 | H23: 0 | I23: 100000 | J23: 0 | K23: 23290 | L23: 0 | M23: 1161336.54 | N23: 0 | O23: 0 | P23: 1161336.54 | Q23: -8144.4352 | R23: -22072.512 | S23: 1131119.593 | T23: 20000 | Y23: 0 | Z23: 0 | AA23: 1151119.593 | AG23: 23290 | AJ23: 1127829.593 | AK23: 1151119.593
A24: Chellaston Junior School | B24: 5203 | C24: 1290399.288 | D24: 119314.3282 | E24: 2668.00534 | F24: 0 | G24: 8557.338 | H24: 0 | I24: 100000 | J24: 0 | K24: 5483.558 | L24: 0 | M24: 1526422.518 | N24: 0 | O24: 0 | P24: 1526422.518 | Q24: -11244.8736 | R24: -30475.116 | S24: 1484702.528 | T24: 0 | Y24: 0 | Z24: 0 | AA24: 1484702.528 | AG24: 5483.558 | AJ24: 1479218.97 | AK24: 1484702.528
A25: Cherry Tree Hill Primary School | B25: 2451 | C25: 1391294.706 | D25: 153263.5371 | E25: 0 | F25: 0 | G25: 6128.535461 | H25: 0 | I25: 100000 | J25: 0 | K25: 24953.37 | L25: 0 | M25: 1675640.148 | N25: 0 | O25: 0 | P25: 1675640.148 | Q25: -12124.1024 | R25: -32857.944 | S25: 1630658.102 | T25: 20205 | Y25: 115821.7352 | Z25: 0 | AA25: 1766684.837 | AG25: 24953.37 | AJ25: 1741731.467 | AK25: 1766684.837
A26: Dale Community Primary School | B26: 2409 | C26: 1455018.127 | D26: 384929.1598 | E26: 0 | F26: 0 | G26: 183028.2187 | H26: 0 | I26: 100000 | J26: 0 | K26: 33580.33 | L26: 0 | M26: 2156555.836 | N26: 0 | O26: 0 | P26: 2156555.836 | Q26: -12679.4048 | R26: -34362.888 | S26: 2109513.543 | T26: 30615 | Y26: 0 | Z26: 0 | AA26: 2140128.543 | AG26: 33580.33 | AJ26: 2106548.213 | AK26: 2140128.543
A27: Derby St Chad's CE (VC) Nursery and Infant School | B27: 3158 | C27: 318617.1082 | D27: 77469.06215 | E27: 0 | F27: 0 | G27: 96188.81195 | H27: 0 | I27: 100000 | J27: 0 | K27: 1203.124 | L27: 0 | M27: 593478.1063 | N27: 0 | O27: 0 | P27: 593478.1063 | Q27: -2776.512 | R27: -7524.72 | S27: 583176.8743 | T27: 30820 | Y27: 107888.5711 | Z27: 0 | AA27: 721885.4454 | AG27: 1203.124 | AJ27: 720682.3214 | AK27: 721885.4454
A28: Derwent Community School | B28: 2619 | C28: 584131.365 | D28: 252889.2845 | E28: 2756.552537 | F28: 0 | G28: 19364.03342 | H28: 8630.873175 | I28: 100000 | J28: 0 | K28: 23121.205 | L28: 0 | M28: 990893.3136 | N28: 0 | O28: 0 | P28: 990893.3136 | Q28: -5090.272 | R28: -13795.32 | S28: 972007.7216 | T28: 34984 | Y28: 99376.62556 | Z28: 0 | AA28: 1106368.347 | AG28: 23121.205 | AJ28: 1083247.142 | AK28: 1106368.347
A29: Firs Estate Primary School | B29: 2518 | C29: 905403.6157 | D29: 301430.5934 | E29: 0 | F29: 0 | G29: 145414.6443 | H29: 89856.032 | I29: 100000 | J29: 0 | K29: 9156.03 | L29: 0 | M29: 1551260.915 | N29: 0 | O29: 0 | P29: 1551260.915 | Q29: -7889.9216 | R29: -21382.746 | S29: 1521988.248 | T29: 28738 | Y29: 23857.01708 | Z29: 0 | AA29: 1574583.265 | AG29: 9156.03 | AJ29: 1565427.235 | AK29: 1574583.265
A30: Gayton Community Junior School | B30: 2457 | C30: 963816.7522 | D30: 118958.3319 | E30: 6710.623799 | F30: 0 | G30: 24816.2802 | H30: 0 | I30: 100000 | J30: 0 | K30: 17412.945 | L30: 0 | M30: 1231714.933 | N30: 0 | O30: 0 | P30: 1231714.933 | Q30: -8398.9488 | R30: -22762.278 | S30: 1200553.706 | T30: 0 | Y30: 0 | Z30: 0 | AA30: 1200553.706 | AG30: 17412.945 | AJ30: 1183140.761 | AK30: 1200553.706
A31: Grampian Primary Academy | B31: 2010 | C31: 554924.7967 | D31: 195108.5396 | E31: 0 | F31: 0 | G31: 36375.93848 | H31: 0 | I31: 100000 | J31: 0 | K31: 3263.133 | L31: 0 | M31: 889672.4078 | N31: 21980.58041 | O31: 0 | P31: 911652.9882 | Q31: 0 | R31: 0 | S31: 911652.9882 | T31: 39148 | Y31: 99941.30444 | Z31: 0 | AA31: 1050742.293 | AG31: 3263.133 | AJ31: 1047479.16 | AK31: 1050742.293
A32: Griffe Field Primary School | B32: 2002 | C32: 1139056.162 | D32: 42385.50426 | E32: 1350.069684 | F32: 0 | G32: 49342.71508 | H32: 0 | I32: 100000 | J32: 0 | K32: 46429.25 | L32: 0 | M32: 1378563.701 | N32: 0 | O32: 0 | P32: 1378563.701 | Q32: -9926.0304 | R32: -26900.874 | S32: 1341736.796 | T32: 13123 | Y32: 96990.95233 | Z32: 0 | AA32: 1451850.749 | AG32: 46429.25 | AJ32: 1405421.499 | AK32: 1451850.749
A33: Hardwick Primary School | B33: 3544 | C33: 1433776.987 | D33: 479390.6369 | E33: 5412.8668 | F33: 0 | G33: 224777.5088 | H33: 0 | I33: 100000 | J33: 0 | K33: 62069.24 | L33: 135765.4948 | M33: 2441192.734 | N33: 0 | O33: 0 | P33: 2441192.734 | Q33: -12494.304 | R33: -33861.24 | S33: 2394837.19 | T33: 45189 | Y33: 141211.8107 | Z33: 0 | AA33: 2581238.001 | AG33: 62069.24 | AJ33: 2519168.761 | AK33: 2581238.001
A34: Homefields Primary School | B34: 2006 | C34: 799197.913 | D34: 11805.79502 | E34: 0 | F34: 0 | G34: 12825.35471 | H34: 0 | I34: 100000 | J34: 0 | K34: 29128.21 | L34: 0 | M34: 952957.2727 | N34: 0 | O34: 0 | P34: 952957.2727 | Q34: -6964.4176 | R34: -18874.506 | S34: 927118.3491 | T34: 25615 | Y34: 103437.3552 | Z34: 0 | AA34: 1056170.704 | AG34: 29128.21 | AJ34: 1027042.494 | AK34: =AJ34+AG34 -> 1056170.704
A35: Lakeside Community Primary School | B35: 2434 | C35: 1484224.696 | D35: 424669.5131 | E35: 7136.303163 | F35: 0 | G35: 34020.95131 | H35: 0 | I35: 100000 | J35: 0 | K35: 48821.32 | L35: 146213.238 | M35: 2245086.021 | N35: 40821.87462 | O35: 0 | P35: 2285907.896 | Q35: -12933.9184 | R35: -35052.654 | S35: 2237921.323 | T35: 15000 | Y35: 219789.3767 | Z35: 0 | AA35: 2472710.7 | AG35: 48821.32 | AJ35: 2423889.38 | AK35: 2472710.7
A36: Lawn Primary School | B36: 2522 | C36: 1088608.453 | D36: 83107.20627 | E36: 0 | F36: 0 | G36: 24058.34455 | H36: 0 | I36: 100000 | J36: 0 | K36: 15218.385 | L36: 0 | M36: 1310992.389 | N36: 0 | O36: 0 | P36: 1310992.389 | Q36: -9486.416 | R36: -25709.46 | S36: 1275796.513 | T36: 10000 | Y36: 0 | Z36: 0 | AA36: 1285796.513 | AG36: 15218.385 | AJ36: 1270578.128 | AK36: 1285796.513
A37: Markeaton Primary School | B37: 2436 | C37: 955851.3245 | D37: 116540.7323 | E37: 1383.971625 | F37: 0 | G37: 8106.951789 | H37: 0 | I37: 100000 | J37: 0 | K37: 30315.675 | L37: 0 | M37: 1212198.655 | N37: 0 | O37: 0 | P37: 1212198.655 | Q37: -8329.536 | R37: -22574.16 | S37: 1181294.959 | T37: 10000 | Y37: 0 | Z37: 0 | AA37: 1191294.959 | AG37: 30315.675 | AJ37: 1160979.284 | AK37: 1191294.959
A38: Meadow Farm Community Primary School | B38: 2452 | C38: 499166.8028 | D38: 105222.313 | E38: 1325.024685 | F38: 0 | G38: 8993.177575 | H38: 0 | I38: 100000 | J38: 0 | K38: 12613.22 | L38: 0 | M38: 727320.538 | N38: 0 | O38: 0 | P38: 727320.538 | Q38: -4349.8688 | R38: -11788.728 | S38: 711181.9412 | T38: 9164 | Y38: 50211.38678 | Z38: 0 | AA38: 770557.328 | AG38: 12613.22 | AJ38: 757944.108 | AK38: 770557.328
A39: Mickleover Primary School | B39: 2627 | C39: 1072677.597 | D39: 44037.16324 | E39: 0 | F39: 0 | G39: 23182.15297 | H39: 0 | I39: 100000 | J39: 0 | K39: 16601.04 | L39: 0 | M39: 1256497.954 | N39: 0 | O39: 0 | P39: 1256497.954 | Q39: -9347.5904 | R39: -25333.224 | S39: 1221817.139 | T39: 10000 | Y39: 0 | Z39: 0 | AA39: 1231817.139 | AG39: 16601.04 | AJ39: 1215216.099 | AK39: 1231817.139
A40: Landau Forte Academy Moorhead | B40: 2009 | C40: 762025.917 | D40: 294976.3076 | E40: 0 | F40: 0 | G40: 20297.15707 | H40: 0 | I40: 100000 | J40: 0 | K40: 2687.286 | L40: 0 | M40: 1179986.668 | N40: 0 | O40: 0 | P40: 1179986.668 | Q40: 0 | R40: 0 | S40: 1179986.668 | T40: 25615 | Y40: 0 | Z40: 0 | AA40: 1205601.668 | AG40: 2687.286 | AJ40: 1202914.382 | AK40: 1205601.668
A41: Oakwood Infant and Nursery School | B41: 2473 | C41: 719543.6359 | D41: 161804.8263 | E41: 0 | F41: 0 | G41: 6441.773883 | H41: 0 | I41: 100000 | J41: 0 | K41: 13756.86 | L41: 0 | M41: 1001547.096 | N41: 0 | O41: 0 | P41: 1001547.096 | Q41: -6270.2896 | R41: -16993.326 | S41: 978283.4805 | T41: 50189 | Y41: 177430.507 | Z41: 0 | AA41: 1205902.988 | AG41: 13756.86 | AJ41: 1192146.128 | AK41: 1205902.988
A42: Oakwood Junior School | B42: 2471 | C42: 958506.467 | D42: 271070.896 | E42: 0 | F42: 0 | G42: 2567.2014 | H42: 0 | I42: 100000 | J42: 0 | K42: 13756.86 | L42: 0 | M42: 1345901.424 | N42: 0 | O42: 0 | P42: 1345901.424 | Q42: -8352.6736 | R42: -22636.866 | S42: 1314911.885 | T42: 0 | Y42: 0 | Z42: 0 | AA42: 1314911.885 | AG42: 13756.86 | AJ42: 1301155.025 | AK42: 1314911.885
A43: Osmaston Primary School | B43: 2420 | C43: 1526706.977 | D43: 722660.6513 | E43: 0 | F43: 0 | G43: 129162.3204 | H43: 44563.33451 | I43: 100000 | J43: 0 | K43: 20702.785 | L43: 0 | M43: 2543796.068 | N43: 13574.81197 | O43: 0 | P43: 2557370.88 | Q43: -13304.12 | R43: -36055.95 | S43: 2508010.81 | T43: 19164 | Y43: 191203.6785 | Z43: 0 | AA43: 2718378.488 | AG43: 20702.785 | AJ43: 2697675.703 | AK43: 2718378.488
A44: Parkview Primary School | B44: 2003 | C44: 557579.9393 | D44: 22186.29887 | E44: 1353.2167 | F44: 0 | G44: 4991.7805 | H44: 0 | I44: 100000 | J44: 0 | K44: 28502.07 | L44: 0 | M44: 714613.3053 | N44: 0 | O44: 0 | P44: 714613.3053 | Q44: -4858.896 | R44: -13168.26 | S44: 696586.1493 | T44: 5000 | Y44: 92240.05334 | Z44: 0 | AA44: 793826.2027 | AG44: 28502.07 | AJ44: 765324.1327 | AK44: 793826.2027
A45: Pear Tree Community Junior School | B45: 2423 | C45: 945230.7542 | D45: 401742.2427 | E45: 0 | F45: 0 | G45: 132154.2249 | H45: 38869.632 | I45: 100000 | J45: 0 | K45: 12288.51 | L45: 0 | M45: 1630285.364 | N45: 0 | O45: 0 | P45: 1630285.364 | Q45: -8236.9856 | R45: -22323.336 | S45: 1599725.042 | T45: 0 | Y45: 0 | Z45: 0 | AA45: 1599725.042 | AG45: 12288.51 | AJ45: 1587436.532 | AK45: 1599725.042
A46: Pear Tree Infant School | B46: 2424 | C46: 695647.3528 | D46: 238945.1061 | E46: 1348.071389 | F46: 0 | G46: 161103.4172 | H46: 3359.104 | I46: 100000 | J46: 0 | K46: 12288.51 | L46: 0 | M46: 1212691.561 | N46: 30594.0914 | O46: 0 | P46: 1243285.653 | Q46: -6062.0512 | R46: -16428.972 | S46: 1220794.63 | T46: 17082 | Y46: 0 | Z46: 0 | AA46: 1237876.63 | AG46: 12288.51 | AJ46: 1225588.12 | AK46: 1237876.63
A47: Portway Infant School | B47: 2439 | C47: 706267.9231 | D47: 28693.54778 | E47: 0 | F47: 0 | G47: 7759.949686 | H47: 0 | I47: 100000 | J47: 0 | K47: 9018.94 | L47: 0 | M47: 851740.3606 | N47: 0 | O47: 0 | P47: 851740.3606 | Q47: -6154.6016 | R47: -16679.796 | S47: 828905.963 | T47: 15000 | Y47: 0 | Z47: 0 | AA47: 843905.963 | AG47: 9018.94 | AJ47: 834887.023 | AK47: 843905.963
A48: Portway Junior School | B48: 2440 | C48: 884162.4751 | D48: 43390.9981 | E48: 2747.690007 | F48: 0 | G48: 2590.539595 | H48: 0 | I48: 100000 | J48: 0 | K48: 32678.89 | L48: 0 | M48: 1065570.593 | N48: 0 | O48: 0 | P48: 1065570.593 | Q48: -7704.8208 | R48: -20881.098 | S48: 1036984.674 | T48: 0 | Y48: 0 | Z48: 0 | AA48: 1036984.674 | AG48: 32678.89 | AJ48: 1004305.784 | AK48: 1036984.674
A49: Ravensdale Infant and Nursery School | B49: 2462 | C49: 685026.7825 | D49: 62222.5383 | E49: 0 | F49: 0 | G49: 52566.50486 | H49: 0 | I49: 100000 | J49: 0 | K49: 13623.86 | L49: 0 | M49: 913439.6857 | N49: 0 | O49: 0 | P49: 913439.6857 | Q49: -5969.5008 | R49: -16178.148 | S49: 891292.0369 | T49: 15000 | Y49: 96804.4707 | Z49: 0 | AA49: 1003096.508 | AG49: 13623.86 | AJ49: 989472.6476 | AK49: 1003096.508
A50: Ravensdale Junior School | B50: 2463 | C50: 902748.4731 | D50: 122793.6911 | E50: 0 | F50: 0 | G50: 30806.4168 | H50: 0 | I50: 100000 | J50: 0 | K50: 13623.86 | L50: 0 | M50: 1169972.441 | N50: 0 | O50: 0 | P50: 1169972.441 | Q50: -7866.784 | R50: -21320.04 | S50: 1140785.617 | T50: 0 | Y50: 0 | Z50: 0 | AA50: 1140785.617 | AG50: 13623.86 | AJ50: 1127161.757 | AK50: 1140785.617
A51: Redwood Primary School | B51: 2505 | C51: 1497500.408 | D51: 386397.1306 | E51: 0 | F51: 0 | G51: 94473.01152 | H51: 0 | I51: 100000 | J51: 0 | K51: 25288.695 | L51: 0 | M51: 2103659.245 | N51: 0 | O51: 0 | P51: 2103659.245 | Q51: -13049.6064 | R51: -35366.184 | S51: 2055243.455 | T51: 20205 | Y51: 168027.593 | Z51: 0 | AA51: 2243476.048 | AG51: 25288.695 | AJ51: 2218187.353 | AK51: 2243476.048
A52: Reigate Park Primary School | B52: 2000 | C52: 788577.3427 | D52: 174473.2452 | E52: 0 | F52: 0 | G52: 27918.31523 | H52: 0 | I52: 100000 | J52: 0 | K52: 16178.13 | L52: 0 | M52: 1107147.033 | N52: 3210.364846 | O52: 0 | P52: 1110357.398 | Q52: -6871.8672 | R52: -18623.682 | S52: 1084861.849 | T52: 11041 | Y52: 78455.21315 | Z52: 0 | AA52: 1174358.062 | AG52: 16178.13 | AJ52: 1158179.932 | AK52: 1174358.062
A53: Ridgeway Infant School | B53: 2458 | C53: 716888.4934 | D53: 57376.46901 | E53: 0 | F53: 0 | G53: 56478.4308 | H53: 0 | I53: 100000 | J53: 0 | K53: 9018.94 | L53: 0 | M53: 939762.3332 | N53: 0 | O53: 0 | P53: 939762.3332 | Q53: -6247.152 | R53: -16930.62 | S53: 916584.5612 | T53: 15000 | Y53: 0 | Z53: 0 | AA53: 931584.5612 | AG53: 9018.94 | AJ53: 922565.6212 | AK53: 931584.5612
A54: Roe Farm Primary School | B54: 2001 | C54: 974437.3225 | D54: 324386.9231 | E54: 4115.722615 | F54: 0 | G54: 6658.395151 | H54: 0 | I54: 100000 | J54: 0 | K54: 16808.595 | L54: 0 | M54: 1426406.958 | N54: 53900.31198 | O54: 0 | P54: 1480307.27 | Q54: -8491.4992 | R54: -23013.102 | S54: 1448802.669 | T54: 16246 | Y54: 154607.3834 | Z54: 0 | AA54: 1619656.052 | AG54: 16808.595 | AJ54: 1602847.457 | AK54: 1619656.052
A55: Rosehill Infant and Nursery School | B55: 2429 | C55: 398271.3852 | D55: 124624.7903 | E55: 0 | F55: 0 | G55: 103971.6567 | H55: 0 | I55: 100000 | J55: 0 | K55: 7653.04 | L55: 0 | M55: 734520.8722 | N55: 0 | O55: 0 | P55: 734520.8722 | Q55: -3470.64 | R55: -9405.9 | S55: 721644.3322 | T55: 20410 | Y55: 94382.32745 | Z55: 0 | AA55: 836436.6597 | AG55: 7653.04 | AJ55: 828783.6197 | AK55: 836436.6597
A56: Shelton Infant School | B56: 2444 | C56: 557579.9393 | D56: 109991.5226 | E56: 0 | F56: 0 | G56: 30806.4168 | H56: 0 | I56: 100000 | J56: 0 | K56: 9871.52 | L56: 0 | M56: 808249.3987 | N56: 0 | O56: 0 | P56: 808249.3987 | Q56: -4858.896 | R56: -13168.26 | S56: 790222.2427 | T56: 35820 | Y56: 123147.9853 | Z56: 0 | AA56: 949190.2281 | AG56: 9871.52 | AJ56: 939318.7081 | AK56: 949190.2281
A57: Shelton Junior School | B57: 5209 | C57: 695647.3528 | D57: 190661.7457 | E57: 0 | F57: 0 | G57: 16447.26972 | H57: 0 | I57: 100000 | J57: 0 | K57: 2769.607 | L57: 0 | M57: 1005525.975 | N57: 0 | O57: 0 | P57: 1005525.975 | Q57: -6062.0512 | R57: -16428.972 | S57: 983034.9521 | T57: 0 | Y57: 0 | Z57: 0 | AA57: 983034.9521 | AG57: 2769.607 | AJ57: 980265.3451 | AK57: 983034.9521
A58: Silverhill Primary School | B58: 2469 | C58: 1109849.593 | D58: 73415.97893 | E58: 0 | F58: 0 | G58: 34066.35509 | H58: 0 | I58: 100000 | J58: 0 | K58: 12638.22 | L58: 0 | M58: 1329970.147 | N58: 0 | O58: 0 | P58: 1329970.147 | Q58: -9671.5168 | R58: -26211.108 | S58: 1294087.523 | T58: 45189 | Y58: 0 | Z58: 0 | AA58: 1339276.523 | AG58: 12638.22 | AJ58: 1326638.303 | AK58: 1339276.523
A59: Cottons Farm Primary School | B59: 2430 | C59: 358444.2467 | D59: 152740.086 | E59: 0 | F59: 0 | G59: 33006.87514 | H59: 22194.08 | I59: 100000 | J59: 0 | K59: 21323.46 | L59: 23867.0673 | M59: 711575.8151 | N59: 8826.096956 | O59: 0 | P59: 720401.912 | Q59: -3123.576 | R59: -8465.31 | S59: 708813.026 | T59: 19574 | Y59: 17704.03802 | Z59: 0 | AA59: 746091.0641 | AG59: 21323.46 | AJ59: 724767.6041 | AK59: 746091.0641
A60: Springfield Primary School | B60: 2466 | C60: 661130.4994 | D60: 101253.0082 | E60: 4229.509937 | F60: 0 | G60: 7748.280589 | H60: 26918.90336 | I60: 100000 | J60: 0 | K60: 12089.08 | L60: 0 | M60: 913369.2815 | N60: 18724.69883 | O60: 0 | P60: 932093.9803 | Q60: -5761.2624 | R60: -15613.794 | S60: 910718.9239 | T60: 27697 | Y60: 0 | Z60: 0 | AA60: 938415.9239 | AG60: 12089.08 | AJ60: 926326.8439 | AK60: 938415.9239
A61: St Alban's Catholic Primary School | B61: 3543 | C61: 801853.0555 | D61: 100274.2823 | E61: 0 | F61: 0 | G61: 31325.04335 | H61: 0 | I61: 100000 | J61: 0 | K61: 2527.644 | L61: 0 | M61: 1035980.025 | N61: 0 | O61: 0 | P61: 1035980.025 | Q61: -6987.5552 | R61: -18937.212 | S61: 1010055.258 | T61: 32902 | Y61: 64556.50875 | Z61: 0 | AA61: 1107513.767 | AG61: 2527.644 | AJ61: 1104986.123 | AK61: 1107513.767
A62: St George's Catholic Voluntary Academy | B62: 3531 | C62: 916024.186 | D62: 162315.9713 | E62: 0 | F62: 0 | G62: 41595.72028 | H62: 0 | I62: 100000 | J62: 0 | K62: 3187.212 | L62: 0 | M62: 1223123.09 | N62: 0 | O62: 0 | P62: 1223123.09 | Q62: 0 | R62: 0 | S62: 1223123.09 | T62: 21451 | Y62: 0 | Z62: 0 | AA62: 1244574.09 | AG62: 3187.212 | AJ62: 1241386.878 | AK62: 1244574.09
A63: St James' Church of England Aided Infant School | B63: 3526 | C63: 225687.1183 | D63: 81128.14656 | E63: 0 | F63: 0 | G63: 52899.90764 | H63: 0 | I63: 100000 | J63: 0 | K63: 932.1408 | L63: 0 | M63: 460647.3133 | N63: 0 | O63: 0 | P63: 460647.3133 | Q63: -1966.696 | R63: -5330.01 | S63: 453350.6073 | T63: 5000 | Y63: 66912.71422 | Z63: 0 | AA63: 525263.3215 | AG63: 932.1408 | AJ63: 524331.1807 | AK63: 525263.3215
A64: St James' Church of England Aided Junior School | B64: 3535 | C64: 777956.7724 | D64: 299653.0274 | E64: 0 | F64: 0 | G64: 66573.13883 | H64: 4438.816 | I64: 100000 | J64: 0 | K64: 2390.309 | L64: 0 | M64: 1251012.064 | N64: 0 | O64: 0 | P64: 1251012.064 | Q64: -6779.3168 | R64: -18372.858 | S64: 1225859.889 | T64: 0 | Y64: 0 | Z64: 0 | AA64: 1225859.889 | AG64: 2390.309 | AJ64: 1223469.58 | AK64: 1225859.889
A65: St John Fisher Catholic Voluntary Academy | B65: 2008 | C65: 602717.3629 | D65: 138143.1028 | E65: 0 | F65: 0 | G65: 18830.50959 | H65: 0 | I65: 100000 | J65: 0 | K65: 2197.96 | L65: 0 | M65: 861888.9354 | N65: 0 | O65: 0 | P65: 861888.9354 | Q65: 0 | R65: 0 | S65: 861888.9354 | T65: 40189 | Y65: 0 | Z65: 0 | AA65: 902077.9354 | AG65: 2197.96 | AJ65: 899879.9754 | AK65: 902077.9354
A66: St Joseph's Catholic Primary School, Derby | B66: 3542 | C66: 942575.6116 | D66: 187303.3707 | E66: 0 | F66: 0 | G66: 98254.05578 | H66: 0 | I66: 100000 | J66: 0 | K66: 4774.576 | L66: 0 | M66: 1332907.614 | N66: 0 | O66: 0 | P66: 1332907.614 | Q66: -8213.848 | R66: -22260.63 | S66: 1302433.136 | T66: 20410 | Y66: 0 | Z66: 0 | AA66: 1322843.136 | AG66: 4774.576 | AJ66: 1318068.56 | AK66: =AJ66+AG66 -> 1322843.136
A67: St Mary's Catholic Primary School and Nursery | B67: 3528 | C67: 926644.7562 | D67: 165000.5735 | E67: 0 | F67: 0 | G67: 78644.78867 | H67: 0 | I67: 100000 | J67: 0 | K67: 8389.814 | L67: 0 | M67: 1278679.932 | N67: 0 | O67: 0 | P67: 1278679.932 | Q67: -8075.0224 | R67: -21884.394 | S67: 1248720.516 | T67: 23533 | Y67: 57964.92099 | Z67: 0 | AA67: 1330218.437 | AG67: =K67 -> 8389.814 | AJ67: =AA67-AG67-AB67-X67 -> 1321828.623 | AK67: 1330218.437
A68: St Peter's Church of England Aided Junior School | B68: 3534 | C68: 677061.3548 | D68: 56688.39742 | E68: 0 | F68: 0 | G68: 30806.4168 | H68: 0 | I68: 100000 | J68: 0 | K68: 2719.993 | L68: 0 | M68: 867276.1621 | N68: 0 | O68: 0 | P68: 867276.1621 | Q68: -5900.088 | R68: -15990.03 | S68: 845386.0441 | T68: 0 | Y68: 0 | Z68: 0 | AA68: 845386.0441 | AG68: 2719.993 | AJ68: 842666.0511 | AK68: 845386.0441
A69: St Werburgh's Church of England VA Primary School | B69: 3532 | C69: 836369.9089 | D69: 33309.31624 | E69: 0 | F69: 0 | G69: 1002.067461 | H69: 0 | I69: 100000 | J69: 0 | K69: 3901.594 | L69: 0 | M69: 974582.8866 | N69: 0 | O69: 0 | P69: 974582.8866 | Q69: -7288.344 | R69: -19752.39 | S69: 947542.1526 | T69: 24574 | Y69: 0 | Z69: 0 | AA69: 972116.1526 | AG69: 3901.594 | AJ69: 968214.5586 | AK69: 972116.1526
A70: Village Primary School | B70: 3546 | C70: 1579809.828 | D70: 512588.4127 | E70: 0 | F70: 0 | G70: 115718.548 | H70: 0 | I70: 100000 | J70: 0 | K70: 72075.5 | L70: 0 | M70: 2380192.289 | N70: 23628.21789 | O70: 0 | P70: 2403820.507 | Q70: -13766.872 | R70: -37310.07 | S70: 2352743.565 | T70: 16041 | Y70: 145674.4343 | Z70: 0 | AA70: 2514458.999 | AG70: 72075.5 | AJ70: 2442383.499 | AK70: 2514458.999
A71: Walter Evans Church of England Aided Primary School | B71: 3530 | C71: 947885.8968 | D71: 18013.27174 | E71: 0 | F71: 0 | G71: 5143.046576 | H71: 0 | I71: 100000 | J71: 0 | K71: 4011.422 | L71: 0 | M71: 1075053.637 | N71: 0 | O71: 0 | P71: 1075053.637 | Q71: 0 | R71: 0 | S71: 1075053.637 | T71: 10000 | Y71: 111295.6227 | Z71: 0 | AA71: 1196349.26 | AG71: 4011.422 | AJ71: 1192337.838 | AK71: 1196349.26
A72: Wren Park Primary School | B72: 2459 | C72: 1019574.746 | D72: 36863.24153 | E72: 0 | F72: 0 | G72: 40568.12089 | H72: 0 | I72: 100000 | J72: 0 | K72: 14424.175 | L72: 0 | M72: 1211430.284 | N72: 0 | O72: 0 | P72: 1211430.284 | Q72: -8884.8384 | R72: -24079.104 | S72: 1178466.341 | T72: 14164 | Y72: 0 | Z72: 0 | AA72: 1192630.341 | AG72: 14424.175 | AJ72: 1178206.166 | AK72: 1192630.341
A73: Al-Madinah | B73: 4000 | C73: 754060.4893 | D73: 211788.0788 | E73: 0 | F73: 0 | G73: 133273.6383 | H73: 18715.008 | I73: 100000 | J73: 0 | K73: 13880.322 | L73: 0 | M73: 1231717.536 | N73: 0 | O73: 0 | P73: 1231717.536 | Q73: 0 | R73: 0 | S73: 1231717.536 | T73: 34984 | Y73: 0 | Z73: 0 | AA73: 1266701.536 | AG73: 13880.322 | AJ73: 1252821.214 | AK73: 1266701.536
A75: Total Primary | B75: Total Primary | C75: 60794799.38 | D75: 12917819.56 | E75: 55472.48665 | F75: 0 | G75: 3342438.486 | H75: 330726.263 | I75: 7200000 | J75: 0 | K75: 1126865.605 | L75: 305845.8001 | M75: 86073967.58 | N75: 387297.1139 | O75: 0 | P75: 86461264.69 | Q75: -465713.6128 | R75: -1262146.368 | S75: 84733404.71 | T75: 1317502 | U75: 0 | V75: 0 | W75: 0 | X75: 0 | Y75: 4086021.908 | Z75: 0 | AA75: 90136928.62 | AG75: =SUM(AG2:AG74) -> 1126865.605 | AJ75: =SUM(AJ2:AJ74) -> 89010063.02 | AK75: =SUM(AK2:AK74) -> 90136928.62
Y76: 0
A77: Chellaston Academy | B77: 5402 | C77: 5255933.208 | D77: 190996.6358 | E77: 5535.793374 | F77: 158366.7122 | G77: 52767.8697 | H77: 0 | I77: 150000 | J77: 0 | K77: 40246.2 | L77: 0 | M77: 5853846.419 | N77: 0 | O77: 0 | P77: 5853846.419 | Q77: 0 | R77: 0 | S77: 5853846.419 | T77: 0 | Y77: 0 | AA77: 5853846.419 | AG77: =K77 -> 40246.2 | AJ77: =AA77-AG77-AB77-X77 -> 5813600.219 | AK77: =AJ77+AG77 -> 5853846.419
A78: da Vinci Community College | B78: 4608 | C78: 2181979.674 | D78: 415047.9709 | E78: 8206.761243 | F78: 145943.3561 | G78: 15076.5342 | H78: 0 | I78: 150000 | J78: 0 | K78: 29510.69 | L78: 22207.8197 | M78: 2967972.806 | N78: 89294.46639 | O78: 0 | P78: 3057267.272 | Q78: -13026.4688 | R78: -35732.484 | S78: 3008508.319 | T78: 0 | Y78: 0 | AA78: 3008508.319 | AG78: 29510.69 | AJ78: 2978997.629 | AK78: 3008508.319
A79: Derby Moor Community Sports College | B79: 4178 | C79: 5030273.06 | D79: 724458.0655 | E79: 11984.1613 | F79: 264957.6073 | G79: 118282.6179 | H79: 0 | I79: 150000 | J79: 0 | K79: 29211.208 | L79: 0 | M79: 6329166.72 | N79: 0 | O79: 0 | P79: 6329166.72 | Q79: -29893.7792 | R79: -82000.656 | S79: 6217272.285 | T79: 0 | Y79: 0 | AA79: 6217272.285 | AG79: 29211.208 | AJ79: 6188061.077 | AK79: 6217272.285
A80: Lees Brook Community Sports College | B80: 4181 | C80: 4040227.149 | D80: 331529.003 | E80: 3912.643272 | F80: 217272.67 | G80: 27220.72541 | H80: 0 | I80: 150000 | J80: 0 | K80: 25173.696 | L80: 0 | M80: 4795335.886 | N80: 0 | O80: 0 | P80: 4795335.886 | Q80: 0 | R80: 0 | S80: 4795335.886 | T80: 0 | Y80: 0 | AA80: 4795335.886 | AG80: 25173.696 | AJ80: 4770162.19 | AK80: 4795335.886
A81: Littleover Community School | B81: 4182 | C81: 5662584.696 | D81: 183314.6017 | E81: 16545.84792 | F81: 190335.0671 | G81: 118099.5179 | H81: 0 | I81: 150000 | J81: 0 | K81: 134133.78 | L81: 0 | M81: 6455013.51 | N81: 0 | O81: 0 | P81: 6455013.51 | Q81: -33642.0704 | R81: -92282.472 | S81: 6329088.968 | T81: 0 | Y81: 0 | AA81: 6329088.968 | AG81: 134133.78 | AJ81: 6194955.188 | AK81: 6329088.968
A82: Merrill College | B82: 4001 | C82: 2527183.703 | D82: 590356.7059 | E82: 3835.098857 | F82: 265668.3663 | G82: 133176.0521 | H82: 18387.49731 | I82: 150000 | J82: 0 | K82: 41862.05 | L82: 340422.6529 | M82: 4070892.126 | N82: 0 | O82: 0 | P82: 4070892.126 | Q82: 0 | R82: 0 | S82: 4070892.126 | T82: 0 | Y82: 0 | AA82: 4070892.126 | AG82: 41862.05 | AJ82: 4029030.076 | AK82: 4070892.126
A83: Murray Park School | B83: 5406 | C83: 3218879.957 | D83: 339699.501 | E83: 1378.153126 | F83: 195559.244 | G83: 74763.81161 | H83: 0 | I83: 150000 | J83: 0 | K83: 24491.14 | L83: 0 | M83: 4004771.807 | N83: 0 | O83: 0 | P83: 4004771.807 | Q83: -19181.0704 | R83: -52614.972 | S83: 3932975.764 | T83: 0 | Y83: 0 | AA83: 3932975.764 | AG83: 24491.14 | AJ83: 3908484.624 | AK83: 3932975.764
A84: Noel Baker Community School and Language College | B84: 5407 | C84: 4457261.618 | D84: 707193.1747 | E84: 5725.720569 | F84: 257830.2149 | G84: 60358.48588 | H84: 0 | I84: 150000 | J84: 0 | K84: 26658.97 | L84: 407689.45 | M84: 6072717.634 | N84: 0 | O84: 0 | P84: 6072717.634 | Q84: -26677.6528 | R84: -73178.604 | S84: 5972861.378 | T84: 0 | Y84: 0 | AA84: 5972861.378 | AG84: 26658.97 | AJ84: 5946202.408 | AK84: 5972861.378
A85: Saint Benedict Catholic Voluntary Academy | B85: 4607 | C85: 4448857.054 | D85: 600276.3852 | E85: 2659.971024 | F85: 241905.09 | G85: 130889.7679 | H85: 0 | I85: 150000 | J85: 0 | K85: 26291.5 | L85: 0 | M85: 5600879.768 | N85: 0 | O85: 0 | P85: 5600879.768 | Q85: 0 | R85: 0 | S85: 5600879.768 | T85: 0 | Y85: 0 | AA85: 5600879.768 | AG85: 26291.5 | AJ85: 5574588.268 | AK85: 5600879.768
A86: City of Derby Academy | B86: 4002 | C86: 3209416.999 | D86: 534205.6661 | E86: 10117.81689 | F86: 282767.6764 | G86: 223635.2573 | H86: 62436.66669 | I86: 150000 | J86: 0 | K86: 35439.16 | L86: 0 | M86: 4508019.242 | N86: 0 | O86: 0 | P86: 4508019.242 | Q86: 0 | R86: 0 | S86: 4508019.242 | T86: 0 | Y86: 0 | AA86: 4508019.242 | AG86: 35439.16 | AJ86: 4472580.082 | AK86: 4508019.242
A87: West Park School | B87: 5412 | C87: 4981355.847 | D87: 328444.8382 | E87: 9645.702821 | F87: 218914.1586 | G87: 27661.90669 | H87: 0 | I87: 150000 | J87: 0 | K87: 25376.864 | L87: 0 | M87: 5741399.317 | N87: 0 | O87: 0 | P87: 5741399.317 | Q87: 0 | R87: 0 | S87: 5741399.317 | T87: 0 | Y87: 0 | AA87: 5741399.317 | AG87: 25376.864 | AJ87: 5716022.453 | AK87: 5741399.317
A88: Allestree Woodlands School | B88: 5414 | C88: 4160131.379 | D88: 240013.3789 | E88: 1346.922669 | F88: 151122.34 | G88: 34852.85221 | H88: 0 | I88: 150000 | J88: 0 | K88: 29169.016 | L88: 0 | M88: 4766635.889 | N88: 0 | O88: 0 | P88: 4766635.889 | Q88: 0 | R88: 0 | S88: 4766635.889 | T88: 0 | Y88: 0 | AA88: 4766635.889 | AG88: 29169.016 | AJ88: 4737466.873 | AK88: 4766635.889
A89: Derby Manufacturing UTC | B89: 4003 | C89: 666237.1123 | D89: 65801.96734 | E89: 0 | F89: 32914.29859 | G89: 2956.183176 | H89: 0 | I89: 150000 | J89: 0 | K89: 24845.71 | L89: 0 | M89: 942755.2714 | N89: 0 | O89: 0 | P89: 942755.2714 | Q89: 0 | R89: 0 | S89: 942755.2714 | T89: 0 | Y89: 0 | AA89: 942755.2714 | AG89: 24845.71 | AJ89: 917909.5614 | AK89: 942755.2714
A90: Landau Forte College (Fox Street) | B90: 6905 | C90: 3239377.818 | D90: 377756.7165 | E90: 8129.070718 | F90: 118565.2755 | G90: 40204.0912 | H90: 0 | I90: 150000 | J90: 0 | K90: 43841.63 | L90: 0 | M90: 3977874.602 | N90: 0 | O90: 0 | P90: 3977874.602 | Q90: 0 | R90: 0 | S90: 3977874.602 | T90: 0 | Y90: 0 | AA90: 3977874.602 | AG90: 43841.63 | AJ90: 3934032.972 | AK90: 3977874.602
AK91: 0
A92: Total Secondary | B92: Total Secondary | C92: 53079699.27 | D92: 5629094.611 | E92: 89023.66379 | F92: 2742122.077 | G92: 1059945.673 | H92: 80824.164 | I92: 2100000 | J92: 0 | K92: 536251.614 | L92: 770319.9226 | M92: 66087281 | N92: 89294.46639 | O92: 0 | P92: 66176575.46 | Q92: -122421.0416 | R92: -335809.188 | S92: 65718345.23 | T92: 0 | U92: 0 | V92: 0 | W92: 0 | X92: 0 | Y92: 0 | Z92: 0 | AA92: 65718345.23 | AG92: =SUM(AG77:AG91) -> 536251.614 | AJ92: =SUM(AJ77:AJ91) -> 65182093.62
AK93: =SUM(AK77:AK92) -> 65718345.23
A94: The Bemrose School | B94: 4177 | C94: 3340039.657 | D94: 724152.5347 | E94: 4667.115991 | F94: 309315.43 | G94: 394573.6151 | H94: 200128.6497 | I94: 150000 | J94: 0 | K94: 20856.836 | L94: 0 | M94: 5143733.838 | N94: 236275.8149 | O94: 0 | P94: 5380009.653 | Q94: -21865.032 | R94: -59776.092 | S94: 5298368.529 | T94: 20410 | Y94: 26786.7194 | AA94: 5345565.248 | AG94: =K94 -> 20856.836 | AJ94: =AA94-AG94-AB94-X94 -> 5324708.412 | AK94: =AJ94-AG94 -> 5303851.576
AK95: =AJ95+AG95 -> 0
A96: Total All Through School | B96: Total All Through | C96: 3340039.657 | D96: 724152.5347 | E96: 4667.115991 | F96: 309315.43 | G96: 394573.6151 | H96: 200128.6497 | I96: 150000 | J96: 0 | K96: 20856.836 | L96: 0 | M96: 5143733.838 | N96: 236275.8149 | O96: 0 | P96: 5380009.653 | Q96: -21865.032 | R96: -59776.092 | S96: 5298368.529 | T96: 20410 | U96: 0 | V96: 0 | W96: 0 | X96: 0 | Y96: 26786.7194 | Z96: 0 | AA96: 5345565.248 | AG96: =AG94 -> 20856.836 | AJ96: =AJ94 -> 5324708.412
AI97: =AI95 -> 0 | AK97: 0
B98: ALL School Block | C98: 117214538.3 | D98: 19271066.7 | E98: 149163.2664 | F98: 3051437.507 | G98: 4796957.775 | H98: 611679.0768 | I98: 9450000 | J98: 0 | K98: 1683974.055 | L98: 1076165.723 | M98: 157304982.4 | N98: 712867.3952 | O98: 0 | P98: 158017849.8 | Q98: -609999.6864 | R98: -1657731.648 | S98: 155750118.5 | T98: 1337912 | U98: 0 | V98: 0 | W98: 0 | X98: 0 | Y98: 4112808.628 | Z98: 0 | AA98: 161200839.1 | AG98: =AG75+AG92+AG96 -> 1683974.055 | AJ98: =AJ75+AJ92+AJ96 -> 159516865
A100: Summary Totals 2017-18 | B100: Primary | C100: 60794799.38 | D100: 12917819.56 | E100: 55472.48665 | F100: 0 | G100: 3342438.486 | H100: 330726.263 | I100: 7200000 | J100: 0 | K100: 1126865.605 | L100: 305845.8001 | M100: 86073967.58 | N100: 387297.1139 | O100: 0 | P100: 86461264.69 | Q100: -465713.6128 | R100: -1262146.368 | S100: 84733404.71 | T100: 1317502 | U100: 0 | V100: 0 | W100: 0 | X100: 0 | Y100: 4086021.908 | Z100: 0 | AA100: 90136928.62
B101: Secondary | C101: 53079699.27 | D101: 5629094.611 | E101: 89023.66379 | F101: 2742122.077 | G101: 1059945.673 | H101: 80824.164 | I101: 2100000 | J101: 0 | K101: 536251.614 | L101: 770319.9226 | M101: 66087281 | N101: 89294.46639 | O101: 0 | P101: 66176575.46 | Q101: -122421.0416 | R101: -335809.188 | S101: 65718345.23 | T101: 0 | U101: 0 | V101: 0 | W101: 0 | X101: 0 | Y101: 0 | Z101: 0 | AA101: 65718345.23 | AJ101: =SUM(AJ93+AJ75+AJ97+AJ99) -> 89010063.02 | AK101: =SUM(AK93+AK75+AK97+AK99) -> 155855273.9
B102: All Through | C102: 3340039.657 | D102: 724152.5347 | E102: 4667.115991 | F102: 309315.43 | G102: 394573.6151 | H102: 200128.6497 | I102: 150000 | J102: 0 | K102: 20856.836 | L102: 0 | M102: 5143733.838 | N102: 236275.8149 | O102: 0 | P102: 5380009.653 | Q102: -21865.032 | R102: -59776.092 | S102: 5298368.529 | T102: 20410 | U102: 0 | V102: 0 | W102: 0 | X102: 0 | Y102: 26786.7194 | Z102: 0 | AA102: 5345565.248
B103: ALL School Block | C103: 117214538.3 | D103: 19271066.7 | E103: 149163.2664 | F103: 3051437.507 | G103: 4796957.775 | H103: 611679.0768 | I103: 9450000 | J103: 0 | K103: 1683974.055 | L103: 1076165.723 | M103: 157304982.4 | N103: 712867.3952 | O103: 0 | P103: 158017849.8 | Q103: -609999.6864 | R103: -1657731.648 | S103: 155750118.5 | T103: 1337912 | U103: 0 | V103: 0 | W103: 0 | X103: 0 | Y103: 4112808.628 | Z103: 0 | AA103: 161200839.1
P104: 156333875.8
U105: ERS | V105: TA Hours
A106: Ashgate Nursery | B106: 1014 | K106: ='2017-18 Nursery Budget'!BD11 -> 11082.03 | M106: 11082.03 | P106: 11082.03 | S106: 11082.03
A107: Central Nursery | B107: 1006 | K107: ='2017-18 Nursery Budget'!BD24 -> 12613.22 | M107: 12613.22 | P107: 12613.22 | S107: 12613.22
A108: Harrington Nursery School | B108: 1008 | K108: ='2017-18 Nursery Budget'!BD32 -> 4851.42 | M108: 4851.42 | P108: 4851.42 | S108: 4851.42
A109: Lord Street Nursery | B109: 1005 | K109: ='2017-18 Nursery Budget'!BD35 -> 14420.13 | M109: 14420.13 | P109: 14420.13 | S109: 14420.13
A110: Stonehill Nursery | B110: 1010 | K110: ='2017-18 Nursery Budget'!BD51 -> 4596.24 | M110: 4596.24 | P110: 4596.24 | S110: 4596.24
A111: Walbrook Nursery | B111: 1009 | K111: ='2017-18 Nursery Budget'!BD53 -> 9018.94 | M111: 9018.94 | P111: 9018.94 | S111: 9018.94
A112: Whitecross Nursery | B112: 1015 | K112: ='2017-18 Nursery Budget'!BD55 -> 5081.32 | M112: 5081.32 | P112: 5081.32 | S112: 5081.32
A113: Nursery | K113: =SUM(K106:K112) -> 61663.3 | M113: 61663.3 | P113: 61663.3 | S113: 61663.3 | U113: 0 | V113: 0
Z114: Rates
U115: Total ALL | V115: Total ALL | Y115: 0 | Z115: High Needs
B116: ALL | C116: =C103+C113 -> 117214538.3 | D116: =D103+D113 -> 19271066.7 | E116: 149163.2664 | F116: 3051437.507 | G116: 4796957.775 | H116: 611679.0768 | I116: 9450000 | J116: 0 | K116: 1745637.355 | L116: 1076165.723 | M116: 157366645.7 | N116: 712867.3952 | O116: 0 | P116: 158079513.1 | Q116: -609999.6864 | R116: -1657731.648 | S116: 155811781.8 | T116: 1337912 | U116: 0 | V116: 0 | W116: 0 | X116: 0 | Y116: 4112808.628 | Z116: 0 | AA116: 161200839.1
A162: Ace Nursery | B162: 206189 | AJ162: 75095.01308 | AK162: 75095.01308
A163: Akaal Primary School | B163: 2014
A164: Allenton Community Primary School | B164: 2012
A165: Allestree Woodlands School | B165: 5414
A166: Al-Madinah | B166: 4000
A167: Alvaston Infant and Nursery School | B167: 2443
A168: Alvaston Junior School | B168: 2442
A169: An-Noor Nursery | B169: EY362920 | AJ169: 77696.83481 | AK169: 77696.83481
A170: Arboretum Primary School | B170: 2629
A171: Ash Croft Primary School | B171: 2509
A172: Ashgate Nursery | B172: 1014
A173: Ashgate Primary School | B173: 2005
A174: Asterdale Primary School | B174: 2464
A175: Beaufort Community Primary School | B175: 2004 | AJ175: 13413.0184 | AK175: 13413.0184
A176: Becket Primary School | B176: 2405
A177: Becket Sure Start Children's Centre | B177: EY380753
A178: Best Start Sinfin | B178: EY467568 | AJ178: 77316.73579 | AK178: 77316.73579
A179: Bishop Lonsdale Church of England (Aided) Primary School | B179: 2011 | AJ179: 0 | AK179: 0
A180: Bizzy Kidz | B180: EY450983 | AJ180: 30661.81931 | AK180: 30661.81931
A181: Borrow Wood Primary School | B181: 5201 | AJ181: 25631.95354 | AK181: 25631.95354
A182: Boulton Lane Park Pre-School Playgroup | B182: 206124
A183: Brackensdale Infant School | B183: 2433 | AJ183: 132822.1716 | AK183: 132822.1716
A184: Brackensdale Junior School | B184: 2432
A185: Bramble Brook Pre-School Playgroup | B185: EY282068 | AJ185: 0 | AK185: 0
A186: Breadsall Hill Top Primary School | B186: 2447
A187: Brookfield Primary School | B187: 2512
A188: Busy Bees Pre-School | B188: 206126 | AJ188: 26851.12929 | AK188: 26851.12929
A189: Busy Bees-Derby, Heatherton | B189: 206111
A190: Carlton Private Day Nursery | B190: 206091
A191: Carlyle Infant School | B191: 2456 | AJ191: 65334.77002 | AK191: 65334.77002
A192: Cavendish Close Infant School | B192: 2449 | AJ192: 85144.05555 | AK192: 85144.05555
A193: Cavendish Close Junior School | B193: 2448 | AJ193: 66834.11066 | AK193: 66834.11066
A194: Central Nursery | B194: 1006
A195: Chaddesden Park Junior School | B195: 2467
A196: Chaddesden Park Primary School | B196: 2467
A197: Chellaston Academy | B197: 5402
A198: Chellaston Infant School | B198: 2455
A199: Chellaston Junior School | B199: 5203
A200: Cherry Tree Hill Primary School | B200: 2451 | AJ200: 15908.03178 | AK200: 15908.03178
A201: Childcare @ St James Centre | B201: EY396374
A202: Chuckles Pre-School Playgroup | B202: 206128
A203: City of Derby Academy | B203: 4002
A204: Cotton's Farm Primary School | B204: 2430
A205: Creative Steps Pre-School | B205: EY500051 | AJ205: 47242.06015 | AK205: 47242.06015
A206: da Vinci Community College | B206: 4608 | AJ206: 29361.35334 | AK206: 29361.35334
A207: Dale Community Primary School | B207: 2409
A208: Derby City Childminding Network - AJH | B208: 205921
A209: Derby City Childminding Network - AK | B209: EY453961 | AJ209: 0 | AK209: 0
A210: Derby City Childminding Network - ALB | B210: EY398922 | AJ210: 34858.7273 | AK210: 34858.7273
A211: Derby City Childminding Network - AR | B211: 205999
A212: Derby City Childminding Network - BS | B212: EY314105
A213: Derby City Childminding Network - CAB | B213: 205852 | AJ213: 0 | AK213: 0
A214: Derby City Childminding Network - CEO | B214: EY412756 | AJ214: 0 | AK214: 0
A215: Derby City Childminding Network - CLHP | B215: EY251518 | AJ215: 702 | AK215: 702
A216: Derby City Childminding Network - CLW | B216: 206076 | AJ216: 0 | AK216: 0
A217: Derby City Childminding Network - DB | B217: EY484759 | AJ217: 2224 | AK217: 2224
A218: Derby City Childminding Network - DG | B218: 205919 | AJ218: 0 | AK218: 0
A219: Derby City Childminding Network - DK | B219: EY336463 | AJ219: 14300.7049 | AK219: 14300.7049
A220: Derby City Childminding Network - DS | B220: EY294474 | AJ220: 0 | AK220: 0
A221: Derby City Childminding Network - ECA | B221: EY477405 | AJ221: 1404 | AK221: 1404
A222: Derby City Childminding Network - EJS | B222: EY368441 | AJ222: 2462.212 | AK222: 2462.212
A223: Derby City Childminding Network - ELS | B223: EY455065 | AJ223: 6903.104 | AK223: 6903.104
A224: Derby City Childminding Network - FM | B224: EY401536 | AJ224: 2224 | AK224: 2224
A225: Derby City Childminding Network - HGS | B225: EY407775 | AJ225: 0 | AK225: 0
A226: Derby City Childminding Network - HMS | B226: 205849 | AJ226: 2973 | AK226: 2973
A227: Derby City Childminding Network - JD | B227: 205881 | AJ227: 0 | AK227: 0
A228: Derby City Childminding Network - JM | B228: EY462623 | AJ228: 0 | AK228: 0
A229: Derby City Childminding Network - JMS | B229: EY369088 | AJ229: 1564.756 | AK229: 1564.756
A230: Derby City Childminding Network - JN | B230: 205980 | AJ230: 702 | AK230: 702
A231: Derby City Childminding Network - KJD | B231: EY405755 | AJ231: 0 | AK231: 0
A232: Derby City Childminding Network - LD | B232: 205878 | AJ232: 4330 | AK232: 4330
A233: Derby City Childminding Network - LL | B233: EY463605 | AJ233: 351 | AK233: 351
A234: Derby City Childminding Network - LMG | B234: 260849 | AJ234: 2845.648 | AK234: 2845.648
A235: Derby City Childminding Network - LO | B235: EY482805 | AJ235: 0 | AK235: 0
A236: Derby City Childminding Network - LS | B236: EY447579 | AJ236: 7055.804 | AK236: 7055.804
A237: Derby City Childminding Network - MA | B237: EY479804 | AJ237: 0 | AK237: 0
A238: Derby City Childminding Network - MCJ | B238: EY264853 | AJ238: 0 | AK238: 0
A239: Derby City Childminding Network - MEH | B239: EY340934 | AJ239: 2125.316713 | AK239: 2125.316713
A240: Derby City Childminding Network - MM | B240: EY357686 | AJ240: 5186.648 | AK240: 5186.648
A241: Derby City Childminding Network - OBA | B241: EY440600 | AJ241: 702 | AK241: 702
A242: Derby City Childminding Network - PC | B242: EY453657 | AJ242: 2260.648 | AK242: 2260.648
A243: Derby City Childminding Network - PW | B243: EY225750 | AJ243: 0 | AK243: 0
A244: Derby City Childminding Network - RAC | B244: EY393682 | AJ244: 1971.2434 | AK244: 1971.2434
A245: Derby City Childminding Network - REE | B245: EY484039 | AJ245: 725.45008 | AK245: 725.45008
A246: Derby City Childminding Network - RJF | B246: EY395288 | AJ246: 1404 | AK246: 1404
A247: Derby City Childminding Network - RLB | B247: EY343478 | AJ247: 0 | AK247: 0
... 167 more rows

Sheet 2017-18 Nursery Budget (hidden)
A1: Early Years Single Formula Estimates for 2017-18
A3: Estimated hours from relevant providers - children taking 15 hours
H5: PUPIL LED BASE AMOUNT | R5: FSM | X5: IMD Hours and rates (current system) | AD5: ERS | AF5: TA | AH5: STANDALONE BASE | AL5: EAL | AR5: DISABILITY LIVING ALLOWANCE | AX5: FORMULA BUDGET
BK6: IMD Ratios | BP6: EAL Ratios
A7: Schools with Nursery Classes | B7: Cost Centre | C7: DCSF No | D7: Postcode | E7: Ward | F7: Max No of Places - not updated | G7: Max No of Hours | H7: Summer | I7: Autumn | J7: Spring | K7: Total Hours | L7: Hour Check | M7: FORMULA HOURS | N7: Setting Type | O7: Type Hrly Rate | P7: Total Base Funding | R7: =$H7 -> Summer | S7: =$I7 -> Autumn | T7: =$J7 -> Spring | U7: Type Hrly Rate | V7: Total FSM Funding | X7: =$H7 -> Summer | Y7: =$I7 -> Autumn | Z7: =$J7 -> Spring | AA7: Hrly Rate | AB7: Total Dep Funding | AD7: Total ERS Funding | AF7: Total TA Funding | AH7: Number per Setting | AI7: Amount | AJ7: Total Base Funding | AL7: =$H7 -> Summer | AM7: =$I7 -> Autumn | AN7: =$J7 -> Spring | AO7: Unit Cost | AP7: Total EAL Funding | AR7: =$H7 -> Summer | AS7: =$I7 -> Autumn | AT7: =$J7 -> Spring | AU7: Unit Cost | AV7: Total DLA Funding | AX7: Total Single Formula Budget | AZ7: Quality | BA7: SEN Locality Funding | BB7: Stand Alone Nursery Protection | BC7: Disability Access Fund (DAF) | BD7: 2017-18 Business Rates (NNDR) | BE7: Budget 2017-18 | BF7: Nov. 2016 Revised Forecast | BG7: Variance | BI7: %age variance | BK7: =$H7 -> Summer | BL7: =$I7 -> Autumn | BM7: =$J7 -> Spring | BN7: Total (average) | BP7: =$H7 -> Summer | BQ7: =$I7 -> Autumn | BR7: =$J7 -> Spring | BS7: Total (average)
BB8: 1.55
A9: Alvaston Infant and Nursery School | B9: E200201 | C9: 2443 | D9: DE24 0PU | E9: Alvaston | F9: 988 | G9: 29640 | H9: 10140 | I9: 8400 | J9: 7920 | K9: =SUM(H9:J9) -> 26460 | L9: =G9-K9 -> 3180 | M9: =IF(L9<0,G9,K9) -> 26460 | N9: M | O9: 4.05 | P9: =ROUND(O9*M9,0) -> 107163 | R9: 2839 | S9: 2352 | T9: 2218 | U9: 0.2 | V9: =SUM(R9+S9+T9)*U9 -> 1481.8 | X9: =H9*$BN9 -> 13507.7759 | Y9: =I9*$BN9 -> 11189.87352 | Z9: =J9*$BN9 -> 10550.45218 | AA9: 0.2 | AB9: =SUM(X9+Y9+Z9)*AA9 -> 7049.620321 | AD9: 0 | AF9: 0 | AH9: 0 | AI9: 0 | AJ9: =AI9*AH9 -> 0 | AL9: =H9*$BS9 -> 643.8780142 | AM9: =I9*$BS9 -> 533.3900709 | AN9: =J9*$BS9 -> 502.9106383 | AO9: 0.2 | AP9: =SUM(AL9:AN9)*AO9 -> 336.0357447 | AU9: 0.04 | AV9: =(AR9+AS9+AT9)*AU9 -> 0 | AX9: =P9+AB9+AD9+AF9+AJ9+AP9+AV9+V9 -> 116030.4561 | BD9: 0 | BE9: =ROUND((SUM(AZ9:BD9)+AX9),0) -> 116030 | BF9: 109503 | BG9: =BE9-BF9 -> 6527 | BI9: =BG9/BF9 -> 0.0596056729 | BK9: 1.12 | BL9: 1.488888889 | BM9: 1.387494513 | BN9: 1.332127801 | BP9: 0.06 | BQ9: 0.06666666667 | BR9: 0.06382978723 | BS9: 0.06349881797
A10: Arboretum Primary School | B10: E200401 | C10: 2629 | D10: DE23 8GP | E10: Arboretum | F10: 1482 | G10: 44460 | H10: 15015 | I10: 14700 | J10: 12705 | K10: 42420 | L10: 2040 | M10: 42420 | N10: M | O10: =$O$9 -> 4.05 | P10: 171801 | R10: 3303 | S10: 3234 | T10: 2795 | U10: =$U$9 -> 0.2 | V10: 1866.4 | X10: 44146.66667 | Y10: 43220.51282 | Z10: 37354.87179 | AA10: =$AA$9 -> 0.2 | AB10: 24944.41026 | AD10: 0 | AF10: 0 | AH10: 0 | AI10: 0 | AJ10: 0 | AL10: 12427.8 | AM10: 12167.07692 | AN10: 10515.83077 | AO10: =AO$9 -> 0.2 | AP10: 7022.141538 | AU10: =$AU$9 -> 0.04 | AV10: 0 | AX10: 205633.9518 | BD10: 0 | BE10: 205634 | BF10: 199166 | BG10: 6468 | BI10: 0.03247542251 | BK10: 2.961538462 | BL10: 3 | BM10: 2.858974359 | BN10: 2.94017094 | BP10: 0.8076923077 | BQ10: 0.8933333333 | BR10: 0.7820512821 | BS10: 0.8276923077
A11: Ashgate Nursery | B11: E100101 | C11: 1014 | D11: DE1 1GJ | E11: Mackworth | F11: 1520 | G11: 45600 | H11: 9945 | I11: 7560 | J11: 8250 | K11: 25755 | L11: 19845 | M11: 25755 | N11: S | O11: 4.05 | P11: 104308 | R11: 2785 | S11: 2117 | T11: 2310 | U11: 0.2 | V11: 1442.4 | X11: 14950.69264 | Y11: 11365.23242 | Z11: 12402.53538 | AA11: 0.2 | AB11: 7743.692088 | AD11: 0 | AF11: 0 | AH11: 1 | AI11: 100000 | AJ11: 100000 | AL11: 1418.020142 | AM11: 1077.951963 | AN11: 1176.336468 | AO11: 0.2 | AP11: 734.4617147 | AU11: 0.04 | AV11: 0 | AX11: 214228.5538 | BB11: =BB8*M11 -> 39920.25 | BD11: 11082.03 | BE11: 265231 | BF11: 261662 | BG11: 3569 | BI11: 0.0136397337 | BK11: 1.403100775 | BL11: 1.409836066 | BM11: 1.697076023 | BN11: 1.503337621 | BP11: 0.01937984496 | BQ11: 0.1639344262 | BR11: 0.2444444444 | BS11: 0.1425862385
A12: Asterdale Primary School | B12: E200701 | C12: 2464 | D12: DE21 7PH | E12: Spondon | F12: 988 | G12: 29640 | H12: 6045 | I12: 3360 | J12: 3630 | K12: 13035 | L12: 16605 | M12: 13035 | N12: M | O12: 4.05 | P12: 52792 | R12: 725 | S12: 403 | T12: 436 | U12: 0.2 | V12: 312.8 | X12: 5618.850877 | Y12: 3123.132994 | Z12: 3374.099038 | AA12: 0.2 | AB12: 2423.216582 | AD12: 0 | AF12: 0 | AH12: 0 | AI12: 0 | AJ12: 0 | AL12: 0 | AM12: 0 | AN12: 0 | AO12: 0.2 | AP12: 0 | AU12: 0.04 | AV12: 0 | AX12: 55528.01658 | BD12: 0 | BE12: 55528 | BF12: 57755 | BG12: -2227 | BI12: -0.03855943208 | BK12: 0.4 | BL12: 1.622807018 | BM12: 0.765704584 | BN12: 0.9295038672 | BP12: 0 | BQ12: 0 | BR12: 0 | BS12: 0
A13: Beaufort Community Primary School | B13: E200801 | C13: 2004 | D13: DE21 6BT | E13: Derwent | F13: 1976 | G13: 59280 | H13: 9750 | I13: 4200 | J13: 3630 | K13: 17580 | L13: 41700 | M13: 17580 | N13: M | O13: 4.05 | P13: 71199 | R13: 2633 | S13: 1134 | T13: 980 | U13: 0.2 | V13: 949.4 | X13: 28283.29346 | Y13: 12183.57257 | Z13: 10530.08772 | AA13: 0.2 | AB13: 10199.39075 | AD13: 0 | AF13: 0 | AH13: 0 | AI13: 0 | AJ13: 0 | AL13: 755.7416268 | AM13: 325.5502392 | AN13: 281.3684211 | AO13: 0.2 | AP13: 272.5320574 | AU13: 0.04 | AV13: 0 | AX13: 82620.32281 | BD13: 0 | BE13: 82620 | BF13: 94159 | BG13: -11539 | BI13: -0.1225480305 | BK13: 2.473684211 | BL13: 2.272727273 | BM13: 3.956140351 | BN13: 2.900850611 | BP13: 0.1052631579 | BQ13: 0.06060606061 | BR13: 0.06666666667 | BS13: 0.07751196172
A14: Becket Primary School | B14: E200901 | C14: 2405 | D14: DE22 3QB | E14: Abbey | F14: 988 | G14: 29640 | H14: 5265 | I14: 2730 | J14: 2145 | K14: 10140 | L14: 19500 | M14: 10140 | N14: M | O14: 4.05 | P14: 41067 | R14: 1158 | S14: 601 | T14: 472 | U14: 0.2 | V14: 446.2 | X14: 11926.12269 | Y14: 6183.91547 | Z14: 4858.790727 | AA14: 0.2 | AB14: 4593.765778 | AD14: 0 | AF14: 0 | AH14: 0 | AI14: 0 | AJ14: 0 | AL14: 2552.727273 | AM14: 1323.636364 | AN14: 1040 | AO14: 0.2 | AP14: 983.2727273 | AU14: 0.04 | AV14: 0 | AX14: 47090.23851 | BD14: 0 | BE14: 47090 | BF14: 62390 | BG14: -15300 | BI14: -0.2452316076 | BK14: 2.136363636 | BL14: 2.238095238 | BM14: 2.421052632 | BN14: 2.265170502 | BP14: 0.4545454545 | BQ14: 0.4285714286 | BR14: 0.5714285714 | BS14: 0.4848484848
A15: Bemrose | B15: E300101 | C15: 4177 | D15: DE22 3HU | E15: Abbey | F15: 988 | G15: 29640 | H15: 0 | I15: 0 | J15: 0 | K15: 0 | L15: 29640 | M15: 0 | N15: M | O15: 4.05 | P15: 0 | R15: 0 | S15: 0 | T15: 0 | U15: 0.2 | V15: 0 | X15: 0 | Y15: 0 | Z15: 0 | AA15: 0.2 | AB15: 0 | AD15: 0 | AF15: 0 | AH15: 0 | AI15: 0 | AJ15: 0 | AL15: 0 | AM15: 0 | AN15: 0 | AO15: 0.2 | AP15: 0 | AU15: 0.04 | AV15: 0 | AX15: 0 | BD15: 0 | BE15: 0 | BF15: 30504 | BG15: -30504 | BI15: -1 | BK15: 1.5 | BL15: 0 | BM15: 0 | BN15: 0.5 | BP15: 0.25 | BQ15: 1 | BR15: 0 | BS15: 0.4166666667
A16: Bishop Lonsdale Church of England (Aided) Primary School 3525 then 2011 dfe | B16: E201001 | C16: 2011 | D16: DE22 3HH | E16: Abbey | F16: 1482 | G16: 44460 | H16: 5655 | I16: 3780 | J16: 3960 | K16: 13395 | L16: 31065 | M16: 13395 | N16: M | O16: 4.05 | P16: 54250 | R16: 1244 | S16: 832 | T16: 871 | U16: 0.2 | V16: 589.4 | X16: 6423.815814 | Y16: 4293.903409 | Z16: 4498.375 | AA16: 0.2 | AB16: 3043.218845 | AD16: 0 | AF16: 0 | AH16: 0 | AI16: 0 | AJ16: 0 | AL16: 1564.407197 | AM16: 1045.704545 | AN16: 1095.5 | AO16: 0.2 | AP16: 741.1223485 | AU16: 0.04 | AV16: 0 | AX16: 58623.74119 | BD16: 0 | BE16: 58624 | BF16: 59776 | BG16: -1152 | BI16: -0.01927194861 | BK16: 1.181818182 | BL16: 1 | BM16: 1.226041667 | BN16: 1.135953283 | BP16: 0.2424242424 | BQ16: 0.4 | BR16: 0.1875 | BS16: 0.2766414141
A17: Borrow Wood Primary School | B17: E201201 | C17: 5201 | D17: DE21 7QW | E17: Spondon | F17: 988 | G17: 29640 | H17: 8190 | I17: 4620 | J17: 4950 | K17: 17760 | L17: 11880 | M17: 17760 | N17: M | O17: 4.05 | P17: 71928 | R17: 983 | S17: 554 | T17: 594 | U17: 0.2 | V17: 426.2 | X17: 2775.075127 | Y17: 1565.426995 | Z17: 1677.243209 | AA17: 0.2 | AB17: 1203.549066 | AD17: 0 | AF17: 0 | AH17: 0 | AI17: 0 | AJ17: 0 | AL17: 179.1312317 | AM17: 101.0483871 | AN17: 108.266129 | AO17: 0.2 | AP17: 77.68914956 | AU17: 0.04 | AV17: 0 | AX17: 73635.43822 | BD17: 0 | BE17: 73635 | BF17: 80015 | BG17: -6380 | BI17: -0.07973504968 | BK17: 0.2217741935 | BL17: 0.5 | BM17: 0.2947368421 | BN17: 0.3388370119 | BP17: 0.02016129032 | BQ17: 0.04545454545 | BR17: 0 | BS17: 0.02187194526
A18: Wyndham Primary Academy | B18: E201301 | C18: 2007 | D18: DE24 0EP | E18: Boulton | F18: 1976 | G18: 59280 | H18: 12090 | I18: 9450 | J18: 8250 | K18: 29790 | L18: 29490 | M18: 29790 | N18: M | O18: 4.05 | P18: 120650 | R18: 3023 | S18: 2363 | T18: 2063 | U18: 0.2 | V18: 1489.8 | X18: 29012.78036 | Y18: 22677.48341 | Z18: 19797.80298 | AA18: 0.2 | AB18: 14297.61335 | AD18: 0 | AF18: 0 | AH18: 0 | AI18: 0 | AJ18: 0 | AL18: 2205.338832 | AM18: 1723.77601 | AN18: 1504.883818 | AO18: 0.2 | AP18: 1086.799732 | AU18: 0.04 | AV18: 0 | AX18: 137524.2131 | BD18: 0 | BE18: 137524 | BF18: 129808 | BG18: 7716 | BI18: 0.05944163688 | BK18: 2.507936508 | BL18: 2.76744186 | BM18: 1.923822715 | BN18: 2.399733694 | BP18: 0.2063492063 | BQ18: 0.2093023256 | BR18: 0.1315789474 | BS18: 0.1824101598
A19: Brackensdale Infant School | B19: E201401 | C19: 2433 | D19: DE22 4BS | E19: Mackworth | F19: 988 | G19: 29640 | H19: 10140 | I19: 7350 | J19: 8580 | K19: 26070 | L19: 3570 | M19: 26070 | N19: M | O19: 4.05 | P19: 105584 | R19: 2839 | S19: 2058 | T19: 2402 | U19: 0.2 | V19: 1459.8 | X19: 13243.07585 | Y19: 9599.270957 | Z19: 11205.67957 | AA19: 0.2 | AB19: 6809.605275 | AD19: 0 | AF19: 0 | AH19: 0 | AI19: 0 | AJ19: 0 | AL19: 558.2352941 | AM19: 404.638009 | AN19: 472.3529412 | AO19: 0.2 | AP19: 287.0452489 | AU19: 0.04 | AV19: 0 | AX19: 114140.4505 | BD19: 0 | BE19: 114140 | BF19: 102564 | BG19: 11576 | BI19: 0.1128661129 | BK19: 1.096153846 | BL19: 1.676470588 | BM19: 1.145445344 | BN19: 1.30602326 | BP19: 0.05769230769 | BQ19: 0.08823529412 | BR19: 0.01923076923 | BS19: 0.05505279035
A20: Breadsall Hill Top Primary School | B20: E201601 | C20: 2447 | D20: DE21 4ET | E20: Derwent | F20: 988 | G20: 29640 | H20: 10858 | I20: 9594 | J20: 9188 | K20: 29640 | L20: 0 | M20: 29640 | N20: M | O20: 4.05 | P20: 120042 | R20: 2932 | S20: 2590 | T20: 2481 | U20: 0.2 | V20: 1600.6 | X20: 12309.7505 | Y20: 10876.74952 | Z20: 10416.46597 | AA20: 0.2 | AB20: 6720.593197 | AD20: 0 | AF20: 0 | AH20: 0 | AI20: 0 | AJ20: 0 | AL20: 744.7947846 | AM20: 658.0918367 | AN20: 630.2426304 | AO20: 0.2 | AP20: 406.6258503 | AU20: 0.04 | AV20: 0 | AX20: 128769.819 | BD20: 0 | BE20: 128770 | BF20: 127952 | BG20: 818 | BI20: 0.006393022383 | BK20: 0.9166666667 | BL20: 1.020408163 | BM20: 1.464035088 | BN20: 1.133703306 | BP20: 0.01666666667 | BQ20: 0.1224489796 | BR20: 0.06666666667 | BS20: 0.06859410431
A21: Brookfield Primary School | B21: E201801 | C21: 2512 | D21: DE3 5DH | E21: Littleover | F21: 570 | G21: 17100 | H21: 7995 | I21: 4200 | J21: 4125 | K21: 16320 | L21: 780 | M21: 16320 | N21: M | O21: 4.05 | P21: 66096 | R21: 560 | S21: 294 | T21: 289 | U21: 0.2 | V21: 228.6 | X21: 2001.064939 | Y21: 1051.216103 | Z21: 1032.444387 | AA21: 0.2 | AB21: 816.9450858 | AD21: 0 | AF21: 0 | AH21: 0 | AI21: 0 | AJ21: 0 | AL21: 2769.088278 | AM21: 1454.680521 | AN21: 1428.704083 | AO21: 0.2 | AP21: 1130.494577 | AU21: 0.04 | AV21: 0 | AX21: 68272.03966 | BD21: 0 | BE21: 68272 | BF21: 63585 | BG21: 4687 | BI21: 0.07371235354 | BK21: 0.1262626263 | BL21: 0.3043478261 | BM21: 0.3202581927 | BN21: 0.2502895483 | BP21: 0.2777777778 | BQ21: 0.4782608696 | BR21: 0.2830188679 | BS21: 0.3463525051
A22: Carlyle Infant School | B22: E201901 | C22: 2456 | D22: DE23 3ES | E22: Blagreaves | F22: 988 | G22: 29640 | H22: 6825 | I22: 4200 | J22: 4785 | K22: 15810 | L22: 13830 | M22: 15810 | N22: M | O22: 4.05 | P22: 64031 | R22: 683 | S22: 420 | T22: 479 | U22: 0.2 | V22: 316.4 | X22: 3304.272746 | Y22: 2033.398613 | Z22: 2316.621991 | AA22: 0.2 | AB22: 1530.85867 | AD22: 0 | AF22: 0 | AH22: 0 | AI22: 0 | AJ22: 0 | AL22: 1996.797481 | AM22: 1228.79845 | AN22: 1399.952519 | AO22: 0.2 | AP22: 925.1096899 | AU22: 0.04 | AV22: 0 | AX22: 66803.36836 | BD22: 0 | BE22: 66803 | BF22: 72494 | BG22: -5691 | BI22: -0.07850304853 | BK22: 0.5348837209 | BL22: 0.4583333333 | BM22: 0.4592105263 | BN22: 0.4841425269 | BP22: 0.1860465116 | BQ22: 0.1666666667 | BR22: 0.525 | BS22: 0.2925710594
A23: Cavendish Close Infant School | B23: E202001 | C23: 2449 | D23: DE21 4LY | E23: Chaddesden | F23: 1482 | G23: 44460 | H23: 15015 | I23: 14490 | J23: 12375 | K23: 41880 | L23: 2580 | M23: 41880 | N23: M | O23: 4.05 | P23: 169614 | R23: 2102 | S23: 2029 | T23: 1733 | U23: 0.2 | V23: 1172.8 | X23: 10489.26964 | Y23: 10122.51196 | Z23: 8645.002452 | AA23: 0.2 | AB23: 5851.356811 | AD23: 0 | AF23: 0 | AH23: 0 | AI23: 0 | AJ23: 0 | AL23: 622.6811594 | AM23: 600.9090909 | AN23: 513.1987578 | AO23: 0.2 | AP23: 347.3578016 | AU23: 0.04 | AV23: 0 | AX23: 176985.5146 | BD23: 0 | BE23: 176986 | BF23: 166649 | BG23: 10337 | BI23: 0.06202857503 | BK23: 0.5064935065 | BL23: 0.9710144928 | BM23: 0.6182501709 | BN23: 0.6985860567 | BP23: 0.05194805195 | BQ23: 0.07246376812 | BR23: 0 | BS23: 0.04147060669
A24: Central Nursery | B24: E100301 | C24: 1006 | D24: DE1 3LR | E24: Darley | F24: 1976 | G24: 59280 | H24: 12090 | I24: 8190 | J24: 8910 | K24: 29190 | L24: 30090 | M24: 29190 | N24: S | O24: 4.05 | P24: 118220 | R24: 1451 | S24: 983 | T24: 1069 | U24: 0.2 | V24: 700.6 | X24: 16924.03713 | Y24: 11464.67031 | Z24: 12472.55341 | AA24: 0.2 | AB24: 8172.25217 | AD24: 0 | AF24: 0 | AH24: 1 | AI24: 100000 | AJ24: 100000 | AL24: 1582.407319 | AM24: 1071.953345 | AN24: 1166.191002 | AO24: 0.2 | AP24: 764.110333 | AU24: 0.04 | AV24: 0 | AX24: 227856.9625 | BB24: =BB8*M24 -> 45244.5 | BD24: 12613.22 | BE24: 285715 | BF24: 431364 | BG24: -145649 | BI24: -0.3376475552 | BK24: 0.9665653495 | BL24: 1.440594059 | BM24: 1.792353525 | BN24: 1.399837645 | BP24: 0.07294832827 | BQ24: 0.2178217822 | BR24: 0.1018867925 | BS24: 0.1308856343
A25: Chaddesden Park Primary School | B25: E202201 | C25: 2467 | D25: DE21 6LF | E25: Chaddesden | F25: 988 | G25: 29640 | H25: 10140 | I25: 6300 | J25: 6600 | K25: 23040 | L25: 6600 | M25: 23040 | N25: M | O25: 4.05 | P25: 93312 | R25: 1420 | S25: 882 | T25: 924 | U25: 0.2 | V25: 645.2 | X25: 9827.342633 | Y25: 6105.745423 | Z25: 6396.495205 | AA25: 0.2 | AB25: 4465.916652 | AD25: 0 | AF25: 0 | AH25: 0 | AI25: 0 | AJ25: 0 | AL25: 108.3450135 | AM25: 67.3149492 | AN25: 70.52042297 | AO25: 0.2 | AP25: 49.23607713 | AU25: 0.04 | AV25: 0 | AX25: 98472.35273 | BD25: 0 | BE25: 98472 | BF25: 104827 | BG25: -6355 | BI25: -0.06062369428 | BK25: 0.8679245283 | BL25: 0.8222222222 | BM25: 1.21735107 | BN25: 0.9691659402 | BP25: 0.01886792453 | BQ25: 0 | BR25: 0.01318681319 | BS25: 0.01068491257
A26: Cherry Tree Hill Primary School | B26: E202601 | C26: 2451 | D26: DE21 6WL | E26: Chaddesden | F26: 988 | G26: 29640 | H26: 9750 | I26: 10710 | J26: 8580 | K26: 29040 | L26: 600 | M26: 29040 | N26: M | O26: 4.05 | P26: 117612 | R26: 1365 | S26: 1499 | T26: 1201 | U26: 0.2 | V26: 813 | X26: 7553.653251 | Y26: 8297.397571 | Z26: 6647.214861 | AA26: 0.2 | AB26: 4499.653136 | AD26: 0 | AF26: 0 | AH26: 0 | AI26: 0 | AJ26: 0 | AL26: 253.6764706 | AM26: 278.6538462 | AN26: 223.2352941 | AO26: 0.2 | AP26: 151.1131222 | AU26: 0.04 | AV26: 0 | AX26: 123075.7663 | BD26: 0 | BE26: 123076 | BF26: 114468 | BG26: 8608 | BI26: 0.07520005591 | BK26: 0.48 | BL26: 1.035294118 | BM26: 0.8089068826 | BN26: 0.7747336667 | BP26: 0 | BQ26: 0.05882352941 | BR26: 0.01923076923 | BS26: 0.02601809955
A27: Derwent Community School | B27: E202901 | C27: 2619 | D27: DE21 6AL | E27: Derwent | F27: 1482 | G27: 44460 | H27: 7800 | I27: 4410 | J27: 4125 | K27: 16335 | L27: 28125 | M27: 16335 | N27: M | O27: 4.05 | P27: 66157 | R27: 2106 | S27: 1191 | T27: 1114 | U27: 0.2 | V27: 882.2 | X27: 23274.59494 | Y27: 13159.09791 | Z27: 12308.68002 | AA27: 0.2 | AB27: 9748.474574 | AD27: 0 | AF27: 0 | AH27: 0 | AI27: 0 | AJ27: 0 | AL27: 1808.529412 | AM27: 1022.514706 | AN27: 956.4338235 | AO27: 0.2 | AP27: 757.4955882 | AU27: 0.04 | AV27: 0 | AX27: 77545.17016 | BD27: 0 | BE27: 77545 | BF27: 98826 | BG27: -21281 | BI27: -0.2153380689 | BK27: 2.764705882 | BL27: 2.866666667 | BM27: 3.320394737 | BN27: 2.983922429 | BP27: 0.137254902 | BQ27: 0.1 | BR27: 0.4583333333 | BS27: 0.2318627451
A28: Firs Estate Primary School | B28: E203001 | C28: 2518 | D28: DE22 3WA | E28: Abbey | F28: 1482 | G28: 44460 | H28: 3510 | I28: 1050 | J28: 1155 | K28: 5715 | L28: 38745 | M28: 5715 | N28: M | O28: 4.05 | P28: 23146 | R28: 772 | S28: 231 | T28: 254 | U28: 0.2 | V28: 251.4 | X28: 10613.37919 | Y28: 3174.942492 | Z28: 3492.436741 | AA28: 0.2 | AB28: 3456.151684 | AD28: 0 | AF28: 0 | AH28: 0 | AI28: 0 | AJ28: 0 | AL28: 3006.818182 | AM28: 899.4755245 | AN28: 989.4230769 | AO28: 0.2 | AP28: 979.1433566 | AU28: 0.04 | AV28: 0 | AX28: 27832.69504 | BD28: 0 | BE28: 27833 | BF28: 35369 | BG28: -7536 | BI28: -0.2130679409 | BK28: 1.545454545 | BL28: 1.769230769 | BM28: 5.756578947 | BN28: 3.023754754 | BP28: 0.4545454545 | BQ28: 0.6153846154 | BR28: 1.5 | BS28: 0.8566433566
A29: Grampian Primary School /Academy | B29: E203201 | C29: 2010 | D29: DE24 9LU | E29: Sinfin | F29: 988 | G29: 29640 | H29: 8970 | I29: 3780 | J29: 3300 | K29: 16050 | L29: 13590 | M29: 16050 | N29: M | O29: 4.05 | P29: 65003 | R29: 2691 | S29: 1134 | T29: 990 | U29: 0.2 | V29: 963 | X29: 19106.72884 | Y29: 8051.664994 | Z29: 7029.231344 | AA29: 0.2 | AB29: 6837.525035 | AD29: 0 | AF29: 0 | AH29: 0 | AI29: 0 | AJ29: 0 | AL29: 3510.571332 | AM29: 1479.371197 | AN29: 1291.514537 | AO29: 0.2 | AP29: 1256.291413 | AU29: 0.04 | AV29: 0 | AX29: 74059.81645 | BD29: 0 | BE29: 74060 | BF29: 91563 | BG29: -17503 | BI29: -0.1911580005 | BK29: 2 | BL29: 2.029411765 | BM29: 2.360798548 | BN29: 2.130070104 | BP29: 0.1333333333 | BQ29: 0.3235294118 | BR29: 0.7172413793 | BS29: 0.3913680415
A30: Griffe Field Primary School | B30: E203301 | C30: 2002 | D30: DE23 3UQ | E30: Littleover | F30: 988 | G30: 29640 | H30: 10140 | I30: 7980 | J30: 7425 | K30: 25545 | L30: 4095 | M30: 25545 | N30: M | O30: 4.05 | P30: 103457 | R30: 710 | S30: 559 | T30: 520 | U30: 0.2 | V30: 357.8 | X30: 617.7850877 | Y30: 486.1858974 | Z30: 452.3722166 | AA30: 0.2 | AB30: 311.2686404 | AD30: 0 | AF30: 0 | AH30: 0 | AI30: 0 | AJ30: 0 | AL30: 2632.5 | AM30: 2071.730769 | AN30: 1927.644231 | AO30: 0.2 | AP30: 1326.375 | AU30: 0.04 | AV30: 0 | AX30: 105452.4436 | BD30: 0 | BE30: 105452 | BF30: 101532 | BG30: 3920 | BI30: 0.03860851751 | BK30: 0.01923076923 | BL30: 0.07692307692 | BM30: 0.08662280702 | BN30: 0.06092555106 | BP30: 0.3269230769 | BQ30: 0.4102564103 | BR30: 0.04166666667 | BS30: 0.2596153846
A31: Hardwick Primary School | B31: E203401 | C31: 3544 | D31: DE23 6QP | E31: Normanton | F31: 1140 | G31: 34200 | H31: 11700 | I31: 10920 | J31: 9240 | K31: 31860 | L31: 2340 | M31: 31860 | N31: M | O31: 4.05 | P31: 129033 | R31: 2574 | S31: 2402 | T31: 2033 | U31: 0.2 | V31: 1401.8 | X31: 34525.5165 | Y31: 32223.8154 | Z31: 27266.30534 | AA31: 0.2 | AB31: 18803.12745 | AD31: 0 | AF31: 0 | AH31: 0 | AI31: 0 | AJ31: 0 | AL31: 10603.28814 | AM31: 9896.40226 | AN31: 8373.878835 | AO31: 0.2 | AP31: 5774.713846 | AU31: 0.04 | AV31: 0 | AX31: 155012.6413 | BD31: 0 | BE31: 155013 | BF31: 134608 | BG31: 20405 | BI31: 0.1515883157 | BK31: 2.796610169 | BL31: 2.948717949 | BM31: 3.107368421 | BN31: 2.950898846 | BP31: 0.8813559322 | BQ31: 0.8974358974 | BR31: 0.94 | BS31: 0.9062639432
A32: Harrington Nursery | B32: E100401 | C32: 1008 | D32: DE23 8PE | E32: Normanton | F32: 1520 | G32: 45600 | H32: 15600 | I32: 14700 | J32: 13200 | K32: 43500 | L32: 2100 | M32: 43500 | N32: S | O32: 4.05 | P32: 176175 | R32: 3432 | S32: 3234 | T32: 2904 | U32: 0.2 | V32: 1914 | X32: 43981.35322 | Y32: 41443.96745 | Z32: 37214.99118 | AA32: 0.2 | AB32: 24528.06237 | AD32: 0 | AF32: 0 | AH32: 1 | AI32: 100000 | AJ32: 100000 | AL32: 7591.641847 | AM32: 7153.662509 | AN32: 6423.696947 | AO32: 0.2 | AP32: 4233.800261 | AU32: 0.04 | AV32: 0 | AX32: 306850.8626 | BB32: =BB8*M32 -> 67425 | BD32: 4851.42 | BE32: 379127 | BF32: 398715 | BG32: -19588 | BI32: -0.04912782313 | BK32: 2.784810127 | BL32: 2.882352941 | BM32: 2.790789474 | BN32: 2.819317514 | BP32: 0.08860759494 | BQ32: 0.8088235294 | BR32: 0.5625 | BS32: 0.4866437081
A33: Homefields Primary | B33: E203501 | C33: 2006 | D33: DE73 5NY | E33: Chellaston | F33: 988 | G33: 29640 | H33: 8658 | I33: 9324 | J33: 7326 | K33: 25308 | L33: 4332 | M33: 25308 | N33: M | O33: 4.05 | P33: 102497 | R33: 779 | S33: 839 | T33: 659 | U33: 0.2 | V33: 455.4 | X33: 984.271068 | Y33: 1059.984227 | Z33: 832.8447499 | AA33: 0.2 | AB33: 575.420009 | AD33: 0 | AF33: 0 | AH33: 0 | AI33: 0 | AJ33: 0 | AL33: 1299.213532 | AM33: 1399.153035 | AN33: 1099.334527 | AO33: 0.2 | AP33: 759.5402188 | AU33: 0.04 | AV33: 0 | AX33: 104287.3602 | BD33: 0 | BE33: 104287 | BF33: 98412 | BG33: 5875 | BI33: 0.05969800431 | BK33: 0 | BL33: 0.1966292135 | BM33: 0.1444210526 | BN33: 0.113683422 | BP33: 0.1517509728 | BQ33: 0.2584269663 | BR33: 0.04 | BS33: 0.150059313
A34: Lakeside Community Primary School | B34: E203601 | C34: 2434 | D34: DE24 8UY | E34: Alvaston | F34: 1976 | G34: 59280 | H34: 20280 | I34: 16800 | J34: 15345 | K34: 52425 | L34: 6855 | M34: 52425 | N34: M | O34: 4.05 | P34: 212321 | R34: 5678 | S34: 4704 | T34: 4297 | U34: 0.2 | V34: 2935.8 | X34: 41541.10931 | Y34: 34412.75327 | Z34: 31432.36303 | AA34: 0.2 | AB34: 21477.24512 | AD34: 0 | AF34: 0 | AH34: 0 | AI34: 0 | AJ34: 0 | AL34: 2297.252882 | AM34: 1903.049725 | AN34: 1738.232025 | AO34: 0.2 | AP34: 1187.706926 | AU34: 0.04 | AV34: 0 | AX34: 237921.752 | BD34: 0 | BE34: 237922 | BF34: 204646 | BG34: 33276 | BI34: 0.1626027384 | BK34: 2.129094412 | BL34: 2.047619048 | BM34: 1.968421053 | BN34: 2.048378171 | BP34: 0.1445086705 | BQ34: 0.1111111111 | BR34: 0.08421052632 | BS34: 0.1132767693
A35: Lord St Nursery | B35: E100501 | C35: 1005 | D35: DE24 9AX | E35: Boulton | F35: 1976 | G35: 59280 | H35: 20280 | I35: 15750 | J35: 17160 | K35: 53190 | L35: 6090 | M35: 53190 | N35: S | O35: 4.05 | P35: 215420 | R35: 5070 | S35: 3938 | T35: 4290 | U35: 0.2 | V35: 2659.6 | X35: 54551.70049 | Y35: 42366.33544 | Z35: 46159.13119 | AA35: 0.2 | AB35: 28615.43342 | AD35: 0 | AF35: 0 | AH35: 1 | AI35: 100000 | AJ35: 100000 | AL35: 4148.346278 | AM35: 3221.718633 | AN35: 3510.139159 | AO35: 0.2 | AP35: 2176.040814 | AU35: 0.04 | AV35: 0 | AX35: 348871.0742 | BB35: =BB8*M35 -> 82444.5 | BD35: 14420.13 | BE35: 445736 | BF35: 560962 | BG35: -115226 | BI35: -0.2054078529 | BK35: 2.757281553 | BL35: 2.826666667 | BM35: 2.48582996 | BN35: 2.68992606 | BP35: 0.08737864078 | BQ35: 0.2666666667 | BR35: 0.2596153846 | BS35: 0.204553564
A36: Meadow Farm Community Primary School | B36: E203901 | C36: 2452 | D36: DE21 6TZ | E36: Chaddesden | F36: 988 | G36: 29640 | H36: 5070 | I36: 3990 | J36: 4125 | K36: 13185 | L36: 16455 | M36: 13185 | N36: M | O36: 4.05 | P36: 53399 | R36: 710 | S36: 559 | T36: 578 | U36: 0.2 | V36: 369.4 | X36: 8322.633668 | Y36: 6549.764957 | Z36: 6771.373546 | AA36: 0.2 | AB36: 4328.754434 | AD36: 0 | AF36: 0 | AH36: 0 | AI36: 0 | AJ36: 0 | AL36: 930.6349206 | AM36: 732.3931624 | AN36: 757.1733822 | AO36: 0.2 | AP36: 484.040293 | AU36: 0.04 | AV36: 0 | AX36: 58581.19473 | BD36: 0 | BE36: 58581 | BF36: 51210 | BG36: 7371 | BI36: 0.1439367311 | BK36: 0.6944444444 | BL36: 1.928571429 | BM36: 2.301619433 | BN36: 1.641545102 | BP36: 0.1111111111 | BQ36: 0.2857142857 | BR36: 0.1538461538 | BS36: 0.1835571836
A37: Osmaston Primary School | B37: E204201 | C37: 2420 | D37: DE24 8FT | E37: Sinfin | F37: 1976 | G37: 59280 | H37: 16380 | I37: 12600 | J37: 13200 | K37: 42180 | L37: 17100 | M37: 42180 | N37: M | O37: 4.05 | P37: 170829 | R37: 4914 | S37: 3780 | T37: 3960 | U37: 0.2 | V37: 2530.8 | X37: 47644.56848 | Y37: 36649.66806 | Z37: 38394.89035 | AA37: 0.2 | AB37: 24537.82538 | AD37: 0 | AF37: 0 | AH37: 0 | AI37: 0 | AJ37: 0 | AL37: 5108.15393 | AM37: 3929.349177 | AN37: 4116.461042 | AO37: 0.2 | AP37: 2630.79283 | AU37: 0.04 | AV37: 0 | AX37: 200528.4182 | BD37: 0 | BE37: 200528 | BF37: 170025 | BG37: 30503 | BI37: 0.179403029 | BK37: 2.975318799 | BL37: 3 | BM37: 2.750792644 | BN37: 2.908703814 | BP37: 0.320855615 | BQ37: 0.2653061224 | BR37: 0.3493975904 | BS37: 0.3118531093
A38: Oakwood Infant School | B38: E204701 | C38: 2473 | D38: DE24 0GZ | E38: Boulton | F38: 1482 | G38: 44460 | H38: 15210 | I38: 15540 | J38: 12870 | K38: 43620 | L38: 840 | M38: 43620 | N38: M | O38: 4.05 | P38: 176661 | R38: 3803 | S38: 3885 | T38: 3218 | U38: 0.2 | V38: 2181.2 | X38: 24399.80541 | Y38: 24929.18974 | Z38: 20645.98919 | AA38: 0.2 | AB38: 13994.99687 | AD38: 0 | AF38: 0 | AH38: 0 | AI38: 0 | AJ38: 0 | AL38: 469.827027 | AM38: 480.0205128 | AN38: 397.5459459 | AO38: 0.2 | AP38: 269.4786972 | AU38: 0.04 | AV38: 0 | AX38: 193106.6756 | BD38: 0 | BE38: 193107 | BF38: 177933 | BG38: 15174 | BI38: 0.08527929052 | BK38: 1.320512821 | BL38: 1.905405405 | BM38: 1.586666667 | BN38: 1.604194964 | BP38: 0.02564102564 | BQ38: 0.02702702703 | BR38: 0.04 | BS38: 0.03088935089
A39: Parkview Primary School | B39: E204901 | C39: 2003 | D39: DE21 2RQ | E39: Oakwood | F39: 988 | G39: 29640 | H39: 10140 | I39: 7350 | J39: 6930 | K39: 24420 | L39: 5220 | M39: 24420 | N39: M | O39: 4.05 | P39: 98901 | R39: 710 | S39: 515 | T39: 485 | U39: 0.2 | V39: 342 | X39: 797.7612588 | Y39: 578.2589006 | Z39: 545.2155349 | AA39: 0.2 | AB39: 384.2471389 | AD39: 0 | AF39: 0 | AH39: 0 | AI39: 0 | AJ39: 0 | AL39: 425.1134021 | AM39: 308.1443299 | AN39: 290.5360825 | AO39: 0.2 | AP39: 204.7587629 | AU39: 0.04 | AV39: 0 | AX39: 99832.0059 | BD39: 0 | BE39: 99832 | BF39: 95250 | BG39: 4582 | BI39: 0.04810498688 | BK39: 0.1 | BL39: 0.07731958763 | BM39: 0.05870445344 | BN39: 0.07867468036 | BP39: 0.1 | BQ39: 0.02577319588 | BR39: 0 | BS39: 0.04192439863
A40: Ravensdale Infant and Nursery School | B40: E205401 | C40: 2462 | D40: DE3 9HE | E40: Mickleover | F40: 988 | G40: 29640 | H40: 10140 | I40: 8400 | J40: 7920 | K40: 26460 | L40: 3180 | M40: 26460 | N40: M | O40: 4.05 | P40: 107163 | R40: 608 | S40: 504 | T40: 475 | U40: 0.2 | V40: 317.4 | X40: 5320.85507 | Y40: 4407.808934 | Z40: 4155.934138 | AA40: 0.2 | AB40: 2776.919628 | AD40: 0 | AF40: 0 | AH40: 0 | AI40: 0 | AJ40: 0 | AL40: 1904.614446 | AM40: 1577.787115 | AN40: 1487.627851 | AO40: 0.2 | AP40: 994.0058824 | AU40: 0.04 | AV40: 0 | AX40: 111251.3255 | BD40: 0 | BE40: 111251 | BF40: 108638 | BG40: 2613 | BI40: 0.02405235737 | BK40: 0.7058823529 | BL40: 0.4693877551 | BM40: 0.3989473684 | BN40: 0.5247391588 | BP40: 0.1568627451 | BQ40: 0.08163265306 | BR40: 0.325 | BS40: 0.1878317994
A41: Redwood Primary School | B41: E205601 | C41: 2505 | D41: DE24 9PG | E41: Sinfin | F41: 1900 | G41: 57000 | H41: 13650 | I41: 10500 | J41: 9900 | K41: 34050 | L41: 22950 | M41: 34050 | N41: M | O41: 4.05 | P41: 137903 | R41: 4095 | S41: 3150 | T41: 2970 | U41: 0.2 | V41: 2043 | X41: 27107.7957 | Y41: 20852.15054 | Z41: 19660.59908 | AA41: 0.2 | AB41: 13524.10906 | AD41: 0 | AF41: 0 | AH41: 0 | AI41: 0 | AJ41: 0 | AL41: 5849.064039 | AM41: 4499.28003 | AN41: 4242.178314 | AO41: 0.2 | AP41: 2918.104477 | AU41: 0.04 | AV41: 0 | AX41: 156388.2135 | BD41: 0 | BE41: 156388 | BF41: 176631 | BG41: -20243 | BI41: -0.1146061563 | BK41: 1.530612245 | BL41: 1.689655172 | BM41: 2.737489879 | BN41: 1.985919099 | BP41: 0.3775510204 | BQ41: 0.4310344828 | BR41: 0.4769230769 | BS41: 0.42850286
A42: Reigate Primary School | B42: E205801 | C42: 2000 | D42: DE22 4EQ | E42: Mackworth | F42: 988 | G42: 29640 | H42: 4680 | I42: 3150 | J42: 2640 | K42: 10470 | L42: 19170 | M42: 10470 | N42: M | O42: 4.05 | P42: 42404 | R42: 1310 | S42: 882 | T42: 739 | U42: 0.2 | V42: 586.2 | X42: 4645.266279 | Y42: 3126.621534 | Z42: 2620.406619 | AA42: 0.2 | AB42: 2078.458886 | AD42: 0 | AF42: 0 | AH42: 0 | AI42: 0 | AJ42: 0 | AL42: 754.0116279 | AM42: 507.5078265 | AN42: 425.3398927 | AO42: 0.2 | AP42: 337.3718694 | AU42: 0.04 | AV42: 0 | AX42: 45406.03076 | BD42: 0 | BE42: 45406 | BF42: 66512 | BG42: -21106 | BI42: -0.3173261968 | BK42: 1.093023256 | BL42: 1.125 | BM42: 0.7597115385 | BN42: 0.9925782648 | BP42: 0.2093023256 | BQ42: 0.1875 | BR42: 0.08653846154 | BS42: 0.1611135957
A43: Roe Farm Primary School | B43: E206001 | C43: 2001 | D43: DE21 4HG | E43: Derwent | F43: 1976 | G43: 59280 | H43: 12090 | I43: 6720 | J43: 6435 | K43: 25245 | L43: 34035 | M43: 25245 | N43: M | O43: 4.05 | P43: 102242 | R43: 3264 | S43: 1814 | T43: 1737 | U43: 0.2 | V43: 1363 | X43: 26678.70511 | Y43: 14828.85842 | Z43: 14199.95594 | AA43: 0.2 | AB43: 11141.50389 | AD43: 0 | AF43: 0 | AH43: 0 | AI43: 0 | AJ43: 0 | AL43: 384.023004 | AM43: 213.4519923 | AN43: 204.3993409 | AO43: 0.2 | AP43: 160.3748674 | AU43: 0.04 | AV43: 0 | AX43: 114906.8788 | BD43: 0 | BE43: 114907 | BF43: 133247 | BG43: -18340 | BI43: -0.1376391213 | BK43: 2.000511509 | BL43: 2.12195122 | BM43: 2.497563353 | BN43: 2.20667536 | BP43: 0.01534526854 | BQ43: 0.0243902439 | BR43: 0.05555555556 | BS43: 0.03176368933
A44: Rosehill Infant and Nursery School | B44: E206101 | C44: 2429 | D44: DE23 8FQ | E44: Arboretum | F44: 1482 | G44: 44460 | H44: 10530 | I44: 5250 | J44: 5280 | K44: 21060 | L44: 23400 | M44: 21060 | N44: M | O44: 4.05 | P44: 85293 | R44: 2317 | S44: 1155 | T44: 1162 | U44: 0.2 | V44: 926.8 | X44: 29177.88473 | Y44: 14547.37843 | Z44: 14630.5063 | AA44: 0.2 | AB44: 11671.15389 | AD44: 0 | AF44: 0 | AH44: 0 | AI44: 0 | AJ44: 0 | AL44: 8133.025258 | AM44: 4054.927123 | AN44: 4078.098135 | AO44: 0.2 | AP44: 3253.210103 | AU44: 0.04 | AV44: 0 | AX44: 101144.164 | BD44: 0 | BE44: 101144 | BF44: 104703 | BG44: -3559 | BI44: -0.03399138516 | BK44: 2.733840304 | BL44: 3 | BM44: 2.578947368 | BN44: 2.770929224 | BP44: 0.7718631179 | BQ44: 0.8285714286 | BR44: 0.7166666667 | BS44: 0.772367071
A45: Shelton Infant School | B45: E206201 | C45: 2444 | D45: DE24 9EJ | E45: Chellaston | F45: 988 | G45: 29640 | H45: 10140 | I45: 10920 | J45: 8580 | K45: 29640 | L45: 0 | M45: 29640 | N45: M | O45: 4.05 | P45: 120042 | R45: 913 | S45: 983 | T45: 772 | U45: 0.2 | V45: 533.6 | X45: 17550.83295 | Y45: 18900.89703 | Z45: 14850.70481 | AA45: 0.2 | AB45: 10260.48696 | AD45: 0 | AF45: 0 | AH45: 0 | AI45: 0 | AJ45: 0 | AL45: 1277.391304 | AM45: 1375.652174 | AN45: 1080.869565 | AO45: 0.2 | AP45: 746.7826087 | AU45: 0.04 | AV45: 0 | AX45: 131582.8696 | BD45: 0 | BE45: 131583 | BF45: 118416 | BG45: 13167 | BI45: 0.1111927442 | BK45: 1.711538462 | BL45: 1.956521739 | BM45: 1.524493927 | BN45: 1.730851376 | BP45: 0.1153846154 | BQ45: 0.1086956522 | BR45: 0.1538461538 | BS45: 0.1259754738
A46: Cotton's Farm Primary School | B46: E206501 | C46: 2430 | D46: DE24 9HG | E46: Sinfin | F46: 988 | G46: 29640 | H46: 2925 | I46: 3150 | J46: 1650 | K46: 7725 | L46: 21915 | M46: 7725 | N46: M | O46: 4.05 | P46: 31286 | R46: 878 | S46: 945 | T46: 495 | U46: 0.2 | V46: 463.6 | X46: 11589.32343 | Y46: 12480.80985 | Z46: 6537.567063 | AA46: 0.2 | AB46: 6121.540068 | AD46: 0 | AF46: 0 | AH46: 0 | AI46: 0 | AJ46: 0 | AL46: 2295.967742 | AM46: 2472.580645 | AN46: 1295.16129 | AO46: 0.2 | AP46: 1212.741935 | AU46: 0.04 | AV46: 0 | AX46: 39083.882 | BD46: 0 | BE46: 39084 | BF46: 24465 | BG46: 14619 | BI46: 0.5975475169 | BK46: 2.758064516 | BL46: 3 | BM46: 6.128421053 | BN46: 3.962161856 | BP46: 0.3548387097 | BQ46: 0.8 | BR46: 1.2 | BS46: 0.7849462366
A47: St Alban's Catholic Primary School | B47: E206701 | C47: 3543 | D47: DE21 6NU | E47: Chaddesden | F47: 1482 | G47: 44460 | H47: 8385 | I47: 4830 | J47: 4290 | K47: 17505 | L47: 26955 | M47: 17505 | N47: M | O47: 4.05 | P47: 70895 | R47: 1174 | S47: 676 | T47: 601 | U47: 0.2 | V47: 490.2 | X47: 10221.27341 | Y47: 5887.746043 | Z47: 5229.488722 | AA47: 0.2 | AB47: 4267.701635 | AD47: 0 | AF47: 0 | AH47: 0 | AI47: 0 | AJ47: 0 | AL47: 2592.797619 | AM47: 1493.525641 | AN47: 1326.547619 | AO47: 0.2 | AP47: 1082.574176 | AU47: 0.04 | AV47: 0 | AX47: 76735.47581 | BD47: 0 | BE47: 76735 | BF47: 72213 | BG47: 4522 | BI47: 0.06262030382 | BK47: 0.8636363636 | BL47: 1.038461538 | BM47: 1.754887218 | BN47: 1.21899504 | BP47: 0.25 | BQ47: 0.1538461538 | BR47: 0.5238095238 | BS47: 0.3092185592
A48: St Chad's Church of England (Controlled) Nursery and Infant School | B48: E206801 | C48: 3158 | D48: DE23 6WR | E48: Arboretum | F48: 1482 | G48: 44460 | H48: 9165 | I48: 6300 | J48: 6270 | K48: 21735 | L48: 22725 | M48: 21735 | N48: M | O48: 4.05 | P48: 88027 | R48: 2016 | S48: 1386 | T48: 1379 | U48: 0.2 | V48: 956.2 | X48: 27308.91237 | Y48: 18772.08379 | Z48: 18682.69292 | AA48: 0.2 | AB48: 12952.73782 | AD48: 0 | AF48: 0 | AH48: 0 | AI48: 0 | AJ48: 0 | AL48: 9552.085366 | AM48: 6566.081594 | AN48: 6534.814539 | AO48: 0.2 | AP48: 4530.5963 | AU48: 0.04 | AV48: 0 | AX48: 106466.5341 | BD48: 0 | BE48: 106467 | BF48: 113520 | BG48: -7053 | BI48: -0.06213002114 | BK48: 2.132352941 | BL48: 2.903225806 | BM48: 3.903508772 | BN48: 2.97969584 | BP48: 0.8970588235 | BQ48: 0.9677419355 | BR48: 1.261904762 | BS48: 1.042235174
A49: St James' Church of England (Aided) Infant School and Nursery | B49: E207001 | C49: 3526 | D49: DE23 8EG | E49: Arboretum | F49: 760 | G49: 22800 | H49: 6240 | I49: 2730 | J49: 4455 | K49: 13425 | L49: 9375 | M49: 13425 | N49: M | O49: 4.05 | P49: 54371 | R49: 1373 | S49: 601 | T49: 980 | U49: 0.2 | V49: 590.8 | X49: 18969.14701 | Y49: 8299.001815 | Z49: 13542.87659 | AA49: 0.2 | AB49: 8162.205082 | AD49: 0 | AF49: 0 | AH49: 0 | AI49: 0 | AJ49: 0 | AL49: 4685.37931 | AM49: 2049.853448 | AN49: 3345.090517 | AO49: 0.2 | AP49: 2016.064655 | AU49: 0.04 | AV49: 0 | AX49: 65140.06974 | BD49: 0 | BE49: 65140 | BF49: 49180 | BG49: 15960 | BI49: 0.3245221635 | BK49: 3 | BL49: 3 | BM49: 3.119782214 | BN49: 3.039927405 | BP49: 0.8 | BQ49: 0.625 | BR49: 0.8275862069 | BS49: 0.750862069
A50: St Mary's Catholic Primary School | B50: E207401 | C50: 3528 | D50: DE22 1AU | E50: Darley | F50: 1976 | G50: 59280 | H50: 7215 | I50: 4200 | J50: 4290 | K50: 15705 | L50: 43575 | M50: 15705 | N50: M | O50: 4.05 | P50: 63605 | R50: 866 | S50: 504 | T50: 515 | U50: 0.2 | V50: 377 | X50: 8819.043632 | Y50: 5133.746813 | Z50: 5243.755673 | AA50: 0.2 | AB50: 3839.309224 | AD50: 0 | AF50: 0 | AH50: 0 | AI50: 0 | AJ50: 0 | AL50: 3362.684886 | AM50: 1957.488083 | AN50: 1999.434257 | AO50: 0.2 | AP50: 1463.921445 | AU50: 0.04 | AV50: 0 | AX50: 69285.23067 | BD50: 0 | BE50: 69285 | BF50: 66405 | BG50: 2880 | BI50: 0.04337022815 | BK50: 0.9020618557 | BL50: 1.088709677 | BM50: 1.676190476 | BN50: 1.22232067 | BP50: 0.4381443299 | BQ50: 0.4838709677 | BR50: 0.4761904762 | BS50: 0.4660685913
A51: Stonehill Nursery | B51: E100601 | C51: 1010 | D51: DE23 6TJ | E51: Arboretum | F51: 1520 | G51: 45600 | H51: 12480 | I51: 7350 | J51: 6600 | K51: 26430 | L51: 19170 | M51: 26430 | N51: S | O51: 4.05 | P51: 107042 | R51: 2746 | S51: 1617 | T51: 1452 | U51: 0.2 | V51: 1163 | X51: 32393.63988 | Y51: 19077.98503 | Z51: 17131.25186 | AA51: 0.2 | AB51: 13720.57535 | AD51: 0 | AF51: 0 | AH51: 1 | AI51: 100000 | AJ51: 100000 | AL51: 9731.576547 | AM51: 5731.337149 | AN51: 5146.506828 | AO51: 0.2 | AP51: 4121.884105 | AU51: 0.04 | AV51: 0 | AX51: 226047.4595 | BB51: =BB8*M51 -> 40966.5 | BD51: 4596.24 | BE51: 271610 | BF51: 309643 | BG51: -38033 | BI51: -0.1228285477 | BK51: 1.611940299 | BL51: 2.510638298 | BM51: 3.664354067 | BN51: 2.595644221 | BP51: 0.2537313433 | BQ51: 0.7446808511 | BR51: 1.340909091 | BS51: 0.7797737618
A52: Village Primary School | B52: E204501 | C52: 3546 | D52: DE23 8DF | E52: Normanton | F52: 1482 | G52: 44460 | H52: 15210 | I52: 10500 | J52: 8250 | K52: 33960 | L52: 10500 | M52: 33960 | N52: M | O52: 4.05 | P52: 137538 | R52: 3346 | S52: 2310 | T52: 1815 | U52: 0.2 | V52: 1494.2 | X52: 37671.67368 | Y52: 26006.08637 | Z52: 20433.35358 | AA52: 0.2 | AB52: 16822.22273 | AD52: 0 | AF52: 0 | AH52: 0 | AI52: 0 | AJ52: 0 | AL52: 7928.084211 | AM52: 5473.036437 | AN52: 4300.242915 | AO52: 0.2 | AP52: 3540.272713 | AU52: 0.04 | AV52: 0 | AX52: 159394.6954 | BD52: 0 | BE52: 159395 | BF52: 160239 | BG52: -844 | BI52: -0.005267132221 | BK52: 2.626666667 | BL52: 2.596491228 | BM52: 2.207152497 | BN52: 2.47677013 | BP52: 0.5866666667 | BQ52: 0.4385964912 | BR52: 0.5384615385 | BS52: 0.5212415655
A53: Walbrook Nursery | B53: E100701 | C53: 1009 | D53: DE23 8QJ | E53: Normanton | F53: 1520 | G53: 45600 | H53: 15600 | I53: 15960 | J53: 12540 | K53: 44100 | L53: 1500 | M53: 44100 | N53: S | O53: 4.05 | P53: 178605 | R53: 3432 | S53: 3511 | T53: 2759 | U53: 0.2 | V53: 1940.4 | X53: 42333.49125 | Y53: 43310.41797 | Z53: 34029.61412 | AA53: 0.2 | AB53: 23934.70467 | AD53: 0 | AF53: 0 | AH53: 1 | AI53: 100000 | AJ53: 100000 | AL53: 6714.98565 | AM53: 6869.946857 | AN53: 5397.815388 | AO53: 0.2 | AP53: 3796.549579 | AU53: 0.04 | AV53: 0 | AX53: 308276.6542 | BB53: =BB8*M53 -> 68355 | BD53: 9018.94 | BE53: 385651 | BF53: 381963 | BG53: 3688 | BI53: 0.009655385469 | BK53: 2.523255814 | BL53: 2.830508475 | BM53: 2.787291722 | BN53: 2.713685337 | BP53: 0.08139534884 | BQ53: 0.7627118644 | BR53: 0.4472361809 | BS53: 0.430447798
A54: Walter Evans Church of England (Aided) Primary School | B54: E207801 | C54: 3530 | D54: DE22 1EF | E54: Darley | F54: 988 | G54: 29640 | H54: 7410 | I54: 6300 | J54: 6600 | K54: 20310 | L54: 9330 | M54: 20310 | N54: M | O54: 4.05 | P54: 82256 | R54: 889 | S54: 756 | T54: 792 | U54: 0.2 | V54: 487.4 | X54: 872.4019608 | Y54: 741.7182663 | Z54: 777.0381837 | AA54: 0.2 | AB54: 478.2316821 | AD54: 0 | AF54: 0 | AH54: 0 | AI54: 0 | AJ54: 0 | AL54: 321.7226891 | AM54: 273.5294118 | AN54: 286.5546218 | AO54: 0.2 | AP54: 176.3613445 | AU54: 0.04 | AV54: 0 | AX54: 83397.99303 | BD54: 0 | BE54: 83398 | BF54: 92529 | BG54: -9131 | BI54: -0.09868257519 | BK54: 0 | BL54: 0.25 | BM54: 0.1031991744 | BN54: 0.1177330581 | BP54: 0.01960784314 | BQ54: 0.07142857143 | BR54: 0.03921568627 | BS54: 0.04341736695
A55: Whitecross Nursery | B55: E100801 | C55: 1015 | D55: DE1 3PJ | E55: Darley | F55: 1520 | G55: 45600 | H55: 14430 | I55: 16800 | J55: 13200 | K55: 44430 | L55: 1170 | M55: 44430 | N55: S | O55: 4.05 | P55: 179942 | R55: 1732 | S55: 2016 | T55: 1584 | U55: 0.2 | V55: 1066.4 | X55: 3602.032802 | Y55: 4193.634863 | Z55: 3294.998821 | AA55: 0.2 | AB55: 2218.133297 | AD55: 0 | AF55: 0 | AH55: 1 | AI55: 100000 | AJ55: 100000 | AL55: 130 | AM55: 151.3513514 | AN55: 118.9189189 | AO55: 0.2 | AP55: 80.05405405 | AU55: 0.04 | AV55: 0 | AX55: 283306.5874 | BB55: =BB8*M55 -> 68866.5 | BD55: 5081.32 | BE55: 357254 | BF55: 372267 | BG55: -15013 | BI55: -0.04032858137 | BK55: 0.2804532578 | BL55: 0.09189189189 | BM55: 0.3765182186 | BN55: 0.2496211228 | BP55: 0 | BQ55: 0.02702702703 | BR55: 0 | BS55: 0.009009009009
A57: Maintained Subtotal | F57: =SUM(F9:F56) -> 62358 | G57: 1870740 | H57: 478936 | I57: 371088 | J57: 342884 | K57: 1192908 | M57: =SUM(M9:M56) -> 1192908 | P57: =SUM(P9:P56) -> 4831282 | R57: =SUM(R9:R56) -> 96953 | S57: =SUM(S9:S56) -> 74126 | T57: =SUM(T9:T56) -> 68846 | V57: =SUM(V9:V56) -> 47985 | X57: =SUM(X9:X56) -> 846921.0269 | Y57: =SUM(Y9:Y56) -> 641006.5885 | Z57: =SUM(Z9:Z56) -> 591743.3047 | AB57: =SUM(AB9:AB56) -> 415934.184 | AD57: =SUM(AD9:AD56) -> 0 | AF57: =SUM(AF9:AF56) -> 0 | AG57: =SUM(AG9:AG56) -> 0 | AH57: =SUM(AH9:AH56) -> 7 | AJ57: =SUM(AJ9:AJ56) -> 700000 | AL57: =SUM(AL9:AL56) -> 139832.3747 | AM57: =SUM(AM9:AM56) -> 103827.497 | AN57: =SUM(AN9:AN56) -> 95271.1075 | AP57: =SUM(AP9:AP56) -> 67786.19583 | AR57: =SUM(AR9:AR56) -> 0 | AS57: =SUM(AS9:AS56) -> 0 | AT57: =SUM(AT9:AT56) -> 0 | AV57: =SUM(AV9:AV56) -> 0 | AX57: =SUM(AX9:AX56) -> 6062987.38 | AZ57: =SUM(AZ9:AZ56) -> 0 | BA57: 0 | BB57: 413222.25 | BC57: 0 | BD57: 61663.3 | BE57: 6537871 | BF57: 6838263 | BG57: -300392
F58: Academy | H58: =H16+H18+H29+H54 -> 34125 | I58: =I16+I18+I29+I54 -> 23310 | J58: =J16+J18+J29+J54 -> 22110
F59: Maintained | H59: =H57-H58 -> 444811 | I59: =I57-I58 -> 347778 | J59: =J57-J58 -> 320774
A60: PVI Nurseries | C60: OFSTED ID | D60: Postcode | E60: Ward | F60: Max No of Places | G60: Max No of Hours | H60: =H7 -> Summer | I60: =I7 -> Autumn | J60: =$J7 -> Spring | K60: Total Hours | L60: Hour Check | M60: FORMULA HOURS | N60: Setting Type | O60: Type Hrly Rate | P60: Hrly Rate Funding | R60: =$H60 -> Summer | S60: =$I60 -> Autumn | T60: =$J60 -> Spring | U60: Unit Cost | V60: Total Deprivation Funding | X60: =$H60 -> Summer | Y60: =$I60 -> Autumn | Z60: =$J60 -> Spring | AA60: Unit Cost | AB60: Total Deprivation Funding | AD60: Total ERS Funding | AF60: Total TA Funding | AH60: Number per Setting | AI60: Amount | AJ60: Total Graduate Leader Funding | AL60: =$H60 -> Summer | AM60: Actual Autumn | AN60: =$J60 -> Spring | AO60: Unit Cost | AP60: Total EAL Funding | AR60: =$H60 -> Summer | AS60: Actual Autumn | AT60: =$J60 -> Spring | AU60: Unit Cost | AV60: Total DLA Funding | AX60: Total Single Formula Budget | BE60: Estimated Budget 2017-18 | BF60: Nov. 2016 Revised Forecast | BG60: Variance
A62: Ace Nursery | C62: 206189 | D62: DE23 8DH | E62: Normanton | H62: 7020 | I62: 5250 | J62: 5280 | K62: =SUM(H62:J62) -> 17550 | M62: =IF(L62<0,G62,K62) -> 17550 | N62: D | O62: =$O$9 -> 4.05 | P62: =ROUND(O62*M62,0) -> 71078 | R62: 1544 | S62: 1155 | T62: 1162 | U62: =$U$9 -> 0.2 | V62: =SUM(R62+S62+T62)*U62 -> 772.2 | X62: =H62*$BN62 -> 15076.09431 | Y62: =I62*$BN62 -> 11274.85685 | Z62: =J62*$BN62 -> 11339.28461 | AA62: =$AA$9 -> 0.2 | AB62: =SUM(X62+Y62+Z62)*AA62 -> 7538.047153 | AJ62: =AI62*AH62 -> 0 | AL62: =H62*$BS62 -> 2148.106413 | AM62: =I62*$BS62 -> 1606.489839 | AN62: =J62*$BS62 -> 1615.669781 | AO62: =AO$9 -> 0.2 | AP62: =SUM(AL62:AN62)*AO62 -> 1074.053207 | AU62: =$AU$9 -> 0.04 | AV62: =(AR62+AS62+AT62)*AU62 -> 0 | AX62: =P62+AB62+AD62+AF62+AJ62+AP62+AV62+V62 -> 80462.30036 | BE62: =ROUND((SUM(AZ62:BD62)+AX62),0) -> 80462 | BF62: 84054 | BG62: =BE62-BF62 -> -3592 | BI62: =BG62/BF62 -> -0.04273443263 | BK62: 1.923205342 | BL62: 2.011406844 | BM62: 2.508163158 | BN62: 2.147591781 | BP62: 0.2954924875 | BQ62: 0.1609632446 | BR62: 0.4615384615 | BS62: 0.3059980645
A63: An-Noor Nursery | C63: EY362920 | D63: DE23 8FB | E63: Arboretum | H63: 4875 | I63: 1680 | J63: 2640 | K63: 9195 | M63: 9195 | N63: D | O63: 4.05 | P63: 37240 | R63: 1073 | S63: 370 | T63: 581 | U63: 0.2 | V63: 404.8 | X63: 13603.76794 | Y63: 4688.067719 | Z63: 7366.963559 | AA63: 0.2 | AB63: 5131.759843 | AJ63: 0 | AL63: 4130.208333 | AM63: 1423.333333 | AN63: 2236.666667 | AO63: 0.2 | AP63: 1558.041667 | AU63: 0.04 | AV63: 0 | AX63: 44334.60151 | BE63: 44335 | BF63: 48097 | BG63: -3762 | BI63: -0.07821693661 | BK63: 2.708333333 | BL63: 3 | BM63: 2.663216165 | BN63: 2.7905165 | BP63: 0.7916666667 | BQ63: 1 | BR63: 0.75 | BS63: 0.8472222222
A64: Barker, Debra | C64: EY484759 | D64: DE22 4AJ | E64: Mackworth | H64: 780 | I64: 420 | J64: 330 | K64: 1530 | M64: 1530 | N64: P | O64: 4.05 | P64: 6197 | R64: 218 | S64: 118 | T64: 92 | U64: 0.2 | V64: 85.6 | X64: 260 | Y64: 140 | Z64: 110 | AA64: 0.2 | AB64: 102 | AJ64: 0 | AL64: 0 | AM64: 0 | AN64: 0 | AO64: 0.2 | AP64: 0 | AU64: 0.04 | AV64: 0 | AX64: 6384.6 | BE64: 6385 | BF64: 739 | BG64: 5646 | BI64: 7.640054127 | BK64: 1 | BL64: 0 | BM64: 0 | BN64: 0.3333333333 | BP64: 0 | BQ64: 0 | BR64: 0 | BS64: 0
A65: Becket Sure Start Children's Centre | C65: EY380753 | D65: DE22 3WR | E65: Abbey | H65: 6630 | I65: 4200 | J65: 5115 | K65: 15945 | M65: 15945 | N65: D | O65: 4.05 | P65: 64577 | R65: 1459 | S65: 924 | T65: 1125 | U65: 0.2 | V65: 701.6 | X65: 11398.15863 | Y65: 7220.552981 | Z65: 8793.602023 | AA65: 0.2 | AB65: 5482.462728 | AJ65: 0 | AL65: 828.2038023 | AM65: 524.6539924 | AN65: 638.9536122 | AO65: 0.2 | AP65: 398.3622814 | AU65: 0.04 | AV65: 0 | AX65: 71159.42501 | BE65: 71159 | BF65: 60307 | BG65: 10852 | BI65: 0.1799459433 | BK65: 2.48 | BL65: 1.958174905 | BM65: 0.7193629386 | BN65: 1.719179281 | BP65: 0.12 | BQ65: 0.2547528517 | BR65: 0 | BS65: 0.1249176172
A66: Best Start Sinfin | C66: EY467568 | D66: DE24 9HW | E66: Sinfin | H66: 4680 | I66: 2520 | J66: 2970 | K66: 10170 | M66: 10170 | N66: D | O66: 4.05 | P66: 41189 | R66: 1404 | S66: 756 | T66: 891 | U66: 0.2 | V66: 610.2 | X66: 6246.850835 | Y66: 3363.688911 | Z66: 3964.347645 | AA66: 0.2 | AB66: 2714.977478 | AJ66: 0 | AL66: 1084.034043 | AM66: 583.7106383 | AN66: 687.9446809 | AO66: 0.2 | AP66: 471.1378723 | AU66: 0.04 | AV66: 0 | AX66: 44985.31535 | BE66: 44985 | BF66: 34789 | BG66: 10196 | BI66: 0.2930811463 | BK66: 2.180851064 | BL66: 1.373333333 | BM66: 0.4502071637 | BN66: 1.334797187 | BP66: 0.414893617 | BQ66: 0.28 | BR66: 0 | BS66: 0.2316312057
A67: Bizzy Kidz | C67: EY450983 | D67: DE23 6AP | E67: Abbey | H67: 16380 | I67: 24780 | J67: 24420 | K67: 65580 | M67: 65580 | N67: D | O67: 4.05 | P67: 265599 | R67: 3604 | S67: 5452 | T67: 5372 | U67: 0.2 | V67: 2885.6 | X67: 15570.20899 | Y67: 23554.93155 | Z67: 23212.72916 | AA67: 0.2 | AB67: 12467.57394 | AJ67: 0 | AL67: 549.0647157 | AM67: 830.6363648 | AN67: 818.5690084 | AO67: 0.2 | AP67: 439.6540178 | AU67: 0.04 | AV67: 0 | AX67: 281391.828 | BE67: 281392 | BF67: 148798 | BG67: 132594 | BI67: 0.8911006868 | BK67: 1.149637074 | BL67: 1.335947712 | BM67: 0.3661018421 | BN67: 0.9505622096 | BP67: 0.04690117253 | BQ67: 0.05032679739 | BR67: 0.003333333333 | BS67: 0.03352043442
A68: Boulton Lane Park Pre-School Playgroup | C68: 206124 | D68: DE24 0BD | E68: Boulton | H68: 2340 | I68: 1470 | J68: 1155 | K68: 4965 | M68: 4965 | N68: P | O68: 4.05 | P68: 20108 | R68: 585 | S68: 368 | T68: 289 | U68: 0.2 | V68: 248.4 | X68: 2313.601533 | Y68: 1453.416347 | Z68: 1141.969987 | AA68: 0.2 | AB68: 981.7975734 | AJ68: 0 | AL68: 0 | AM68: 0 | AN68: 0 | AO68: 0.2 | AP68: 0 | AU68: 0.04 | AV68: 0 | AX68: 21338.19757 | BE68: 21338 | BF68: 13603 | BG68: 7735 | BI68: 0.5686245681 | BK68: 1.092592593 | BL68: 1.873563218 | BM68: 0 | BN68: 0.9887186037 | BP68: 0 | BQ68: 0 | BR68: 0 | BS68: 0
A69: Bramble Brook Pre-School Playgroup | C69: EY282068 | D69: DE3 9HD | E69: Mickleover | H69: 2925 | I69: 1680 | J69: 1980 | K69: 6585 | M69: 6585 | N69: P | O69: 4.05 | P69: 26669 | R69: 176 | S69: 101 | T69: 119 | U69: 0.2 | V69: 79.2 | X69: 661.4613981 | Y69: 379.9162902 | Z69: 447.7584849 | AA69: 0.2 | AB69: 297.8272347 | AJ69: 0 | AL69: 116.015625 | AM69: 66.63461538 | AN69: 78.53365385 | AO69: 0.2 | AP69: 52.23677885 | AU69: 0.04 | AV69: 0 | AX69: 27098.26401 | BE69: 27098 | BF69: 33607 | BG69: -6509 | BI69: -0.1936798881 | BK69: 0.165625 | BL69: 0.3605769231 | BM69: 0.1522200237 | BN69: 0.2261406489 | BP69: 0.046875 | BQ69: 0.07211538462 | BR69: 0 | BS69: 0.03966346154
A70: Brocklehurst Ann Christine | C70: 205852 | D70: DE3 9AS | E70: Littleover | H70: 0 | I70: 210 | J70: 165 | K70: 375 | M70: 375 | N70: D | O70: 4.05 | P70: 1519 | R70: 0 | S70: 15 | T70: 12 | U70: 0.2 | V70: 5.4 | X70: 0 | Y70: 0 | Z70: 0 | AA70: 0.2 | AB70: 0 | AJ70: 0 | AL70: 0 | AM70: 0 | AN70: 0 | AO70: 0.2 | AP70: 0 | AU70: 0.04 | AV70: 0 | AX70: 1524.4 | BE70: 1524 | BF70: 1522 | BG70: 2 | BI70: 0.001314060447 | BK70: 0 | BL70: 0 | BM70: 0 | BN70: 0 | BP70: 0 | BQ70: 0 | BR70: 0 | BS70: 0
A71: Busy Bees Pre-School | C71: 206126 | D71: DE22 2HE | E71: Allestree | H71: 5850 | I71: 5040 | J71: 4290 | K71: 15180 | M71: 15180 | N71: P | O71: 4.05 | P71: 61479 | R71: 176 | S71: 151 | T71: 129 | U71: 0.2 | V71: 91.2 | X71: 824.9023195 | Y71: 710.6850753 | Z71: 604.9283676 | AA71: 0.2 | AB71: 428.1031525 | AJ71: 0 | AL71: 0 | AM71: 0 | AN71: 0 | AO71: 0.2 | AP71: 0 | AU71: 0.04 | AV71: 0 | AX71: 61998.30315 | BE71: 61998 | BF71: 74389 | BG71: -12391 | BI71: -0.1665703263 | BK71: 0.08658008658 | BL71: 0.1838235294 | BM71: 0.1526232145 | BN71: 0.1410089435 | BP71: 0 | BQ71: 0 | BR71: 0 | BS71: 0
A72: Busy Bees-Derby, Heatherton | C72: 206111 | D72: DE23 3TZ | E72: Littleover | H72: 9750 | I72: 6300 | J72: 6270 | K72: 22320 | M72: 22320 | N72: D | O72: 4.05 | P72: 90396 | R72: 683 | S72: 441 | T72: 439 | U72: 0.2 | V72: 312.6 | X72: 2852.078414 | Y72: 1842.881437 | Z72: 1834.105811 | AA72: 0.2 | AB72: 1305.813132 | AJ72: 0 | AL72: 120.3703704 | AM72: 77.77777778 | AN72: 77.40740741 | AO72: 0.2 | AP72: 55.11111111 | AU72: 0.04 | AV72: 0 | AX72: 92069.52424 | BE72: 92070 | BF72: 69247 | BG72: 22823 | BI72: 0.3295882854 | BK72: 0.1447028424 | BL72: 0.4895833333 | BM72: 0.2432764133 | BN72: 0.292520863 | BP72: 0 | BQ72: 0 | BR72: 0.03703703704 | BS72: 0.01234567901
A73: Carlton Private Day Nursery | C73: 206091 | D73: DE22 1GQ | E73: Allestree | H73: 6630 | I73: 4200 | J73: 3960 | K73: 14790 | M73: 14790 | N73: D | O73: 4.05 | P73: 59900 | R73: 199 | S73: 126 | T73: 119 | U73: 0.2 | V73: 88.8 | X73: 1889.205509 | Y73: 1196.781771 | Z73: 1128.394241 | AA73: 0.2 | AB73: 842.8763041 | AJ73: 0 | AL73: 145.357599 | AM73: 92.08173691 | AN73: 86.81992337 | AO73: 0.2 | AP73: 64.85185185 | AU73: 0.04 | AV73: 0 | AX73: 60896.52816 | BE73: 60897 | BF73: 62468 | BG73: -1571 | BI73: -0.02514887622 | BK73: 0.2298850575 | BL73: 0.45 | BM73: 0.1749590643 | BN73: 0.2849480406 | BP73: 0.02873563218 | BQ73: 0 | BR73: 0.03703703704 | BS73: 0.02192422307
A74: Childcare @ St James Centre | C74: EY396374 | D74: DE23 8LU | E74: Arboretum | H74: 7605 | I74: 6300 | J74: 6600 | K74: 20505 | M74: 20505 | N74: D | O74: 4.05 | P74: 83045 | R74: 1673 | S74: 1386 | T74: 1452 | U74: 0.2 | V74: 902.2 | X74: 24399.13995 | Y74: 20212.30528 | Z74: 21174.79601 | AA74: 0.2 | AB74: 13157.24825 | AJ74: 0 | AL74: 5155.675289 | AM74: 4270.973612 | AN74: 4474.353308 | AO74: 0.2 | AP74: 2780.200442 | AU74: 0.04 | AV74: 0 | AX74: 99884.64869 | BE74: 99885 | BF74: 47937 | BG74: 51948 | BI74: 1.08367232 | BK74: 2.732484076 | BL74: 2.857142857 | BM74: 4.035280344 | BN74: 3.208302426 | BP74: 0.5031847134 | BQ74: 0.4285714286 | BR74: 1.102040816 | BS74: 0.6779323194
A75: Chuckles Pre-School Playgroup | C75: 206128 | D75: DE24 0RU | E75: Alvaston | H75: 1170 | I75: 1470 | J75: 1155 | K75: 3795 | M75: 3795 | N75: P | O75: 4.05 | P75: 15370 | R75: 328 | S75: 412 | T75: 323 | U75: 0.2 | V75: 212.6 | X75: 1472.903421 | Y75: 1850.570965 | Z75: 1454.020044 | AA75: 0.2 | AB75: 955.498886 | AJ75: 0 | AL75: 0 | AM75: 0 | AN75: 0 | AO75: 0.2 | AP75: 0 | AU75: 0.04 | AV75: 0 | AX75: 16538.09889 | BE75: 16538 | BF75: 23968 | BG75: -7430 | BI75: -0.3099966622 | BK75: 1.533333333 | BL75: 0.5 | BM75: 1.743342105 | BN75: 1.258891813 | BP75: 0 | BQ75: 0 | BR75: 0 | BS75: 0
A76: Cliff Joyce, Mary | C76: EY264853 | D76: DE73 6NB | E76: Chellaston | H76: 390 | I76: 210 | J76: 165 | K76: 765 | M76: 765 | N76: P | O76: 4.05 | P76: 3098 | R76: 35 | S76: 19 | T76: 15 | U76: 0.2 | V76: 13.8 | X76: 0 | Y76: 0 | Z76: 0 | AA76: 0.2 | AB76: 0 | AJ76: 0 | AL76: 0 | AM76: 0 | AN76: 0 | AO76: 0.2 | AP76: 0 | AU76: 0.04 | AV76: 0 | AX76: 3111.8 | BE76: 3112 | BF76: 819 | BG76: 2293 | BI76: 2.7997558 | BK76: 0 | BL76: 0 | BM76: 0 | BN76: 0 | BP76: 0 | BQ76: 0 | BR76: 0 | BS76: 0
A77: Creative Steps Pre-School | C77: EY500051 | D77: DE22 3WH | E77: Abbey | H77: 1755 | I77: 3150 | J77: 2805 | K77: 7710 | M77: 7710 | N77: D | O77: 4.05 | P77: 31226 | R77: 386 | S77: 693 | T77: 617 | U77: 0.2 | V77: 339.2 | X77: 2952.857143 | Y77: 5300 | Z77: 4719.52381 | AA77: 0.2 | AB77: 2594.47619 | AJ77: 0 | AL77: 752.1428571 | AM77: 1350 | AN77: 1202.142857 | AO77: 0.2 | AP77: 660.8571429 | AU77: 0.04 | AV77: 0 | AX77: 34820.53333 | BE77: 34821 | BF77: 20123 | BG77: 14698 | BI77: 0.7304079909 | BK77: 2.714285714 | BL77: 2.333333333 | BM77: 0 | BN77: 1.682539683 | BP77: 0.2857142857 | BQ77: 1 | BR77: 0 | BS77: 0.4285714286
A78: Derby City Childminding Network - Amanda Reeves | C78: 205999 | D78: DE23 3YA | E78: Littleover | H78: 2145 | I78: 1413.3 | J78: 1110.45 | K78: 4668.75 | M78: 4668.75 | N78: P | O78: 4.05 | P78: 18908 | R78: 150 | S78: 99 | T78: 78 | U78: 0.2 | V78: 65.4 | X78: 2014.654962 | Y78: 1327.418116 | Z78: 1042.971377 | AA78: 0.2 | AB78: 877.008891 | AJ78: 0 | AL78: 170.2380952 | AM78: 112.1666667 | AN78: 88.13095238 | AO78: 0.2 | AP78: 74.10714286 | AU78: 0.04 | AV78: 0 | AX78: 19924.51603 | BE78: 19925 | BF78: 19798 | BG78: 127 | BI78: 0.006414789373 | BK78: 0.7142857143 | BL78: 1.428571429 | BM78: 0.6748421053 | BN78: 0.9392330827 | BP78: 0.2380952381 | BQ78: 0 | BR78: 0 | BS78: 0.07936507937
A79: Derby City Childminding Network - Andrea Louise Banyard | C79: EY398922 | D79: DE21 7HY | E79: Spondon | H79: 390 | I79: 420 | J79: 165 | K79: 975 | M79: 975 | N79: P | O79: 4.05 | P79: 3949 | R79: 47 | S79: 50 | T79: 20 | U79: 0.2 | V79: 23.4 | X79: 390 | Y79: 420 | Z79: 165 | AA79: 0.2 | AB79: 195 | AJ79: 0 | AL79: 0 | AM79: 0 | AN79: 0 | AO79: 0.2 | AP79: 0 | AU79: 0.04 | AV79: 0 | AX79: 4167.4 | BE79: 4167 | BF79: 3054 | BG79: 1113 | BI79: 0.3644400786 | BK79: 0 | BL79: 3 | BM79: 0 | BN79: 1 | BP79: 0 | BQ79: 0 | BR79: 0 | BS79: 0
A80: Derby City Childminding Network - Angela Jane Hatton | C80: 205921 | D80: DE21 4JQ | E80: Chaddesden | H80: 195 | I80: 210 | J80: 0 | K80: 405 | M80: 405 | N80: P | O80: 4.05 | P80: 1640 | R80: 27 | S80: 29 | T80: 0 | U80: 0.2 | V80: 11.2 | X80: 0 | Y80: 0 | Z80: 0 | AA80: 0.2 | AB80: 0 | AJ80: 0 | AL80: 0 | AM80: 0 | AN80: 0 | AO80: 0.2 | AP80: 0 | AU80: 0.04 | AV80: 0 | AX80: 1651.2 | BE80: 1651 | BF80: 702 | BG80: 949 | BI80: 1.351851852 | BK80: 0 | BL80: 0 | BM80: 0 | BN80: 0 | BP80: 0 | BQ80: 0 | BR80: 0 | BS80: 0
A81: Derby City Childminding Network - Bally Sanghera | C81: EY314105 | D81: DE24 3JP | E81: Sinfin | H81: 195 | I81: 210 | J81: 165 | K81: 570 | M81: 570 | N81: P | O81: 4.05 | P81: 2309 | R81: 59 | S81: 63 | T81: 50 | U81: 0.2 | V81: 34.4 | X81: 0 | Y81: 0 | Z81: 0 | AA81: 0.2 | AB81: 0 | AJ81: 0 | AL81: 0 | AM81: 0 | AN81: 0 | AO81: 0.2 | AP81: 0 | AU81: 0.04 | AV81: 0 | AX81: 2343.4 | BE81: 2343 | BF81: 702 | BG81: 1641 | BI81: 2.337606838 | BK81: 0 | BL81: 0 | BM81: 0 | BN81: 0 | BP81: 0 | BQ81: 0 | BR81: 0 | BS81: 0
A82: Derby City Childminding Network - Cheryll Lesley Haywood-Phillips | C82: EY251518 | D82: DE21 4RQ | E82: Oakwood | H82: 585 | I82: 210 | J82: 165 | K82: 960 | M82: 960 | N82: P | O82: 4.05 | P82: 3888 | R82: 41 | S82: 15 | T82: 12 | U82: 0.2 | V82: 13.6 | X82: 507 | Y82: 182 | Z82: 143 | AA82: 0.2 | AB82: 166.4 | AJ82: 0 | AL82: 0 | AM82: 0 | AN82: 0 | AO82: 0.2 | AP82: 0 | AU82: 0.04 | AV82: 0 | AX82: 4068 | BE82: 4068 | BF82: 6829 | BG82: -2761 | BI82: -0.4043051691 | BK82: 0.6 | BL82: 1.5 | BM82: 0.5 | BN82: 0.8666666667 | BP82: 0 | BQ82: 0 | BR82: 0 | BS82: 0
A83: Derby City Childminding Network - Claire Louise Winfield | C83: 206076 | D83: DE21 4TB | E83: Oakwood | H83: 195 | I83: 420 | J83: 165 | K83: 780 | M83: 780 | N83: P | O83: 4.05 | P83: 3159 | R83: 14 | S83: 29 | T83: 12 | U83: 0.2 | V83: 11 | X83: 0 | Y83: 0 | Z83: 0 | AA83: 0.2 | AB83: 0 | AJ83: 0 | AL83: 0 | AM83: 0 | AN83: 0 | AO83: 0.2 | AP83: 0 | AU83: 0.04 | AV83: 0 | AX83: 3170 | BE83: 3170 | BF83: 2107 | BG83: 1063 | BI83: 0.5045087803 | BK83: 0 | BL83: 0 | BM83: 0 | BN83: 0 | BP83: 0 | BQ83: 0 | BR83: 0 | BS83: 0
A84: Derby City Childminding Network - Claire-Ellen Oakley | C84: EY412756 | D84: DE21 2HZ | E84: Oakwood | H84: 507 | I84: 420 | J84: 0 | K84: 927 | M84: 927 | N84: P | O84: 4.05 | P84: 3754 | R84: 35 | S84: 29 | T84: 0 | U84: 0.2 | V84: 12.8 | X84: 0 | Y84: 0 | Z84: 0 | AA84: 0.2 | AB84: 0 | AJ84: 0 | AL84: 0 | AM84: 0 | AN84: 0 | AO84: 0.2 | AP84: 0 | AU84: 0.04 | AV84: 0 | AX84: 3766.8 | BE84: 3767 | BF84: 5139 | BG84: -1372 | BI84: -0.2669780113 | BK84: 0 | BL84: 0 | BM84: 0 | BN84: 0 | BP84: 0 | BQ84: 0 | BR84: 0 | BS84: 0
A85: Derby City Childminding Network - Debra Kydd | C85: EY336463 | D85: DE21 6JG | E85: Derwent | H85: 585 | I85: 420 | J85: 330 | K85: 1335 | M85: 1335 | N85: P | O85: 4.05 | P85: 5407 | R85: 158 | S85: 113 | T85: 89 | U85: 0.2 | V85: 72 | X85: 0 | Y85: 0 | Z85: 0 | AA85: 0.2 | AB85: 0 | AJ85: 0 | AL85: 0 | AM85: 0 | AN85: 0 | AO85: 0.2 | AP85: 0 | AU85: 0.04 | AV85: 0 | AX85: 5479 | BE85: 5479 | BF85: 702 | BG85: 4777 | BI85: 6.804843305 | BK85: 0 | BL85: 0 | BM85: 0 | BN85: 0 | BP85: 0 | BQ85: 0 | BR85: 0 | BS85: 0
A86: Derby City Childminding Network - Donna Gladwin | C86: 205919 | D86: DE21 7DF | E86: Spondon | H86: 585 | I86: 420 | J86: 330 | K86: 1335 | M86: 1335 | N86: P | O86: 4.05 | P86: 5407 | R86: 70 | S86: 50 | T86: 40 | U86: 0.2 | V86: 32 | X86: 877.5 | Y86: 630 | Z86: 495 | AA86: 0.2 | AB86: 400.5 | AJ86: 0 | AL86: 0 | AM86: 0 | AN86: 0 | AO86: 0.2 | AP86: 0 | AU86: 0.04 | AV86: 0 | AX86: 5839.5 | BE86: 5840 | BF86: 2875 | BG86: 2965 | BI86: 1.031304348 | BK86: 3 | BL86: 1.5 | BM86: 0 | BN86: 1.5 | BP86: 0 | BQ86: 0 | BR86: 0 | BS86: 0
A87: Derby City Childminding Network - Emilie Celine Astley | C87: EY477405 | D87: DE22 1DL | E87: Darley | H87: 195 | I87: 420 | J87: 0 | K87: 615 | M87: 615 | N87: P | O87: 4.05 | P87: 2491 | R87: 23 | S87: 50 | T87: 0 | U87: 0.2 | V87: 14.6 | X87: 191.1 | Y87: 411.6 | Z87: 0 | AA87: 0.2 | AB87: 120.54 | AJ87: 0 | AL87: 26.715 | AM87: 57.54 | AN87: 0 | AO87: 0.2 | AP87: 16.851 | AU87: 0.04 | AV87: 0 | AX87: 2642.991 | BE87: 2643 | BF87: 0 | BG87: 2643 | BK87: 0 | BL87: 0 | BM87: 0 | BN87: 0.98 | BP87: 0 | BQ87: 0 | BR87: 0 | BS87: 0.137
A88: Derby City Childminding Network - Fiona Meek | C88: EY401536 | D88: DE3 0QQ | E88: Mickleover | H88: 195 | I88: 210 | J88: 165 | K88: 570 | M88: 570 | N88: P | O88: 4.05 | P88: 2309 | R88: 12 | S88: 13 | T88: 10 | U88: 0.2 | V88: 7 | X88: 191.1 | Y88: 205.8 | Z88: 161.7 | AA88: 0.2 | AB88: 111.72 | AJ88: 0 | AL88: 26.715 | AM88: 28.77 | AN88: 22.605 | AO88: 0.2 | AP88: 15.618 | AU88: 0.04 | AV88: 0 | AX88: 2443.338 | BE88: 2443 | BF88: 0 | BG88: 2443 | BK88: 0 | BL88: 0 | BM88: 0 | BN88: 0.98 | BP88: 0 | BQ88: 0 | BR88: 0 | BS88: 0.137
A89: Derby City Childminding Network - Helen Marie Samuels | C89: 205849 | D89: DE21 4NE | E89: Chaddesden | H89: 390 | I89: 420 | J89: 330 | K89: 1140 | M89: 1140 | N89: P | O89: 4.05 | P89: 4617 | R89: 55 | S89: 59 | T89: 46 | U89: 0.2 | V89: 32 | X89: 97.5 | Y89: 105 | Z89: 82.5 | AA89: 0.2 | AB89: 57 | AJ89: 0 | AL89: 0 | AM89: 0 | AN89: 0 | AO89: 0.2 | AP89: 0 | AU89: 0.04 | AV89: 0 | AX89: 4706 | BE89: 4706 | BF89: 6633 | BG89: -1927 | BI89: -0.2905171114 | BK89: 0.25 | BL89: 0.5 | BM89: 0 | BN89: 0.25 | BP89: 0 | BQ89: 0 | BR89: 0 | BS89: 0
A90: Derby City Childminding Network - Hilary Gail Smyth | C90: EY407775 | D90: DE22 2NB | E90: Allestree | H90: 195 | I90: 210 | J90: 165 | K90: 570 | M90: 570 | N90: P | O90: 4.05 | P90: 2309 | R90: 6 | S90: 6 | T90: 5 | U90: 0.2 | V90: 3.4 | X90: 191.1 | Y90: 205.8 | Z90: 161.7 | AA90: 0.2 | AB90: 111.72 | AJ90: 0 | AL90: 26.715 | AM90: 28.77 | AN90: 22.605 | AO90: 0.2 | AP90: 15.618 | AU90: 0.04 | AV90: 0 | AX90: 2439.738 | BE90: 2440 | BF90: 0 | BG90: 2440 | BK90: 0 | BL90: 0 | BM90: 0 | BN90: 0.98 | BP90: 0 | BQ90: 0 | BR90: 0 | BS90: 0.137
A91: Derby City Childminding Network - Joanne Margaret Shakespeare | C91: EY369088 | D91: DE3 0PE | E91: Mickleover | H91: 390 | I91: 210 | J91: 165 | K91: 765 | M91: 765 | N91: P | O91: 4.05 | P91: 3098 | R91: 23 | S91: 13 | T91: 10 | U91: 0.2 | V91: 9.2 | X91: 455 | Y91: 245 | Z91: 192.5 | AA91: 0.2 | AB91: 178.5 | AJ91: 0 | AL91: 0 | AM91: 0 | AN91: 0 | AO91: 0.2 | AP91: 0 | AU91: 0.04 | AV91: 0 | AX91: 3285.7 | BE91: 3286 | BF91: 3091 | BG91: 195 | BI91: 0.06308637981 | BK91: 0.5 | BL91: 3 | BM91: 0 | BN91: 1.166666667 | BP91: 0 | BQ91: 0 | BR91: 0 | BS91: 0
A92: Derby City Childminding Network - Joanne Mycroft | C92: EY462623 | D92: DE21 6RZ | E92: Chaddesden | H92: 195 | I92: 420 | J92: 330 | K92: 945 | M92: 945 | N92: P | O92: 4.05 | P92: 3827 | R92: 27 | S92: 59 | T92: 46 | U92: 0.2 | V92: 26.4 | X92: 191.1 | Y92: 411.6 | Z92: 323.4 | AA92: 0.2 | AB92: 185.22 | AJ92: 0 | AL92: 26.715 | AM92: 57.54 | AN92: 45.21 | AO92: 0.2 | AP92: 25.893 | AU92: 0.04 | AV92: 0 | AX92: 4064.513 | BE92: 4065 | BF92: 0 | BG92: 4065 | BK92: 0 | BL92: 0 | BM92: 0 | BN92: 0.98 | BP92: 0 | BQ92: 0 | BR92: 0 | BS92: 0.137
A93: Derby City Childminding Network - Judith Deakin | C93: 205881 | D93: DE22 2NN | E93: Allestree | H93: 780 | I93: 420 | J93: 330 | K93: 1530 | M93: 1530 | N93: P | O93: 4.05 | P93: 6197 | R93: 23 | S93: 13 | T93: 10 | U93: 0.2 | V93: 9.2 | X93: 0 | Y93: 0 | Z93: 0 | AA93: 0.2 | AB93: 0 | AJ93: 0 | AL93: 0 | AM93: 0 | AN93: 0 | AO93: 0.2 | AP93: 0 | AU93: 0.04 | AV93: 0 | AX93: 6206.2 | BE93: 6206 | BF93: 6016 | BG93: 190 | BI93: 0.03158244681 | BK93: 0 | BL93: 0 | BM93: 0 | BN93: 0 | BP93: 0 | BQ93: 0 | BR93: 0 | BS93: 0
A94: Derby City Childminding Network - Kerry Jehane Derbyshire | C94: EY405755 | D94: DE24 0TE | E94: Boulton | H94: 195 | I94: 210 | J94: 165 | K94: =SUM(H94:J94) -> 570 | M94: =IF(L94<0,G94,K94) -> 570 | N94: P | O94: =$O$9 -> 4.05 | P94: =ROUND(O94*M94,0) -> 2309 | R94: 49 | S94: 53 | T94: 41 | U94: =$U$9 -> 0.2 | V94: =SUM(R94+S94+T94)*U94 -> 28.6 | X94: =H94*$BN94 -> 21.66666667 | Y94: =I94*$BN94 -> 23.33333333 | Z94: =J94*$BN94 -> 18.33333333 | AA94: =$AA$9 -> 0.2 | AB94: =SUM(X94+Y94+Z94)*AA94 -> 12.66666667 | AJ94: =AI94*AH94 -> 0 | AL94: =H94*$BS94 -> 0 | AM94: =I94*$BS94 -> 0 | AN94: =J94*$BS94 -> 0 | AO94: =AO$9 -> 0.2 | AP94: =SUM(AL94:AN94)*AO94 -> 0 | AU94: =$AU$9 -> 0.04 | AV94: =(AR94+AS94+AT94)*AU94 -> 0 | AX94: =P94+AB94+AD94+AF94+AJ94+AP94+AV94+V94 -> 2350.266667 | BE94: =ROUND((SUM(AZ94:BD94)+AX94),0) -> 2350 | BF94: 4211 | BG94: =BE94-BF94 -> -1861 | BI94: =BG94/BF94 -> -0.441937782 | BK94: 0.3333333333 | BL94: 0 | BM94: 0 | BN94: 0.1111111111 | BP94: 0 | BQ94: 0 | BR94: 0 | BS94: 0
A95: Derby City Childminding Network - Leanne Stevenson | C95: EY447579 | D95: DE24 3JP | E95: Sinfin | H95: 195 | I95: 210 | J95: 165 | K95: 570 | M95: 570 | N95: P | O95: 4.05 | P95: 2309 | R95: 59 | S95: 63 | T95: 50 | U95: 0.2 | V95: 34.4 | X95: 0 | Y95: 0 | Z95: 0 | AA95: 0.2 | AB95: 0 | AJ95: 0 | AL95: 0 | AM95: 0 | AN95: 0 | AO95: 0.2 | AP95: 0 | AU95: 0.04 | AV95: 0 | AX95: 2343.4 | BE95: 2343 | BF95: 702 | BG95: 1641 | BI95: 2.337606838 | BK95: 0 | BL95: 0 | BM95: 0 | BN95: 0 | BP95: 0 | BQ95: 0 | BR95: 0 | BS95: 0
A96: Derby City Childminding Network - Lorraine Duthie | C96: 205878 | D96: DE24 0GR | E96: Boulton | H96: 195 | I96: 630 | J96: 330 | K96: 1155 | M96: 1155 | N96: P | O96: 4.05 | P96: 4678 | R96: 49 | S96: 158 | T96: 83 | U96: 0.2 | V96: 58 | X96: 390 | Y96: 1260 | Z96: 660 | AA96: 0.2 | AB96: 462 | AJ96: 0 | AL96: 0 | AM96: 0 | AN96: 0 | AO96: 0.2 | AP96: 0 | AU96: 0.04 | AV96: 0 | AX96: 5198 | BE96: 5198 | BF96: 5626 | BG96: -428 | BI96: -0.07607536438 | BK96: 3 | BL96: 3 | BM96: 0 | BN96: 2 | BP96: 0 | BQ96: 0 | BR96: 0 | BS96: 0
A97: Derby City Childminding Network - Louanna Oliver | C97: EY482805 | D97: Unknown | E97: Unknown | H97: 195 | I97: 210 | J97: 165 | K97: 570 | M97: 570 | N97: P | O97: 4.05 | P97: 2309 | R97: 35 | S97: 37 | T97: 29 | U97: 0.2 | V97: 20.2 | X97: 0 | Y97: 0 | Z97: 0 | AA97: 0.2 | AB97: 0 | AJ97: 0 | AL97: 0 | AM97: 0 | AN97: 0 | AO97: 0.2 | AP97: 0 | AU97: 0.04 | AV97: 0 | AX97: 2329.2 | BE97: 2329 | BF97: 1404 | BG97: 925 | BI97: 0.6588319088 | BK97: 0 | BL97: 0 | BM97: 0 | BN97: 0 | BP97: 0 | BQ97: 0 | BR97: 0 | BS97: 0
A98: Derby City Childminding Network - Lousie Michelle Griffiths | C98: 260849 | D98: DE21 6PX | E98: Chaddesden | H98: 195 | I98: 210 | J98: 165 | K98: 570 | M98: 570 | N98: P | O98: 4.05 | P98: 2309 | R98: 27 | S98: 29 | T98: 23 | U98: 0.2 | V98: 15.8 | X98: 0 | Y98: 0 | Z98: 0 | AA98: 0.2 | AB98: 0 | AJ98: 0 | AL98: 0 | AM98: 0 | AN98: 0 | AO98: 0.2 | AP98: 0 | AU98: 0.04 | AV98: 0 | AX98: 2324.8 | BE98: 2325 | BF98: 13811 | BG98: -11486 | BI98: -0.8316559264 | BK98: 0 | BL98: 0 | BM98: 0 | BN98: 0 | BP98: 0 | BQ98: 0 | BR98: 0 | BS98: 0
A99: Derby City Childminding Network - Lynnette Learmonth | C99: EY463605 | D99: DE23 1HB | E99: Blagreaves | H99: 390 | I99: 420 | J99: 330 | K99: 1140 | M99: 1140 | N99: P | O99: 4.05 | P99: 4617 | R99: 39 | S99: 42 | T99: 33 | U99: 0.2 | V99: 22.8 | X99: 0 | Y99: 0 | Z99: 0 | AA99: 0.2 | AB99: 0 | AJ99: 0 | AL99: 0 | AM99: 0 | AN99: 0 | AO99: 0.2 | AP99: 0 | AU99: 0.04 | AV99: 0 | AX99: 4639.8 | BE99: 4640 | BF99: 702 | BG99: 3938 | BI99: 5.60968661 | BK99: 0 | BL99: 0 | BM99: 0 | BN99: 0 | BP99: 0 | BQ99: 0 | BR99: 0 | BS99: 0
A100: Derby City Childminding Network - Michelle Elizabeth Hemmings | C100: EY340934 | D100: DE24 9DD | E100: Boulton | H100: 780 | I100: 630 | J100: 330 | K100: 1740 | M100: 1740 | N100: P | O100: 4.05 | P100: 7047 | R100: 195 | S100: 158 | T100: 83 | U100: 0.2 | V100: 87.2 | X100: 1560 | Y100: 1260 | Z100: 660 | AA100: 0.2 | AB100: 696 | AJ100: 0 | AL100: 0 | AM100: 0 | AN100: 0 | AO100: 0.2 | AP100: 0 | AU100: 0.04 | AV100: 0 | AX100: 7830.2 | BE100: 7830 | BF100: 5792 | BG100: 2038 | BI100: 0.3518646409 | BK100: 3 | BL100: 3 | BM100: 0 | BN100: 2 | BP100: 0 | BQ100: 0 | BR100: 0 | BS100: 0
A101: Derby City Childminding Network - Michelle Morrison | C101: EY357686 | D101: DE21 7LY | E101: Spondon | H101: 1560 | I101: 1680 | J101: 1320 | K101: 4560 | M101: 4560 | N101: P | O101: 4.05 | P101: 18468 | R101: 187 | S101: 202 | T101: 158 | U101: 0.2 | V101: 109.4 | X101: 0 | Y101: 0 | Z101: 0 | AA101: 0.2 | AB101: 0 | AJ101: 0 | AL101: 0 | AM101: 0 | AN101: 0 | AO101: 0.2 | AP101: 0 | AU101: 0.04 | AV101: 0 | AX101: 18577.4 | BE101: 18577 | BF101: 2107 | BG101: 16470 | BI101: 7.816801139 | BK101: 0 | BL101: 0 | BM101: 0 | BN101: 0 | BP101: 0 | BQ101: 0 | BR101: 0 | BS101: 0
A102: Derby City Childminding Network - Ogunwole, Boladale Aina | C102: EY440600 | D102: DE24 9NE | E102: Sinfin | H102: 975 | I102: 1260 | J102: 1320 | K102: 3555 | M102: 3555 | N102: D | O102: 4.05 | P102: 14398 | R102: 293 | S102: 378 | T102: 396 | U102: 0.2 | V102: 213.4 | X102: 975 | Y102: 1260 | Z102: 1320 | AA102: 0.2 | AB102: 711 | AJ102: 0 | AL102: 0 | AM102: 0 | AN102: 0 | AO102: 0.2 | AP102: 0 | AU102: 0.04 | AV102: 0 | AX102: 15322.4 | BE102: 15322 | BF102: 1896 | BG102: 13426 | BI102: 7.081223629 | BK102: 0 | BL102: 3 | BM102: 0 | BN102: 1 | BP102: 0 | BQ102: 0 | BR102: 0 | BS102: 0
A103: Derby City Childminding Network - Peter Wells | C103: EY225750 | D103: DE21 2QJ | E103: Oakwood | H103: 390 | I103: 0 | J103: 0 | K103: 390 | M103: 390 | N103: P | O103: 4.05 | P103: 1580 | R103: 27 | S103: 0 | T103: 0 | U103: 0.2 | V103: 5.4 | X103: 827.5201316 | Y103: 0 | Z103: 0 | AA103: 0.2 | AB103: 165.5040263 | AJ103: 0 | AL103: 0 | AM103: 0 | AN103: 0 | AO103: 0.2 | AP103: 0 | AU103: 0.04 | AV103: 0 | AX103: 1750.904026 | BE103: 1751 | BF103: 3191 | BG103: -1440 | BI103: -0.4512691946 | BK103: 3 | BL103: 3 | BM103: 0.3655394737 | BN103: 2.121846491 | BP103: 0 | BQ103: 0 | BR103: 0 | BS103: 0
A104: Derby City Childminding Network - Phillipa Chambers | C104: EY453657 | D104: DE22 1HT | E104: Darley | H104: 0 | I104: 210 | J104: 165 | K104: 375 | M104: 375 | N104: P | O104: 4.05 | P104: 1519 | R104: 0 | S104: 25 | T104: 20 | U104: 0.2 | V104: 9 | X104: 0 | Y104: 205.8 | Z104: 161.7 | AA104: 0.2 | AB104: 73.5 | AJ104: 0 | AL104: 0 | AM104: 28.77 | AN104: 22.605 | AO104: 0.2 | AP104: 10.275 | AU104: 0.04 | AV104: 0 | AX104: 1611.775 | BE104: 1612 | BF104: 0 | BG104: 1612 | BK104: 0 | BL104: 0 | BM104: 0 | BN104: 0.98 | BP104: 0 | BQ104: 0 | BR104: 0 | BS104: 0.137
A105: Derby City Childminding Network - Rachel Leandre Blount | C105: EY343478 | D105: DE22 3JQ | E105: Abbey | H105: 390 | I105: 420 | J105: 330 | K105: 1140 | M105: 1140 | N105: P | O105: 4.05 | P105: 4617 | R105: 86 | S105: 92 | T105: 73 | U105: 0.2 | V105: 50.2 | X105: 130 | Y105: 140 | Z105: 110 | AA105: 0.2 | AB105: 76 | AJ105: 0 | AL105: 0 | AM105: 0 | AN105: 0 | AO105: 0.2 | AP105: 0 | AU105: 0.04 | AV105: 0 | AX105: 4743.2 | BE105: 4743 | BF105: 739 | BG105: 4004 | BI105: 5.418132612 | BK105: 1 | BL105: 0 | BM105: 0 | BN105: 0.3333333333 | BP105: 0 | BQ105: 0 | BR105: 0 | BS105: 0
A106: Derby City Childminding Network - Rebecca Anne Cotton | C106: EY393682 | D106: DE3 9YF | E106: Littleover | H106: 195 | I106: 210 | J106: 165 | K106: 570 | M106: 570 | N106: P | O106: 4.05 | P106: 2309 | R106: 14 | S106: 15 | T106: 12 | U106: 0.2 | V106: 8.2 | X106: 0 | Y106: 0 | Z106: 0 | AA106: 0.2 | AB106: 0 | AJ106: 0 | AL106: 65 | AM106: 70 | AN106: 55 | AO106: 0.2 | AP106: 38 | AU106: 0.04 | AV106: 0 | AX106: 2355.2 | BE106: 2355 | BF106: 1192 | BG106: 1163 | BI106: 0.9756711409 | BK106: 0 | BL106: 0 | BM106: 0 | BN106: 0 | BP106: 0 | BQ106: 0 | BR106: 1 | BS106: 0.3333333333
A107: Derby City Childminding Network - Rebecca Jane Fulleylove | C107: EY395288 | D107: DE21 2BJ | E107: Oakwood | H107: 780 | I107: 630 | J107: 495 | K107: 1905 | M107: 1905 | N107: P | O107: 4.05 | P107: 7715 | R107: 55 | S107: 44 | T107: 35 | U107: 0.2 | V107: 26.8 | X107: 130 | Y107: 105 | Z107: 82.5 | AA107: 0.2 | AB107: 63.5 | AJ107: 0 | AL107: 0 | AM107: 0 | AN107: 0 | AO107: 0.2 | AP107: 0 | AU107: 0.04 | AV107: 0 | AX107: 7805.3 | BE107: 7805 | BF107: 5106 | BG107: 2699 | BI107: 0.5285938112 | BK107: 0.5 | BL107: 0 | BM107: 0 | BN107: 0.1666666667 | BP107: 0 | BQ107: 0 | BR107: 0 | BS107: 0
A108: Derby City Childminding Network - Rebecca Sarah Wall | C108: EY278371 | D108: DE73 6UU | E108: Chellaston | H108: 585 | I108: 630 | J108: 495 | K108: 1710 | M108: 1710 | N108: P | O108: 4.05 | P108: 6926 | R108: 53 | S108: 57 | T108: 45 | U108: 0.2 | V108: 31 | X108: 334.1699761 | Y108: 359.8753589 | Z108: 282.7592105 | AA108: 0.2 | AB108: 195.3609091 | AJ108: 0 | AL108: 0 | AM108: 0 | AN108: 0 | AO108: 0.2 | AP108: 0 | AU108: 0.04 | AV108: 0 | AX108: 7152.360909 | BE108: 7152 | BF108: 3239 | BG108: 3913 | BI108: 1.208088916 | BK108: 0 | BL108: 0.3333333333 | BM108: 1.380358852 | BN108: 0.5712307283 | BP108: 0 | BQ108: 0 | BR108: 0 | BS108: 0
A109: Derby City Childminding Network - Rosalyn Phillips | C109: EY268223 | D109: DE24 9JQ | E109: Chellaston | H109: 975 | I109: 630 | J109: 495 | K109: 2100 | M109: 2100 | N109: P | O109: 4.05 | P109: 8505 | R109: 88 | S109: 57 | T109: 45 | U109: 0.2 | V109: 38 | X109: 114.7058824 | Y109: 74.11764706 | Z109: 58.23529412 | AA109: 0.2 | AB109: 49.41176471 | AJ109: 0 | AL109: 0 | AM109: 0 | AN109: 0 | AO109: 0.2 | AP109: 0 | AU109: 0.04 | AV109: 0 | AX109: 8592.411765 | BE109: 8592 | BF109: 2846 | BG109: 5746 | BI109: 2.018973999 | BK109: 0.3529411765 | BL109: 0 | BM109: 0 | BN109: 0.1176470588 | BP109: 0 | BQ109: 0 | BR109: 0 | BS109: 0
A110: Derby City Childminding Network - Rosie Stevens | C110: 206031 | D110: DE22 2HQ | E110: Allestree | H110: 390 | I110: 420 | J110: 495 | K110: 1305 | M110: 1305 | N110: P | O110: 4.05 | P110: 5285 | R110: 12 | S110: 13 | T110: 15 | U110: 0.2 | V110: 8 | X110: 119.1666667 | Y110: 128.3333333 | Z110: 151.25 | AA110: 0.2 | AB110: 79.75 | AJ110: 0 | AL110: 0 | AM110: 0 | AN110: 0 | AO110: 0.2 | AP110: 0 | AU110: 0.04 | AV110: 0 | AX110: 5372.75 | BE110: 5373 | BF110: 5938 | BG110: -565 | BI110: -0.09514988212 | BK110: 0.25 | BL110: 0 | BM110: 0.6666666667 | BN110: 0.3055555556 | BP110: 0 | BQ110: 0 | BR110: 0 | BS110: 0
A111: Derby City Childminding Network - Samantha Anne Fisher | C111: EY406938 | D111: DE21 7QL | E111: Spondon | H111: 390 | I111: 420 | J111: 330 | K111: 1140 | M111: 1140 | N111: P | O111: 4.05 | P111: 4617 | R111: 47 | S111: 50 | T111: 40 | U111: 0.2 | V111: 27.4 | X111: 0 | Y111: 0 | Z111: 0 | AA111: 0.2 | AB111: 0 | AJ111: 0 | AL111: 0 | AM111: 0 | AN111: 0 | AO111: 0.2 | AP111: 0 | AU111: 0.04 | AV111: 0 | AX111: 4644.4 | BE111: 4644 | BF111: 2107 | BG111: 2537 | BI111: 1.204081633 | BK111: 0 | BL111: 0 | BM111: 0 | BN111: 0 | BP111: 0 | BQ111: 0 | BR111: 0 | BS111: 0
A112: Derby City Childminding Network - Sandra White | C112: 206067 | D112: DE21 2BL | E112: Oakwood | H112: 195 | I112: 210 | J112: 165 | K112: 570 | M112: 570 | N112: P | O112: 4.05 | P112: 2309 | R112: 14 | S112: 15 | T112: 12 | U112: 0.2 | V112: 8.2 | X112: 65 | Y112: 70 | Z112: 55 | AA112: 0.2 | AB112: 38 | AJ112: 0 | AL112: 65 | AM112: 70 | AN112: 55 | AO112: 0.2 | AP112: 38 | AU112: 0.04 | AV112: 0 | AX112: 2393.2 | BE112: 2393 | BF112: 1477 | BG112: 916 | BI112: 0.6201760325 | BK112: 1 | BL112: 0 | BM112: 0 | BN112: 0.3333333333 | BP112: 0 | BQ112: 0 | BR112: 1 | BS112: 0.3333333333
A113: Derby City Childminding Network - Sara Mycroft | C113: 205978 | D113: DE24 9FN | E113: Chellaston | H113: 585 | I113: 1470 | J113: 1485 | K113: 3540 | M113: 3540 | N113: P | O113: 4.05 | P113: 14337 | R113: 53 | S113: 132 | T113: 134 | U113: 0.2 | V113: 63.8 | X113: 294.6666667 | Y113: 740.4444444 | Z113: 748 | AA113: 0.2 | AB113: 356.6222222 | AJ113: 0 | AL113: 0 | AM113: 0 | AN113: 0 | AO113: 0.2 | AP113: 0 | AU113: 0.04 | AV113: 0 | AX113: 14757.42222 | BE113: 14757 | BF113: 10944 | BG113: 3813 | BI113: 0.3484100877 | BK113: 1.4 | BL113: 0 | BM113: 0.1111111111 | BN113: 0.5037037037 | BP113: 0 | BQ113: 0 | BR113: 0 | BS113: 0
A114: Derby City Childminding Network - Sarah Jane Jackson | C114: EY480166 | D114: DE21 7RF | E114: Spondon | H114: 195 | I114: 210 | J114: 165 | K114: 570 | M114: 570 | N114: P | O114: 4.05 | P114: 2309 | R114: 23 | S114: 25 | T114: 20 | U114: 0.2 | V114: 13.6 | X114: 191.1 | Y114: 205.8 | Z114: 161.7 | AA114: 0.2 | AB114: 111.72 | AJ114: 0 | AL114: 26.715 | AM114: 28.77 | AN114: 22.605 | AO114: 0.2 | AP114: 15.618 | AU114: 0.04 | AV114: 0 | AX114: 2449.938 | BE114: 2450 | BF114: 0 | BG114: 2450 | BK114: 0 | BL114: 0 | BM114: 0 | BN114: 0.98 | BP114: 0 | BQ114: 0 | BR114: 0 | BS114: 0.137
A115: Derby City Childminding Network - Stella Louise Bayliss | C115: EY505502 | D115: DE21 2QL | E115: Oakwood | H115: 195 | I115: 210 | J115: 0 | K115: 405 | M115: 405 | N115: P | O115: 4.05 | P115: 1640 | R115: 14 | S115: 15 | T115: 0 | U115: 0.2 | V115: 5.8 | X115: 0 | Y115: 0 | Z115: 0 | AA115: 0.2 | AB115: 0 | AJ115: 0 | AL115: 0 | AM115: 0 | AN115: 0 | AO115: 0.2 | AP115: 0 | AU115: 0.04 | AV115: 0 | AX115: 1645.8 | BE115: 1646 | BF115: 702 | BG115: 944 | BI115: 1.344729345 | BK115: 0 | BL115: 0 | BM115: 0 | BN115: 0 | BP115: 0 | BQ115: 0 | BR115: 0 | BS115: 0
A116: Derby City Childminding Network - Susan Theresa McPhee | C116: EY435150 | D116: DE24 9AY | E116: Boulton | H116: 195 | I116: 210 | J116: 165 | K116: 570 | M116: 570 | N116: P | O116: 4.05 | P116: 2309 | R116: 49 | S116: 53 | T116: 41 | U116: 0.2 | V116: 28.6 | X116: 195 | Y116: 210 | Z116: 165 | AA116: 0.2 | AB116: 114 | AJ116: 0 | AL116: 0 | AM116: 0 | AN116: 0 | AO116: 0.2 | AP116: 0 | AU116: 0.04 | AV116: 0 | AX116: 2451.6 | BE116: 2452 | BF116: 1624 | BG116: 828 | BI116: 0.5098522167 | BK116: 3 | BL116: 0 | BM116: 0 | BN116: 1 | BP116: 0 | BQ116: 0 | BR116: 0 | BS116: 0
A117: Derby City Childminding Network - Tamasine Louise Ashforth | C117: EY299849 | D117: DE24 8PF | E117: Alvaston | H117: 1365 | I117: 1470 | J117: 1155 | K117: 3990 | M117: 3990 | N117: P | O117: 4.05 | P117: 16160 | R117: 382 | S117: 412 | T117: 323 | U117: 0.2 | V117: 223.4 | X117: 2877.343026 | Y117: 3098.677105 | Z117: 2434.674868 | AA117: 0.2 | AB117: 1682.139 | AJ117: 0 | AL117: 151.6666667 | AM117: 163.3333333 | AN117: 128.3333333 | AO117: 0.2 | AP117: 88.66666667 | AU117: 0.04 | AV117: 0 | AX117: 18154.20567 | BE117: 18154 | BF117: 14676 | BG117: 3478 | BI117: 0.2369855546 | BK117: 2.428571429 | BL117: 2.714285714 | BM117: 1.180973684 | BN117: 2.107943609 | BP117: 0 | BQ117: 0 | BR117: 0.3333333333 | BS117: 0.1111111111
A118: Derby City Childminding Network - Wendy Jane Wheawall | C118: EY318345 | D118: DE22 2FZ | E118: Allestree | H118: 390 | I118: 210 | J118: 165 | K118: 765 | M118: 765 | N118: P | O118: 4.05 | P118: 3098 | R118: 12 | S118: 6 | T118: 5 | U118: 0.2 | V118: 4.6 | X118: 0 | Y118: 0 | Z118: 0 | AA118: 0.2 | AB118: 0 | AJ118: 0 | AL118: 0 | AM118: 0 | AN118: 0 | AO118: 0.2 | AP118: 0 | AU118: 0.04 | AV118: 0 | AX118: 3102.6 | BE118: 3103 | BF118: 2224 | BG118: 879 | BI118: 0.3952338129 | BK118: 0 | BL118: 0 | BM118: 0 | BN118: 0 | BP118: 0 | BQ118: 0 | BR118: 0 | BS118: 0
A119: Derby City Childminding Network - Wendy Lorraine Anne Wright | C119: EY464682 | D119: DE73 6TB | E119: Chellaston | H119: 390 | I119: 0 | J119: 0 | K119: 390 | M119: 390 | N119: P | O119: 4.05 | P119: 1580 | R119: 35 | S119: 0 | T119: 0 | U119: 0.2 | V119: 7 | X119: 0 | Y119: 0 | Z119: 0 | AA119: 0.2 | AB119: 0 | AJ119: 0 | AL119: 0 | AM119: 0 | AN119: 0 | AO119: 0.2 | AP119: 0 | AU119: 0.04 | AV119: 0 | AX119: 1587 | BE119: 1587 | BF119: 4799 | BG119: -3212 | BI119: -0.6693061054 | BK119: 0 | BL119: 0 | BM119: 0 | BN119: 0 | BP119: 0 | BQ119: 0 | BR119: 0 | BS119: 0
A120: Derby City Childminding Network - Yolande Wosik | C120: EY414019 | D120: DE24 8SE | E120: Alvaston | H120: 390 | I120: 840 | J120: 495 | K120: 1725 | M120: 1725 | N120: P | O120: 4.05 | P120: 6986 | R120: 109 | S120: 235 | T120: 139 | U120: 0.2 | V120: 96.6 | X120: 552.5 | Y120: 1190 | Z120: 701.25 | AA120: 0.2 | AB120: 488.75 | AJ120: 0 | AL120: 0 | AM120: 0 | AN120: 0 | AO120: 0.2 | AP120: 0 | AU120: 0.04 | AV120: 0 | AX120: 7571.35 | BE120: 7571 | BF120: 6150 | BG120: 1421 | BI120: 0.2310569106 | BK120: 1.25 | BL120: 3 | BM120: 0 | BN120: 1.416666667 | BP120: 0 | BQ120: 0 | BR120: 0 | BS120: 0
A121: Derby City Childminding Network - Zena Brotherson | C121: EY350863 | D121: DE23 2TD | E121: Blagreaves | H121: 1950 | I121: 1470 | J121: 1155 | K121: 4575 | M121: 4575 | N121: P | O121: 4.05 | P121: 18529 | R121: 195 | S121: 147 | T121: 116 | U121: 0.2 | V121: 91.6 | X121: 1942.411674 | Y121: 1464.27957 | Z121: 1150.505376 | AA121: 0.2 | AB121: 911.4393241 | AJ121: 0 | AL121: 626.0368664 | AM121: 471.9354839 | AN121: 370.8064516 | AO121: 0.2 | AP121: 293.7557604 | AU121: 0.04 | AV121: 0 | AX121: 19825.79508 | BE121: 19826 | BF121: 23066 | BG121: -3240 | BI121: -0.1404664875 | BK121: 1.064516129 | BL121: 1.523809524 | BM121: 0.4 | BN121: 0.9961085509 | BP121: 0.6774193548 | BQ121: 0.2857142857 | BR121: 0 | BS121: 0.3210445469
A122: Derby High School | C122: EY240925 | D122: DE23 3DT | E122: Littleover | H122: 7410 | I122: 7350 | J122: 6435 | K122: 21195 | M122: 21195 | N122: P | O122: 4.05 | P122: 85840 | R122: 519 | S122: 515 | T122: 450 | U122: 0.2 | V122: 296.8 | X122: 801.2229102 | Y122: 794.7352753 | Z122: 695.7988431 | AA122: 0.2 | AB122: 458.3514057 | AJ122: 0 | AL122: 659.8551994 | AM122: 654.5122423 | AN122: 573.0321468 | AO122: 0.2 | AP122: 377.4799177 | AU122: 0.04 | AV122: 0 | AX122: 86972.63132 | BE122: 86973 | BF122: 94428 | BG122: -7455 | BI122: -0.07894904054 | BK122: 0.1176470588 | BL122: 0.08333333333 | BM122: 0.1234013529 | BN122: 0.1081272483 | BP122: 0.1470588235 | BQ122: 0.08333333333 | BR122: 0.03675569713 | BS122: 0.08904928467
A123: Derby Montessori | C123: EY476012 | D123: DE22 3NJ | E123: Abbey | H123: 7215 | I123: 5040 | J123: 5115 | K123: 17370 | M123: 17370 | N123: P | O123: 4.05 | P123: 70349 | R123: 1587 | S123: 1109 | T123: 1125 | U123: 0.2 | V123: 764.2 | X123: 4677.916004 | Y123: 3267.733425 | Z123: 3316.36041 | AA123: 0.2 | AB123: 2252.401968 | AJ123: 0 | AL123: 767.2526249 | AM123: 535.9602536 | AN123: 543.9358526 | AO123: 0.2 | AP123: 369.4297462 | AU123: 0.04 | AV123: 0 | AX123: 73735.03171 | BE123: 73735 | BF123: 64361 | BG123: 9374 | BI123: 0.1456472087 | BK123: 0.8351893096 | BL123: 1.10989011 | BM123: 0 | BN123: 0.6483598065 | BP123: 0.1541887956 | BQ123: 0.1648351648 | BR123: 0 | BS123: 0.1063413201
A124: Derwent Stepping Stones At Brackensdale | C124: EY460372 | D124: DE22 4BS | E124: Mackworth | H124: 1365 | I124: 0 | J124: 330 | K124: 1695 | M124: 1695 | N124: D | O124: 4.05 | P124: 6865 | R124: 382 | S124: 0 | T124: 92 | U124: 0.2 | V124: 94.8 | X124: 707.7777778 | Y124: 0 | Z124: 171.1111111 | AA124: 0.2 | AB124: 175.7777778 | AJ124: 0 | AL124: 0 | AM124: 0 | AN124: 0 | AO124: 0.2 | AP124: 0 | AU124: 0.04 | AV124: 0 | AX124: 7135.577778 | BE124: 7136 | BF124: 8238 | BG124: -1102 | BI124: -0.1337703326 | BK124: 1.555555556 | BL124: 0 | BM124: 0 | BN124: 0.5185185185 | BP124: 0 | BQ124: 0 | BR124: 0 | BS124: 0
A125: Diamond Day PDN | C125: EY421215 | D125: DE24 0PA | E125: Alvaston | H125: 5265 | I125: 3780 | J125: 4125 | K125: 13170 | M125: 13170 | N125: P | O125: 4.05 | P125: 53339 | R125: 1474 | S125: 1058 | T125: 1155 | U125: 0.2 | V125: 737.4 | X125: 5685.040759 | Y125: 4081.567724 | Z125: 4454.091763 | AA125: 0.2 | AB125: 2844.140049 | AJ125: 0 | AL125: 126 | AM125: 90.46153846 | AN125: 98.71794872 | AO125: 0.2 | AP125: 63.03589744 | AU125: 0.04 | AV125: 0 | AX125: 56983.57595 | BE125: 56984 | BF125: 59632 | BG125: -2648 | BI125: -0.04440568822 | BK125: 1.366666667 | BL125: 1.529411765 | BM125: 0.3432610324 | BN125: 1.079779821 | BP125: 0.03333333333 | BQ125: 0 | BR125: 0.03846153846 | BS125: 0.02393162393
A126: Eagles, Rachael Elizabeth | C126: EY484039 | D126: DE21 2JW | E126: Oakwood | H126: 780 | I126: 1260 | J126: 990 | K126: =SUM(H126:J126) -> 3030 | M126: =IF(L126<0,G126,K126) -> 3030 | N126: D | O126: =$O$9 -> 4.05 | P126: =ROUND(O126*M126,0) -> 12272 | R126: 55 | S126: 88 | T126: 69 | U126: =$U$9 -> 0.2 | V126: =SUM(R126+S126+T126)*U126 -> 42.4 | X126: =H126*$BN126 -> 0 | Y126: =I126*$BN126 -> 0 | Z126: =J126*$BN126 -> 0 | AA126: =$AA$9 -> 0.2 | AB126: =SUM(X126+Y126+Z126)*AA126 -> 0 | AJ126: =AI126*AH126 -> 0 | AL126: =H126*$BS126 -> 0 | AM126: =I126*$BS126 -> 0 | AN126: =J126*$BS126 -> 0 | AO126: =AO$9 -> 0.2 | AP126: =SUM(AL126:AN126)*AO126 -> 0 | AU126: =$AU$9 -> 0.04 | AV126: =(AR126+AS126+AT126)*AU126 -> 0 | AX126: =P126+AB126+AD126+AF126+AJ126+AP126+AV126+V126 -> 12314.4 | BE126: =ROUND((SUM(AZ126:BD126)+AX126),0) -> 12314 | BF126: 1498 | BG126: =BE126-BF126 -> 10816 | BI126: =BG126/BF126 -> 7.220293725 | BK126: 0 | BL126: 0 | BM126: 0 | BN126: 0 | BP126: 0 | BQ126: 0 | BR126: 0 | BS126: 0
A127: Emmanuel School | C127: EY345674 | D127: DE22 1FP | E127: Darley | H127: 4680 | I127: 5250 | J127: 4290 | K127: 14220 | M127: 14220 | N127: D | O127: 4.05 | P127: 57591 | R127: 562 | S127: 630 | T127: 515 | U127: 0.2 | V127: 341.4 | X127: 6692.871176 | Y127: 7508.028563 | Z127: 6135.131911 | AA127: 0.2 | AB127: 4067.20633 | AJ127: 0 | AL127: 89.375 | AM127: 100.2604167 | AN127: 81.92708333 | AO127: 0.2 | AP127: 54.3125 | AU127: 0.04 | AV127: 0 | AX127: 62053.91883 | BE127: 62054 | BF127: 68507 | BG127: -6453 | BI127: -0.09419475382 | BK127: 1.252045827 | BL127: 1.760273973 | BM127: 1.277982237 | BN127: 1.430100679 | BP127: 0 | BQ127: 0 | BR127: 0.05729166667 | BS127: 0.01909722222
A128: Field Lane Playgroup Ltd | C128: EY307423 | D128: DE24 0GW | E128: Boulton | H128: 4875 | I128: 2520 | J128: 3960 | K128: 11355 | M128: 11355 | N128: P | O128: 4.05 | P128: 45988 | R128: 1219 | S128: 630 | T128: 990 | U128: 0.2 | V128: 567.8 | X128: 8038.402581 | Y128: 4155.235796 | Z128: 6529.65625 | AA128: 0.2 | AB128: 3744.658925 | AJ128: 0 | AL128: 0 | AM128: 0 | AN128: 0 | AO128: 0.2 | AP128: 0 | AU128: 0.04 | AV128: 0 | AX128: 50300.45893 | BE128: 50300 | BF128: 63607 | BG128: -13307 | BI128: -0.2092065339 | BK128: 1.007233273 | BL128: 2.238095238 | BM128: 1.701380769 | BN128: 1.648903093 | BP128: 0 | BQ128: 0 | BR128: 0 | BS128: 0
A129: First Friends Private Day Nursery | C129: 206106 | D129: DE21 6HP | E129: Derwent | H129: 2730 | I129: 1260 | J129: 2145 | K129: 6135 | M129: 6135 | N129: D | O129: 4.05 | P129: 24847 | R129: 737 | S129: 340 | T129: 579 | U129: 0.2 | V129: 331.2 | X129: 2605.883571 | Y129: 1202.715494 | Z129: 2047.479948 | AA129: 0.2 | AB129: 1171.215803 | AJ129: 0 | AL129: 429 | AM129: 198 | AN129: 337.0714286 | AO129: 0.2 | AP129: 192.8142857 | AU129: 0.04 | AV129: 0 | AX129: 26542.23009 | BE129: 26542 | BF129: 26851 | BG129: -309 | BI129: -0.01150795129 | BK129: 0.8473282443 | BL129: 1 | BM129: 1.016280075 | BN129: 0.9545361065 | BP129: 0 | BQ129: 0.4 | BR129: 0.07142857143 | BS129: 0.1571428571
A130: First Steps Early Years Centre | C130: EY539483 | D130: DE24 8XB | E130: Alvaston | H130: 13650 | I130: 15330 | J130: 10725 | K130: 39705 | M130: 39705 | N130: D | O130: 4.05 | P130: 160805 | R130: 3822 | S130: 4292 | T130: 3003 | U130: 0.2 | V130: 2223.4 | X130: 39231.99031 | Y130: 44060.54296 | Z130: 30825.13524 | AA130: 0.2 | AB130: 22823.5337 | AJ130: 0 | AL130: 223.3693507 | AM130: 250.8609631 | AN130: 175.5044898 | AO130: 0.2 | AP130: 129.9469607 | AU130: 0.04 | AV130: 0 | AX130: 185981.8807 | BE130: 185982 | BF130: 99240 | BG130: 86742 | BI130: 0.8740628779 | BK130: 2.680284192 | BL130: 2.909090909 | BM130: 3.033040351 | BN130: 2.874138484 | BP130: 0.02131438721 | BQ130: 0 | BR130: 0.02777777778 | BS130: 0.016364055
A131: Fun Time Nursery Limited | C131: EY478943 | D131: DE23 8DD | E131: Normanton | H131: 5655 | I131: 5250 | J131: 5775 | K131: 16680 | M131: 16680 | N131: D | O131: 4.05 | P131: 67554 | R131: 1244 | S131: 1155 | T131: 1271 | U131: 0.2 | V131: 734 | X131: 7398.057229 | Y131: 6868.222892 | Z131: 7555.045181 | AA131: 0.2 | AB131: 4364.26506 | AJ131: 0 | AL131: 498.7301205 | AM131: 463.0120482 | AN131: 509.313253 | AO131: 0.2 | AP131: 294.2110843 | AU131: 0.04 | AV131: 0 | AX131: 72946.47614 | BE131: 72946 | BF131: 63605 | BG131: 9341 | BI131: 0.1468595236 | BK131: 1.924698795 | BL131: 2 | BM131: 0 | BN131: 1.308232932 | BP131: 0.1445783133 | BQ131: 0.12 | BR131: 0 | BS131: 0.08819277108
A132: Heatherton Pre-School | C132: EY406182 | D132: DE23 3TZ | E132: Littleover | H132: 4290 | I132: 1680 | J132: 1980 | K132: 7950 | M132: 7950 | N132: P | O132: 4.05 | P132: 32198 | R132: 300 | S132: 118 | T132: 139 | U132: 0.2 | V132: 111.4 | X132: 384.8815084 | Y132: 150.7228284 | Z132: 177.6376192 | AA132: 0.2 | AB132: 142.6483912 | AJ132: =AI132*AH132 -> 0 | AL132: 887.7374972 | AM132: 347.6454535 | AN132: 409.7249987 | AO132: 0.2 | AP132: 329.0215899 | AU132: 0.04 | AV132: 0 | AX132: 32781.06998 | BE132: 32781 | BF132: 20649 | BG132: 12132 | BI132: 0.5875345053 | BK132: 0 | BL132: 0.07633587786 | BM132: 0.1928120301 | BN132: 0.08971596931 | BP132: 0.07772020725 | BQ132: 0.1145038168 | BR132: 0.4285714286 | BS132: 0.2069318175
A133: Homelands Early Years Centre | C133: EY539486 | D133: DE23 8DN | E133: Normanton | H133: 6825 | I133: 7770 | J133: 6930 | K133: 21525 | M133: 21525 | N133: D | O133: 4.05 | P133: 87176 | R133: 1502 | S133: 1709 | T133: 1525 | U133: 0.2 | V133: 947.2 | X133: 15297.25908 | Y133: 17415.3411 | Z133: 15532.60153 | AA133: 0.2 | AB133: 9649.040341 | AJ133: 0 | AL133: 1668.937873 | AM133: 1900.021579 | AN133: 1694.613841 | AO133: 0.2 | AP133: 1052.714659 | AU133: 0.04 | AV133: 0 | AX133: 98824.955 | BE133: 98825 | BF133: 84785 | BG133: 14040 | BI133: 0.1655953294 | BK133: 1.789855072 | BL133: 2.189856957 | BM133: 2.744357895 | BN133: 2.241356641 | BP133: 0.1304347826 | BQ133: 0.2698309493 | BR133: 0.3333333333 | BS133: 0.2445330217
A134: Hussain, Zarida | C134: EY458078 | D134: DE23 3RL | E134: Littleover | H134: 0 | I134: 420 | J134: 0 | K134: 420 | M134: 420 | N134: D | O134: 4.05 | P134: 1701 | R134: 0 | S134: 29 | T134: 0 | U134: 0.2 | V134: 5.8 | X134: 0 | Y134: 140 | Z134: 0 | AA134: 0.2 | AB134: 28 | AJ134: 0 | AL134: 0 | AM134: 0 | AN134: 0 | AO134: 0.2 | AP134: 0 | AU134: 0.04 | AV134: 0 | AX134: 1734.8 | BE134: 1735 | BF134: 2217 | BG134: -482 | BI134: -0.2174109157 | BK134: 1 | BL134: 0 | BM134: 0 | BN134: 0.3333333333 | BP134: 0 | BQ134: 0 | BR134: 0 | BS134: 0
A135: Incredible Kids | C135: EY477956 | D135: DE24 8AJ | E135: Alvaston | H135: 10530 | I135: 7770 | J135: 7425 | K135: 25725 | M135: 25725 | N135: D | O135: 4.05 | P135: 104186 | R135: 2948 | S135: 2176 | T135: 2079 | U135: 0.2 | V135: 1440.6 | X135: 14241.84783 | Y135: 10508.94184 | Z135: 10042.3286 | AA135: 0.2 | AB135: 6958.623653 | AJ135: 0 | AL135: 720.1630435 | AM135: 531.4023597 | AN135: 507.8072742 | AO135: 0.2 | AP135: 351.8745355 | AU135: 0.04 | AV135: 0 | AX135: 112937.0982 | BE135: 112937 | BF135: 112455 | BG135: 482 | BI135: 0.004286158908 | BK135: 1.985042735 | BL135: 2.072463768 | BM135: 0 | BN135: 1.352502168 | BP135: 0.0844017094 | BQ135: 0.1207729469 | BR135: 0 | BS135: 0.06839155209
A136: King George V Pre-School | C136: 206134 | D136: DE23 6GT | E136: Littleover | H136: 8385 | I136: 7350 | J136: 6600 | K136: 22335 | M136: 22335 | N136: P | O136: 4.05 | P136: 90457 | R136: 587 | S136: 515 | T136: 462 | U136: 0.2 | V136: 312.8 | X136: 3268.164892 | Y136: 2864.759924 | Z136: 2572.437482 | AA136: 0.2 | AB136: 1741.07246 | AJ136: 0 | AL136: 900.2790308 | AM136: 789.1533544 | AN136: 708.6275019 | AO136: 0.2 | AP136: 479.6119774 | AU136: 0.04 | AV136: 0 | AX136: 92990.48444 | BE136: 92990 | BF136: 82670 | BG136: 10320 | BI136: 0.1248336761 | BK136: 0.2274881517 | BL136: 0.4109589041 | BM136: 0.530842709 | BN136: 0.3897632549 | BP136: 0.09478672986 | BQ136: 0.06849315068 | BR136: 0.1588235294 | BS136: 0.1073678033
A137: Kingfisher Day Nurser Pre-School And A | C137: EY285337 | D137: DE21 7AB | E137: Spondon | H137: 8970 | I137: 6930 | J137: 9240 | K137: 25140 | M137: 25140 | N137: D | O137: 4.05 | P137: 101817 | R137: 1076 | S137: 832 | T137: 1109 | U137: 0.2 | V137: 603.4 | X137: 2993.18097 | Y137: 2312.457539 | Z137: 3083.276718 | AA137: 0.2 | AB137: 1677.783045 | AJ137: 0 | AL137: 50.33670034 | AM137: 38.88888889 | AN137: 51.85185185 | AO137: 0.2 | AP137: 28.21548822 | AU137: 0.04 | AV137: 0 | AX137: 104126.3985 | BE137: 104126 | BF137: 102609 | BG137: 1517 | BI137: 0.01478427818 | BK137: 0.32996633 | BL137: 0.4464285714 | BM137: 0.2246689682 | BN137: 0.3336879565 | BP137: 0.01683501684 | BQ137: 0 | BR137: 0 | BS137: 0.005611672278
A138: Kingfisher Day Nursery | C138: EY285324 | D138: DE21 7JP | E138: Spondon | H138: 0 | I138: 0 | J138: 1650 | K138: 1650 | M138: 1650 | N138: D | O138: 4.05 | P138: 6683 | R138: 0 | S138: 0 | T138: 198 | U138: 0.2 | V138: 39.6 | X138: 0 | Y138: 0 | Z138: 108.5781113 | AA138: 0.2 | AB138: 21.71562226 | AJ138: 0 | AL138: 0 | AM138: 0 | AN138: 0 | AO138: 0.2 | AP138: 0 | AU138: 0.04 | AV138: 0 | AX138: 6744.315622 | BE138: 6744 | BF138: 31454 | BG138: -24710 | BI138: -0.7855916577 | BK138: 0 | BL138: 0 | BM138: 0.1974147478 | BN138: 0.06580491594 | BP138: 0 | BQ138: 0 | BR138: 0 | BS138: 0
A139: Kingfisher Day Nursery (2) | C139: EY371448 | D139: DE22 1AF | E139: Darley | H139: 7605 | I139: 11340 | J139: 10890 | K139: 29835 | M139: 29835 | N139: D | O139: 4.05 | P139: 120832 | R139: 913 | S139: 1361 | T139: 1307 | U139: 0.2 | V139: 716.2 | X139: 2883.50464 | Y139: 4299.663724 | Z139: 4129.042148 | AA139: 0.2 | AB139: 2262.442102 | AJ139: 0 | AL139: 0 | AM139: 0 | AN139: 0 | AO139: 0.2 | AP139: 0 | AU139: 0.04 | AV139: 0 | AX139: 123810.6421 | BE139: 123811 | BF139: 72684 | BG139: 51127 | BI139: 0.7034147818 | BK139: 0.2876106195 | BL139: 0.3474025974 | BM139: 0.5024639588 | BN139: 0.3791590586 | BP139: 0 | BQ139: 0 | BR139: 0 | BS139: 0
A140: Kirkley, Angela | C140: EY453961 | D140: DE3 9LN | E140: Mickleover | H140: 195 | I140: 210 | J140: 0 | K140: 405 | M140: 405 | N140: D | O140: 4.05 | P140: 1640 | R140: 12 | S140: 13 | T140: 0 | U140: 0.2 | V140: 5 | X140: 0 | Y140: 0 | Z140: 0 | AA140: 0.2 | AB140: 0 | AJ140: 0 | AL140: 0 | AM140: 0 | AN140: 0 | AO140: 0.2 | AP140: 0 | AU140: 0.04 | AV140: 0 | AX140: 1645 | BE140: 1645 | BF140: 1404 | BG140: 241 | BI140: 0.1716524217 | BK140: 0 | BL140: 0 | BM140: 0 | BN140: 0 | BP140: 0 | BQ140: 0 | BR140: 0 | BS140: 0
A141: La Petite Academy | C141: 206109 | D141: DE23 1DG | E141: Blagreaves | H141: 9165 | I141: 6300 | J141: 6435 | K141: 21900 | M141: 21900 | N141: D | O141: 4.05 | P141: 88695 | R141: 917 | S141: 630 | T141: 644 | U141: 0.2 | V141: 438.2 | X141: 3469.170212 | Y141: 2384.699655 | Z141: 2435.800361 | AA141: 0.2 | AB141: 1657.934046 | AJ141: 0 | AL141: 161.078065 | AM141: 110.7246928 | AN141: 113.0973648 | AO141: 0.2 | AP141: 76.98002449 | AU141: 0.04 | AV141: 0 | AX141: 90868.11407 | BE141: 90868 | BF141: 87174 | BG141: 3694 | BI141: 0.04237502007 | BK141: 0.2786709539 | BL141: 0.6442417332 | BM141: 0.212658577 | BN141: 0.3785237547 | BP141: 0 | BQ141: 0.03420752566 | BR141: 0.01851851852 | BS141: 0.01757534806
A142: Leapfrog Day Nursery(1) | C142: 206110 | D142: DE21 2SF | E142: Oakwood | H142: 8775 | I142: 6090 | J142: 6930 | K142: 21795 | M142: 21795 | N142: D | O142: 4.05 | P142: 88270 | R142: 614 | S142: 426 | T142: 485 | U142: 0.2 | V142: 305 | X142: 2956.902557 | Y142: 2052.14092 | Z142: 2335.19484 | AA142: 0.2 | AB142: 1468.847664 | AJ142: 0 | AL142: 108.3333333 | AM142: 75.18518519 | AN142: 85.55555556 | AO142: 0.2 | AP142: 53.81481481 | AU142: 0.04 | AV142: 0 | AX142: 90097.66248 | BE142: 90098 | BF142: 69739 | BG142: 20359 | BI142: 0.291931344 | BK142: 0.4715909091 | BL142: 0.2248062016 | BM142: 0.3145097466 | BN142: 0.3369689524 | BP142: 0 | BQ142: 0 | BR142: 0.03703703704 | BS142: 0.01234567901
A143: Leapfrogs Pre School | C143: 206135 | D143: DE73 6TS | E143: Chellaston | H143: 6630 | I143: 4200 | J143: 4620 | K143: 15450 | M143: 15450 | N143: P | O143: 4.05 | P143: 62573 | R143: 597 | S143: 378 | T143: 416 | U143: 0.2 | V143: 278.2 | X143: 1804.687843 | Y143: 1143.241168 | Z143: 1257.565284 | AA143: 0.2 | AB143: 841.0988591 | AJ143: 0 | AL143: 92.85714286 | AM143: 58.82352941 | AN143: 64.70588235 | AO143: 0.2 | AP143: 43.27731092 | AU143: 0.04 | AV143: 0 | AX143: 63735.57617 | BE143: 63736 | BF143: 43057 | BG143: 20679 | BI143: 0.4802703393 | BK143: 0.04201680672 | BL143: 0.3495145631 | BM143: 0.4250694642 | BN143: 0.272200278 | BP143: 0.04201680672 | BQ143: 0 | BR143: 0 | BS143: 0.01400560224
A144: Little Acorns Nursery | C144: 509195 | D144: DE22 3LX | E144: Abbey | H144: 1365 | I144: 1680 | J144: 825 | K144: 3870 | M144: 3870 | N144: D | O144: 4.05 | P144: 15674 | R144: 300 | S144: 370 | T144: 182 | U144: 0.2 | V144: 170.4 | X144: 1477.600691 | Y144: 1818.585466 | Z144: 893.0553627 | AA144: 0.2 | AB144: 837.8483039 | AJ144: 0 | AL144: 41.36363636 | AM144: 50.90909091 | AN144: 25 | AO144: 0.2 | AP144: 23.45454545 | AU144: 0.04 | AV144: 0 | AX144: 16705.70285 | BE144: 16706 | BF144: 17583 | BG144: -877 | BI144: -0.0498777228 | BK144: 1.125 | BL144: 1.486486486 | BM144: 0.6359875598 | BN144: 1.082491349 | BP144: 0 | BQ144: 0 | BR144: 0.09090909091 | BS144: 0.0303030303
A145: Little Owls Playgroup | C145: EY492973 | D145: DE22 4FN | E145: Mackworth | H145: 5460 | I145: 6090 | J145: 6105 | K145: 17655 | M145: 17655 | N145: P | O145: 4.05 | P145: 71503 | R145: 1529 | S145: 1705 | T145: 1709 | U145: 0.2 | V145: 988.6 | X145: 3867.5 | Y145: 4313.75 | Z145: 4324.375 | AA145: 0.2 | AB145: 2501.125 | AJ145: 0 | AL145: 227.5 | AM145: 253.75 | AN145: 254.375 | AO145: 0.2 | AP145: 147.125 | AU145: 0.04 | AV145: 0 | AX145: 75139.85 | BE145: 75140 | BF145: 33807 | BG145: 41333 | BI145: 1.222616618 | BK145: 1 | BL145: 1.125 | BM145: 0 | BN145: 0.7083333333 | BP145: 0 | BQ145: 0.125 | BR145: 0 | BS145: 0.04166666667
A146: Little Poppies Pre-School ( Royal British | C146: EY371611 | D146: DE3 9GB | E146: Mickleover | H146: 5070 | I146: 3150 | J146: 3135 | K146: 11355 | M146: 11355 | N146: P | O146: 4.05 | P146: 45988 | R146: 304 | S146: 189 | T146: 188 | U146: 0.2 | V146: 136.2 | X146: 774.1747983 | Y146: 480.9961764 | Z146: 478.7057185 | AA146: 0.2 | AB146: 346.7753386 | AJ146: 0 | AL146: 0 | AM146: 0 | AN146: 0 | AO146: 0.2 | AP146: 0 | AU146: 0.04 | AV146: 0 | AX146: 46470.97534 | BE146: 46471 | BF146: 42932 | BG146: 3539 | BI146: 0.08243268424 | BK146: 0.07386363636 | BL146: 0.07936507937 | BM146: 0.3048628809 | BN146: 0.1526971989 | BP146: 0 | BQ146: 0 | BR146: 0 | BS146: 0
A147: Little Scholars Private Day Nursery(1) Sunnyhill | C147: 509199 | D147: DE23 1GQ | E147: Blagreaves | H147: 4290 | I147: 3780 | J147: 3300 | K147: 11370 | M147: 11370 | N147: D | O147: 4.05 | P147: 46049 | R147: 429 | S147: 378 | T147: 330 | U147: 0.2 | V147: 227.4 | X147: 3814.112789 | Y147: 3360.686794 | Z147: 2933.932915 | AA147: 0.2 | AB147: 2021.7465 | AJ147: 0 | AL147: 1204.5 | AM147: 1061.307692 | AN147: 926.5384615 | AO147: 0.2 | AP147: 638.4692308 | AU147: 0.04 | AV147: 0 | AX147: 48936.61573 | BE147: 48937 | BF147: 43382 | BG147: 5555 | BI147: 0.1280484994 | BK147: 1 | BL147: 0.8461538462 | BM147: 0.8210578947 | BN147: 0.8890705803 | BP147: 0.3076923077 | BQ147: 0.3846153846 | BR147: 0.15 | BS147: 0.2807692308
A148: Little Scholars Private Day Nursery(2) Littleover | C148: 509197 | D148: DE23 3EY | E148: Blagreaves | H148: 3705 | I148: 3150 | J148: 2475 | K148: 9330 | M148: 9330 | N148: D | O148: 4.05 | P148: 37787 | R148: 371 | S148: 315 | T148: 248 | U148: 0.2 | V148: 186.8 | X148: 2785.847846 | Y148: 2368.534605 | Z148: 1860.991476 | AA148: 0.2 | AB148: 1403.074785 | AJ148: 0 | AL148: 268.27432 | AM148: 228.0874786 | AN148: 179.2115903 | AO148: 0.2 | AP148: 135.1146778 | AU148: 0.04 | AV148: 0 | AX148: 39511.98946 | BE148: 39512 | BF148: 40308 | BG148: -796 | BI148: -0.01974794086 | BK148: 0.2021563342 | BL148: 0.6578947368 | BM148: 1.395696172 | BN148: 0.7519157478 | BP148: 0.08086253369 | BQ148: 0 | BR148: 0.1363636364 | BS148: 0.07240872335
A149: Little Steps Playschool C.I.C | C149: EY471706 | D149: DE24 9HY | E149: Sinfin | H149: 5850 | I149: 4620 | J149: 4950 | K149: 15420 | M149: 15420 | N149: P | O149: 4.05 | P149: 62451 | R149: 1755 | S149: 1386 | T149: 1485 | U149: 0.2 | V149: 925.2 | X149: 13375.43667 | Y149: 10563.16537 | Z149: 11317.67718 | AA149: 0.2 | AB149: 7051.255843 | AJ149: 0 | AL149: 1181.933275 | AM149: 933.4242272 | AN149: 1000.097386 | AO149: 0.2 | AP149: 623.0909776 | AU149: 0.04 | AV149: 0 | AX149: 71050.54682 | BE149: 71051 | BF149: 58871 | BG149: 12180 | BI149: 0.2068930373 | BK149: 2.826589595 | BL149: 2.782608696 | BM149: 1.25 | BN149: 2.28639943 | BP149: 0.1387283237 | BQ149: 0.2173913043 | BR149: 0.25 | BS149: 0.202039876
A150: Littlesteps Pre- School | C150: EY385725 | D150: DE23 6EP | E150: Littleover | H150: 4290 | I150: 4620 | J150: 3630 | K150: 12540 | M150: 12540 | N150: P | O150: 4.05 | P150: 50787 | R150: 300 | S150: 323 | T150: 254 | U150: 0.2 | V150: 175.4 | X150: 0 | Y150: 0 | Z150: 0 | AA150: 0.2 | AB150: 0 | AJ150: 0 | AL150: 373.2233836 | AM150: 401.9328746 | AN150: 315.8044015 | AO150: 0.2 | AP150: 218.1921319 | AU150: 0.04 | AV150: 0 | AX150: 51180.59213 | BE150: 51181 | BF150: 53730 | BG150: -2549 | BI150: -0.04744090824 | BK150: 0 | BL150: 0 | BM150: 0 | BN150: 0 | BP150: 0.07627118644 | BQ150: 0.09900990099 | BR150: 0.08571428571 | BS150: 0.08699845772
A151: Mary Poppins Day Nursery | C151: 206117 | D151: DE3 9AJ | E151: Littleover | H151: 10725 | I151: 6510 | J151: 7095 | K151: 24330 | M151: 24330 | N151: D | O151: 4.05 | P151: 98537 | R151: 751 | S151: 456 | T151: 497 | U151: 0.2 | V151: 340.8 | X151: 939.5662585 | Y151: 570.3101485 | Z151: 621.5592172 | AA151: 0.2 | AB151: 426.2871248 | AJ151: 0 | AL151: 0 | AM151: 0 | AN151: 0 | AO151: 0.2 | AP151: 0 | AU151: 0.04 | AV151: 0 | AX151: 99304.08712 | BE151: 99304 | BF151: 108340 | BG151: -9036 | BI151: -0.08340409821 | BK151: 0.08802816901 | BL151: 0.140625 | BM151: 0.03416256763 | BN151: 0.08760524555 | BP151: 0 | BQ151: 0 | BR151: 0 | BS151: 0
A152: Mickleover Methodist Playgroup | C152: 206141 | D152: DE3 9GH | E152: Mickleover | H152: 5421 | I152: 3990 | J152: 4455 | K152: 13866 | M152: 13866 | N152: P | O152: 4.05 | P152: 56157 | R152: 325 | S152: 239 | T152: 267 | U152: 0.2 | V152: 166.2 | X152: 549.3969513 | Y152: 404.37075 | Z152: 451.4966645 | AA152: 0.2 | AB152: 281.0528732 | AJ152: 0 | AL152: 353.2570542 | AM152: 260.0065756 | AN152: 290.3080938 | AO152: 0.2 | AP152: 180.7143447 | AU152: 0.04 | AV152: 0 | AX152: 56784.96722 | BE152: 56785 | BF152: 49069 | BG152: 7716 | BI152: 0.157247957 | BK152: 0.2 | BL152: 0 | BM152: 0.1040381579 | BN152: 0.1013460526 | BP152: 0.05517241379 | BQ152: 0.1153212521 | BR152: 0.025 | BS152: 0.06516455528
A153: Morchid, Abderrahmane | C153: EY479804 | D153: DE23 6PG | E153: Abbey | H153: 780 | I153: 630 | J153: 495 | K153: 1905 | M153: 1905 | N153: P | O153: 4.05 | P153: 7715 | R153: 172 | S153: 139 | T153: 109 | U153: 0.2 | V153: 84 | X153: 1040 | Y153: 840 | Z153: 660 | AA153: 0.2 | AB153: 508 | AJ153: 0 | AL153: 0 | AM153: 0 | AN153: 0 | AO153: 0.2 | AP153: 0 | AU153: 0.04 | AV153: 0 | AX153: 8307 | BE153: 8307 | BF153: 1687 | BG153: 6620 | BI153: 3.924125667 | BK153: 1 | BL153: 3 | BM153: 0 | BN153: 1.333333333 | BP153: 0 | BQ153: 0 | BR153: 0 | BS153: 0
A154: Nettleship Jackie | C154: 205980 | D154: DE24 3LB | E154: Sinfin | H154: 195 | I154: 210 | J154: 0 | K154: 405 | M154: 405 | N154: D | O154: 4.05 | P154: 1640 | R154: 59 | S154: 63 | T154: 0 | U154: 0.2 | V154: 24.4 | X154: 0 | Y154: 0 | Z154: 0 | AA154: 0.2 | AB154: 0 | AJ154: 0 | AL154: 0 | AM154: 0 | AN154: 0 | AO154: 0.2 | AP154: 0 | AU154: 0.04 | AV154: 0 | AX154: 1664.4 | BE154: 1664 | BF154: 866 | BG154: 798 | BI154: 0.92147806 | BK154: 0 | BL154: 0 | BM154: 0 | BN154: 0 | BP154: 0 | BQ154: 0 | BR154: 0 | BS154: 0
A155: Oak House Nursery | C155: EY304261 | D155: DE3 9FN | E155: Mickleover | H155: 7800 | I155: 6300 | J155: 6600 | K155: 20700 | M155: 20700 | N155: D | O155: 4.05 | P155: 83835 | R155: 468 | S155: 378 | T155: 396 | U155: 0.2 | V155: 248.4 | X155: 978.1545764 | Y155: 790.0479271 | Z155: 827.669257 | AA155: 0.2 | AB155: 519.1743521 | AJ155: 0 | AL155: 163.0909091 | AM155: 131.7272727 | AN155: 138 | AO155: 0.2 | AP155: 86.56363636 | AU155: 0.04 | AV155: 0 | AX155: 84689.13799 | BE155: 84689 | BF155: 80760 | BG155: 3929 | BI155: 0.04865032194 | BK155: 0.1136363636 | BL155: 0.12 | BM155: 0.142576935 | BN155: 0.1254044329 | BP155: 0.02272727273 | BQ155: 0.04 | BR155: 0 | BS155: 0.02090909091
A156: Oaktree Day Nursery | C156: 258404 | D156: DE21 6ND | E156: Chaddesden | H156: 16575 | I156: 15750 | J156: 14025 | K156: 46350 | M156: 46350 | N156: D | O156: 4.05 | P156: 187718 | R156: 2321 | S156: 2205 | T156: 1964 | U156: 0.2 | V156: 1298 | X156: 26415.84392 | Y156: 25101.02816 | Z156: 22351.86794 | AA156: 0.2 | AB156: 14773.748 | AJ156: 0 | AL156: 1747.699179 | AM156: 1660.709627 | AN156: 1478.822382 | AO156: 0.2 | AP156: 977.4462375 | AU156: 0.04 | AV156: 0 | AX156: 204767.1942 | BE156: 204767 | BF156: 134092 | BG156: 70675 | BI156: 0.5270635086 | BK156: 0.7791411043 | BL156: 1.243902439 | BM156: 2.758104678 | BN156: 1.593716074 | BP156: 0.01415762152 | BQ156: 0.0243902439 | BR156: 0.2777777778 | BS156: 0.1054418811
A157: Orchard Day Nursery And Nursery Scho | C157: 258405 | D157: DE73 5SB | E157: Chellaston | H157: 6825 | I157: 9240 | J157: 3795 | K157: 19860 | M157: 19860 | N157: D | O157: 4.05 | P157: 80433 | R157: 614 | S157: 832 | T157: 342 | U157: 0.2 | V157: 357.6 | X157: 4599.509424 | Y157: 6227.028143 | Z157: 2557.529416 | AA157: 0.2 | AB157: 2676.813397 | AJ157: 0 | AL157: 373.1157721 | AM157: 505.141353 | AN157: 207.46877 | AO157: 0.2 | AP157: 217.145179 | AU157: 0.04 | AV157: 0 | AX157: 83684.55858 | BE157: 83685 | BF157: 78424 | BG157: 5261 | BI157: 0.0670840559 | BK157: 0.5165876777 | BL157: 1.125 | BM157: 0.3801747065 | BN157: 0.6739207947 | BP157: 0.1184834123 | BQ157: 0 | BR157: 0.04552352049 | BS157: 0.0546689776
A158: Orchard Nursery School(1) | C158: 258406 | D158: DE73 6RF | E158: Chellaston | H158: 7410 | I158: 9450 | J158: 5115 | K158: =SUM(H158:J158) -> 21975 | M158: =IF(L158<0,G158,K158) -> 21975 | N158: D | O158: =$O$9 -> 4.05 | P158: =ROUND(O158*M158,0) -> 88999 | R158: 667 | S158: 851 | T158: 460 | U158: =$U$9 -> 0.2 | V158: =SUM(R158+S158+T158)*U158 -> 395.6 | X158: =H158*$BN158 -> 2909.946862 | Y158: =I158*$BN158 -> 3711.065836 | Z158: =J158*$BN158 -> 2008.688016 | AA158: =$AA$9 -> 0.2 | AB158: =SUM(X158+Y158+Z158)*AA158 -> 1725.940143 | AJ158: 0 | AL158: =H158*$BS158 -> 143.2057313 | AM158: =I158*$BS158 -> 182.6307909 | AN158: =J158*$BS158 -> 98.85253922 | AO158: =AO$9 -> 0.2 | AP158: =SUM(AL158:AN158)*AO158 -> 84.93781229 | AU158: =$AU$9 -> 0.04 | AV158: =(AR158+AS158+AT158)*AU158 -> 0 | AX158: =P158+AB158+AD158+AF158+AJ158+AP158+AV158+V158 -> 91205.47796 | BE158: =ROUND((SUM(AZ158:BD158)+AX158),0) -> 91205 | BF158: 88197 | BG158: =BE158-BF158 -> 3008 | BI158: =BG158/BF158 -> 0.03410546844 | BK158: 0.4820766378 | BL158: 0.4225352113 | BM158: 0.2735042894 | BN158: 0.3927053795 | BP158: 0.01854140915 | BQ158: 0.03943661972 | BR158: 0 | BS158: 0.01932600962
A159: Park Playgroup (the) | C159: 206160 | D159: DE21 6LN | E159: Chaddesden | H159: 1560 | I159: 210 | J159: 825 | K159: 2595 | M159: 2595 | N159: P | O159: 4.05 | P159: 10510 | R159: 218 | S159: 29 | T159: 116 | U159: 0.2 | V159: 72.6 | X159: 1521.940692 | Y159: 204.8766316 | Z159: 804.8724812 | AA159: 0.2 | AB159: 506.3379609 | AJ159: 0 | AL159: 0 | AM159: 0 | AN159: 0 | AO159: 0.2 | AP159: 0 | AU159: 0.04 | AV159: 0 | AX159: 11088.93796 | BE159: 11089 | BF159: 5540 | BG159: 5549 | BI159: 1.001624549 | BK159: 0 | BL159: 1.5 | BM159: 1.426809023 | BN159: 0.9756030075 | BP159: 0 | BQ159: 0 | BR159: 0 | BS159: 0
A160: Play & Learn | C160: EY284120 | D160: DE23 6HB | E160: Abbey | H160: 11310 | I160: 8820 | J160: 8910 | K160: 29040 | M160: 29040 | N160: D | O160: 4.05 | P160: 117612 | R160: 2488 | S160: 1940 | T160: 1960 | U160: 0.2 | V160: 1277.6 | X160: 19593.24597 | Y160: 15279.61357 | Z160: 15435.52799 | AA160: 0.2 | AB160: 10061.67751 | AJ160: 0 | AL160: 4486.600078 | AM160: 3498.834013 | AN160: 3534.536401 | AO160: 0.2 | AP160: 2303.994098 | AU160: 0.04 | AV160: 0 | AX160: 131255.2716 | BE160: 131255 | BF160: 119159 | BG160: 12096 | BI160: 0.1015114259 | BK160: 1.179233308 | BL160: 2.20361991 | BM160: 1.814294254 | BN160: 1.732382491 | BP160: 0.2650418888 | BQ160: 0.1583710407 | BR160: 0.7666666667 | BS160: 0.3966931987
A161: Playcorner Nursery | C161: EY474393 | D161: DE23 8GD | E161: Arboretum | H161: 4875 | I161: 2520 | J161: 3300 | K161: 10695 | M161: 10695 | N161: D | O161: 4.05 | P161: 43315 | R161: 1073 | S161: 554 | T161: 726 | U161: 0.2 | V161: 470.6 | X161: 9156.746032 | Y161: 4733.333333 | Z161: 6198.412698 | AA161: 0.2 | AB161: 4017.698413 | AJ161: 0 | AL161: 2646.428571 | AM161: 1368 | AN161: 1791.428571 | AO161: 0.2 | AP161: 1161.171429 | AU161: 0.04 | AV161: 0 | AX161: 48964.46984 | BE161: 48964 | BF161: 42670 | BG161: 6294 | BI161: 0.1475041012 | BK161: 2.857142857 | BL161: 2.777777778 | BM161: 0 | BN161: 1.878306878 | BP161: 0.4285714286 | BQ161: 0 | BR161: 1.2 | BS161: 0.5428571429
A162: Playdays Opportunity Group | C162: 206146 | D162: DE73 1TU | E162: Chellaston | H162: 5850 | I162: 5985 | J162: 5362.5 | K162: 17197.5 | M162: 17197.5 | N162: P | O162: 4.05 | P162: 69650 | R162: 527 | S162: 539 | T162: 483 | U162: 0.2 | V162: 309.8 | X162: 2253.258562 | Y162: 2305.256837 | Z162: 2065.487016 | AA162: 0.2 | AB162: 1324.800483 | AJ162: 0 | AL162: 117.1390374 | AM162: 119.842246 | AN162: 107.377451 | AO162: 0.2 | AP162: 68.87174688 | AU162: 0.04 | AV162: 0 | AX162: 71353.47223 | BE162: 71353 | BF162: 69331 | BG162: 2022 | BI162: 0.02916444303 | BK162: 0.02673796791 | BL162: 0.4918032787 | BM162: 0.6369759649 | BN162: 0.3851724038 | BP162: 0.02673796791 | BQ162: 0 | BR162: 0.03333333333 | BS162: 0.02002376708
A163: Positive Steps Childcare | C163: EY370198 | D163: DE23 6US | E163: Arboretum | H163: 3900 | I163: 3990 | J163: 3795 | K163: 11685 | M163: 11685 | N163: D | O163: 4.05 | P163: 47324 | R163: 858 | S163: 878 | T163: 835 | U163: 0.2 | V163: 514.2 | X163: 9231.164425 | Y163: 9444.191296 | Z163: 8982.633075 | AA163: 0.2 | AB163: 5531.597759 | AJ163: 0 | AL163: 3106.368724 | AM163: 3178.054156 | AN163: 3022.73572 | AO163: 0.2 | AP163: 1861.43172 | AU163: 0.04 | AV163: 0 | AX163: 55231.22948 | BE163: 55231 | BF163: 67525 | BG163: -12294 | BI163: -0.1820659015 | BK163: 2.72 | BL163: 2.866666667 | BM163: 1.514229045 | BN163: 2.366965237 | BP163: 0.764 | BQ163: 0.6666666667 | BR163: 0.9588477366 | BS163: 0.7965048011
A164: Riverside Day Nursery - Asquith Court | C164: EY283239 | D164: DE24 8HX | E164: Alvaston | H164: 8190 | I164: 6300 | J164: 6600 | K164: 21090 | M164: 21090 | N164: D | O164: 4.05 | P164: 85415 | R164: 2293 | S164: 1764 | T164: 1848 | U164: 0.2 | V164: 1181 | X164: 8355.041914 | Y164: 6426.955318 | Z164: 6733.00081 | AA164: 0.2 | AB164: 4302.999608 | AJ164: =AI164*AH164 -> 0 | AL164: 235.6565913 | AM164: 181.274301 | AN164: 189.9064106 | AO164: 0.2 | AP164: 121.3674606 | AU164: 0.04 | AV164: 0 | AX164: 91020.36707 | BE164: 91020 | BF164: 65639 | BG164: 25381 | BI164: 0.3866756044 | BK164: 1.197456087 | BL164: 1.271604938 | BM164: 0.5913938879 | BN164: 1.020151638 | BP164: 0.02180496669 | BQ164: 0 | BR164: 0.06451612903 | BS164: 0.02877369857
A165: Rosehill Early Years Centre | C165: EY440893 | D165: DE23 6WY | E165: Arboretum | H165: 5850 | I165: 9450 | J165: 3795 | K165: 19095 | M165: 19095 | N165: D | O165: 4.05 | P165: 77335 | R165: 1287 | S165: 2079 | T165: 835 | U165: 0.2 | V165: 840.2 | X165: 16258.48415 | Y165: 26263.70517 | Z165: 10547.17049 | AA165: 0.2 | AB165: 10613.87196 | AJ165: 0 | AL165: 2004.924051 | AM165: 3238.723467 | AN165: 1300.630218 | AO165: 0.2 | AP165: 1308.855547 | AU165: 0.04 | AV165: 0 | AX165: 90097.92751 | BE165: 90098 | BF165: 104053 | BG165: -13955 | BI165: -0.1341143456 | BK165: 2.496932515 | BL165: 2.882352941 | BM165: 2.958398724 | BN165: 2.77922806 | BP165: 0.1472392638 | BQ165: 0.5294117647 | BR165: 0.3515151515 | BS165: 0.34272206
A166: Royal School For The Deaf | C166: 113044 | D166: DE22 3BH | E166: Darley | H166: 975 | I166: 210 | J166: 0 | K166: 1185 | M166: 1185 | N166: P | O166: 4.05 | P166: 4799 | R166: 117 | S166: 25 | T166: 0 | U166: 0.2 | V166: 28.4 | X166: 1190.239327 | Y166: 256.3592398 | Z166: 0 | AA166: 0.2 | AB166: 289.3197135 | AJ166: 0 | AL166: 335.8333333 | AM166: 72.33333333 | AN166: 0 | AO166: 0.2 | AP166: 81.63333333 | AU166: 0.04 | AV166: 0 | AX166: 5198.353047 | BE166: 5198 | BF166: 16655 | BG166: -11457 | BI166: -0.6879015311 | BK166: 1.2 | BL166: 1.5 | BM166: 0.9622748538 | BN166: 1.220758285 | BP166: 0.2 | BQ166: 0.1666666667 | BR166: 0.6666666667 | BS166: 0.3444444444
A167: Rydale Childrens Centre P D N | C167: EY370254 | D167: DE22 4EN | E167: Mackworth | H167: 8385 | I167: 5250 | J167: 5280 | K167: 18915 | M167: 18915 | N167: D | O167: 4.05 | P167: 76606 | R167: 2348 | S167: 1470 | T167: 1478 | U167: 0.2 | V167: 1059.2 | X167: 8919.184414 | Y167: 5584.462513 | Z167: 5616.373728 | AA167: 0.2 | AB167: 4024.004131 | AJ167: 0 | AL167: 283.8108278 | AM167: 177.6990872 | AN167: 178.7145105 | AO167: 0.2 | AP167: 128.0448851 | AU167: 0.04 | AV167: 0 | AX167: 81817.24902 | BE167: 81817 | BF167: 83152 | BG167: -1335 | BI167: -0.01605493554 | BK167: 1 | BL167: 1.515580737 | BM167: 0.6755406996 | BN167: 1.063707145 | BP167: 0.02222222222 | BQ167: 0.07932011331 | BR167: 0 | BS167: 0.03384744518
A168: Scaife Deborah | C168: EY294474 | D168: DE24 0TZ | E168: Boulton | H168: 0 | I168: 210 | J168: 330 | K168: 540 | M168: 540 | N168: P | O168: 4.05 | P168: 2187 | R168: 0 | S168: 53 | T168: 83 | U168: 0.2 | V168: 27.2 | X168: 0 | Y168: 163.3333333 | Z168: 256.6666667 | AA168: 0.2 | AB168: 84 | AJ168: 0 | AL168: 0 | AM168: 0 | AN168: 0 | AO168: 0.2 | AP168: 0 | AU168: 0.04 | AV168: 0 | AX168: 2298.2 | BE168: 2298 | BF168: 3829 | BG168: -1531 | BI168: -0.3998433011 | BK168: 0 | BL168: 2.333333333 | BM168: 0 | BN168: 0.7777777778 | BP168: 0 | BQ168: 0 | BR168: 0 | BS168: 0
A169: Scallywags Nursery | C169: EY481412 | D169: DE73 5WX | E169: Chellaston | H169: 8775 | I169: 7980 | J169: 7425 | K169: 24180 | M169: 24180 | N169: P | O169: 4.05 | P169: 97929 | R169: 790 | S169: 718 | T169: 668 | U169: 0.2 | V169: 435.2 | X169: 485.2534562 | Y169: 441.2903226 | Z169: 410.5990783 | AA169: 0.2 | AB169: 267.4285714 | AJ169: 0 | AL169: 0 | AM169: 0 | AN169: 0 | AO169: 0.2 | AP169: 0 | AU169: 0.04 | AV169: 0 | AX169: 98631.62857 | BE169: 98632 | BF169: 52033 | BG169: 46599 | BI169: 0.8955662752 | BK169: 0.1658986175 | BL169: 0 | BM169: 0 | BN169: 0.05529953917 | BP169: 0 | BQ169: 0 | BR169: 0 | BS169: 0
A170: Schools Out | C170: EY466991 | D170: DE23 2QL | E170: Blagreaves | H170: 3510 | I170: 7560 | J170: 5940 | K170: 17010 | M170: 17010 | N170: P | O170: 4.05 | P170: 68891 | R170: 351 | S170: 756 | T170: 594 | U170: 0.2 | V170: 340.2 | X170: 2340 | Y170: 5040 | Z170: 3960 | AA170: 0.2 | AB170: 2268 | AJ170: 0 | AL170: 117 | AM170: 252 | AN170: 198 | AO170: 0.2 | AP170: 113.4 | AU170: 0.04 | AV170: 0 | AX170: 71612.6 | BE170: 71613 | BF170: 19422 | BG170: 52191 | BI170: 2.68721038 | BK170: 1.2 | BL170: 0.8 | BM170: 0 | BN170: 0.6666666667 | BP170: 0.1 | BQ170: 0 | BR170: 0 | BS170: 0.03333333333
A171: Sewter, Julie Elizabeth | C171: EY368441 | D171: DE73 6UP | E171: Chellaston | H171: 390 | I171: 0 | J171: 0 | K171: 390 | M171: 390 | N171: D | O171: 4.05 | P171: 1580 | R171: 35 | S171: 0 | T171: 0 | U171: 0.2 | V171: 7 | X171: 0 | Y171: 0 | Z171: 0 | AA171: 0.2 | AB171: 0 | AJ171: 0 | AL171: 0 | AM171: 0 | AN171: 0 | AO171: 0.2 | AP171: 0 | AU171: 0.04 | AV171: 0 | AX171: 1587 | BE171: 1587 | BF171: 3043 | BG171: -1456 | BI171: -0.478475189 | BK171: 0 | BL171: 0 | BM171: 0 | BN171: 0 | BP171: 0 | BQ171: 0 | BR171: 0 | BS171: 0
A172: Shelton Lock Pre-School | C172: EY347673 | D172: DE24 9AD | E172: Boulton | H172: 1950 | I172: 1260 | J172: 2475 | K172: 5685 | M172: 5685 | N172: P | O172: 4.05 | P172: 23024 | R172: 488 | S172: 315 | T172: 619 | U172: 0.2 | V172: 284.4 | X172: 2568.484807 | Y172: 1659.636337 | Z172: 3259.999947 | AA172: 0.2 | AB172: 1497.624218 | AJ172: 0 | AL172: 0 | AM172: 0 | AN172: 0 | AO172: 0.2 | AP172: 0 | AU172: 0.04 | AV172: 0 | AX172: 24806.02422 | BE172: 24806 | BF172: 12557 | BG172: 12249 | BI172: 0.9754718484 | BK172: 1.166666667 | BL172: 0 | BM172: 2.784848421 | BN172: 1.317171696 | BP172: 0 | BQ172: 0 | BR172: 0 | BS172: 0
A173: Shining Stars Day Nursery | C173: EY497499 | D173: DE23 6WW | E173: Arboretum | H173: 1560 | I173: 4200 | J173: 4785 | K173: 10545 | M173: 10545 | N173: P | O173: 4.05 | P173: 42707 | R173: 343 | S173: 924 | T173: 1053 | U173: 0.2 | V173: 464 | X173: 1560 | Y173: 4200 | Z173: 4785 | AA173: 0.2 | AB173: 2109 | AJ173: 0 | AL173: 520 | AM173: 1400 | AN173: 1595 | AO173: 0.2 | AP173: 703 | AU173: 0.04 | AV173: 0 | AX173: 45983 | BE173: 45983 | BF173: 3961 | BG173: 42022 | BI173: 10.60893714 | BK173: 0 | BL173: 3 | BM173: 0 | BN173: 1 | BP173: 0 | BQ173: 1 | BR173: 0 | BS173: 0.3333333333
A174: Silver Trees Private Day Nursery | C174: EY282326 | D174: DE22 3AD | E174: Darley | H174: 5655 | I174: 8820 | J174: 4455 | K174: 18930 | M174: 18930 | N174: D | O174: 4.05 | P174: 76667 | R174: 679 | S174: 1058 | T174: 535 | U174: 0.2 | V174: 454.4 | X174: 6970.360451 | Y174: 10871.54362 | Z174: 5491.23887 | AA174: 0.2 | AB174: 4666.628588 | AJ174: 0 | AL174: 58.90625 | AM174: 91.875 | AN174: 46.40625 | AO174: 0.2 | AP174: 39.4375 | AU174: 0.04 | AV174: 0 | AX174: 81827.46609 | BE174: 81827 | BF174: 90710 | BG174: -8883 | BI174: -0.09792746114 | BK174: 1.184549356 | BL174: 1.541411669 | BM174: 0.9718429276 | BN174: 1.232601318 | BP174: 0 | BQ174: 0 | BR174: 0.03125 | BS174: 0.01041666667
A175: Sinfin Community Childcare | C175: EY279508 | D175: DE24 9HG | E175: Sinfin | H175: 7605 | I175: 6090 | J175: 5775 | K175: 19470 | M175: 19470 | N175: D | O175: 4.05 | P175: 78854 | R175: 2282 | S175: 1827 | T175: 1733 | U175: 0.2 | V175: 1168.4 | X175: 15145.25858 | Y175: 12128.15579 | Z175: 11500.83739 | AA175: 0.2 | AB175: 7754.850352 | AJ175: 0 | AL175: 81.77419355 | AM175: 65.48387097 | AN175: 62.09677419 | AO175: 0.2 | AP175: 41.87096774 | AU175: 0.04 | AV175: 0 | AX175: 87819.12132 | BE175: 87819 | BF175: 89519 | BG175: -1700 | BI175: -0.01899038193 | BK175: 1.786001609 | BL175: 2.580645161 | BM175: 1.60781421 | BN175: 1.991486993 | BP175: 0 | BQ175: 0.03225806452 | BR175: 0 | BS175: 0.01075268817
A176: Sinfin Community Childcare at SCILLS Community Centre | C176: EY456892 | D176: DE24 9NT | E176: Sinfin | H176: 5850 | I176: 3150 | J176: 4125 | K176: 13125 | M176: 13125 | N176: D | O176: 4.05 | P176: 53156 | R176: 1755 | S176: 945 | T176: 1238 | U176: 0.2 | V176: 787.6 | X176: 11210.14703 | Y176: 6036.233016 | Z176: 7904.590854 | AA176: 0.2 | AB176: 5030.19418 | AJ176: 0 | AL176: 125.8064516 | AM176: 67.74193548 | AN176: 88.70967742 | AO176: 0.2 | AP176: 56.4516129 | AU176: 0.04 | AV176: 0 | AX176: 59030.24579 | BE176: 59030 | BF176: 57887 | BG176: 1143 | BI176: 0.01974536597 | BK176: 1.741935484 | BL176: 2.769230769 | BM176: 1.237627096 | BN176: 1.91626445 | BP176: 0.06451612903 | BQ176: 0 | BR176: 0 | BS176: 0.02150537634
A177: St Andrew's Pre-School Playgroup | C177: 206152 | D177: DE23 7PX | E177: Blagreaves | H177: 6825 | I177: 5880 | J177: 4950 | K177: 17655 | M177: 17655 | N177: P | O177: 4.05 | P177: 71503 | R177: 683 | S177: 588 | T177: 495 | U177: 0.2 | V177: 353.2 | X177: 4347.217172 | Y177: 3745.294795 | Z177: 3152.92674 | AA177: 0.2 | AB177: 2249.087742 | AJ177: 0 | AL177: 2624.501548 | AM177: 2261.109026 | AN177: 1903.484639 | AO177: 0.2 | AP177: 1357.819043 | AU177: 0.04 | AV177: 0 | AX177: 75463.10678 | BE177: 75463 | BF177: 57977 | BG177: 17486 | BI177: 0.3016023596 | BK177: 0.4549450549 | BL177: 0.5356037152 | BM177: 0.9203159211 | BN177: 0.6369548971 | BP177: 0.3692307692 | BQ177: 0.4643962848 | BR177: 0.32 | BS177: 0.3845423514
A178: St Edmunds Pre-School And Playgroup | C178: EY535976 | D178: DE22 2FN | E178: Allestree | H178: 3900 | I178: 2646 | J178: 2557.5 | K178: 9103.5 | M178: 9103.5 | N178: P | O178: 4.05 | P178: 36869 | R178: 117 | S178: 79 | T178: 77 | U178: 0.2 | V178: 54.6 | X178: 362.8980433 | Y178: 246.2123647 | Z178: 237.9773707 | AA178: 0.2 | AB178: 169.4175557 | AJ178: 0 | AL178: 123.5585586 | AM178: 83.82972973 | AN178: 81.0259009 | AO178: 0.2 | AP178: 57.68283784 | AU178: 0.04 | AV178: 0 | AX178: 37150.70039 | BE178: 37151 | BF178: 33945 | BG178: 3206 | BI178: 0.0944468994 | BK178: 0.0990990991 | BL178: 0.1063829787 | BM178: 0.07367026316 | BN178: 0.09305078033 | BP178: 0.04504504505 | BQ178: 0 | BR178: 0.05 | BS178: 0.03168168168
A179: St Joseph's R. C. Pre-School | C179: 206154 | D179: DE23 6SB | E179: Arboretum | H179: 8775 | I179: 6300 | J179: 6105 | K179: 21180 | M179: 21180 | N179: P | O179: 4.05 | P179: 85779 | R179: 1931 | S179: 1386 | T179: 1343 | U179: 0.2 | V179: 932 | X179: 18955.00659 | Y179: 13608.72268 | Z179: 13187.50031 | AA179: 0.2 | AB179: 9150.245915 | AJ179: 0 | AL179: 5278.513199 | AM179: 3789.701784 | AN179: 3672.401491 | AO179: 0.2 | AP179: 2548.123295 | AU179: 0.04 | AV179: 0 | AX179: 98409.36921 | BE179: 98409 | BF179: 107675 | BG179: -9266 | BI179: -0.08605525888 | BK179: 2.147196262 | BL179: 2.318181818 | BM179: 2.014966053 | BN179: 2.160114711 | BP179: 0.6066978193 | BQ179: 0.5779220779 | BR179: 0.62 | BS179: 0.6015399657
A180: St Paul's Church Hall Pre-School | C180: EY395637 | D180: DE1 3RT | E180: Darley | H180: 780 | I180: 630 | J180: 825 | K180: 2235 | M180: 2235 | N180: P | O180: 4.05 | P180: 9052 | R180: 94 | S180: 76 | T180: 99 | U180: 0.2 | V180: 53.8 | X180: 1292.783041 | Y180: 1044.170918 | Z180: 1367.366678 | AA180: 0.2 | AB180: 740.8641273 | AJ180: 0 | AL180: 398.8888889 | AM180: 322.1794872 | AN180: 421.9017094 | AO180: 0.2 | AP180: 228.5940171 | AU180: 0.04 | AV180: 0 | AX180: 10075.25814 | BE180: 10075 | BF180: 10634 | BG180: -559 | BI180: -0.05256723716 | BK180: 2.355555556 | BL180: 1.333333333 | BM180: 1.283353576 | BN180: 1.657414155 | BP180: 0.4444444444 | BQ180: 0.8333333333 | BR180: 0.2564102564 | BS180: 0.5113960114
A181: Strange, Emma Louise | C181: EY455065 | D181: DE24 0GA | E181: Boulton | H181: 390 | I181: 0 | J181: 0 | K181: 390 | M181: 390 | N181: P | O181: 4.05 | P181: 1580 | R181: 98 | S181: 0 | T181: 0 | U181: 0.2 | V181: 19.6 | X181: 97.5 | Y181: 0 | Z181: 0 | AA181: 0.2 | AB181: 19.5 | AJ181: 0 | AL181: 0 | AM181: 0 | AN181: 0 | AO181: 0.2 | AP181: 0 | AU181: 0.04 | AV181: 0 | AX181: 1619.1 | BE181: 1619 | BF181: 2919 | BG181: -1300 | BI181: -0.4453579993 | BK181: 0.75 | BL181: 0 | BM181: 0 | BN181: 0.25 | BP181: 0 | BQ181: 0 | BR181: 0 | BS181: 0
A182: Sunny Days Nursery | C182: EY484523 | D182: DE21 4AA | E182: Darley | H182: 2340 | I182: 3570 | J182: 2310 | K182: 8220 | M182: 8220 | N182: D | O182: 4.05 | P182: 33291 | R182: 281 | S182: 428 | T182: 277 | U182: 0.2 | V182: 197.2 | X182: 1318.674699 | Y182: 2011.82422 | Z182: 1301.768613 | AA182: 0.2 | AB182: 926.4535063 | AL182: 0 | AM182: 0 | AN182: 0 | AO182: 0.2 | AP182: 0 | AU182: 0.04 | AV182: 0 | AX182: 34414.65351 | BE182: 34415 | BF182: 23533 | BG182: 10882 | BI182: 0.4624144818 | BK182: 0.7307692308 | BL182: 0.9598393574 | BM182: 0 | BN182: 0.5635361961 | BP182: 0 | BQ182: 0 | BR182: 0 | BS182: 0
A183: Sure Start Derwent Stepping Stones | C183: EY330097 | D183: DE21 6AH | E183: Derwent | H183: 10530 | I183: 6300 | J183: 4950 | K183: 21780 | M183: 21780 | N183: D | O183: 4.05 | P183: 88209 | R183: 2843 | S183: 1701 | T183: 1337 | U183: 0.2 | V183: 1176.2 | X183: 22077.91189 | Y183: 13209.00712 | Z183: 10378.50559 | AA183: 0.2 | AB183: 9133.08492 | AJ183: =AI183*AH183 -> 0 | AL183: 627.5819501 | AM183: 375.4763804 | AN183: 295.017156 | AO183: 0.2 | AP183: 259.6150973 | AU183: 0.04 | AV183: 0 | AX183: 98777.90002 | BE183: 98778 | BF183: 98499 | BG183: 279 | BI183: 0.002832516066 | BK183: 2.370892019 | BL183: 2.293217746 | BM183: 1.625893623 | BN183: 2.096667796 | BP183: 0.04694835681 | BQ183: 0.03569607343 | BR183: 0.09615384615 | BS183: 0.05959942546
A184: The Cottage Private Day Nursery Uttoxeter Road | C184: TCPDNU | D184: DE3 9AX | E184: Unknown | H184: 6435 | I184: 6090 | J184: 6435 | K184: 18960 | M184: 18960 | N184: D | O184: 4.05 | P184: 76788 | R184: 1139 | S184: 1078 | T184: 1139 | U184: 0.2 | V184: 671.2 | X184: 0 | Y184: 0 | Z184: 0 | AA184: 0.2 | AB184: 0 | AJ184: =AI184*AH184 -> 0 | AL184: 0 | AM184: 0 | AN184: 0 | AO184: 0.2 | AP184: 0 | AU184: 0.04 | AV184: 0 | AX184: 77459.2 | BE184: 77459 | BF184: 25842 | BG184: 51617 | BI184: 1.997407321 | BK184: 0 | BL184: 0 | BM184: 0 | BN184: 0 | BP184: 0 | BQ184: 0 | BR184: 0 | BS184: 0
A185: The Cottage Private Day Nursery(3) | C185: 206103 | D185: DE22 3PD | E185: Abbey | H185: 10140 | I185: 6930 | J185: 7260 | K185: 24330 | M185: 24330 | N185: D | O185: 4.05 | P185: 98537 | R185: 2231 | S185: 1525 | T185: 1597 | U185: 0.2 | V185: 1070.6 | X185: 7480.932628 | Y185: 5112.708394 | Z185: 5356.170698 | AA185: 0.2 | AB185: 3589.962344 | AJ185: =AI185*AH185 -> 0 | AL185: 579.9772727 | AM185: 396.375 | AN185: 415.25 | AO185: 0.2 | AP185: 278.3204545 | AU185: 0.04 | AV185: 0 | AX185: 103475.8828 | BE185: 103476 | BF185: 95482 | BG185: 7994 | BI185: 0.08372258646 | BK185: 0.8436363636 | BL185: 0.7111111111 | BM185: 0.6585462022 | BN185: 0.737764559 | BP185: 0.01818181818 | BQ185: 0 | BR185: 0.1534090909 | BS185: 0.0571969697
A186: The Faraway Tree Day Nursery | C186: EY495633 | D186: DE22 3HQ | E186: Abbey | H186: 975 | I186: 1260 | J186: 1815 | K186: 4050 | M186: 4050 | N186: D | O186: 4.05 | P186: 16403 | R186: 215 | S186: 277 | T186: 399 | U186: 0.2 | V186: 178.2 | X186: 744.4874156 | Y186: 962.106814 | Z186: 1385.891958 | AA186: 0.2 | AB186: 618.4972376 | AL186: 0 | AM186: 0 | AN186: 0 | AO186: 0.2 | AP186: 0 | AU186: 0.04 | AV186: 0 | AX186: 17199.69724 | BE186: 17200 | BF186: 12752 | BG186: 4448 | BI186: 0.3488080301 | BK186: 0.6685082873 | BL186: 1.622222222 | BM186: 0 | BN186: 0.7635768365 | BP186: 0 | BQ186: 0 | BR186: 0 | BS186: 0
A187: The Orchard Garden Private Day Nurser | C187: EY103452 | D187: DE1 1RX | E187: Arboretum | H187: 10725 | I187: 6720 | J187: 6105 | K187: 23550 | M187: 23550 | N187: D | O187: 4.05 | P187: 95378 | R187: 2360 | S187: 1478 | T187: 1343 | U187: 0.2 | V187: 1036.2 | X187: 23405.30974 | Y187: 14665.14512 | Z187: 13323.02247 | AA187: 0.2 | AB187: 10278.69547 | AJ187: =AI187*AH187 -> 0 | AL187: 785.8709925 | AM187: 492.4058806 | AN187: 447.3419496 | AO187: 0.2 | AP187: 345.1237645 | AU187: 0.04 | AV187: 0 | AX187: 107038.0192 | BE187: 107038 | BF187: 106618 | BG187: 420 | BI187: 0.003939297304 | BK187: 1.98989899 | BL187: 2.451467269 | BM187: 2.105573529 | BN187: 2.182313263 | BP187: 0.07070707071 | BQ187: 0.09029345372 | BR187: 0.05882352941 | BS187: 0.07327468461
A188: Tiny Tots At Boulton Children's Centre | C188: EY495143 | D188: DE24 0DD | E188: Boulton | H188: 1560 | I188: 0 | J188: 660 | K188: 2220 | M188: 2220 | N188: D | O188: 4.05 | P188: 8991 | R188: 390 | S188: 0 | T188: 165 | U188: 0.2 | V188: 111 | X188: 1040 | Y188: 0 | Z188: 440 | AA188: 0.2 | AB188: 296 | AJ188: 0 | AL188: 0 | AM188: 0 | AN188: 0 | AO188: 0.2 | AP188: 0 | AU188: 0.04 | AV188: 0 | AX188: 9398 | BE188: 9398 | BF188: 3102 | BG188: 6296 | BI188: 2.029658285 | BK188: 2 | BL188: 0 | BM188: 0 | BN188: 0.6666666667 | BP188: 0 | BQ188: 0 | BR188: 0 | BS188: 0
A189: Tiny Tots Nursery | C189: EY497405 | D189: DE24 0JP | E189: Alvaston | H189: 6825 | I189: 6300 | J189: 6105 | K189: 19230 | M189: 19230 | N189: P | O189: 4.05 | P189: 77882 | R189: 1911 | S189: 1764 | T189: 1709 | U189: 0.2 | V189: 1076.8 | X189: 7863.611809 | Y189: 7258.718593 | Z189: 7034.04397 | AA189: 0.2 | AB189: 4431.274874 | AJ189: 0 | AL189: 57.16080402 | AM189: 52.7638191 | AN189: 51.13065327 | AO189: 0.2 | AP189: 32.21105528 | AU189: 0.04 | AV189: 0 | AX189: 83422.28593 | BE189: 83422 | BF189: 71158 | BG189: 12264 | BI189: 0.1723488575 | BK189: 1.306532663 | BL189: 2.15 | BM189: 0 | BN189: 1.152177554 | BP189: 0.02512562814 | BQ189: 0 | BR189: 0 | BS189: 0.00837520938
A190: Treetops Private Day Nursery | C190: 258424 | D190: DE21 2DF | E190: Oakwood | H190: 8775 | I190: 3570 | J190: 6600 | K190: =SUM(H190:J190) -> 18945 | M190: =IF(L190<0,G190,K190) -> 18945 | N190: D | O190: 4.05 | P190: =ROUND(O190*M190,0) -> 76727 | R190: 614 | S190: 250 | T190: 462 | U190: 0.2 | V190: =SUM(R190+S190+T190)*U190 -> 265.2 | X190: 5614.965729 | Y190: 2284.37922 | Z190: 4223.222087 | AA190: 0.2 | AB190: =SUM(X190+Y190+Z190)*AA190 -> 2424.513407 | AJ190: 0 | AL190: 139.5510603 | AM190: 56.77461941 | AN190: 104.9614813 | AO190: 0.2 | AP190: =SUM(AL190:AN190)*AO190 -> 60.2574322 | AU190: 0.04 | AV190: =(AR190+AS190+AT190)*AU190 -> 0 | AX190: 79476.97084 | BE190: =ROUND((SUM(AZ190:BD190)+AX190),0) -> 79477 | BF190: 92412 | BG190: =BE190-BF190 -> -12935 | BI190: =BG190/BF190 -> -0.1399709994 | BK190: 0.5259938838 | BL190: 0.781420765 | BM190: 0.6122317544 | BN190: 0.6398821344 | BP190: 0.02038735984 | BQ190: 0.02732240437 | BR190: 0 | BS190: 0.01590325474
A191: White House Day Nursery Alvaston | C191: EY452684 | D191: DE24 0JR | E191: Alvaston | H191: 16185 | I191: 13020 | J191: 13200 | K191: 42405 | M191: 42405 | N191: D | O191: 4.05 | P191: 171740 | R191: 4532 | S191: 3646 | T191: 3696 | U191: 0.2 | V191: 2374.8 | X191: 14762.88335 | Y191: 11875.9803 | Z191: 12040.16436 | AA191: 0.2 | AB191: 7735.805602 | AJ191: 0 | AL191: 170.9584416 | AM191: 137.5272727 | AN191: 139.4285714 | AO191: 0.2 | AP191: 89.58285714 | AU191: 0.04 | AV191: 0 | AX191: 181940.1885 | BE191: 181940 | BF191: 111635 | BG191: 70305 | BI191: 0.629775608 | BK191: 0.7753246753 | BL191: 1.21875 | BM191: 0.7423263158 | BN191: 0.9121336637 | BP191: 0.01168831169 | BQ191: 0 | BR191: 0.02 | BS191: 0.01056277056
A192: White House Kids Club | C192: EY393352 | D192: DE72 3HB | E192: Spondon | H192: 2925 | I192: 2940 | J192: 2310 | K192: 8175 | M192: 8175 | N192: P | O192: 4.05 | P192: 33109 | R192: 351 | S192: 353 | T192: 277 | U192: 0.2 | V192: 196.2 | X192: 2263.677484 | Y192: 2275.286087 | Z192: 1787.724782 | AA192: 0.2 | AB192: 1265.337671 | AJ192: 0 | AL192: 0 | AM192: 0 | AN192: 0 | AO192: 0.2 | AP192: 0 | AU192: 0.04 | AV192: 0 | AX192: 34570.53767 | BE192: 34571 | BF192: 51695 | BG192: -17124 | BI192: -0.3312506045 | BK192: 0.7768187423 | BL192: 1.125 | BM192: 0.4199017544 | BN192: 0.7739068322 | BP192: 0 | BQ192: 0 | BR192: 0 | BS192: 0
A193: Whitehouse Day Nursery Limited | C193: EY431769 | D193: DE21 7LU | E193: Spondon | H193: 16185 | I193: 13020 | J193: 13200 | K193: 42405 | M193: 42405 | N193: D | O193: 4.05 | P193: 171740 | R193: 1942 | S193: 1562 | T193: 1584 | U193: 0.2 | V193: 1017.6 | X193: 2927.387458 | Y193: 2354.932636 | Z193: 2387.489308 | AA193: 0.2 | AB193: 1533.96188 | AJ193: 0 | AL193: 0 | AM193: 0 | AN193: 0 | AO193: 0.2 | AP193: 0 | AU193: 0.04 | AV193: 0 | AX193: 174291.5619 | BE193: 174292 | BF193: 121706 | BG193: 52586 | BI193: 0.4320740144 | BK193: 0.1910828025 | BL193: 0.1722521678 | BM193: 0.179276236 | BN193: 0.1808704021 | BP193: 0 | BQ193: 0 | BR193: 0 | BS193: 0
A194: Woodlands Private Day Nursery | C194: 509204 | D194: DE22 1BJ | E194: Darley | H194: 6825 | I194: 5670 | J194: 7095 | K194: 19590 | M194: 19590 | N194: D | O194: 4.05 | P194: 79340 | R194: 819 | S194: 680 | T194: 851 | U194: 0.2 | V194: 470 | X194: 769.6074947 | Y194: 639.3662263 | Z194: 800.0535054 | AA194: 0.2 | AB194: 441.8054453 | AJ194: 0 | AL194: 35.47297297 | AM194: 29.46985447 | AN194: 36.87629938 | AO194: 0.2 | AP194: 20.36382536 | AU194: 0.04 | AV194: 0 | AX194: 80272.16927 | BE194: 80272 | BF194: 65281 | BG194: 14991 | BI194: 0.2296380264 | BK194: 0 | BL194: 0.15625 | BM194: 0.1820390086 | BN194: 0.1127630029 | BP194: 0 | BQ194: 0 | BR194: 0.01559251559 | BS194: 0.005197505198
BE195: 0 | BF195: 73670 | BG195: -73670 | BI195: -1 | BK195: 3 | BL195: 0 | BM195: 0 | BN195: 1 | BP195: 0.1428571429 | BQ195: 0 | BR195: 0 | BS195: 0.04761904762
A196: Unallocated | AX196: =P196+AB196+AD196+AF196+AJ196+AP196+AV196+V196 -> 0 | AZ196: 0 | BA196: 250000 | BC196: 67650 | BE196: =ROUND((SUM(AZ196:BD196)+AX196),0) -> 317650 | BF196: 80000 | BG196: 237650 | BI196: =BG196/BF196 -> 2.970625
A197: PVI Subtotal | H197: =SUM(H62:H196) -> 519168 | I197: 449784.3 | J197: 423675.45 | K197: 1392627.75 | L197: 0 | M197: 1392627.75 | P197: =SUM(P62:P196) -> 5640163 | R197: =SUM(R62:R196) -> 88429 | S197: =SUM(S62:S196) -> 76268 | T197: =SUM(T62:T196) -> 72834 | V197: =SUM(V62:V196) -> 47506.2 | X197: =SUM(X62:X196) -> 534097.053 | Y197: =SUM(Y62:Y196) -> 467221.6561 | Z197: =SUM(Z62:Z196) -> 426029.1642 | AB197: =SUM(AB62:AB196) -> 285469.5747 | AD197: =SUM(AD62:AD196) -> 0 | AF197: =SUM(AF62:AF196) -> 0 | AJ197: =SUM(AJ62:AJ196) -> 0 | AL197: =SUM(AL62:AL196) -> 54643.44772 | AM197: =SUM(AM62:AM196) -> 45467.90115 | AN197: =SUM(AN62:AN196) -> 43304.28857 | AP197: =SUM(AP62:AP196) -> 28683.12749 | AR197: =SUM(AR62:AR196) -> 0 | AS197: =SUM(AS62:AS196) -> 0 | AT197: =SUM(AT62:AT196) -> 0 | AV197: =SUM(AV62:AV196) -> 0 | AX197: =SUM(AX62:AX196) -> 6001821.902 | AZ197: =SUM(AZ62:AZ196) -> 0 | BA197: 250000 | BB197: 0 | BC197: 67650 | BD197: 0 | BE197: 6319469 | BF197: 5154518 | BG197: 1164951
A198: All Schools | C198: All | F198: =F197+F57 -> 62358 | G198: 1870740 | H198: 998104 | I198: 820872.3 | J198: 766559.45 | K198: 2585535.75 | L198: 0 | M198: 2585535.75 | O198: =O197+O57 -> 0 | P198: =P197+P57 -> 10471445 | R198: =R197+R57 -> 185382 | S198: =S197+S57 -> 150394 | T198: =T197+T57 -> 141680 | U198: =U197+U57 -> 0 | V198: =V197+V57 -> 95491.2 | X198: =X197+X57 -> 1381018.08 | Y198: =Y197+Y57 -> 1108228.245 | Z198: =Z197+Z57 -> 1017772.469 | AA198: =AA197+AA57 -> 0 | AB198: =AB197+AB57 -> 701403.7587 | AD198: =AD197+AD57 -> 0 | AF198: =AF197+AF57 -> 0 | AH198: =AH197+AH57 -> 7 | AI198: =AI197+AI57 -> 0 | AJ198: =AJ197+AJ57 -> 700000 | AL198: =AL197+AL57 -> 194475.8224 | AM198: =AM197+AM57 -> 149295.3981 | AN198: =AN197+AN57 -> 138575.3961 | AP198: =AP197+AP57 -> 96469.32332 | AX198: =AX197+AX57 -> 12064809.28 | AZ198: =AZ197+AZ57 -> 0 | BA198: 250000 | BB198: 413222.25 | BC198: 67650 | BD198: 61663.3 | BE198: 12857340 | BF198: 11992781 | BG198: 864559
BE199: =SUM(AZ198:BD198,AX198)-BE198 -> 4.832029197 | BG199: =BE198-BF198 -> 864559
A200: Summary PVI £ | G200: Collection sheet | H200: 999921 | I200: 821148.3 | J200: 766776.45
A201: Hours | B201: =P197 -> 5640163
A202: Free School Meals | B202: =V197 -> 47506.2 | G202: Variance | H202: =H198-H200 -> -1817 | I202: =I198-I200 -> -276 | J202: -217
A203: Deprivation IMD | B203: =AB197 -> 285469.5747
A204: Vuln | B204: 0 | H204: =(H202/15)/13 -> -9.317948718 | I204: =(I202/15)/14 -> -1.314285714 | J204: =(J202/15)/11 -> -1.315151515
... 30 more rows

Sheet Special Schools 2017-18 (hidden)
B1: Special School Estimates 2017/18 | R1: Post 16 Enhancement | S1: 1164 | CT1: 2016/17 Budget | CX1: Variance | DL1: KS1-2 | DM1: KS1-2 | DO1: KS3-4 | DP1: KS3-4
G2: Element 3 Top Up Rates | Z2: Derby City Pupil Numbers | AU2: Other LA Pupil Numbers | BO2: Total Pupil Numbers | CQ2: Other LA | CU2: Other LA | CY2: Other LA | DG2: Places | DH2: Places | DI2: Top up | DJ2: Top up | DL2: Places | DM2: Top up | DO2: Places | DP2: Top up
B3: Pre-16 Students | G3: Band 5 Plus | H3: Band 2 | I3: Band 3 | J3: Band 4 | K3: Band 5 | L3: Band 6 | M3: Band 1 | N3: Band 2 | O3: Band 3 | P3: Band 4 | Q3: Band 5 | R3: Band 6 | S3: Band 1 | T3: Band 2 | U3: Band 3 | V3: Band 4 | W3: Band 5 | X3: Band 6 | Z3: Band 5 Plus | AA3: Band 2 | AB3: Band 3 | AC3: Band 4 | AD3: Band 5 | AE3: Band 6 | AF3: Band 1 | AG3: Band 2 | AH3: Band 3 | AI3: Band 4 | AJ3: Band 5 | AK3: Band 6 | AL3: Band 1 | AM3: Band 2 | AN3: Band 3 | AO3: Band 4 | AP3: Band 5 | AQ3: Band 6 | AR3: Vacant | AS3: Total | AU3: Band 5 plus | AV3: Band 2 | AW3: Band 3 | AX3: Band 4 | AY3: Band 5 | AZ3: Band 6 | BA3: Band 1 | BB3: Band 2 | BC3: Band 3 | BD3: Band 4 | BE3: Band 5 | BF3: Band 6 | BG3: Band 1 | BH3: Band 2 | BI3: Band 3 | BJ3: Band 4 | BK3: Band 5 | BL3: Band 6 | BM3: Total | BO3: Band 5 plus | BP3: Band 2 | BQ3: Band 3 | BR3: Band 4 | BS3: Band 5 | BT3: Band 6 | BU3: Band 1 | BV3: Band 2 | BW3: Band 3 | BX3: Band 4 | BY3: Band 5 | BZ3: Band 6 | CA3: Band 1 | CB3: Band 2 | CC3: Band 3 | CD3: Band 4 | CE3: Band 5 | CF3: Band 6 | CG3: Vacant | CH3: Total | CJ3: Element 1 & 2 (Place Funding) | CK3: Element 3 (Top Up Funding DCC) | CL3: Residential Provision | CM3: Exceptional Payments | CN3: Other Adjustments | CO3: PFI | CP3: Sub Total DCC | CQ3: Element 3 (Top Up Funding Other LA) | CR3: Total School Funding | CT3: Sub Total DCC | CU3: Top Up Funding Other LA | CV3: Total School Funding | CX3: Sub Total DCC | CY3: Top Up Funding Other LA | CZ3: Total School Funding | DB3: CHECK - To Places spreadsheet | DG3: Pre 16 | DH3: Post 16 | DI3: Pre 16 | DJ3: Post 16 | DL3: Pre 16 | DM3: Pre 16 | DO3: Pre 16 | DP3: Pre 16
A4: DfE | C4: DCC Pre 16 | D4: Other LA Pre 16 | E4: Total | H4: Yr1-2 | I4: Yr1-2 | J4: Yr1-2 | K4: Yr1-2 | L4: Yr1-2 | M4: Yr3-6 | N4: Yr3-6 | O4: Yr3-6 | P4: Yr3-6 | Q4: Yr3-6 | R4: Yr3-6 | S4: Yr7+ | T4: Yr7+ | U4: Yr7+ | V4: Yr7+ | W4: Yr7+ | X4: Yr7+ | AA4: Yr1-2 | AB4: Yr1-2 | AC4: Yr1-2 | AD4: Yr1-2 | AE4: Yr1-2 | AF4: Yr3-6 | AG4: Yr3-6 | AH4: Yr3-6 | AI4: Yr3-6 | AJ4: Yr3-6 | AK4: Yr3-6 | AL4: Yr7+ | AM4: Yr7+ | AN4: Yr7+ | AO4: Yr7+ | AP4: Yr7+ | AQ4: Yr7+ | AU4: Yr1-2 | AV4: Yr1-2 | AW4: Yr1-2 | AX4: Yr1-2 | AY4: Yr1-2 | AZ4: Yr1-2 | BA4: Yr3-6 | BB4: Yr3-6 | BC4: Yr3-6 | BD4: Yr3-6 | BE4: Yr3-6 | BF4: Yr3-6 | BG4: Yr7+ | BH4: Yr7+ | BI4: Yr7+ | BJ4: Yr7+ | BK4: Yr7+ | BL4: Yr7+ | BO4: Yr1-2 | BP4: Yr1-2 | BQ4: Yr1-2 | BR4: Yr1-2 | BS4: Yr1-2 | BT4: Yr1-2 | BU4: Yr3-6 | BV4: Yr3-6 | BW4: Yr3-6 | BX4: Yr3-6 | BY4: Yr3-6 | BZ4: Yr3-6 | CA4: Yr7+ | CB4: Yr7+ | CC4: Yr7+ | CD4: Yr7+ | CE4: Yr7+ | CF4: Yr7+
G5: £ | H5: £ | I5: £ | J5: £ | K5: £ | L5: £ | M5: £ | N5: £ | O5: £ | P5: £ | Q5: £ | R5: £ | S5: £ | T5: £ | U5: £ | V5: £ | W5: £ | X5: £
A6: 7026 | B6: Ivy House | C6: 64 | D6: 1 | E6: 65 | G6: 0 | H6: 0 | I6: 10156 | J6: 10547 | K6: 15916 | L6: 0 | M6: 0 | N6: 0 | O6: 9522 | P6: 10400 | Q6: 15916 | R6: 0 | S6: 0 | T6: 0 | U6: 9472 | V6: 10254 | W6: 15916 | X6: 0 | AD6: 17 | AJ6: 25 | AO6: 1 | AP6: 21 | AS6: 64 | BJ6: 1 | BM6: 1 | BO6: 0 | BP6: 0 | BQ6: 0 | BR6: 0 | BS6: 17 | BT6: 0 | BU6: 0 | BV6: 0 | BW6: 0 | BX6: 0 | BY6: 25 | BZ6: 0 | CA6: 0 | CB6: 0 | CC6: 0 | CD6: 2 | CE6: 21 | CF6: 0 | CG6: 0 | CH6: 65 | CJ6: 650000 | CK6: 1012962 | CL6: 0 | CM6: 160000 | CO6: 0 | CP6: 1822962 | CQ6: 10254 | CR6: 1833216 | CT6: 1747413 | CU6: 42086 | CV6: 1789499 | CX6: 75549 | CY6: -31832 | CZ6: 43717 | DG6: =E6 -> 65 | DI6: =CK6 -> 1012962
A7: 7027 | B7: St Andrews | C7: 58 | D7: 6 | E7: 64 | G7: 0 | H7: 0 | I7: 8449 | J7: 8773 | K7: 12511 | L7: 0 | M7: 0 | N7: 0 | O7: 7921 | P7: 8651 | Q7: 12511 | R7: 0 | S7: 0 | T7: 0 | U7: 7880 | V7: 8530 | W7: 12511 | X7: 0 | AN7: 3 | AO7: 33 | AP7: 22 | AS7: 58 | BJ7: 2 | BK7: 4 | BM7: 6 | BO7: 0 | BP7: 0 | BQ7: 0 | BR7: 0 | BS7: 0 | BT7: 0 | BU7: 0 | BV7: 0 | BW7: 0 | BX7: 0 | BY7: 0 | BZ7: 0 | CA7: 0 | CB7: 0 | CC7: 3 | CD7: 35 | CE7: 26 | CF7: 0 | CG7: 0 | CH7: 64 | CJ7: 640000 | CK7: 580372 | CL7: 376295 | CM7: 20000 | CO7: 0 | CP7: 1616667 | CQ7: 67104 | CR7: 1683771 | CT7: 1521253 | CU7: 67104 | CV7: 1588357 | CX7: 95414 | CY7: 0 | CZ7: 95414 | DG7: =E7 -> 64 | DI7: =CK7 -> 580372
A8: 7025 | B8: St Clares | C8: 99 | D8: 7 | E8: 106 | G8: 0 | H8: 0 | I8: 5187 | J8: 5387 | K8: 7682 | L8: 0 | M8: 0 | N8: 0 | O8: 4863 | P8: 5312 | Q8: 7682 | R8: 0 | S8: 0 | T8: 3192 | U8: 4838 | V8: 5237 | W8: 7682 | X8: 0 | AM8: 3 | AN8: 49 | AO8: 40 | AP8: 7 | AS8: 99 | BI8: 3 | BJ8: 2 | BK8: 2 | BM8: 7 | BO8: 0 | BP8: 0 | BQ8: 0 | BR8: 0 | BS8: 0 | BT8: 0 | BU8: 0 | BV8: 0 | BW8: 0 | BX8: 0 | BY8: 0 | BZ8: 0 | CA8: 0 | CB8: 3 | CC8: 52 | CD8: 42 | CE8: 9 | CF8: 0 | CG8: 0 | CH8: 106 | CJ8: 1060000 | CK8: 509892 | CL8: 0 | CM8: 20000 | CO8: 0 | CP8: 1589892 | CQ8: 40352 | CR8: 1630244 | CT8: 1621487 | CU8: 20150 | CV8: 1641637 | CX8: -31595 | CY8: 20202 | CZ8: -11393 | DG8: 106 | DI8: 509892
A9: 7024 | B9: St Giles | C9: 108 | D9: 3 | E9: 111 | G9: 0 | H9: 0 | I9: 6994 | J9: 7263 | K9: 12086 | L9: 0 | M9: 0 | N9: 0 | O9: 6557 | P9: 7162 | Q9: 12086 | R9: 0 | S9: 0 | T9: 0 | U9: 6523 | V9: 7062 | W9: 12086 | X9: 0 | AC9: 6 | AD9: 29 | AH9: 2 | AI9: 12 | AJ9: 59 | AS9: 108 | BD9: 1 | BE9: 2 | BM9: 3 | BO9: 0 | BP9: 0 | BQ9: 0 | BR9: 6 | BS9: 29 | BT9: 0 | BU9: 0 | BV9: 0 | BW9: 2 | BX9: 13 | BY9: 61 | BZ9: 0 | CA9: 0 | CB9: 0 | CC9: 0 | CD9: 0 | CE9: 0 | CF9: 0 | CG9: 0 | CH9: 111 | CJ9: 1110000 | CK9: 1206204 | CL9: 0 | CM9: 20000 | CO9: 0 | CP9: 2336204 | CQ9: 31334 | CR9: 2367538 | CT9: 2169417 | CU9: 12086 | CV9: 2181503 | CX9: 166787 | CY9: 19248 | CZ9: 186035 | DA9: St Giles on lower bandings 2016/17 before any amendments | DG9: 111 | DI9: 1206204
A10: 7021 | B10: St Martins | C10: 107 | D10: 6 | E10: 113 | G10: 0 | H10: 0 | I10: 7246 | J10: 7525 | K10: 10730 | L10: 0 | M10: 0 | N10: 0 | O10: 6794 | P10: 7420 | Q10: 10730 | R10: 0 | S10: 0 | T10: 4459 | U10: 6758 | V10: 7316 | W10: 10730 | X10: 0 | AM10: 3 | AN10: 29 | AO10: 49 | AP10: 26 | AS10: 107 | BJ10: 3 | BK10: 3 | BM10: 6 | BO10: 0 | BP10: 0 | BQ10: 0 | BR10: 0 | BS10: 0 | BT10: 0 | BU10: 0 | BV10: 0 | BW10: 0 | BX10: 0 | BY10: 0 | BZ10: 0 | CA10: 0 | CB10: 3 | CC10: 29 | CD10: 52 | CE10: 29 | CF10: 0 | CG10: 0 | CH10: 113 | CJ10: 1130000 | CK10: 846823 | CL10: 0 | CM10: 20000 | CO10: 88810.72 | CP10: 2085633.72 | CQ10: 54138 | CR10: 2139771.72 | CT10: 2050838.39 | CU10: 54068 | CV10: 2104906.39 | CX10: 34795.33 | CY10: 70 | CZ10: 34865.33 | DG10: 113 | DI10: 846823
A11: 7029 | B11: Kingsmead | C11: 80 | D11: 0 | E11: 80 | G11: 0 | H11: 0 | I11: 13598.97137 | J11: 14121.84912 | K11: 20137.70981 | L11: 0 | M11: 0 | N11: 0 | O11: 12749.64084 | P11: 13925.42414 | Q11: 20137.70981 | R11: 0 | S11: 0 | T11: 0 | U11: 12683.24366 | V11: 13730.38244 | W11: 20137.70981 | X11: 0 | AO11: 30 | AP11: 50 | AS11: 80 | BM11: 0 | BO11: 0 | BP11: 0 | BQ11: 0 | BR11: 0 | BS11: 0 | BT11: 0 | BU11: 0 | BV11: 0 | BW11: 0 | BX11: 0 | BY11: 0 | BZ11: 0 | CA11: 0 | CB11: 0 | CC11: 0 | CD11: 30 | CE11: 50 | CF11: 0 | CG11: 0 | CH11: 80 | CJ11: 800000 | CK11: 1418796.964 | CL11: 0 | CO11: 0 | CP11: 2218796.964 | CQ11: 0 | CR11: 2218796.964 | CT11: 2218796.964 | CU11: 0 | CV11: 2218796.964 | CX11: 0 | CY11: 0 | CZ11: 0 | DG11: 80 | DI11: 1418796.964
A12: 1104 | B12: KS1/2 PRU | C12: 36 | D12: 0 | E12: 36 | G12: 0 | H12: 0 | I12: 14194.44 | J12: 14194.44 | K12: 14194.44 | L12: 0 | M12: 0 | N12: 0 | O12: 14194.44 | P12: 14194.44 | Q12: 14194.44 | R12: 0 | S12: 0 | T12: 0 | X12: 0 | AB12: 18 | AH12: 18 | AS12: 36 | BM12: 0 | BO12: 0 | BP12: 0 | BQ12: 18 | BR12: 0 | BS12: 0 | BT12: 0 | BU12: 0 | BV12: 0 | BW12: 18 | BX12: 0 | BY12: 0 | BZ12: 0 | CA12: 0 | CB12: 0 | CC12: 0 | CD12: 0 | CE12: 0 | CF12: 0 | CG12: 0 | CH12: 36 | CJ12: 360000 | CK12: 510999.84 | CL12: 0 | CO12: 0 | CP12: 870999.84 | CQ12: 0 | CR12: 870999.84 | CT12: 870999.84 | CU12: 0 | CV12: 870999.84 | CX12: 0 | CY12: 0 | CZ12: 0 | DI12: 510999.84 | DL12: 36
A13: 1103 | B13: KS3/4 PRU | C13: 60 | D13: 0 | E13: 60 | S13: 0 | T13: 0 | U13: 16389.42 | V13: 16389.42 | W13: 16389.42 | X13: 0 | AN13: 60 | AS13: 60 | BM13: 0 | BO13: 0 | BP13: 0 | BQ13: 0 | BR13: 0 | BS13: 0 | BT13: 0 | BU13: 0 | BV13: 0 | BW13: 0 | BX13: 0 | BY13: 0 | BZ13: 0 | CA13: 0 | CB13: 0 | CC13: 60 | CD13: 0 | CE13: 0 | CF13: 0 | CG13: 0 | CH13: 60 | CJ13: 600000 | CK13: 983365.2 | CL13: 0 | CO13: 0 | CP13: 1583365.2 | CQ13: 0 | CR13: 1583365.2 | CT13: 1583365.2 | CU13: 0 | CV13: 1583365.2 | CX13: 0 | CY13: 0 | CZ13: 0 | DI13: 983365.2 | DO13: 60
A14: All | C14: 612 | D14: 23 | E14: 635 | Z14: 0 | AA14: 0 | AB14: 18 | AC14: 6 | AD14: 46 | AE14: 0 | AF14: 0 | AG14: 0 | AH14: 20 | AI14: 12 | AJ14: 84 | AK14: 0 | AL14: 0 | AM14: 6 | AN14: 141 | AO14: 153 | AP14: 126 | AQ14: 0 | AR14: 0 | AS14: 612 | AU14: 0 | AV14: 0 | AW14: 0 | AX14: 0 | AY14: 0 | AZ14: 0 | BA14: 0 | BB14: 0 | BC14: 0 | BD14: 1 | BE14: 2 | BF14: 0 | BG14: 0 | BH14: 0 | BI14: 3 | BJ14: 8 | BK14: 9 | BL14: 0 | BM14: 23 | BO14: 0 | BP14: 0 | BQ14: 18 | BR14: 6 | BS14: 46 | BT14: 0 | BU14: 0 | BV14: 0 | BW14: 20 | BX14: 13 | BY14: 86 | BZ14: 0 | CA14: 0 | CB14: 6 | CC14: 144 | CD14: 161 | CE14: 135 | CF14: 0 | CG14: 0 | CH14: 635 | CJ14: 6350000 | CK14: 7069415.004 | CL14: 376295 | CM14: 240000 | CN14: 0 | CO14: 88810.72 | CP14: 14124520.72 | CQ14: 203182 | CR14: 14327702.72 | CT14: 13783570.39 | CU14: 195494 | CV14: 13979064.39 | CX14: 340950.33 | CY14: 7688 | CZ14: 348638.33 | DG14: =SUM(DG6:DG13) -> 539 | DH14: =SUM(DH6:DH13) -> 0 | DI14: 7069415.004 | DJ14: 0 | DL14: =SUM(DL6:DL13) -> 36 | DM14: =SUM(DM6:DM13) -> 0 | DO14: =SUM(DO6:DO13) -> 60 | DP14: =SUM(DP6:DP13) -> 0
CV15: 0
DG16: Places | DH16: Places | DI16: Top up | DJ16: Top up
B17: Post 16 Students | G17: Band 5 plus | H17: Band 2 | I17: Band 3 | J17: Band 4 | K17: Band 5 | L17: Band 6 | M17: Band 1 | N17: Band 2 | O17: Band 3 | P17: Band 4 | Q17: Band 5 | R17: Band 6 | S17: Band 1 | T17: Band 2 | U17: Band 3 | V17: Band 4 | W17: Band 5 | X17: Band 6 | Z17: Band 5 plus | AA17: Band 2 | AB17: Band 3 | AC17: Band 4 | AD17: Band 5 | AE17: Band 6 | AF17: Band 1 | AG17: Band 2 | AH17: Band 3 | AI17: Band 4 | AJ17: Band 5 | AK17: Band 6 | AL17: Band 1 | AM17: Band 2 | AN17: Band 3 | AO17: Band 4 | AP17: Band 5 | AQ17: Band 6 | AR17: Vacant | AS17: Total | AU17: Band 5 plus | AV17: Band 2 | AW17: Band 3 | AX17: Band 4 | AY17: Band 5 | AZ17: Band 6 | BA17: Band 1 | BB17: Band 2 | BC17: Band 3 | BD17: Band 4 | BE17: Band 5 | BF17: Band 6 | BG17: Band 1 | BH17: Band 2 | BI17: Band 3 | BJ17: Band 4 | BK17: Band 5 | BL17: Band 6 | BM17: Total | BO17: Band 5 plus | BP17: Band 2 | BQ17: Band 3 | BR17: Band 4 | BS17: Band 5 | BT17: Band 6 | BU17: Band 1 | BV17: Band 2 | BW17: Band 3 | BX17: Band 4 | BY17: Band 5 | BZ17: Band 6 | CA17: Band 1 | CB17: Band 2 | CC17: Band 3 | CD17: Band 4 | CE17: Band 5 | CF17: Band 6 | CG17: Vacant | CH17: Total | CJ17: Place Funding | CK17: Top Up Funding DCC | CL17: Residential Provision | CN17: Other Adjustments | CO17: PFI | CP17: Sub Total DCC | CQ17: Top Up Funding Other LA | CR17: Total School Funding | CT17: Sub Total DCC | CU17: Top Up Funding Other LA | CV17: Total School Funding | CX17: Sub Total DCC | CY17: Top Up Funding Other LA | CZ17: Total School Funding | DG17: Pre 16 | DH17: Post 16 | DI17: Pre 16 | DJ17: Post 16
C18: DCC Post 16 | D18: Other LA Post 16 | E18: Total | G18: Yr1-2 | H18: Yr1-2 | I18: Yr1-2 | J18: Yr1-2 | K18: Yr1-2 | L18: Yr1-2 | M18: Yr3-6 | N18: Yr3-6 | O18: Yr3-6 | P18: Yr3-6 | Q18: Yr3-6 | R18: Yr3-6 | S18: Yr7+ | T18: Yr7+ | U18: Yr7+ | V18: Yr7+ | W18: Yr7+ | X18: Yr7+ | Z18: Yr1-2 | AA18: Yr1-2 | AB18: Yr1-2 | AC18: Yr1-2 | AD18: Yr1-2 | AE18: Yr1-2 | AF18: Yr3-6 | AG18: Yr3-6 | AH18: Yr3-6 | AI18: Yr3-6 | AJ18: Yr3-6 | AK18: Yr3-6 | AL18: Yr7+ | AM18: Yr7+ | AN18: Yr7+ | AO18: Yr7+ | AP18: Yr7+ | AQ18: Yr7+ | AR18: Yr7+ | AU18: Yr1-2 | AV18: Yr1-2 | AW18: Yr1-2 | AX18: Yr1-2 | AY18: Yr1-2 | AZ18: Yr1-2 | BA18: Yr3-6 | BB18: Yr3-6 | BC18: Yr3-6 | BD18: Yr3-6 | BE18: Yr3-6 | BF18: Yr3-6 | BG18: Yr7+ | BH18: Yr7+ | BI18: Yr7+ | BJ18: Yr7+ | BK18: Yr7+ | BL18: Yr7+ | BO18: Yr1-2 | BP18: Yr1-2 | BQ18: Yr1-2 | BR18: Yr1-2 | BS18: Yr1-2 | BT18: Yr1-2 | BU18: Yr3-6 | BV18: Yr3-6 | BW18: Yr3-6 | BX18: Yr3-6 | BY18: Yr3-6 | BZ18: Yr3-6 | CA18: Yr7+ | CB18: Yr7+ | CC18: Yr7+ | CD18: Yr7+ | CE18: Yr7+ | CF18: Yr7+ | CG18: Yr7+
G19: £ | H19: £ | I19: £ | J19: £ | K19: £ | L19: £ | M19: £ | N19: £ | O19: £ | P19: £ | Q19: £ | R19: £ | S19: £ | T19: £ | U19: £ | V19: £ | W19: £ | X19: £
A20: 7026 | B20: Ivy House | C20: 14 | D20: 2 | E20: 16 | S20: 0 | T20: 0 | U20: 10636 | V20: 11418 | W20: 17080 | X20: 0 | AP20: 14 | AS20: 14 | BK20: 2 | BM20: 2 | BO20: 0 | BP20: 0 | BQ20: 0 | BR20: 0 | BS20: 0 | BT20: 0 | BU20: 0 | BV20: 0 | BW20: 0 | BX20: 0 | BY20: 0 | BZ20: 0 | CA20: 0 | CB20: 0 | CC20: 0 | CD20: 0 | CE20: 16 | CF20: 0 | CG20: 0 | CH20: 16 | CJ20: 160000 | CK20: 239120 | CL20: 0 | CO20: 0 | CP20: 399120 | CQ20: 34160 | CR20: 433280 | CT20: 441965 | CU20: 17080 | CV20: 459045 | CX20: -42845 | CY20: 17080 | CZ20: -25765 | DH20: =E20 -> 16 | DJ20: =CK20 -> 239120
A21: 7027 | B21: St Andrews | C21: 34 | D21: 3 | E21: 37 | S21: 0 | T21: 0 | U21: 9044 | V21: 9694 | W21: 13675 | X21: 0 | AN21: 5 | AO21: 9 | AP21: 20 | AS21: 34 | BJ21: 3 | BM21: 3 | BO21: 0 | BP21: 0 | BQ21: 0 | BR21: 0 | BS21: 0 | BT21: 0 | BU21: 0 | BV21: 0 | BW21: 0 | BX21: 0 | BY21: 0 | BZ21: 0 | CA21: 0 | CB21: 0 | CC21: 5 | CD21: 12 | CE21: 20 | CF21: 0 | CG21: 0 | CH21: 37 | CJ21: 370000 | CK21: 405966 | CL21: 0 | CO21: 0 | CP21: 775966 | CQ21: 29082 | CR21: 805048 | CT21: 769392 | CU21: 38776 | CV21: 808168 | CX21: 6574 | CY21: -9694 | CZ21: -3120 | DH21: =E21 -> 37 | DJ21: =CK21 -> 405966
A22: 7021 | B22: St Martins | C22: 36 | D22: 1 | E22: 37 | S22: 1164 | T22: 5623 | U22: 7922 | V22: 8480 | W22: 11894 | X22: 0 | AN22: 8 | AO22: 20 | AP22: 5 | AR22: 3 | AS22: 36 | BJ22: 1 | BM22: 1 | BO22: 0 | BP22: 0 | BQ22: 0 | BR22: 0 | BS22: 0 | BT22: 0 | BU22: 0 | BV22: 0 | BW22: 0 | BX22: 0 | BY22: 0 | BZ22: 0 | CA22: 0 | CB22: 0 | CC22: 8 | CD22: 21 | CE22: 5 | CF22: 0 | CG22: 3 | CH22: 37 | CJ22: 370000 | CK22: 292446 | CL22: 0 | CO22: 0 | CP22: 662446 | CQ22: 8480 | CR22: 670926 | CT22: 567946 | CU22: 7922 | CV22: 575868 | CX22: 94500 | CY22: 558 | CZ22: 95058 | DH22: =E22 -> 37 | DJ22: 292446
A23: ALL | C23: 84 | D23: 6 | E23: 90 | Z23: 0 | AA23: 0 | AB23: 0 | AC23: 0 | AD23: 0 | AE23: 0 | AF23: 0 | AG23: 0 | AH23: 0 | AI23: 0 | AJ23: 0 | AK23: 0 | AL23: 0 | AM23: 0 | AN23: 13 | AO23: 29 | AP23: 39 | AQ23: 0 | AR23: 3 | AS23: 84 | AU23: 0 | AV23: 0 | AW23: 0 | AX23: 0 | AY23: 0 | AZ23: 0 | BA23: 0 | BB23: 0 | BC23: 0 | BD23: 0 | BE23: 0 | BF23: 0 | BG23: 0 | BH23: 0 | BI23: 0 | BJ23: 4 | BK23: 2 | BL23: 0 | BM23: 6 | BO23: 0 | BP23: 0 | BQ23: 0 | BR23: 0 | BS23: 0 | BT23: 0 | BU23: 0 | BV23: 0 | BW23: 0 | BX23: 0 | BY23: 0 | BZ23: 0 | CA23: 0 | CB23: 0 | CC23: 13 | CD23: 33 | CE23: 41 | CF23: 0 | CG23: 3 | CH23: 90 | CJ23: 900000 | CK23: 937532 | CL23: 0 | CM23: 0 | CN23: 0 | CO23: 0 | CP23: 1837532 | CQ23: 71722 | CR23: 1909254 | CT23: 1779303 | CU23: 63778 | CV23: 1843081 | CX23: 58229 | CY23: 7944 | CZ23: 66173 | DG23: =SUM(DG20:DG22) -> 0 | DH23: =SUM(DH20:DH22) -> 90 | DI23: 0 | DJ23: 937532 | DL23: =SUM(DL20:DL22) -> 0 | DM23: =SUM(DM20:DM22) -> 0
B25: Sub Total | C25: 696 | D25: 29 | E25: 725 | Z25: 0 | AA25: 0 | AB25: 18 | AC25: 6 | AD25: 46 | AE25: 0 | AF25: 0 | AG25: 0 | AH25: 20 | AI25: 12 | AJ25: 84 | AK25: 0 | AL25: 0 | AM25: 6 | AN25: 154 | AO25: 182 | AP25: 165 | AQ25: 0 | AR25: 3 | AS25: 696 | AU25: 0 | AV25: 0 | AW25: 0 | AX25: 0 | AY25: 0 | AZ25: 0 | BA25: 0 | BB25: 0 | BC25: 0 | BD25: 1 | BE25: 2 | BF25: 0 | BG25: 0 | BH25: 0 | BI25: 3 | BJ25: 12 | BK25: 11 | BL25: 0 | BM25: 29 | BO25: 0 | BP25: 0 | BQ25: 18 | BR25: 6 | BS25: 46 | BT25: 0 | BU25: 0 | BV25: 0 | BW25: 20 | BX25: 13 | BY25: 86 | BZ25: 0 | CA25: 0 | CB25: 6 | CC25: 157 | CD25: 194 | CE25: 176 | CF25: 0 | CG25: 3 | CH25: 725 | CJ25: 7250000 | CK25: 8006947.004 | CL25: 376295 | CM25: 240000 | CN25: 0 | CO25: 88810.72 | CP25: 15962052.72 | CQ25: 274904 | CR25: 16236956.72 | CT25: 15562873.39 | CU25: 259272 | CV25: 15822145.39 | CX25: 399179.33 | CY25: 15632 | CZ25: 414811.33
CV26: 0
B28: Total
C29: Total DCC | D29: Total Other LA | E29: Total | G29: Yr1-2 | H29: Yr1-2 | I29: Yr1-2 | J29: Yr1-2 | K29: Yr1-2 | L29: Yr1-2 | M29: Yr3-6 | N29: Yr3-6 | O29: Yr3-6 | P29: Yr3-6 | Q29: Yr3-6 | R29: Yr3-6 | S29: Yr7+ | T29: Yr7+ | U29: Yr7+ | V29: Yr7+ | W29: Yr7+ | X29: Yr7+ | Z29: Yr1-2 | AA29: Yr1-2 | AB29: Yr1-2 | AC29: Yr1-2 | AD29: Yr1-2 | AE29: Yr1-2 | AF29: Yr3-6 | AG29: Yr3-6 | AH29: Yr3-6 | AI29: Yr3-6 | AJ29: Yr3-6 | AK29: Yr3-6 | AL29: Yr7+ | AM29: Yr7+ | AN29: Yr7+ | AO29: Yr7+ | AP29: Yr7+ | AQ29: Yr7+ | AR29: Yr7+ | AU29: Yr1-2 | AV29: Yr1-2 | AW29: Yr1-2 | AX29: Yr1-2 | AY29: Yr1-2 | AZ29: Yr1-2 | BA29: Yr3-6 | BB29: Yr3-6 | BC29: Yr3-6 | BD29: Yr3-6 | BE29: Yr3-6 | BF29: Yr3-6 | BG29: Yr7+ | BH29: Yr7+ | BI29: Yr7+ | BJ29: Yr7+ | BK29: Yr7+ | BL29: Yr7+ | BO29: Yr1-2 | BP29: Yr1-2 | BQ29: Yr1-2 | BR29: Yr1-2 | BS29: Yr1-2 | BT29: Yr1-2 | BU29: Yr3-6 | BV29: Yr3-6 | BW29: Yr3-6 | BX29: Yr3-6 | BY29: Yr3-6 | BZ29: Yr3-6 | CA29: Yr7+ | CB29: Yr7+ | CC29: Yr7+ | CD29: Yr7+ | CE29: Yr7+ | CF29: Yr7+ | CG29: Yr7+
G30: £ | H30: £ | I30: £ | J30: £ | K30: £ | L30: £ | M30: £ | N30: £ | O30: £ | P30: £ | Q30: £ | R30: £ | S30: £ | T30: £ | U30: £ | V30: £ | W30: £ | X30: £ | DB30: Work sheets for schools | DC30: Variance | DD30: PFI/Resi | DE30: Check to budget | DG30: Figure used in Original budget for budget setting purposes
B31: Ivy House | C31: 78 | D31: 3 | E31: 81 | Z31: 0 | AA31: 0 | AB31: 0 | AC31: 0 | AD31: 17 | AE31: 0 | AF31: 0 | AG31: 0 | AH31: 0 | AI31: 0 | AJ31: 25 | AK31: 0 | AL31: 0 | AM31: 0 | AN31: 0 | AO31: 1 | AP31: 35 | AQ31: 0 | AR31: 0 | AS31: 78 | AU31: 0 | AV31: 0 | AW31: 0 | AX31: 0 | AY31: 0 | AZ31: 0 | BA31: 0 | BB31: 0 | BC31: 0 | BD31: 0 | BE31: 0 | BF31: 0 | BG31: 0 | BH31: 0 | BI31: 0 | BJ31: 1 | BK31: 2 | BL31: 0 | BM31: 3 | BO31: 0 | BP31: 0 | BQ31: 0 | BR31: 0 | BS31: 17 | BT31: 0 | BU31: 0 | BV31: 0 | BW31: 0 | BX31: 0 | BY31: 25 | BZ31: 0 | CA31: 0 | CB31: 0 | CC31: 0 | CD31: 2 | CE31: 37 | CF31: 0 | CG31: 0 | CH31: 81 | CJ31: 810000 | CK31: 1252082 | CL31: 0 | CM31: 160000 | CN31: 0 | CO31: 0 | CP31: 2222082 | CQ31: 44414 | CR31: 2266496 | CT31: 2189378 | CU31: 59166 | CV31: 2248544 | CX31: 32704 | CY31: -14752 | CZ31: 17952 | DB31: 2266496 | DC31: 0 | DE31: 0 | DG31: 2266496 | DH31: 0 | DI31: No changes
B32: St Andrews | C32: 92 | D32: 9 | E32: 101 | Z32: 0 | AA32: 0 | AB32: 0 | AC32: 0 | AD32: 0 | AE32: 0 | AF32: 0 | AG32: 0 | AH32: 0 | AI32: 0 | AJ32: 0 | AK32: 0 | AL32: 0 | AM32: 0 | AN32: 8 | AO32: 42 | AP32: 42 | AQ32: 0 | AR32: 0 | AS32: 92 | AU32: 0 | AV32: 0 | AW32: 0 | AX32: 0 | AY32: 0 | AZ32: 0 | BA32: 0 | BB32: 0 | BC32: 0 | BD32: 0 | BE32: 0 | BF32: 0 | BG32: 0 | BH32: 0 | BI32: 0 | BJ32: 5 | BK32: 4 | BL32: 0 | BM32: 9 | BO32: 0 | BP32: 0 | BQ32: 0 | BR32: 0 | BS32: 0 | BT32: 0 | BU32: 0 | BV32: 0 | BW32: 0 | BX32: 0 | BY32: 0 | BZ32: 0 | CA32: 0 | CB32: 0 | CC32: 8 | CD32: 47 | CE32: 46 | CF32: 0 | CG32: 0 | CH32: 101 | CJ32: 1010000 | CK32: 986338 | CL32: 376295 | CM32: 20000 | CN32: 0 | CO32: 0 | CP32: 2392633 | CQ32: 96186 | CR32: 2488819 | CT32: 2290645 | CU32: 105880 | CV32: 2396525 | CX32: 101988 | CY32: -9694 | CZ32: 92294 | DB32: 2112524 | DC32: 376295 | DD32: 376295 | DE32: 0 | DG32: 2538989 | DH32: -50170 | DI32: TKB agreed changes with St Andrews - email trails to justify reduced bandings and exceptional bandings
B33: St Clares | C33: 99 | D33: 7 | E33: 106 | Z33: 0 | AA33: 0 | AB33: 0 | AC33: 0 | AD33: 0 | AE33: 0 | AF33: 0 | AG33: 0 | AH33: 0 | AI33: 0 | AJ33: 0 | AK33: 0 | AL33: 0 | AM33: 3 | AN33: 49 | AO33: 40 | AP33: 7 | AQ33: 0 | AR33: 0 | AS33: 99 | AU33: 0 | AV33: 0 | AW33: 0 | AX33: 0 | AY33: 0 | AZ33: 0 | BA33: 0 | BB33: 0 | BC33: 0 | BD33: 0 | BE33: 0 | BF33: 0 | BG33: 0 | BH33: 0 | BI33: 3 | BJ33: 2 | BK33: 2 | BL33: 0 | BM33: 7 | BO33: 0 | BP33: 0 | BQ33: 0 | BR33: 0 | BS33: 0 | BT33: 0 | BU33: 0 | BV33: 0 | BW33: 0 | BX33: 0 | BY33: 0 | BZ33: 0 | CA33: 0 | CB33: 3 | CC33: 52 | CD33: 42 | CE33: 9 | CF33: 0 | CG33: 0 | CH33: 106 | CJ33: 1060000 | CK33: 509892 | CL33: 0 | CM33: 20000 | CN33: 0 | CO33: 0 | CP33: 1589892 | CQ33: 40352 | CR33: 1630244 | CT33: 1621487 | CU33: 20150 | CV33: 1641637 | CX33: -31595 | CY33: 20202 | CZ33: -11393 | DB33: 1630244 | DC33: 0 | DE33: 0 | DG33: 1630244 | DH33: 0 | DI33: No changes
B34: St Giles | C34: 108 | D34: 3 | E34: 111 | Z34: 0 | AA34: 0 | AB34: 0 | AC34: 6 | AD34: 29 | AE34: 0 | AF34: 0 | AG34: 0 | AH34: 2 | AI34: 12 | AJ34: 59 | AK34: 0 | AL34: 0 | AM34: 0 | AN34: 0 | AO34: 0 | AP34: 0 | AQ34: 0 | AR34: 0 | AS34: 108 | AU34: 0 | AV34: 0 | AW34: 0 | AX34: 0 | AY34: 0 | AZ34: 0 | BA34: 0 | BB34: 0 | BC34: 0 | BD34: 1 | BE34: 2 | BF34: 0 | BG34: 0 | BH34: 0 | BI34: 0 | BJ34: 0 | BK34: 0 | BL34: 0 | BM34: 3 | BO34: 0 | BP34: 0 | BQ34: 0 | BR34: 6 | BS34: 29 | BT34: 0 | BU34: 0 | BV34: 0 | BW34: 2 | BX34: 13 | BY34: 61 | BZ34: 0 | CA34: 0 | CB34: 0 | CC34: 0 | CD34: 0 | CE34: 0 | CF34: 0 | CG34: 0 | CH34: 111 | CJ34: 1110000 | CK34: 1206204 | CL34: 0 | CM34: 20000 | CN34: 0 | CO34: 0 | CP34: 2336204 | CQ34: 31334 | CR34: 2367538 | CT34: 2169417 | CU34: 12086 | CV34: 2181503 | CX34: 166787 | CY34: 19248 | CZ34: 186035 | DB34: 2367538 | DC34: 0 | DE34: 0 | DG34: 2251798 | DH34: 115740 | DI34: Paid at higher bandings
B35: St Martins | C35: 143 | D35: 7 | E35: 150 | Z35: 0 | AA35: 0 | AB35: 0 | AC35: 0 | AD35: 0 | AE35: 0 | AF35: 0 | AG35: 0 | AH35: 0 | AI35: 0 | AJ35: 0 | AK35: 0 | AL35: 0 | AM35: 3 | AN35: 37 | AO35: 69 | AP35: 31 | AQ35: 0 | AR35: 3 | AS35: 143 | AU35: 0 | AV35: 0 | AW35: 0 | AX35: 0 | AY35: 0 | AZ35: 0 | BA35: 0 | BB35: 0 | BC35: 0 | BD35: 0 | BE35: 0 | BF35: 0 | BG35: 0 | BH35: 0 | BI35: 0 | BJ35: 4 | BK35: 3 | BL35: 0 | BM35: 7 | BO35: 0 | BP35: 0 | BQ35: 0 | BR35: 0 | BS35: 0 | BT35: 0 | BU35: 0 | BV35: 0 | BW35: 0 | BX35: 0 | BY35: 0 | BZ35: 0 | CA35: 0 | CB35: 3 | CC35: 37 | CD35: 73 | CE35: 34 | CF35: 0 | CG35: 3 | CH35: 150 | CJ35: 1500000 | CK35: 1139269 | CL35: 0 | CM35: 20000 | CN35: 0 | CO35: 88810.72 | CP35: 2748079.72 | CQ35: 62618 | CR35: 2810697.72 | CT35: 2618784.39 | CU35: 61990 | CV35: 2680774.39 | CX35: 129295.33 | CY35: 628 | CZ35: 129923.33 | DB35: 2721887 | DC35: 88810.72 | DD35: 88810.72 | DE35: 2.037268132e-10 | DG35: 2751073.72 | DH35: 59624 | DI35: RB agreed St Martin and Horizon 20.1.17
B36: Kingsmead | C36: 80 | D36: 0 | E36: 80 | Z36: 0 | AA36: 0 | AB36: 0 | AC36: 0 | AD36: 0 | AE36: 0 | AF36: 0 | AG36: 0 | AH36: 0 | AI36: 0 | AJ36: 0 | AK36: 0 | AL36: 0 | AM36: 0 | AN36: 0 | AO36: 30 | AP36: 50 | AQ36: 0 | AR36: 0 | AS36: 80 | AU36: 0 | AV36: 0 | AW36: 0 | AX36: 0 | AY36: 0 | AZ36: 0 | BA36: 0 | BB36: 0 | BC36: 0 | BD36: 0 | BE36: 0 | BF36: 0 | BG36: 0 | BH36: 0 | BI36: 0 | BJ36: 0 | BK36: 0 | BL36: 0 | BM36: 0 | BO36: 0 | BP36: 0 | BQ36: 0 | BR36: 0 | BS36: 0 | BT36: 0 | BU36: 0 | BV36: 0 | BW36: 0 | BX36: 0 | BY36: 0 | BZ36: 0 | CA36: 0 | CB36: 0 | CC36: 0 | CD36: 30 | CE36: 50 | CF36: 0 | CG36: 0 | CH36: 80 | CJ36: 800000 | CK36: 1418796.964 | CL36: 0 | CM36: 0 | CN36: 0 | CO36: 0 | CP36: 2218796.964 | CQ36: 0 | CR36: 2218796.964 | CT36: 2218796.964 | CU36: 0 | CV36: 2218796.964 | CX36: 0 | CY36: 0 | CZ36: 0
B37: KS 1/2 PRU | C37: 36 | D37: 0 | E37: 36 | Z37: 0 | AA37: 0 | AB37: 18 | AC37: 0 | AD37: 0 | AE37: 0 | AF37: 0 | AG37: 0 | AH37: 18 | AI37: 0 | AJ37: 0 | AK37: 0 | AL37: 0 | AM37: 0 | AN37: 0 | AO37: 0 | AP37: 0 | AQ37: 0 | AR37: 0 | AS37: 36 | AU37: 0 | AV37: 0 | AW37: 0 | AX37: 0 | AY37: 0 | AZ37: 0 | BA37: 0 | BB37: 0 | BC37: 0 | BD37: 0 | BE37: 0 | BF37: 0 | BG37: 0 | BH37: 0 | BI37: 0 | BJ37: 0 | BK37: 0 | BL37: 0 | BM37: 0 | BO37: 0 | BP37: 0 | BQ37: 18 | BR37: 0 | BS37: 0 | BT37: 0 | BU37: 0 | BV37: 0 | BW37: 18 | BX37: 0 | BY37: 0 | BZ37: 0 | CA37: 0 | CB37: 0 | CC37: 0 | CD37: 0 | CE37: 0 | CF37: 0 | CG37: 0 | CH37: 36 | CJ37: 360000 | CK37: 510999.84 | CL37: 0 | CM37: 0 | CN37: 0 | CO37: 0 | CP37: 870999.84 | CQ37: 0 | CR37: 870999.84 | CT37: 870999.84 | CU37: 0 | CV37: 870999.84 | CX37: 0 | CY37: 0 | CZ37: 0
B38: KS 3/4 PRU | C38: 60 | D38: 0 | E38: 60 | Z38: 0 | AA38: 0 | AB38: 0 | AC38: 0 | AD38: 0 | AE38: 0 | AF38: 0 | AG38: 0 | AH38: 0 | AI38: 0 | AJ38: 0 | AK38: 0 | AL38: 0 | AM38: 0 | AN38: 60 | AO38: 0 | AP38: 0 | AQ38: 0 | AR38: 0 | AS38: 60 | AU38: 0 | AV38: 0 | AW38: 0 | AX38: 0 | AY38: 0 | AZ38: 0 | BA38: 0 | BB38: 0 | BC38: 0 | BD38: 0 | BE38: 0 | BF38: 0 | BG38: 0 | BH38: 0 | BI38: 0 | BJ38: 0 | BK38: 0 | BL38: 0 | BM38: 0 | BO38: 0 | BP38: 0 | BQ38: 0 | BR38: 0 | BS38: 0 | BT38: 0 | BU38: 0 | BV38: 0 | BW38: 0 | BX38: 0 | BY38: 0 | BZ38: 0 | CA38: 0 | CB38: 0 | CC38: 60 | CD38: 0 | CE38: 0 | CF38: 0 | CG38: 0 | CH38: 60 | CJ38: 600000 | CK38: 983365.2 | CL38: 0 | CM38: 0 | CN38: 0 | CO38: 0 | CP38: 1583365.2 | CQ38: 0 | CR38: 1583365.2 | CT38: 1583365.2 | CU38: 0 | CV38: 1583365.2 | CX38: 0 | CY38: 0 | CZ38: 0
C39: 696 | D39: 29 | E39: 725 | Z39: 0 | AA39: 0 | AB39: 18 | AC39: 6 | AD39: 46 | AE39: 0 | AF39: 0 | AG39: 0 | AH39: 20 | AI39: 12 | AJ39: 84 | AK39: 0 | AL39: 0 | AM39: 6 | AN39: 154 | AO39: 182 | AP39: 165 | AQ39: 0 | AR39: 3 | AS39: 696 | AU39: 0 | AV39: 0 | AW39: 0 | AX39: 0 | AY39: 0 | AZ39: 0 | BA39: 0 | BB39: 0 | BC39: 0 | BD39: 1 | BE39: 2 | BF39: 0 | BG39: 0 | BH39: 0 | BI39: 3 | BJ39: 12 | BK39: 11 | BL39: 0 | BM39: 29 | BO39: 0 | BP39: 0 | BQ39: 18 | BR39: 6 | BS39: 46 | BT39: 0 | BU39: 0 | BV39: 0 | BW39: 20 | BX39: 13 | BY39: 86 | BZ39: 0 | CA39: 0 | CB39: 6 | CC39: 157 | CD39: 194 | CE39: 176 | CF39: 0 | CG39: 3 | CH39: 725 | CJ39: 7250000 | CK39: 8006947.004 | CL39: 376295 | CM39: 240000 | CN39: 0 | CO39: 88810.72 | CP39: 15962052.72 | CQ39: 274904 | CR39: 16236956.72 | CT39: 15562873.39 | CU39: 259272 | CV39: 15822145.39 | CX39: 399179.33 | CY39: 15632 | CZ39: 414811.33 | DB39: 11098689 | DC39: 465105.72 | DD39: 465105.72 | DE39: 2.037268132e-10 | DG39: 11438600.72 | DH39: 125194
B43: Execeptional Banding Rates
B44: E1 | C44: 10000
B45: E2 | C45: 20000
A46: 1 | B46: E3 | C46: 30000
B54: Year Table
B55: Nursery 1 | C55: Yr1-2
B56: Nursery 2 | C56: Yr1-2
B57: Reception | C57: Yr1-2
B58: NC Year 1 | C58: Yr1-2
B59: NC Year 2 | C59: Yr1-2
B60: NC Year 3 | C60: Yr3-6
B61: NC Year 4 | C61: Yr3-6
B62: NC Year 5 | C62: Yr3-6
B63: NC Year 6 | C63: Yr3-6
B64: NC Year 7 | C64: Yr7+
B65: NC Year 8 | C65: Yr7+
B66: NC Year 9 | C66: Yr7+
B67: NC Year 10 | C67: Yr7+
B68: NC Year 11 | C68: Yr7+
B69: NC Year 12 | C69: Yr12+
B70: NC Year 13 | C70: Yr12+
B71: NC Year 14 | C71: Yr12+

Sheet ERS 2017-18 (hidden)
A1: ERS Provision
A2: 2017/2018 Budget | AQ2: 2016/17 | AU2: Variance
C3: Element 3 Top Up Rates | I3: Derby City Places | P3: Other LA Places | W3: Total Places | AD3: Element 1 & 2 (Place) Funding | AE3: Element 3 (Banding) Funding | AF3: Exceptional Fund | AG3: Other | AH3: Derby City | AI3: Element 3 Other LA (Banding) | AJ3: Total | AL3: SLA Places | AM3: MEMO - Unfunded Vacant posts | AQ3: Derby City | AR3: Other LA Top Up | AS3: Total | AU3: Derby City | AV3: Other LA Top Up | AW3: Total | AX3: Variance incl vacant places | AZ3: Original budget used in Virement | BA3: Variance | BB3: Notes to variances | BC3: Check to budget sheets | BD3: Variance
A4: PRE-16 PLACES | B4: DfE | C4: Band 2 | D4: Band 3 | E4: Band 4 | F4: Band 5 | G4: Band 5 + | I4: Band 2 | J4: Band 3 | K4: Band 4 | L4: Band 5 | M4: Band 5 + | N4: Total | P4: Band 2 | Q4: Band 3 | R4: Band 4 | S4: Band 5 | T4: Band 5 + | U4: Total | W4: Band 2 | X4: Band 3 | Y4: Band 4 | Z4: Band 5 | AA4: Band 5 + | AB4: Total | AH4: Sub Total | AM4: Element 1 & 2 (Places) | AN4: Est Element 3 (Band) | AO4: Amount | AQ4: Sub Total | AU4: Sub Total
A5: Allestree Woodlands Community School KS3 | B5: 5414 | C5: 2260.575 | D5: 4813.695 | E5: 8142.01 | F5: 12465.175 | G5: 0 | J5: 5 | K5: 1 | N5: 6 | U5: 0 | W5: 0 | X5: 5 | Y5: 1 | Z5: 0 | AA5: 0 | AB5: 6 | AD5: 0 | AE5: 32210.485 | AF5: 0 | AG5: 0 | AH5: 32210.485 | AI5: 0 | AJ5: 32210.485 | AL5: 0 | AM5: 0 | AN5: Band 3 | AO5: 0 | AQ5: 0 | AR5: 0 | AS5: 0 | AU5: 32210.485 | AV5: 0 | AW5: 32210.485 | AX5: 32210.485 | AZ5: 32210.485 | BA5: 0 | BB5: No confirmation of bandings
A6: Allestree Woodlands Community School KS4 | B6: 5414 | C6: 2716.63 | D6: 5269.75 | E6: 8598.065 | F6: 12921.23 | G6: 0 | I6: 1 | J6: 4 | K6: 1 | N6: 6 | Q6: 2 | U6: 2 | W6: 1 | X6: 6 | Y6: 1 | Z6: 0 | AA6: 0 | AB6: 8 | AD6: 140000 | AE6: 32393.695 | AF6: 0 | AG6: 0 | AH6: 172393.695 | AI6: 10539.5 | AJ6: 182933.195 | AL6: 14 | AM6: 0 | AN6: Band 3 | AO6: 0 | AQ6: 212610.26 | AR6: 5269.75 | AS6: 217880.01 | AU6: -40216.565 | AV6: 5269.75 | AW6: -34946.815 | AX6: -34946.815 | AZ6: 182933.195 | BA6: 0 | BB6: No confirmation of bandings | BC6: 75143.68 | BD6: -140000 | BE6: OK - 14 place funding
A7: Alvaston Junior Community School | B7: 2442 | C7: 1209.58 | D7: 3762.7 | E7: 7091.015 | F7: 11414.18 | G7: 0 | I7: 1 | J7: 7 | K7: 4 | N7: 12 | U7: 0 | W7: 1 | X7: 7 | Y7: 4 | Z7: 0 | AA7: 0 | AB7: 12 | AD7: 120000 | AE7: 55912.54 | AF7: 0 | AG7: 0 | AH7: 175912.54 | AI7: 0 | AJ7: 175912.54 | AL7: 12 | AM7: 0 | AN7: Band 4 | AO7: 0 | AQ7: 179675.24 | AR7: 0 | AS7: 179675.24 | AU7: -3762.7 | AV7: 0 | AW7: -3762.7 | AX7: -3762.7 | AZ7: 175912.54 | BA7: 0 | BB7: RB agreed 25.1.17 | BC7: 175912.54 | BD7: 0
A8: Arboretum Primary School | B8: 2629 | C8: 1209.58 | D8: 3762.7 | E8: 7091.015 | F8: 11414.18 | G8: 0 | L8: 1 | N8: 1 | U8: 0 | W8: 0 | X8: 0 | Y8: 0 | Z8: 1 | AA8: 0 | AB8: 1 | AD8: 10000 | AE8: 3804.726667 | AF8: 0 | AG8: 0 | AH8: 13804.72667 | AI8: 0 | AJ8: 13804.72667 | AL8: 6 | AM8: 0 | AN8: Band 5 | AO8: 0 | AQ8: 42828.36 | AR8: 0 | AS8: 42828.36 | AU8: -29023.63333 | AV8: 0 | AW8: -29023.63333 | AX8: -29023.63333 | AZ8: 13804.72667 | BA8: 0 | BB8: SS spoke to school re TA top up - 1 child till August. | BC8: 13804.72667 | BD8: 0 | BE8: OK - unit closing - last child leaves in Summer term
A9: Brackensdale Infant School | B9: 2433 | C9: 1209.58 | D9: 3762.7 | E9: 7091.015 | F9: 11414.18 | G9: 0 | J9: 8 | K9: 8 | L9: 2 | N9: 18 | U9: 0 | W9: 0 | X9: 8 | Y9: 8 | Z9: 2 | AA9: 0 | AB9: 18 | AD9: 300000 | AE9: 109658.08 | AF9: 0 | AG9: 0 | AH9: 409658.08 | AI9: 0 | AJ9: 409658.08 | AL9: 30 | AM9: 12 | AN9: Band 4 | AO9: 85092.18 | AQ9: 479659.075 | AR9: 0 | AS9: 479659.075 | AU9: -70000.995 | AV9: 0 | AW9: -70000.995 | AX9: 15091.185 | AZ9: 409658.08 | BA9: 0 | BB9: SC forwarded on list sent to school - no changes in children or bandings. School not confirmed | BC9: 409658.08 | BD9: 0
A10: Brackensdale Junior School | B10: 2432 | C10: 1209.58 | D10: 3762.7 | E10: 7091.015 | F10: 11414.18 | G10: 0 | J10: 5 | K10: 8 | L10: 19 | N10: 32 | S10: 1 | U10: 1 | W10: 0 | X10: 5 | Y10: 8 | Z10: 20 | AA10: 0 | AB10: 33 | AD10: 370000 | AE10: 292411.04 | AF10: 0 | AG10: 0 | AH10: 662411.04 | AI10: 11414.18 | AJ10: 673825.22 | AL10: 37 | AM10: 4 | AN10: Band 4 | AO10: 28364.06 | AQ10: 591649.625 | AR10: 7091.015 | AS10: 598740.64 | AU10: 70761.415 | AV10: 4323.165 | AW10: 75084.58 | AX10: 103448.64 | AZ10: 658522.26 | BA10: 15302.96 | BB10: SC forwarded on list sent to school - 4 changes in children or bandings. School not confirmed | BC10: 673825.22 | BD10: 0
A11: Lees Brook Community KS3 | B11: 4181 | C11: 2260.575 | D11: 4813.695 | E11: 8142.01 | F11: 12465.175 | G11: 0 | J11: 2 | N11: 2 | Q11: 1 | U11: 1 | W11: 0 | X11: 3 | Y11: 0 | Z11: 0 | AA11: 0 | AB11: 3 | AD11: 80000 | AE11: 9627.39 | AF11: 0 | AG11: 0 | AH11: 89627.39 | AI11: 4813.695 | AJ11: 94441.085 | AL11: 8 | AM11: 1 | AN11: Band 3 | AO11: 4813.695 | AQ11: 111142.745 | AR11: 4813.695 | AS11: 115956.44 | AU11: -21515.355 | AV11: 0 | AW11: -21515.355 | AX11: -16701.66 | AZ11: 94441.085 | BA11: 0 | BB11: No confirmation of bandings
A12: Lees Brook Community KS4 | B12: 4181 | C12: 2716.63 | D12: 5269.75 | E12: 8598.065 | F12: 12921.23 | G12: 0 | I12: 3 | J12: 5 | K12: 1 | L12: 1 | N12: 10 | U12: 0 | W12: 3 | X12: 5 | Y12: 1 | Z12: 1 | AA12: 0 | AB12: 10 | AD12: 80000 | AE12: 56017.935 | AF12: 0 | AG12: 0 | AH12: 136017.935 | AI12: 0 | AJ12: 136017.935 | AL12: 8 | AM12: 2 | AN12: Band 3 | AO12: 10539.5 | AQ12: 130584.675 | AR12: 0 | AS12: 130584.675 | AU12: 5433.26 | AV12: 0 | AW12: 5433.26 | AX12: 15972.76 | AZ12: 136017.935 | BA12: 0 | BB12: No confirmation of bandings | BC12: 230459.02 | BD12: 0
A13: Markeaton Primary School | B13: 2436 | C13: 1209.58 | D13: 3762.7 | E13: 7091.015 | F13: 22980.05 | G13: 0 | L13: 4 | N13: 4 | U13: 0 | W13: 0 | X13: 0 | Y13: 0 | Z13: 4 | AA13: 0 | AB13: 4 | AD13: 40000 | AE13: 91920.2 | AF13: 0 | AG13: 0 | AH13: 131920.2 | AI13: 0 | AJ13: 131920.2 | AL13: 4 | AM13: 0 | AN13: Band 5 | AO13: 0 | AQ13: 154900.25 | AR13: 45960.1 | AS13: 200860.35 | AU13: -22980.05 | AV13: -45960.1 | AW13: -68940.15 | AX13: -68940.15 | AZ13: 131920.2 | BA13: 0 | BB13: SC forwarded on list sent to school - no changes in children or bandings. School not confirmed | BC13: 131920.2 | BD13: 0
A14: Reigate Primary School | B14: 2000 | C14: 1209.58 | D14: 3762.7 | E14: 7091.015 | F14: 11414.18 | G14: 20000 | I14: 2 | J14: 7 | K14: 5 | L14: 4 | N14: 18 | Q14: 1 | U14: 1 | W14: 2 | X14: 8 | Y14: 5 | Z14: 4 | AA14: 0 | AB14: 19 | AD14: 260000 | AE14: 109869.855 | AF14: 10000 | AG14: 0 | AH14: 379869.855 | AI14: 3762.7 | AJ14: 383632.555 | AL14: 26 | AM14: 7 | AN14: Band 4 | AO14: 49637.105 | AQ14: 407532.315 | AR14: 3762.7 | AS14: 411295.015 | AU14: -27662.46 | AV14: 0 | AW14: -27662.46 | AX14: 21974.645 | AZ14: 387395.255 | BA14: -3762.7 | BB14: SC forwarded on list sent to school - 2 changes in children or bandings. School not confirmed | BC14: 383632.555 | BD14: 0
A15: Saint Benedict Catholic School KS3 | B15: 4607 | C15: 2261 | D15: 4814 | E15: 8142 | F15: 12465 | G15: 0 | I15: 1 | J15: 3 | K15: 2 | L15: 2 | N15: 8 | Q15: 1 | S15: 1 | U15: 2 | W15: 1 | X15: 4 | Y15: 2 | Z15: 3 | AA15: 0 | AB15: 10 | AD15: 0 | AE15: 57917 | AF15: 0 | AG15: 0 | AH15: 57917 | AI15: 17279 | AJ15: 75196 | AL15: 0 | AM15: 0 | AN15: Band 5 | AO15: 0 | AQ15: 0 | AR15: 0 | AS15: 0 | AU15: 57917 | AV15: 17279 | AW15: 75196 | AX15: 75196 | AZ15: 75196 | BA15: 0 | BB15: No confirmation of bandings
A16: Saint Benedict Catholic School KS4 | B16: 4607 | C16: 2716.63 | D16: 5269.75 | E16: 8598.065 | F16: 12921.23 | G16: 0 | J16: 2 | L16: 2 | N16: 4 | Q16: 1 | S16: 2 | U16: 3 | W16: 0 | X16: 3 | Y16: 0 | Z16: 4 | AA16: 0 | AB16: 7 | AD16: 200000 | AE16: 36381.96 | AF16: 0 | AG16: 25000 | AH16: 261381.96 | AI16: 31112.21 | AJ16: 292494.17 | AL16: 20 | AM16: 3 | AN16: Band 5 | AO16: 38763.69 | AQ16: 364091.85 | AR16: 77527.38 | AS16: 441619.23 | AU16: -102709.89 | AV16: -46415.17 | AW16: -149125.06 | AX16: -110361.37 | AZ16: 292494.17 | BA16: 0 | BB16: No confirmation of bandings | BC16: 142690.17 | BD16: -225000 | BE16: OK - 20 place funding and £25k one off payment
A17: Springfield | B17: 2466 | C17: 1209.58 | D17: 3762.7 | E17: 7091.015 | F17: 11414.18 | G17: 0 | J17: 5 | K17: 10 | L17: 6 | N17: 21 | U17: 0 | W17: 0 | X17: 5 | Y17: 10 | Z17: 6 | AA17: 0 | AB17: 21 | AD17: 190000 | AE17: 158208.73 | AF17: 0 | AG17: 0 | AH17: 348208.73 | AI17: 0 | AJ17: 348208.73 | AL17: 19 | AM17: 0 | AN17: Band 4 | AO17: 0 | AQ17: 315175.77 | AR17: 0 | AS17: 315175.77 | AU17: 33032.96 | AV17: 0 | AW17: 33032.96 | AX17: 33032.96 | AZ17: 348208.73 | BA17: 0 | BB17: No confirmation of bandings | BC17: 348208.73 | BD17: 0
A18: The Bemrose Community School KS3 | B18: 4177 | C18: 2260.575 | D18: 4813.695 | E18: 8142.01 | F18: 12465.175 | G18: 0 | I18: 1 | J18: 5 | K18: 4 | L18: 5 | N18: 15 | U18: 0 | W18: 1 | X18: 5 | Y18: 4 | Z18: 5 | AA18: 0 | AB18: 15 | AD18: 450000 | AE18: 121222.965 | AF18: 0 | AG18: 0 | AH18: 571222.965 | AI18: 0 | AJ18: 571222.965 | AL18: 45 | AM18: 6 | AN18: Band 4 | AO18: 48852.06 | AQ18: 756985.1 | AR18: 8142.01 | AS18: 765127.11 | AU18: -185762.135 | AV18: -8142.01 | AW18: -193904.145 | AX18: -145052.085 | AZ18: 566899.8 | BA18: 4323.165 | BB18: see below
A19: The Bemrose Community School KS4 | B19: 4177 | C19: 2717 | D19: 5270 | E19: 8598 | F19: 12921 | G19: 0 | J19: 7 | K19: 2 | L19: 8 | N19: 17 | U19: 0 | W19: 0 | X19: 7 | Y19: 2 | Z19: 8 | AA19: 0 | AB19: 17 | AD19: 0 | AE19: 157454 | AF19: 0 | AG19: 0 | AH19: 157454 | AI19: 0 | AJ19: 157454 | AL19: 0 | AM19: 7 | AN19: Band 4 | AO19: 60186 | AQ19: 0 | AR19: 0 | AS19: 0 | AU19: 157454 | AV19: 0 | AW19: 157454 | AX19: 217640 | AZ19: 157454 | BA19: 0 | BB19: SC forwarded on list sent to school - 3 changes in children or bandings. School not confirmed | BC19: 728676.965 | BD19: 0
A20: Becket Primary | B20: 2405 | C20: 1209.58 | D20: 3762.7 | E20: 7091.015 | F20: 11414.18 | G20: 0 | N20: 0 | U20: 0 | W20: 0 | X20: 0 | Y20: 0 | Z20: 0 | AA20: 0 | AB20: 0 | AD20: 40000 | AE20: 0 | AF20: 0 | AG20: 0 | AH20: 40000 | AI20: 0 | AJ20: 40000 | AL20: 4 | AM20: 0 | AN20: Band 4 | AO20: 0 | AQ20: 756985.1 | AR20: 0 | AS20: 756985.1 | AU20: -716985.1 | AV20: 0 | AW20: -716985.1 | AX20: -716985.1 | AZ20: 40000 | BA20: 0 | BB20: 4 places only - OK | BC20: 40000 | BD20: 0
A21: Lakeside Community Primary | B21: 2434 | C21: 1209.58 | D21: 3762.7 | E21: 7091.015 | F21: 11414.18 | G21: 0 | N21: 0 | U21: 0 | W21: 0 | X21: 0 | Y21: 0 | Z21: 0 | AA21: 0 | AB21: 0 | AD21: 100000 | AE21: 0 | AF21: 0 | AG21: 0 | AH21: 100000 | AI21: 0 | AJ21: 100000 | AL21: 10 | AM21: 0 | AN21: Band 4 | AO21: 0 | AQ21: 0 | AR21: 0 | AS21: 0 | AU21: 100000 | AV21: 0 | AW21: 100000 | AX21: 100000 | AZ21: 40000 | BA21: 60000 | BB21: 10 places as per AP 1/2/2018 | BC21: 100000 | BD21: 0
A22: Central Nursery | B22: 2405 | G22: 0 | N22: 0 | U22: 0 | W22: 0 | X22: 0 | Y22: 0 | Z22: 0 | AA22: 0 | AB22: 0 | AD22: 142055 | AE22: 0 | AF22: 0 | AG22: 0 | AH22: 142055 | AI22: 0 | AJ22: 142055 | AL22: 14.2055 | AM22: 0 | AN22: Band # | AO22: 0 | AQ22: 115515.585 | AR22: 0 | AS22: 115515.585 | AU22: 26539.415 | AV22: 0 | AW22: 26539.415 | AX22: 26539.415 | AZ22: 0 | BA22: 142055 | BB22: Nursery ERS | BD22: -142055 | BE22: No Budget Sheet
A23: Lord St Nursery | B23: 2434 | G23: 0 | N23: 0 | U23: 0 | W23: 0 | X23: 0 | Y23: 0 | Z23: 0 | AA23: 0 | AB23: 0 | AD23: 110000 | AE23: 0 | AF23: 0 | AG23: 0 | AH23: 110000 | AI23: 0 | AJ23: 110000 | AL23: 11 | AM23: 0 | AN23: Band # | AO23: 0 | AQ23: 260890.035 | AR23: 0 | AS23: 260890.035 | AU23: -150890.035 | AV23: 0 | AW23: -150890.035 | AX23: -150890.035 | AZ23: 0 | BA23: 110000 | BB23: Nursery ERS | BD23: -110000 | BE23: No Budget Sheet
T24: 0
A25: Total Pre 16 Places | I25: 9 | J25: 65 | K25: 46 | L25: 54 | M25: 0 | N25: 174 | P25: 0 | Q25: 6 | R25: 0 | S25: 4 | T25: 0 | U25: 10 | W25: 9 | X25: 71 | Y25: 46 | Z25: 58 | AA25: 0 | AB25: 184 | AD25: 2632055 | AE25: 1325010.602 | AF25: 10000 | AG25: 25000 | AH25: 3992065.602 | AI25: 78921.285 | AJ25: 4070986.887 | AL25: 268.2055 | AM25: 42 | AO25: 326248.29 | AQ25: 4880225.985 | AR25: 152566.65 | AS25: 5032792.635 | AU25: -888160.3833 | AV25: -73645.365 | AW25: -961805.7483 | AX25: -635557.4583 | AZ25: 3743068.462 | BA25: 327918.425
A27: POST-16 PLACES | C27: Band 2 | D27: Band 3 | E27: Band 4 | F27: Band 5 | G27: Band 5 + | I27: Band 2 | J27: Band 3 | K27: Band 4 | L27: Band 5 | N27: Total | P27: Band 2 | Q27: Band 3 | R27: Band 4 | S27: Band 5 | T27: Band 5 + | U27: Total | W27: Band 2 | X27: Band 3 | Y27: Band 4 | Z27: Band 5 | AA27: Band 5 + | AB27: Total
A28: Lees Brook Community KS4 | B28: 4181 | C28: 3880.63 | D28: 6433.75 | E28: 9762.065 | F28: 14085.23 | G28: 0 | I28: 4 | N28: 4 | U28: 0 | W28: 4 | X28: 0 | Y28: 0 | Z28: 0 | AA28: 0 | AB28: 4 | AD28: 0 | AE28: 15522.52 | AF28: 0 | AG28: 0 | AH28: 15522.52 | AI28: 0 | AJ28: 15522.52 | AL28: 4 | AM28: 0 | AN28: Band 2 | AO28: 0 | AQ28: 109403.15 | AR28: 0 | AS28: 109403.15 | AU28: -93880.63 | AV28: 0 | AW28: -93880.63 | AX28: -93880.63 | AZ28: 15522.52 | BA28: 0 | BC28: 15522.52 | BD28: 0
A29: Saint Benedict Catholic School KS4 | B29: 4607 | C29: 3881 | D29: 6434 | E29: 9762 | F29: 14085 | G29: 0 | J29: 2 | L29: 4 | N29: 6 | Q29: 1 | S29: 1 | U29: 2 | W29: 0 | X29: 3 | Y29: 0 | Z29: 5 | AA29: 0 | AB29: 8 | AD29: 0 | AE29: 69208 | AF29: 0 | AG29: 0 | AH29: 69208 | AI29: 20519 | AJ29: 89727 | AL29: 5 | AM29: 0 | AN29: Band 5 | AO29: 0 | AQ29: 107693 | AR29: 20519 | AS29: 128212 | AU29: -38485 | AV29: 0 | AW29: -38485 | AX29: -38485 | AZ29: 89727 | BA29: 0 | BC29: 89727.4 | BD29: 0.4
A31: Total Post 16 Places | I31: 4 | J31: 2 | K31: 0 | L31: 4 | M31: 0 | N31: 10 | P31: 0 | Q31: 1 | R31: 0 | S31: 1 | T31: 0 | U31: 2 | W31: 4 | X31: 3 | Y31: 0 | Z31: 5 | AA31: 0 | AB31: 12 | AD31: 0 | AE31: 84730.52 | AF31: 0 | AG31: 0 | AH31: 84730.52 | AI31: 20519 | AJ31: 105249.52 | AL31: 9 | AM31: 0 | AO31: 0 | AQ31: 217096.15 | AR31: 20519 | AS31: 237615.15 | AU31: -132365.63 | AV31: 0 | AW31: -132365.63 | AX31: -132365.63 | AZ31: 105249.52 | BA31: 0
A33: Total School Places | I33: 13 | J33: 67 | K33: 46 | L33: 58 | M33: 0 | N33: 184 | P33: 0 | Q33: 7 | R33: 0 | S33: 5 | T33: 0 | U33: 12 | W33: 13 | X33: 74 | Y33: 46 | Z33: 63 | AA33: 0 | AB33: 196 | AD33: 2632055 | AE33: 1409741.122 | AF33: 10000 | AG33: 25000 | AH33: 4076796.122 | AI33: 99440.285 | AJ33: 4176236.407 | AL33: 277.2055 | AM33: 42 | AO33: 326248.29 | AQ33: 5097322.135 | AR33: 173085.65 | AS33: 5270407.785 | AU33: -1020526.013 | AV33: -73645.365 | AW33: -1094171.378 | AX33: -767923.0883 | AZ33: 3848317.982 | BA33: 327918.425
A36: Nursery
A37: Central Nursery | B37: 1006 | AE37: 142055
A38: Lord St Nursery | B38: 1005 | AE38: 110000
AE40: 252055
AE42: =SUM(AE40+AD30) -> 252055
A200: Ace Nursery | B200: 206189
A201: Akaal Primary School | B201: 2014
A202: Allenton Community Primary School | B202: 2012
A203: Allestree Woodlands School | B203: 5414
A204: Al-Madinah | B204: 4000
A205: Alvaston Infant and Nursery School | B205: 2443
A206: Alvaston Junior School | B206: 2442
A207: An-Noor Nursery | B207: EY362920
A208: Arboretum Primary School | B208: 2629
A209: Ash Croft Primary School | B209: 2509
A210: Ashgate Nursery | B210: 1014
A211: Ashgate Primary School | B211: 2005
A212: Asterdale Primary School | B212: 2464
A213: Beaufort Community Primary School | B213: 2004
A214: Becket Primary School | B214: 2405
A215: Becket Sure Start Children's Centre | B215: EY380753
A216: Best Start Sinfin | B216: EY467568
A217: Bishop Lonsdale Church of England (Aided) Primary School | B217: 2011
A218: Bizzy Kidz | B218: EY450983
A219: Borrow Wood Primary School | B219: 5201
A220: Boulton Lane Park Pre-School Playgroup | B220: 206124
A221: Brackensdale Infant School | B221: 2433
A222: Brackensdale Junior School | B222: 2432
A223: Bramble Brook Pre-School Playgroup | B223: EY282068
A224: Breadsall Hill Top Primary School | B224: 2447
A225: Brookfield Primary School | B225: 2512
A226: Busy Bees Pre-School | B226: 206126
A227: Busy Bees-Derby, Heatherton | B227: 206111
A228: Carlton Private Day Nursery | B228: 206091
A229: Carlyle Infant School | B229: 2456
A230: Cavendish Close Infant School | B230: 2449
A231: Cavendish Close Junior School | B231: 2448
A232: Central Nursery | B232: 1006
A233: Chaddesden Park Junior School | B233: 2467
A234: Chaddesden Park Primary School | B234: 2467
A235: Chellaston Academy | B235: 5402
A236: Chellaston Infant School | B236: 2455
A237: Chellaston Junior School | B237: 5203
A238: Cherry Tree Hill Primary School | B238: 2451
A239: Childcare @ St James Centre | B239: EY396374
A240: Chuckles Pre-School Playgroup | B240: 206128
A241: City of Derby Academy | B241: 4002
A242: Cotton's Farm Primary School | B242: 2430
A243: Creative Steps Pre-School | B243: EY500051
A244: da Vinci Community College | B244: 4608
A245: Dale Community Primary School | B245: 2409
A246: Derby City Childminding Network - AJH | B246: 205921
A247: Derby City Childminding Network - AK | B247: EY453961
A248: Derby City Childminding Network - ALB | B248: EY398922
A249: Derby City Childminding Network - AR | B249: 205999
A250: Derby City Childminding Network - BS | B250: EY314105
A251: Derby City Childminding Network - CAB | B251: 205852
A252: Derby City Childminding Network - CEO | B252: EY412756
A253: Derby City Childminding Network - CLHP | B253: EY251518
A254: Derby City Childminding Network - CLW | B254: 206076
A255: Derby City Childminding Network - DB | B255: EY484759
A256: Derby City Childminding Network - DG | B256: 205919
A257: Derby City Childminding Network - DK | B257: EY336463
A258: Derby City Childminding Network - DS | B258: EY294474
A259: Derby City Childminding Network - ECA | B259: EY477405
A260: Derby City Childminding Network - EJS | B260: EY368441
A261: Derby City Childminding Network - ELS | B261: EY455065
A262: Derby City Childminding Network - FM | B262: EY401536
A263: Derby City Childminding Network - HGS | B263: EY407775
A264: Derby City Childminding Network - HMS | B264: 205849
A265: Derby City Childminding Network - JD | B265: 205881
A266: Derby City Childminding Network - JM | B266: EY462623
A267: Derby City Childminding Network - JMS | B267: EY369088
A268: Derby City Childminding Network - JN | B268: 205980
A269: Derby City Childminding Network - KJD | B269: EY405755
A270: Derby City Childminding Network - LD | B270: 205878
A271: Derby City Childminding Network - LL | B271: EY463605
A272: Derby City Childminding Network - LMG | B272: 260849
A273: Derby City Childminding Network - LO | B273: EY482805
A274: Derby City Childminding Network - LS | B274: EY447579
A275: Derby City Childminding Network - MA | B275: EY479804
A276: Derby City Childminding Network - MCJ | B276: EY264853
A277: Derby City Childminding Network - MEH | B277: EY340934
A278: Derby City Childminding Network - MM | B278: EY357686
A279: Derby City Childminding Network - OBA | B279: EY440600
A280: Derby City Childminding Network - PC | B280: EY453657
A281: Derby City Childminding Network - PW | B281: EY225750
A282: Derby City Childminding Network - RAC | B282: EY393682
A283: Derby City Childminding Network - REE | B283: EY484039
A284: Derby City Childminding Network - RJF | B284: EY395288
A285: Derby City Childminding Network - RLB | B285: EY343478
A286: Derby City Childminding Network - RP | B286: EY268223
A287: Derby City Childminding Network - RS | B287: 206031
A288: Derby City Childminding Network - RSW | B288: EY278371
A289: Derby City Childminding Network - SAF | B289: EY406938
A290: Derby City Childminding Network - SJJ | B290: EY480166
A291: Derby City Childminding Network - SLB | B291: EY505502
A292: Derby City Childminding Network - SM | B292: 205978
A293: Derby City Childminding Network - STM | B293: EY435150
A294: Derby City Childminding Network - TLA | B294: EY299849
A295: Derby City Childminding Network - WJW | B295: EY318345
A296: Derby City Childminding Network - WLAW | B296: EY464682
A297: Derby City Childminding Network - YW | B297: EY414019
A298: Derby City Childminding Network - ZB | B298: EY350863
A299: Derby City Childminding Network - ZH | B299: EY458078
A300: Derby City Childminding Network -SW | B300: 206067
A301: Derby High School | B301: EY240925
A302: Derby Manufacturing UTC | B302: 4003
A303: Derby Montessori | B303: EY476012
A304: Derby Moor Community Sports College | B304: 4178
A305: Derby St Chad's CE (VC) Nursery and Infant School | B305: 3158
A306: Derwent Community School | B306: 2619
A307: Derwent Stepping Stones At Brackensdale | B307: EY460372
A308: Diamond Day PDN | B308: EY421215
A309: Emmanuel School | B309: EY345674
A310: Field Lane Playgroup Ltd | B310: EY307423
A311: Firs Estate Primary School | B311: 2518
A312: First Friends Private Day Nursery | B312: 206106
A313: First Steps Early Years Centre | B313: EY539483
A314: Fun Time Nursery Limited | B314: EY478943
A315: Gayton Community Junior School | B315: 2457
A316: Grampian Primary Academy | B316: 2010
A317: Griffe Field Primary School | B317: 2002
A318: Hardwick Primary School | B318: 3544
A319: Harrington Nursery | B319: 1008
A320: Heatherton Pre-School | B320: EY406182
A321: Homefields Primary School | B321: 2006
A322: Homelands Early Years Centre | B322: EY539486
A323: Incredible Kids | B323: EY477956
A324: King George V Pre-School | B324: 206134
A325: Kingfisher Day Nurser Pre-School And A | B325: EY285337
A326: Kingfisher Day Nursery | B326: EY285324
A327: Kingfisher Day Nursery (2) | B327: EY371448
A328: La Petite Academy | B328: 206109
A329: Lakeside Community Primary School | B329: 2434
A330: Landau Forte Academy Moorhead | B330: 2009
A331: Landau Forte College (Fox Street) | B331: 6905
A332: Lawn Primary School | B332: 2522
A333: Leapfrog Day Nursery(1) | B333: 206110
A334: Leapfrogs Pre School | B334: 206135
A335: Lees Brook Community Sports College | B335: 4181
A336: Little Acorns Nursery | B336: 509195
A337: Little Owls Playgroup | B337: EY492973
A338: Little Poppies Pre-School ( Royal British | B338: EY371611
A339: Little Scholars Private Day Nursery(1) Sunnyhill | B339: 509199
A340: Little Scholars Private Day Nursery(2) Littleover | B340: 509197
A341: Little Steps Playschool C.I.C | B341: EY471706
A342: Littleover Community School | B342: 4182
A343: Littlesteps Pre- School | B343: EY385725
A344: Lord St Nursery | B344: 1005
A345: Markeaton Primary School | B345: 2436
A346: Mary Poppins Day Nursery | B346: 206117
A347: Meadow Farm Community Primary School | B347: 2452
A348: Merrill College | B348: 4001
A349: Mickleover Methodist Playgroup | B349: 206141
A350: Mickleover Primary School | B350: 2627
A351: Murray Park School | B351: 5406
A352: Noel Baker Community School and Language College | B352: 5407
A353: Oak House Nursery | B353: EY304261
A354: Oaktree Day Nursery | B354: 258404
A355: Oakwood Infant and Nursery School | B355: 2473
A356: Oakwood Junior School | B356: 2471
A357: Orchard Day Nursery And Nursery Scho | B357: 258405
A358: Orchard Nursery School(1) | B358: 258406
A359: Osmaston Primary School | B359: 2420
A360: Park Playgroup (the) | B360: 206160
A361: Parkview Primary School | B361: 2003
A362: Pear Tree Community Junior School | B362: 2423
A363: Pear Tree Infant School | B363: 2424
A364: Play & Learn | B364: EY284120
... 63 more rows

Sheet School & Nursery Setting Lookup (hidden)
A1: CLICK ON THE ARROW BUTTON TO SELECT YOUR SCHOOL FROM THE LIST | C1: 12345 | I1: CLICK ON THE ARROW BUTTON TO SELECT YOUR SCHOOL FROM THE LIST | J1: 12345
A2: All Schools | C2: All | D2: 6 | E2: 6 | I2: All Schools | J2: All
A3: Ace Nursery | B3: DE23 8DH | C3: 206189 | D3: D | E3: 4 | I3: Ace Nursery | J3: 206189
A4: Akaal Primary School | C4: 2014 | I4: Akaal Primary School | J4: 2014
A5: Allenton Community Primary School | C5: 2012 | I5: Allenton Community Primary School | J5: 2012
A6: Allestree Woodlands School | C6: 5414 | I6: Allestree Woodlands School | J6: 5414
A7: Al-Madinah | C7: 4000 | I7: Al-Madinah | J7: 4000
A8: Alvaston Infant and Nursery School | B8: E200201 | C8: 2443 | D8: M | E8: 1 | I8: Alvaston Infant and Nursery School | J8: 2443
A9: Alvaston Junior School | C9: 2442 | I9: Alvaston Junior School | J9: 2442
A10: An-Noor Nursery | B10: DE23 8FB | C10: EY362920 | D10: D | E10: 4 | I10: An-Noor Nursery | J10: EY362920
A11: Arboretum Primary School | B11: E200401 | C11: 2629 | D11: M | E11: 1 | I11: Arboretum Primary School | J11: 2629
A12: Ash Croft Primary School | C12: 2509 | I12: Ash Croft Primary School | J12: 2509
A13: Ashgate Nursery | B13: E100101 | C13: 1014 | D13: S | E13: 2 | I13: Ashgate Nursery | J13: 1014
A14: Ashgate Primary School | C14: 2005 | I14: Ashgate Primary School | J14: 2005
A15: Asterdale Primary School | B15: E200701 | C15: 2464 | D15: M | E15: 1 | I15: Asterdale Primary School | J15: 2464
A16: Beaufort Community Primary School | B16: E200801 | C16: 2004 | D16: M | E16: 1 | I16: Beaufort Community Primary School | J16: 2004
A17: Becket Primary School | B17: E200901 | C17: 2405 | D17: M | E17: 1 | I17: Becket Primary School | J17: 2405
A18: Becket Sure Start Children's Centre | B18: DE22 3WR | C18: EY380753 | D18: D | E18: 4 | I18: Becket Sure Start Children's Centre | J18: EY380753
A19: Best Start Sinfin | B19: DE24 9HW | C19: EY467568 | D19: D | E19: 4 | I19: Best Start Sinfin | J19: EY467568
A20: Bishop Lonsdale Church of England (Aided) Primary School | B20: E201001 | C20: 2011 | D20: M | E20: 1 | I20: Bishop Lonsdale Church of England (Aided) Primary School | J20: 2011
A21: Bizzy Kidz | B21: DE23 6AP | C21: EY450983 | D21: D | E21: 4 | I21: Bizzy Kidz | J21: EY450983
A22: Borrow Wood Primary School | B22: E201201 | C22: 5201 | D22: M | E22: 1 | I22: Borrow Wood Primary School | J22: 5201
A23: Boulton Lane Park Pre-School Playgroup | B23: DE24 0BD | C23: 206124 | D23: P | E23: 3 | I23: Boulton Lane Park Pre-School Playgroup | J23: 206124
A24: Brackensdale Infant School | B24: E201401 | C24: 2433 | D24: M | E24: 1 | I24: Brackensdale Infant School | J24: 2433
A25: Brackensdale Junior School | C25: 2432 | I25: Brackensdale Junior School | J25: 2432
A26: Bramble Brook Pre-School Playgroup | B26: DE3 9HD | C26: EY282068 | D26: P | E26: 3 | I26: Bramble Brook Pre-School Playgroup | J26: EY282068
A27: Breadsall Hill Top Primary School | B27: E201601 | C27: 2447 | D27: M | E27: 1 | I27: Breadsall Hill Top Primary School | J27: 2447
A28: Brookfield Primary School | B28: E201801 | C28: 2512 | D28: M | E28: 1 | I28: Brookfield Primary School | J28: 2512
A29: Busy Bees Pre-School | B29: DE22 2HE | C29: 206126 | D29: P | E29: 3 | I29: Busy Bees Pre-School | J29: 206126
A30: Busy Bees-Derby, Heatherton | B30: DE23 3TZ | C30: 206111 | D30: D | E30: 4 | I30: Busy Bees-Derby, Heatherton | J30: 206111
A31: Carlton Private Day Nursery | B31: DE22 1GQ | C31: 206091 | D31: D | E31: 4 | I31: Carlton Private Day Nursery | J31: 206091
A32: Carlyle Infant School | B32: E201901 | C32: 2456 | D32: M | E32: 1 | I32: Carlyle Infant School | J32: 2456
A33: Cavendish Close Infant School | B33: E202001 | C33: 2449 | D33: M | E33: 1 | I33: Cavendish Close Infant School | J33: 2449
A34: Cavendish Close Junior School | C34: 2448 | I34: Cavendish Close Junior School | J34: 2448
A35: Central Nursery | B35: E100301 | C35: 1006 | D35: S | E35: 2 | I35: Central Nursery | J35: 1006
A36: Chaddesden Park Junior School | C36: 2467 | I36: Chaddesden Park Junior School | J36: 2467
A37: Chaddesden Park Primary School | B37: E202201 | C37: 2467 | D37: M | E37: 1 | I37: Chaddesden Park Primary School | J37: 2467
A38: Chellaston Academy | C38: 5402 | I38: Chellaston Academy | J38: 5402
A39: Chellaston Infant School | C39: 2455 | I39: Chellaston Infant School | J39: 2455
A40: Chellaston Junior School | C40: 5203 | I40: Chellaston Junior School | J40: 5203
A41: Cherry Tree Hill Primary School | B41: E202601 | C41: 2451 | D41: M | E41: 1 | I41: Cherry Tree Hill Primary School | J41: 2451
A42: Childcare @ St James Centre | B42: DE23 8LU | C42: EY396374 | D42: D | E42: 4 | I42: Childcare @ St James Centre | J42: EY396374
A43: Chuckles Pre-School Playgroup | B43: DE24 0RU | C43: 206128 | D43: P | E43: 3 | I43: Chuckles Pre-School Playgroup | J43: 206128
A44: City of Derby Academy | C44: 4002 | I44: City of Derby Academy | J44: 4002
A45: Cotton's Farm Primary School | B45: E206501 | C45: 2430 | D45: M | E45: 1 | I45: Cotton's Farm Primary School | J45: 2430
A46: Creative Steps Pre-School | B46: DE22 3WH | C46: EY500051 | D46: P | E46: 3 | I46: Creative Steps Pre-School | J46: EY500051
A47: da Vinci Community College | C47: 4608 | I47: da Vinci Community College | J47: 4608
A48: Dale Community Primary School | C48: 2409 | I48: Dale Community Primary School | J48: 2409
A49: Derby City Childminding Network - AJH | B49: DE21 4JQ | C49: 205921 | D49: P | E49: 3 | I49: Derby City Childminding Network - AJH | J49: 205921
A50: Derby City Childminding Network - AK | B50: DE3 9LN | C50: EY453961 | D50: P | E50: 3 | I50: Derby City Childminding Network - AK | J50: EY453961
A51: Derby City Childminding Network - ALB | B51: DE21 7HY | C51: EY398922 | D51: P | E51: 3 | I51: Derby City Childminding Network - ALB | J51: EY398922
A52: Derby City Childminding Network - AR | B52: DE23 3YA | C52: 205999 | D52: P | E52: 3 | I52: Derby City Childminding Network - AR | J52: 205999
A53: Derby City Childminding Network - BS | B53: DE24 3JP | C53: EY314105 | D53: P | E53: 3 | I53: Derby City Childminding Network - BS | J53: EY314105
A54: Derby City Childminding Network - CAB | B54: DE3 9AS | C54: 205852 | D54: P | E54: 3 | I54: Derby City Childminding Network - CAB | J54: 205852
A55: Derby City Childminding Network - CEO | B55: DE21 2HZ | C55: EY412756 | D55: P | E55: 3 | I55: Derby City Childminding Network - CEO | J55: EY412756
A56: Derby City Childminding Network - CLHP | B56: DE21 4RQ | C56: EY251518 | D56: P | E56: 3 | I56: Derby City Childminding Network - CLHP | J56: EY251518
A57: Derby City Childminding Network - CLW | B57: DE21 4TB | C57: 206076 | D57: P | E57: 3 | I57: Derby City Childminding Network - CLW | J57: 206076
A58: Derby City Childminding Network - DB | B58: DE22 4AJ | C58: EY484759 | D58: P | E58: 3 | I58: Derby City Childminding Network - DB | J58: EY484759
A59: Derby City Childminding Network - DG | B59: DE21 7DF | C59: 205919 | D59: P | E59: 3 | I59: Derby City Childminding Network - DG | J59: 205919
A60: Derby City Childminding Network - DK | B60: DE21 6JG | C60: EY336463 | D60: P | E60: 3 | I60: Derby City Childminding Network - DK | J60: EY336463
A61: Derby City Childminding Network - DS | B61: DE24 0TZ | C61: EY294474 | D61: P | E61: 3 | I61: Derby City Childminding Network - DS | J61: EY294474
A62: Derby City Childminding Network - ECA | B62: DE22 1DL | C62: EY477405 | D62: P | E62: 3 | I62: Derby City Childminding Network - ECA | J62: EY477405
A63: Derby City Childminding Network - EJS | B63: DE73 6UP | C63: EY368441 | D63: P | E63: 3 | I63: Derby City Childminding Network - EJS | J63: EY368441
A64: Derby City Childminding Network - ELS | B64: DE24 0GA | C64: EY455065 | D64: P | E64: 3 | I64: Derby City Childminding Network - ELS | J64: EY455065
A65: Derby City Childminding Network - FM | B65: DE3 0QQ | C65: EY401536 | D65: P | E65: 3 | I65: Derby City Childminding Network - FM | J65: EY401536
A66: Derby City Childminding Network - HGS | B66: DE22 2NB | C66: EY407775 | D66: P | E66: 3 | I66: Derby City Childminding Network - HGS | J66: EY407775
A67: Derby City Childminding Network - HMS | B67: DE21 4NE | C67: 205849 | D67: P | E67: 3 | I67: Derby City Childminding Network - HMS | J67: 205849
A68: Derby City Childminding Network - JD | B68: DE22 2NN | C68: 205881 | D68: P | E68: 3 | I68: Derby City Childminding Network - JD | J68: 205881
A69: Derby City Childminding Network - JM | B69: DE21 6RZ | C69: EY462623 | D69: P | E69: 3 | I69: Derby City Childminding Network - JM | J69: EY462623
A70: Derby City Childminding Network - JMS | B70: DE3 0PE | C70: EY369088 | D70: P | E70: 3 | I70: Derby City Childminding Network - JMS | J70: EY369088
A71: Derby City Childminding Network - JN | B71: DE24 3LB | C71: 205980 | D71: P | E71: 3 | I71: Derby City Childminding Network - JN | J71: 205980
A72: Derby City Childminding Network - KJD | B72: DE24 0TE | C72: EY405755 | D72: P | E72: 3 | I72: Derby City Childminding Network - KJD | J72: EY405755
A73: Derby City Childminding Network - LD | B73: DE24 0GR | C73: 205878 | D73: P | E73: 3 | I73: Derby City Childminding Network - LD | J73: 205878
A74: Derby City Childminding Network - LL | B74: DE23 1HB | C74: EY463605 | D74: P | E74: 3 | I74: Derby City Childminding Network - LL | J74: EY463605
A75: Derby City Childminding Network - LMG | B75: DE21 6PX | C75: 260849 | D75: P | E75: 3 | I75: Derby City Childminding Network - LMG | J75: 260849
A76: Derby City Childminding Network - LO | B76: Unknown | C76: EY482805 | D76: P | E76: 3 | I76: Derby City Childminding Network - LO | J76: EY482805
A77: Derby City Childminding Network - LS | B77: DE24 3JP | C77: EY447579 | D77: P | E77: 3 | I77: Derby City Childminding Network - LS | J77: EY447579
A78: Derby City Childminding Network - MA | B78: DE23 6PG | C78: EY479804 | D78: P | E78: 3 | I78: Derby City Childminding Network - MA | J78: EY479804
A79: Derby City Childminding Network - MCJ | B79: DE73 6NB | C79: EY264853 | D79: P | E79: 3 | I79: Derby City Childminding Network - MCJ | J79: EY264853
A80: Derby City Childminding Network - MEH | B80: DE24 9DD | C80: EY340934 | D80: P | E80: 3 | I80: Derby City Childminding Network - MEH | J80: EY340934
A81: Derby City Childminding Network - MM | B81: DE21 7LY | C81: EY357686 | D81: P | E81: 3 | I81: Derby City Childminding Network - MM | J81: EY357686
A82: Derby City Childminding Network - OBA | B82: DE24 9NE | C82: EY440600 | D82: P | E82: 3 | I82: Derby City Childminding Network - OBA | J82: EY440600
A83: Derby City Childminding Network - PC | B83: DE22 1HT | C83: EY453657 | D83: P | E83: 3 | I83: Derby City Childminding Network - PC | J83: EY453657
A84: Derby City Childminding Network - PW | B84: DE21 2QJ | C84: EY225750 | D84: P | E84: 3 | I84: Derby City Childminding Network - PW | J84: EY225750
A85: Derby City Childminding Network - RAC | B85: DE3 9YF | C85: EY393682 | D85: P | E85: 3 | I85: Derby City Childminding Network - RAC | J85: EY393682
A86: Derby City Childminding Network - REE | B86: DE21 2JW | C86: EY484039 | D86: P | E86: 3 | I86: Derby City Childminding Network - REE | J86: EY484039
A87: Derby City Childminding Network - RJF | B87: DE21 2BJ | C87: EY395288 | D87: P | E87: 3 | I87: Derby City Childminding Network - RJF | J87: EY395288
A88: Derby City Childminding Network - RLB | B88: DE22 3JQ | C88: EY343478 | D88: P | E88: 3 | I88: Derby City Childminding Network - RLB | J88: EY343478
A89: Derby City Childminding Network - RP | B89: DE24 9JQ | C89: EY268223 | D89: P | E89: 3 | I89: Derby City Childminding Network - RP | J89: EY268223
A90: Derby City Childminding Network - RS | B90: DE22 2HQ | C90: 206031 | D90: P | E90: 3 | I90: Derby City Childminding Network - RS | J90: 206031
A91: Derby City Childminding Network - RSW | B91: DE73 6UU | C91: EY278371 | D91: P | E91: 3 | I91: Derby City Childminding Network - RSW | J91: EY278371
A92: Derby City Childminding Network - SAF | B92: DE21 7QL | C92: EY406938 | D92: P | E92: 3 | I92: Derby City Childminding Network - SAF | J92: EY406938
A93: Derby City Childminding Network - SJJ | B93: DE21 7RF | C93: EY480166 | D93: P | E93: 3 | I93: Derby City Childminding Network - SJJ | J93: EY480166
A94: Derby City Childminding Network - SLB | B94: DE21 2QL | C94: EY505502 | D94: P | E94: 3 | I94: Derby City Childminding Network - SLB | J94: EY505502
A95: Derby City Childminding Network - SM | B95: DE24 9FN | C95: 205978 | D95: P | E95: 3 | I95: Derby City Childminding Network - SM | J95: 205978
A96: Derby City Childminding Network - STM | B96: DE24 9AY | C96: EY435150 | D96: P | E96: 3 | I96: Derby City Childminding Network - STM | J96: EY435150
A97: Derby City Childminding Network - TLA | B97: DE24 8PF | C97: EY299849 | D97: P | E97: 3 | I97: Derby City Childminding Network - TLA | J97: EY299849
A98: Derby City Childminding Network - WJW | B98: DE22 2FZ | C98: EY318345 | D98: P | E98: 3 | I98: Derby City Childminding Network - WJW | J98: EY318345
A99: Derby City Childminding Network - WLAW | B99: DE73 6TB | C99: EY464682 | D99: P | E99: 3 | I99: Derby City Childminding Network - WLAW | J99: EY464682
A100: Derby City Childminding Network - YW | B100: DE24 8SE | C100: EY414019 | D100: P | E100: 3 | I100: Derby City Childminding Network - YW | J100: EY414019
A101: Derby City Childminding Network - ZB | B101: DE23 2TD | C101: EY350863 | D101: P | E101: 3 | I101: Derby City Childminding Network - ZB | J101: EY350863
A102: Derby City Childminding Network - ZH | B102: DE23 3RL | C102: EY458078 | D102: P | E102: 3 | I102: Derby City Childminding Network - ZH | J102: EY458078
A103: Derby City Childminding Network -SW | B103: DE21 2BL | C103: 206067 | D103: P | E103: 3 | I103: Derby City Childminding Network -SW | J103: 206067
A104: Derby High School | B104: DE23 3DT | C104: EY240925 | D104: P | E104: 3 | I104: Derby High School | J104: EY240925
A105: Derby Manufacturing UTC | C105: 4003 | I105: Derby Manufacturing UTC | J105: 4003
A106: Derby Montessori | B106: DE22 3NJ | C106: EY476012 | D106: P | E106: 3 | I106: Derby Montessori | J106: EY476012
A107: Derby Moor Community Sports College | C107: 4178 | I107: Derby Moor Community Sports College | J107: 4178
A108: Derby St Chad's CE (VC) Nursery and Infant School | B108: E206801 | C108: 3158 | D108: M | E108: 1 | I108: Derby St Chad's CE (VC) Nursery and Infant School | J108: 3158
A109: Derwent Community School | B109: E202901 | C109: 2619 | D109: M | E109: 1 | I109: Derwent Community School | J109: 2619
A110: Derwent Stepping Stones At Brackensdale | B110: DE22 4BS | C110: EY460372 | D110: D | E110: 4 | I110: Derwent Stepping Stones At Brackensdale | J110: EY460372
A111: Diamond Day PDN | B111: DE24 0PA | C111: EY421215 | D111: P | E111: 3 | I111: Diamond Day PDN | J111: EY421215
A112: Emmanuel School | B112: DE22 1FP | C112: EY345674 | D112: D | E112: 4 | I112: Emmanuel School | J112: EY345674
A113: Field Lane Playgroup Ltd | B113: DE24 0GW | C113: EY307423 | D113: P | E113: 3 | I113: Field Lane Playgroup Ltd | J113: EY307423
A114: Firs Estate Primary School | B114: E203001 | C114: 2518 | D114: M | E114: 1 | I114: Firs Estate Primary School | J114: 2518
A115: First Friends Private Day Nursery | B115: DE21 6HP | C115: 206106 | D115: D | E115: 4 | I115: First Friends Private Day Nursery | J115: 206106
A116: First Steps Early Years Centre | B116: DE24 8XB | C116: EY539483 | D116: D | E116: 4 | I116: First Steps Early Years Centre | J116: EY539483
A117: Fun Time Nursery Limited | B117: DE23 8DD | C117: EY478943 | D117: D | E117: 4 | I117: Fun Time Nursery Limited | J117: EY478943
A118: Gayton Community Junior School | C118: 2457 | I118: Gayton Community Junior School | J118: 2457
A119: Grampian Primary Academy | C119: 2010 | D119: M | E119: 1 | I119: Grampian Primary Academy | J119: 2010
A120: Griffe Field Primary School | B120: E203301 | C120: 2002 | D120: M | E120: 1 | I120: Griffe Field Primary School | J120: 2002
A121: Hardwick Primary School | B121: E203401 | C121: 3544 | D121: M | E121: 1 | I121: Hardwick Primary School | J121: 3544
A122: Harrington Nursery | B122: E100401 | C122: 1008 | D122: S | E122: 2 | I122: Harrington Nursery | J122: 1008
A123: Heatherton Pre-School | B123: DE23 3TZ | C123: EY406182 | D123: P | E123: 3 | I123: Heatherton Pre-School | J123: EY406182
A124: Homefields Primary School | B124: E203501 | C124: 2006 | D124: M | E124: 1 | I124: Homefields Primary School | J124: 2006
A125: Homelands Early Years Centre | B125: DE23 8DN | C125: EY539486 | D125: D | E125: 4 | I125: Homelands Early Years Centre | J125: EY539486
A126: Incredible Kids | B126: DE24 8AJ | C126: EY477956 | D126: D | E126: 4 | I126: Incredible Kids | J126: EY477956
A127: King George V Pre-School | B127: DE23 6GT | C127: 206134 | D127: P | E127: 3 | I127: King George V Pre-School | J127: 206134
A128: Kingfisher Day Nurser Pre-School And A | B128: DE21 7AB | C128: EY285337 | D128: D | E128: 4 | I128: Kingfisher Day Nurser Pre-School And A | J128: EY285337
A129: Kingfisher Day Nursery | B129: DE21 7JP | C129: EY285324 | D129: D | E129: 4 | I129: Kingfisher Day Nursery | J129: EY285324
A130: Kingfisher Day Nursery (2) | B130: DE22 1AF | C130: EY371448 | D130: D | E130: 4 | I130: Kingfisher Day Nursery (2) | J130: EY371448
A131: La Petite Academy | B131: DE23 1DG | C131: 206109 | D131: D | E131: 4 | I131: La Petite Academy | J131: 206109
A132: Lakeside Community Primary School | B132: E203601 | C132: 2434 | D132: M | E132: 1 | I132: Lakeside Community Primary School | J132: 2434
A133: Landau Forte Academy Moorhead | C133: 2009 | I133: Landau Forte Academy Moorhead | J133: 2009
A134: Landau Forte College (Fox Street) | C134: 6905 | I134: Landau Forte College (Fox Street) | J134: 6905
A135: Lawn Primary School | C135: 2522 | I135: Lawn Primary School | J135: 2522
A136: Leapfrog Day Nursery(1) | B136: DE21 2SF | C136: 206110 | D136: D | E136: 4 | I136: Leapfrog Day Nursery(1) | J136: 206110
A137: Leapfrogs Pre School | B137: DE73 6TS | C137: 206135 | D137: P | E137: 3 | I137: Leapfrogs Pre School | J137: 206135
A138: Lees Brook Community Sports College | C138: 4181 | I138: Lees Brook Community Sports College | J138: 4181
A139: Little Acorns Nursery | B139: DE22 3LX | C139: 509195 | D139: D | E139: 4 | I139: Little Acorns Nursery | J139: 509195
A140: Little Owls Playgroup | B140: DE22 4FN | C140: EY492973 | D140: P | E140: 3 | I140: Little Owls Playgroup | J140: EY492973
A141: Little Poppies Pre-School ( Royal British | B141: DE3 9GB | C141: EY371611 | D141: P | E141: 3 | I141: Little Poppies Pre-School ( Royal British | J141: EY371611
A142: Little Scholars Private Day Nursery(1) Sunnyhill | B142: DE23 1GQ | C142: 509199 | D142: D | E142: 4 | I142: Little Scholars Private Day Nursery(1) Sunnyhill | J142: 509199
A143: Little Scholars Private Day Nursery(2) Littleover | B143: DE23 3EY | C143: 509197 | D143: D | E143: 4 | I143: Little Scholars Private Day Nursery(2) Littleover | J143: 509197
A144: Little Steps Playschool C.I.C | B144: DE24 9HY | C144: EY471706 | D144: P | E144: 3 | I144: Little Steps Playschool C.I.C | J144: EY471706
A145: Littleover Community School | C145: 4182 | I145: Littleover Community School | J145: 4182
A146: Littlesteps Pre- School | B146: DE23 6EP | C146: EY385725 | D146: P | E146: 3 | I146: Littlesteps Pre- School | J146: EY385725
A147: Lord St Nursery | B147: E100501 | C147: 1005 | D147: S | E147: 2 | I147: Lord St Nursery | J147: 1005
A148: Markeaton Primary School | C148: 2436 | I148: Markeaton Primary School | J148: 2436
A149: Mary Poppins Day Nursery | B149: DE3 9AJ | C149: 206117 | D149: D | E149: 4 | I149: Mary Poppins Day Nursery | J149: 206117
A150: Meadow Farm Community Primary School | B150: E203901 | C150: 2452 | D150: M | E150: 1 | I150: Meadow Farm Community Primary School | J150: 2452
A151: Merrill College | C151: 4001 | I151: Merrill College | J151: 4001
A152: Mickleover Methodist Playgroup | B152: DE3 9GH | C152: 206141 | D152: P | E152: 3 | I152: Mickleover Methodist Playgroup | J152: 206141
A153: Mickleover Primary School | C153: 2627 | I153: Mickleover Primary School | J153: 2627
A154: Murray Park School | C154: 5406 | I154: Murray Park School | J154: 5406
A155: Noel Baker Community School and Language College | C155: 5407 | I155: Noel Baker Community School and Language College | J155: 5407
A156: Oak House Nursery | B156: DE3 9FN | C156: EY304261 | D156: D | E156: 4 | I156: Oak House Nursery | J156: EY304261
A157: Oaktree Day Nursery | B157: DE21 6ND | C157: 258404 | D157: D | E157: 4 | I157: Oaktree Day Nursery | J157: 258404
A158: Oakwood Infant and Nursery School | B158: E204701 | C158: 2473 | D158: M | E158: 1 | I158: Oakwood Infant and Nursery School | J158: 2473
A159: Oakwood Junior School | C159: 2471 | I159: Oakwood Junior School | J159: 2471
A160: Orchard Day Nursery And Nursery Scho | B160: DE73 5SB | C160: 258405 | D160: D | E160: 4 | I160: Orchard Day Nursery And Nursery Scho | J160: 258405
A161: Orchard Nursery School(1) | B161: DE73 6RF | C161: 258406 | D161: D | E161: 4 | I161: Orchard Nursery School(1) | J161: 258406
A162: Osmaston Primary School | B162: E204201 | C162: 2420 | D162: M | E162: 1 | I162: Osmaston Primary School | J162: 2420
A163: Park Playgroup (the) | B163: DE21 6LN | C163: 206160 | D163: P | E163: 3 | I163: Park Playgroup (the) | J163: 206160
A164: Parkview Primary School | B164: E204901 | C164: 2003 | D164: M | E164: 1 | I164: Parkview Primary School | J164: 2003
A165: Pear Tree Community Junior School | C165: 2423 | I165: Pear Tree Community Junior School | J165: 2423
A166: Pear Tree Infant School | C166: 2424 | I166: Pear Tree Infant School | J166: 2424
A167: Play & Learn | B167: DE23 6HB | C167: EY284120 | D167: D | E167: 4 | I167: Play & Learn | J167: EY284120
A168: Playcorner Nursery | B168: DE23 8GD | C168: EY474393 | D168: D | E168: 4 | I168: Playcorner Nursery | J168: EY474393
A169: Playdays Opportunity Group | B169: DE73 1TU | C169: 206146 | D169: P | E169: 3 | I169: Playdays Opportunity Group | J169: 206146
A170: Portway Infant School | C170: 2439 | I170: Portway Infant School | J170: 2439
A171: Portway Junior School | C171: 2440 | I171: Portway Junior School | J171: 2440
A172: Positive Steps Childcare | B172: DE23 6US | C172: EY370198 | D172: D | E172: 4 | I172: Positive Steps Childcare | J172: EY370198
A173: Ravensdale Infant and Nursery School | B173: E205401 | C173: 2462 | D173: M | E173: 1 | I173: Ravensdale Infant and Nursery School | J173: 2462
A174: Ravensdale Junior School | C174: 2463 | I174: Ravensdale Junior School | J174: 2463
A175: Redwood Primary School | B175: E205601 | C175: 2505 | D175: M | E175: 1 | I175: Redwood Primary School | J175: 2505
A176: Reigate Park Primary School | B176: E205801 | C176: 2000 | D176: M | E176: 1 | I176: Reigate Park Primary School | J176: 2000
A177: Ridgeway Infant School | C177: 2458 | I177: Ridgeway Infant School | J177: 2458
A178: Riverside Day Nursery - Asquith Court | B178: DE24 8HX | C178: EY283239 | D178: D | E178: 4 | I178: Riverside Day Nursery - Asquith Court | J178: EY283239
A179: Roe Farm Primary School | B179: E206001 | C179: 2001 | D179: M | E179: 1 | I179: Roe Farm Primary School | J179: 2001
A180: Rosehill Early Years Centre | B180: DE23 6WY | C180: EY440893 | D180: D | E180: 4 | I180: Rosehill Early Years Centre | J180: EY440893
A181: Rosehill Infant and Nursery School | B181: E206101 | C181: 2429 | D181: M | E181: 1 | I181: Rosehill Infant and Nursery School | J181: 2429
A182: Royal School For The Deaf | B182: DE22 3BH | C182: 113044 | D182: P | E182: 3 | I182: Royal School For The Deaf | J182: 113044
A183: Rydale Childrens Centre P D N | B183: DE22 4EN | C183: EY370254 | D183: D | E183: 4 | I183: Rydale Childrens Centre P D N | J183: EY370254
A184: Saint Benedict Catholic Voluntary Academy | C184: 4607 | I184: Saint Benedict Catholic Voluntary Academy | J184: 4607
A185: Scallywags Nursery | B185: DE73 5WX | C185: EY481412 | D185: P | E185: 3 | I185: Scallywags Nursery | J185: EY481412
A186: Schools Out | B186: DE23 2QL | C186: EY466991 | D186: P | E186: 3 | I186: Schools Out | J186: EY466991
A187: Shelton Infant School | B187: E206201 | C187: 2444 | D187: M | E187: 1 | I187: Shelton Infant School | J187: 2444
A188: Shelton Junior School | C188: 5209 | I188: Shelton Junior School | J188: 5209
A189: Shelton Lock Pre-School | B189: DE24 9AD | C189: EY347673 | D189: P | E189: 3 | I189: Shelton Lock Pre-School | J189: EY347673
A190: Shining Stars Day Nursery | B190: DE23 6WW | C190: EY497499 | D190: D | E190: 4 | I190: Shining Stars Day Nursery | J190: EY497499
A191: Silver Trees Private Day Nursery | B191: DE22 3AD | C191: EY282326 | D191: D | E191: 4 | I191: Silver Trees Private Day Nursery | J191: EY282326
A192: Silverhill Primary School | C192: 2469 | I192: Silverhill Primary School | J192: 2469
A193: Sinfin Community Childcare | B193: DE24 9HG | C193: EY279508 | D193: D | E193: 4 | I193: Sinfin Community Childcare | J193: EY279508
A194: Sinfin Community Childcare at SCILLS Community Centre | B194: DE24 9NT | C194: EY456892 | D194: D | E194: 4 | I194: Sinfin Community Childcare at SCILLS Community Centre | J194: EY456892
A195: Springfield Primary School | C195: 2466 | I195: Springfield Primary School | J195: 2466
A196: St Alban's Catholic Primary School | B196: E206701 | C196: 3543 | D196: M | E196: 1 | I196: St Alban's Catholic Primary School | J196: 3543
A197: St Andrew's Pre-School Playgroup | B197: DE23 7PX | C197: 206152 | D197: P | E197: 3 | I197: St Andrew's Pre-School Playgroup | J197: 206152
A198: St Edmunds Pre-School And Playgroup | B198: DE22 2FN | C198: EY535976 | D198: P | E198: 3 | I198: St Edmunds Pre-School And Playgroup | J198: EY535976
A199: St George's Catholic Voluntary Academy | C199: 3531 | I199: St George's Catholic Voluntary Academy | J199: 3531
A200: St James' Church of England (Aided) Infant School and Nursery | B200: E207001 | C200: 3526 | D200: M | E200: 1 | I200: St James' Church of England (Aided) Infant School and Nursery | J200: 3526
... 30 more rows

Sheet Special Schools List (hidden)
A1: CLICK ON THE ARROW BUTTON TO SELECT YOUR SCHOOL FROM THE LIST | C1: All
A2: Ivy House School | B2: E400101 | C2: 7026
A3: St Andrew's School | B3: E400201 | C3: 7027
A4: St Clare's School | B4: E400301 | C4: 7025
A5: St Giles' School | B5: E400401 | C5: 7024
A6: St Martins School including Horizons | B6: E400501 | C6: 7021
A7: Kingsmead | B7: E400601 | C7: 7029
A8: KS1/2 PRU | B8: E500101 | C8: 1104
A9: KS3/4 PRU | B9: E500202 | C9: 1103
A10: All Specials | C10: All

Sheet 2017-18 FORMULA (hidden)
A1: School | B1: DfE Number | C1: AWPU inc delegated Budget £ | D1: Deprivation £ | E1: LAC £ | F1: LCHI SEN £ | G1: EAL £ | H1: Mobility £ | I1: Lump Sum £ | J1: Split Site £ | K1: 2017-18 Rates & 16-17 adjustments £ | L1: PFI £ | M1: Pre MFG Total | N1: MFG | O1: No Cap | P1: Budget before De-Delegation | Q1: ESG | R1: De-delegation tbc | S1: Net School budget | T1: KS1 Class Factor (link info From KS1 working papers) | U1: ERS | V1: TA & OOC TA Hours | W1: TA Hours OOC | X1: Sixth Form | Y1: Schools with Nurseries excl Rates, TA, ERS | Z1: Contingency | AA1: Total | AE1: Lookup | AH1: AWPU before change | AI1: MFG before change | AJ1: Budget before De-delegation before change | AK1: Change
A2: Akaal Primary School | B2: 2014 | C2: 223031.9757 | D2: 33207.45718 | E2: 0 | F2: 0 | G2: 58403.83185 | H2: 0 | I2: 100000 | J2: 0 | K2: -6967.25 | L2: 0 | M2: 407676.0147 | N2: 0 | O2: 0 | P2: 407676.0147 | Q2: 0 | R2: 0 | S2: 407676.0147 | T2: 7082 | Y2: 0 | Z2: 0 | AA2: 414758.0147 | AB2: New Free School - no delegation | AE2: 8312014 | AH2: 223031.9757 | AI2: 0 | AJ2: 0 | AK2: 407676.0147 | AN2: 2014 | AO2: 8312014 | AP2: 0 | AQ2: -407676.0147
A3: Allenton Community Primary School | B3: 2012 | C3: 1027540.174 | D3: 464301.2423 | E3: 1389.111042 | F3: 0 | G3: 69666.64531 | H3: 0 | I3: 100000 | J3: 0 | K3: 6387.182 | L3: 0 | M3: 1669284.354 | N3: 0 | O3: 0 | P3: 1669284.354 | Q3: 0 | R3: 0 | S3: 1669284.354 | T3: 11041 | Y3: 0 | Z3: 0 | AA3: 1680325.354 | AB3: New Academy - no delegation | AC3: 2012 new number | AE3: 8312400 | AH3: 913981.7686 | AI3: 0 | AJ3: 1603315.256 | AK3: 65969.09857 | AN3: 2400 | AO3: 8312400 | AP3: 0 | AQ3: -1669284.354
A4: Alvaston Infant and Nursery School | B4: 2443 | C4: 711578.2082 | D4: 112205.4332 | E4: 0 | F4: 0 | G4: 18242.68874 | H4: 0 | I4: 100000 | J4: 0 | K4: 14351.535 | L4: 0 | M4: 956377.8651 | N4: 8663.600825 | O4: 0 | P4: 965041.466 | Q4: -6200.8768 | R4: -16805.208 | S4: 942035.3812 | T4: 49148 | Y4: 106634.381 | Z4: 0 | AA4: 1097817.762 | AE4: 8312443 | AH4: 651020.5335 | AI4: 0 | AJ4: 899135.0463 | AK4: 65906.41965 | AN4: 2443 | AO4: 8312443 | AP4: 899135.0463 | AQ4: -65906.41965
A5: Alvaston Junior School | B5: 2442 | C5: 894783.0454 | D5: 247026.1382 | E5: 0 | F5: 0 | G5: 16621.45767 | H5: 0 | I5: 100000 | J5: 0 | K5: 14351.535 | L5: 0 | M5: 1272782.176 | N5: 0 | O5: 0 | P5: 1272782.176 | Q5: -7797.3712 | R5: -21131.922 | S5: 1243852.883 | T5: 0 | Y5: 0 | Z5: 0 | AA5: 1243852.883 | AE5: 8312442 | AH5: 788883.7053 | AI5: 0 | AJ5: 1093634.773 | AK5: 179147.4031 | AN5: 2442 | AO5: 8312442 | AP5: 1093634.773 | AQ5: -179147.4031
A6: Arboretum Primary School | B6: 2629 | C6: 1354122.71 | D6: 475744.3505 | E6: 1477.816953 | F6: 0 | G6: 214566.5705 | H6: 0 | I6: 100000 | J6: 0 | K6: 61718.06 | L6: 0 | M6: 2207629.508 | N6: 0 | O6: 0 | P6: 2207629.508 | Q6: -11800.176 | R6: -31980.06 | S6: 2163849.272 | T6: 30615 | Y6: 196344.8186 | Z6: 0 | AA6: 2390809.09 | AE6: 8312629 | AH6: 1100352.353 | AI6: 0 | AJ6: 1823925.088 | AK6: 383704.42 | AN6: 2629 | AO6: 8312629 | AP6: 1823925.088 | AQ6: -383704.42
A7: Ash Croft Primary School | B7: 2509 | C7: 594751.9352 | D7: 126830.7766 | E7: 1409.86298 | F7: 0 | G7: 36558.35946 | H7: 22314.048 | I7: 100000 | J7: 0 | K7: 12613.22 | L7: 0 | M7: 894478.2022 | N7: 0 | O7: 0 | P7: 894478.2022 | Q7: -5182.8224 | R7: -14046.144 | S7: 875249.2358 | T7: 5000 | Y7: 0 | Z7: 0 | AA7: 880249.2358 | AE7: 8312509 | AH7: 497839.2315 | AI7: 0 | AJ7: 737166.5564 | AK7: 157311.6458 | AN7: 2509 | AO7: 8312509 | AP7: 737166.5564 | AQ7: -157311.6458
A8: Ashgate Primary School | B8: 2005 | C8: 841680.1941 | D8: 268709.4678 | E8: 0 | F8: 0 | G8: 39328.76197 | H8: 17155.424 | I8: 100000 | J8: 0 | K8: 15218.385 | L8: 0 | M8: 1282092.233 | N8: 0 | O8: 0 | P8: 1282092.233 | Q8: -7334.6192 | R8: -19877.802 | S8: 1254879.812 | T8: 23533 | Y8: 0 | Z8: 0 | AA8: 1278412.812 | AE8: 8312005 | AH8: 824626.0091 | AI8: 0 | AJ8: 1262947.978 | AK8: 19144.25442 | AN8: 2005 | AO8: 8312005 | AP8: 1262947.978 | AQ8: -19144.25442
A9: Asterdale Primary School | B9: 2464 | C9: 560235.0818 | D9: 89493.46593 | E9: 0 | F9: 0 | G9: 2992.704394 | H9: 0 | I9: 100000 | J9: 0 | K9: 11791.01 | L9: 0 | M9: 764512.2622 | N9: 21462.51752 | O9: 0 | P9: 785974.7797 | Q9: -4882.0336 | R9: -13230.966 | S9: 767861.7801 | T9: 5000 | Y9: 52997.14457 | Z9: 0 | AA9: 825858.9247 | AE9: 8312464 | AH9: 490180.1664 | AI9: 34171.39208 | AJ9: 722239.4517 | AK9: 63735.32798 | AN9: 2464 | AO9: 8312464 | AP9: 722239.4517 | AQ9: -63735.32799
A10: Beaufort Community Primary School | B10: 2004 | C10: 743439.919 | D10: 312187.9779 | E10: 1457.310292 | F10: 0 | G10: 21230.8639 | H10: 2399.36 | I10: 100000 | J10: 0 | K10: 13710.5 | L10: 0 | M10: 1194425.931 | N10: 42182.31824 | O10: 0 | P10: 1236608.249 | Q10: -6478.528 | R10: -17557.68 | S10: 1212572.041 | T10: 27697 | Y10: 76407.92477 | Z10: 0 | AA10: 1316676.966 | AE10: 8312004 | AH10: 694421.9024 | AI10: 42598.15804 | AJ10: 1207625.032 | AK10: 28983.21756 | AN10: 2004 | AO10: 8312004 | AP10: 1207625.032 | AQ10: -28983.21751
A11: Becket Primary School | B11: 2405 | C11: 501821.9454 | D11: 172708.847 | E11: 0 | F11: 0 | G11: 38227.96267 | H11: 0 | I11: 100000 | J11: 0 | K11: 10968.8 | L11: 0 | M11: 823727.555 | N11: 0 | O11: 0 | P11: 823727.555 | Q11: -4373.0064 | R11: -11851.434 | S11: 807503.1146 | T11: 5000 | Y11: 55222.60672 | Z11: 0 | AA11: 867725.7213 | AE11: 8312405 | AH11: 513157.3617 | AI11: 0 | AJ11: 831498.18 | AK11: -7770.624976 | AN11: 2405 | AO11: 8312405 | AP11: 831498.18 | AQ11: 7770.624976
A12: Bishop Lonsdale Church of England Aided Primary School | B12: 2011 | C12: 557579.9393 | D12: 129209.6142 | E12: 1327.92293 | F12: 0 | G12: 22086.53718 | H12: 0 | I12: 100000 | J12: 0 | K12: 5564.479 | L12: 0 | M12: 815768.4926 | N12: 0 | O12: 0 | P12: 815768.4926 | Q12: 0 | R12: 0 | S12: 815768.4926 | T12: 40189 | Y12: 64153.31045 | Z12: 0 | AA12: 920110.8031 | AB12: New Academy - no delegation | AC12: 2011 new number | AE12: 8312011 | AH12: 546346.6438 | AI12: 0 | AJ12: 794948.6707 | AK12: 20819.82188 | AN12: 3525 | AO12: 8313525 | AP12: 794948.6707 | AQ12: -20819.82188
A13: Borrow Wood Primary School | B13: 5201 | C13: 1056746.742 | D13: 70593.68484 | E13: 1307.233608 | F13: 0 | G13: 6772.938542 | H13: 0 | I13: 100000 | J13: 0 | K13: 18464.76 | L13: 0 | M13: 1253885.359 | N13: 0 | O13: 0 | P13: 1253885.359 | Q13: -9208.7648 | R13: -24956.988 | S13: 1219719.606 | T13: 24574 | Y13: 90645.14705 | Z13: 0 | AA13: 1334938.753 | AE13: 8315201 | AH13: 1069716.092 | AI13: 0 | AJ13: 1263072.027 | AK13: -9186.667929 | AN13: 5201 | AO13: 8315201 | AP13: 1263072.027 | AQ13: 9186.667929
A14: Wyndham Primary Academy | B14: 2007 | C14: 1006299.033 | D14: 402667.4766 | E14: 4565.600558 | F14: 0 | G14: 63851.11232 | H14: 31311.648 | I14: 100000 | J14: 0 | K14: 2959.714 | L14: 0 | M14: 1611654.585 | N14: 0 | O14: 0 | P14: 1611654.585 | Q14: 0 | R14: 0 | S14: 1611654.585 | T14: 11041 | Y14: 121201.2786 | Z14: 0 | AA14: 1743896.863 | AE14: 8312007 | AH14: 776118.5968 | AI14: 0 | AJ14: 1247236.355 | AK14: 364418.2297 | AN14: 2007 | AO14: 8312007 | AP14: 1247236.355 | AQ14: -364418.2297
A15: Brackensdale Infant School | B15: 2433 | C15: 446063.9514 | D15: 109613.2414 | E15: 0 | F15: 0 | G15: 8647.415242 | H15: 0 | I15: 100000 | J15: 0 | K15: 8064.46 | L15: 0 | M15: 672389.0681 | N15: 40351.55501 | O15: 0 | P15: 712740.6231 | Q15: -3887.1168 | R15: -10534.608 | S15: 698318.8983 | T15: 41025 | Y15: 109099.7533 | Z15: 0 | AA15: 848443.6516 | AE15: 8312433 | AH15: 439119.7324 | AI15: 49631.09216 | AJ15: 729586.4605 | AK15: -16845.83738 | AN15: 2433 | AO15: 8312433 | AP15: 729586.4555 | AQ15: 16845.83239
A16: Brackensdale Junior School | B16: 2432 | C16: 584131.365 | D16: 156428.706 | E16: 0 | F16: 0 | G16: 6618.566109 | H16: 0 | I16: 100000 | J16: 0 | K16: 8064.46 | L16: 0 | M16: 855243.0971 | N16: 0 | O16: 0 | P16: 855243.0971 | Q16: -5090.272 | R16: -13795.32 | S16: 836357.5051 | T16: 0 | Y16: 0 | Z16: 0 | AA16: 836357.5051 | AE16: 8312432 | AH16: 523369.4485 | AI16: 16097.55526 | AJ16: 807316.311 | AK16: 47926.7861 | AN16: 2432 | AO16: 8312432 | AP16: 807316.306 | AQ16: -47926.7911
A17: Breadsall Hill Top Primary School | B17: 2447 | C17: 1160297.302 | D17: 232026.1911 | E17: 0 | F17: 0 | G17: 23846.44856 | H17: 0 | I17: 100000 | J17: 0 | K17: 18910.62 | L17: 0 | M17: 1535080.562 | N17: 55911.49347 | O17: 0 | P17: 1590992.055 | Q17: -10111.1312 | R17: -27402.522 | S17: 1553478.402 | T17: 27492 | Y17: 124184.2768 | Z17: 0 | AA17: 1705154.679 | AE17: 8312447 | AH17: 1069716.092 | AI17: 43494.07572 | AJ17: 1539887.531 | AK17: 51104.52409 | AN17: 2447 | AO17: 8312447 | AP17: 1539887.531 | AQ17: -51104.52416
A18: Brookfield Primary School | B18: 2512 | C18: 549614.5116 | D18: 35691.34066 | E18: 0 | F18: 0 | G18: 35226.08739 | H18: 0 | I18: 100000 | J18: 0 | K18: 16727.27 | L18: 0 | M18: 737259.2096 | N18: 0 | O18: 0 | P18: 737259.2096 | Q18: -4789.4832 | R18: -12980.142 | S18: 719489.5844 | T18: 5000 | Y18: 56822.36592 | Z18: 0 | AA18: 781311.9503 | AE18: 8312512 | AH18: 525922.4702 | AI18: 0 | AJ18: 701364.5741 | AK18: 35894.63548 | AN18: 2512 | AO18: 8312512 | AP18: 701364.5741 | AQ18: -35894.63548
A19: Carlyle Infant School | B19: 2456 | C19: 475270.5197 | D19: 29866.40819 | E19: 0 | F19: 0 | G19: 34464.67879 | H19: 0 | I19: 100000 | J19: 0 | K19: 9566.3 | L19: 0 | M19: 649167.9067 | N19: 0 | O19: 0 | P19: 649167.9067 | Q19: -4141.6304 | R19: -11224.374 | S19: 633801.9023 | T19: 11041 | Y19: 67044.05924 | Z19: 0 | AA19: 711886.9615 | AE19: 8312456 | AH19: 456990.8843 | AI19: 0 | AJ19: 616546.335 | AK19: 32621.57162 | AN19: 2456 | AO19: 8312456 | AP19: 616546.335 | AQ19: -32621.57162
A20: Cavendish Close Infant School | B20: 2449 | C20: 690337.0677 | D20: 77140.2679 | E20: 0 | F20: 0 | G20: 11249.53422 | H20: 0 | I20: 100000 | J20: 0 | K20: 10419.66 | L20: 0 | M20: 889146.5298 | N20: 0 | O20: 0 | P20: 889146.5298 | Q20: -6015.776 | R20: -16303.56 | S20: 866827.1938 | T20: 22287 | Y20: 172866.1632 | Z20: 0 | AA20: 1061980.357 | AE20: 8312449 | AH20: 689315.859 | AI20: 0 | AJ20: 904864.9552 | AK20: -15718.42544 | AN20: 2449 | AO20: 8312449 | AP20: 904864.9552 | AQ20: 15718.42544
A21: Cavendish Close Junior School | B21: 2448 | C21: 897438.188 | D21: 149773.0821 | E21: 0 | F21: 0 | G21: 5990.1366 | H21: 0 | I21: 100000 | J21: 0 | K21: 17001.34 | L21: 0 | M21: 1170202.747 | N21: 0 | O21: 0 | P21: 1170202.747 | Q21: -7820.5088 | R21: -21194.628 | S21: 1141187.61 | T21: 0 | Y21: 0 | Z21: 0 | AA21: 1141187.61 | AE21: 8312448 | AH21: 852709.2478 | AI21: 0 | AJ21: 1132561.302 | AK21: 37641.44447 | AN21: 2448 | AO21: 8312448 | AP21: 1132561.302 | AQ21: -37641.44447
A22: Chaddesden Park Junior School | B22: 2467 | C22: 937265.3265 | D22: 153841.0378 | E22: 0 | F22: 0 | G22: 11731.03035 | H22: 0 | I22: 100000 | J22: 0 | K22: 12339.15 | L22: 0 | M22: 1215176.545 | N22: 3464.579931 | O22: 0 | P22: 1218641.125 | Q22: -8167.5728 | R22: -22135.218 | S22: 1188338.334 | T22: 26656 | Y22: 93465.09211 | Z22: 0 | AA22: 1308459.426 | AE22: 8312467 | AH22: 891004.5733 | AI22: 44855.84978 | AJ22: 1210856.61 | AK22: 7784.515069 | AN22: 2467 | AO22: 8312467 | AP22: 1210856.61 | AQ22: -7784.515019
A23: Chellaston Infant School | B23: 2455 | C23: 934610.1839 | D23: 89154.45442 | E23: 0 | F23: 0 | G23: 14281.90204 | H23: 0 | I23: 100000 | J23: 0 | K23: 23290 | L23: 0 | M23: 1161336.54 | N23: 0 | O23: 0 | P23: 1161336.54 | Q23: -8144.4352 | R23: -22072.512 | S23: 1131119.593 | T23: 20000 | Y23: 0 | Z23: 0 | AA23: 1151119.593 | AE23: 8312455 | AH23: 896110.6167 | AI23: 0 | AJ23: 1105904.527 | AK23: 55432.01351 | AN23: 2455 | AO23: 8312455 | AP23: 1105904.527 | AQ23: -55432.01351
A24: Chellaston Junior School | B24: 5203 | C24: 1290399.288 | D24: 119314.3282 | E24: 2668.00534 | F24: 0 | G24: 8557.338 | H24: 0 | I24: 100000 | J24: 0 | K24: 5483.558 | L24: 0 | M24: 1526422.518 | N24: 0 | O24: 0 | P24: 1526422.518 | Q24: -11244.8736 | R24: -30475.116 | S24: 1484702.528 | T24: 0 | Y24: 0 | Z24: 0 | AA24: 1484702.528 | AE24: 8315203 | AH24: 1238215.525 | AI24: 0 | AJ24: 1485622.73 | AK24: 40799.78797 | AN24: 5203 | AO24: 8315203 | AP24: 1485622.728 | AQ24: -40799.78997
A25: Cherry Tree Hill Primary School | B25: 2451 | C25: 1391294.706 | D25: 153263.5371 | E25: 0 | F25: 0 | G25: 6128.535461 | H25: 0 | I25: 100000 | J25: 0 | K25: 24953.37 | L25: 0 | M25: 1675640.148 | N25: 0 | O25: 0 | P25: 1675640.148 | Q25: -12124.1024 | R25: -32857.944 | S25: 1630658.102 | T25: 20205 | Y25: 115821.7352 | Z25: 0 | AA25: 1766684.837 | AE25: 8312451 | AH25: 1205026.242 | AI25: 0 | AJ25: 1484569.614 | AK25: 191070.5343 | AN25: 2451 | AO25: 8312451 | AP25: 1484569.614 | AQ25: -191070.5343
A26: Dale Community Primary School | B26: 2409 | C26: 1455018.127 | D26: 384929.1598 | E26: 0 | F26: 0 | G26: 183028.2187 | H26: 0 | I26: 100000 | J26: 0 | K26: 33580.33 | L26: 0 | M26: 2156555.836 | N26: 0 | O26: 0 | P26: 2156555.836 | Q26: -12679.4048 | R26: -34362.888 | S26: 2109513.543 | T26: 30615 | Y26: 0 | Z26: 0 | AA26: 2140128.543 | AE26: 8312409 | AH26: 1409267.978 | AI26: 110705.8821 | AJ26: 2111935.712 | AK26: 44620.12339 | AN26: 2409 | AO26: 8312409 | AP26: 2111935.712 | AQ26: -44620.12339
A27: Derby St Chad's CE (VC) Nursery and Infant School | B27: 3158 | C27: 318617.1082 | D27: 77469.06215 | E27: 0 | F27: 0 | G27: 96188.81195 | H27: 0 | I27: 100000 | J27: 0 | K27: 1203.124 | L27: 0 | M27: 593478.1063 | N27: 0 | O27: 0 | P27: 593478.1063 | Q27: -2776.512 | R27: -7524.72 | S27: 583176.8743 | T27: 30820 | Y27: 107888.5711 | Z27: 0 | AA27: 721885.4454 | AE27: 8313158 | AH27: 306362.604 | AI27: 0 | AJ27: 569345.0597 | AK27: 24133.0466 | AN27: 3158 | AO27: 8313158 | AP27: 569345.0637 | AQ27: -24133.0426
A28: Derwent Community School | B28: 2619 | C28: 584131.365 | D28: 252889.2845 | E28: 2756.552537 | F28: 0 | G28: 19364.03342 | H28: 8630.873175 | I28: 100000 | J28: 0 | K28: 23121.205 | L28: 0 | M28: 990893.3136 | N28: 0 | O28: 0 | P28: 990893.3136 | Q28: -5090.272 | R28: -13795.32 | S28: 972007.7216 | T28: 34984 | Y28: 99376.62556 | Z28: 0 | AA28: 1106368.347 | AE28: 8312619 | AH28: 520816.4268 | AI28: 0 | AJ28: 906883.8268 | AK28: 84009.48687 | AN28: 2619 | AO28: 8312619 | AP28: 906883.8268 | AQ28: -84009.48687
A29: Firs Estate Primary School | B29: 2518 | C29: 905403.6157 | D29: 301430.5934 | E29: 0 | F29: 0 | G29: 145414.6443 | H29: 89856.032 | I29: 100000 | J29: 0 | K29: 9156.03 | L29: 0 | M29: 1551260.915 | N29: 0 | O29: 0 | P29: 1551260.915 | Q29: -7889.9216 | R29: -21382.746 | S29: 1521988.248 | T29: 28738 | Y29: 23857.01708 | Z29: 0 | AA29: 1574583.265 | AE29: 8312518 | AH29: 868027.378 | AI29: 0 | AJ29: 1508314.055 | AK29: 42946.86088 | AN29: 2518 | AO29: 8312518 | AP29: 1508314.055 | AQ29: -42946.86088
A30: Gayton Community Junior School | B30: 2457 | C30: 963816.7522 | D30: 118958.3319 | E30: 6710.623799 | F30: 0 | G30: 24816.2802 | H30: 0 | I30: 100000 | J30: 0 | K30: 17412.945 | L30: 0 | M30: 1231714.933 | N30: 0 | O30: 0 | P30: 1231714.933 | Q30: -8398.9488 | R30: -22762.278 | S30: 1200553.706 | T30: 0 | Y30: 0 | Z30: 0 | AA30: 1200553.706 | AE30: 8312457 | AH30: 924193.8554 | AI30: 0 | AJ30: 1191595.927 | AK30: 40119.00616 | AN30: 2457 | AO30: 8312457 | AP30: 1191595.927 | AQ30: -40119.00616
A31: Grampian Primary Academy | B31: 2010 | C31: 554924.7967 | D31: 195108.5396 | E31: 0 | F31: 0 | G31: 36375.93848 | H31: 0 | I31: 100000 | J31: 0 | K31: 3263.133 | L31: 0 | M31: 889672.4078 | N31: 21980.58041 | O31: 0 | P31: 911652.9882 | Q31: 0 | R31: 0 | S31: 911652.9882 | T31: 39148 | Y31: 99941.30444 | Z31: 0 | AA31: 1050742.293 | AE31: 8312010 | AH31: 520816.4268 | AI31: 61092.58348 | AJ31: 903999.7307 | AK31: 7653.25751 | AN31: 2010 | AO31: 8312010 | AP31: 903999.7307 | AQ31: -7653.257513
A32: Griffe Field Primary School | B32: 2002 | C32: 1139056.162 | D32: 42385.50426 | E32: 1350.069684 | F32: 0 | G32: 49342.71508 | H32: 0 | I32: 100000 | J32: 0 | K32: 46429.25 | L32: 0 | M32: 1378563.701 | N32: 0 | O32: 0 | P32: 1378563.701 | Q32: -9926.0304 | R32: -26900.874 | S32: 1341736.796 | T32: 13123 | Y32: 96990.95233 | Z32: 0 | AA32: 1451850.749 | AE32: 8312002 | AH32: 1097799.331 | AI32: 0 | AJ32: 1306612.915 | AK32: 71950.78571 | AN32: 2002 | AO32: 8312002 | AP32: 1306612.915 | AQ32: -71950.78571
A33: Hardwick Primary School | B33: 3544 | C33: 1433776.987 | D33: 479390.6369 | E33: 5412.8668 | F33: 0 | G33: 224777.5088 | H33: 0 | I33: 100000 | J33: 0 | K33: 62069.24 | L33: 135765.4948 | M33: 2441192.734 | N33: 0 | O33: 0 | P33: 2441192.734 | Q33: -12494.304 | R33: -33861.24 | S33: 2394837.19 | T33: 45189 | Y33: 141211.8107 | Z33: 0 | AA33: 2581238.001 | AE33: 8313544 | AH33: 1370972.653 | AI33: 7073.341214 | AJ33: 2276475.901 | AK33: 164716.8327 | AN33: 3544 | AO33: 8313544 | AP33: 2276475.901 | AQ33: -164716.8327
A34: Homefields Primary School | B34: 2006 | C34: 799197.913 | D34: 11805.79502 | E34: 0 | F34: 0 | G34: 12825.35471 | H34: 0 | I34: 100000 | J34: 0 | K34: 29128.21 | L34: 0 | M34: 952957.2727 | N34: 0 | O34: 0 | P34: 952957.2727 | Q34: -6964.4176 | R34: -18874.506 | S34: 927118.3491 | T34: 25615 | Y34: 103437.3552 | Z34: 0 | AA34: 1056170.704 | AE34: 8312006 | AH34: 671444.7071 | AI34: 15661.20228 | AJ34: 823915.7845 | AK34: 129041.4882 | AN34: 2006 | AO34: 8312006 | AP34: 823915.7846 | AQ34: -129041.4882
A35: Lakeside Community Primary School | B35: 2434 | C35: 1484224.696 | D35: 424669.5131 | E35: 7136.303163 | F35: 0 | G35: 34020.95131 | H35: 0 | I35: 100000 | J35: 0 | K35: 48821.32 | L35: 146213.238 | M35: 2245086.021 | N35: 40821.87462 | O35: 0 | P35: 2285907.896 | Q35: -12933.9184 | R35: -35052.654 | S35: 2237921.323 | T35: 15000 | Y35: 219789.3767 | Z35: 0 | AA35: 2472710.7 | AE35: 8312434 | AH35: 1176943.004 | AI35: 16678.06304 | AJ35: 1883139.527 | AK35: 402768.3692 | AN35: 2434 | AO35: 8312434 | AP35: 1883139.527 | AQ35: -402768.3692
